Workbook

Sheet Menu
B7: PLANILLAS DE DATOS | D7: PLANILLAS DE RESULTADOS | F7: RENTABILIDAD
B24: CODIGO DE COLORES DE CELDAS
B26: Información de Entrada
B28: Variables a Ajustar
B30: Cálculos y Resultados

Sheet Ingresos Requeridos
B3: Ajuste de Ingresos
C6: Tasa WACC | G6: 0.081
C8: DETERMINACION DE INGRESOS REQUERIDOS - FLUJO DE FONDOS
G9: =+'Proy Economica'!G$6 -> Año 1 | H9: =+'Proy Economica'!H$6 -> Año 2 | I9: =+'Proy Economica'!I$6 -> Año 3 | J9: =+'Proy Economica'!J$6 -> Año 4 | K9: =+'Proy Economica'!K$6 -> Año 5 | L9: =+'Proy Economica'!L$6 -> Año 6
C10: Compras de Energía | G10: =-'Proy Economica'!G16 -> 6887103.372 | H10: =-'Proy Economica'!H16 -> 7112630.998 | I10: =-'Proy Economica'!I16 -> 7335459.551 | J10: =-'Proy Economica'!J16 -> 7550891.41 | K10: =-'Proy Economica'!K16 -> 7763427.235 | L10: =-'Proy Economica'!L16 -> 7975048.112 | M10: miles/$
C11: Gastos Operativos | G11: =-SUM('Proy Economica'!G19:G26)-'Proy Economica'!G10-'Proy Economica'!G11 -> 7691536.682 | H11: =-SUM('Proy Economica'!H19:H26)-'Proy Economica'!H10-'Proy Economica'!H11 -> 7785300.99 | I11: =-SUM('Proy Economica'!I19:I26)-'Proy Economica'!I10-'Proy Economica'!I11 -> 7793183.731 | J11: =-SUM('Proy Economica'!J19:J26)-'Proy Economica'!J10-'Proy Economica'!J11 -> 7966229.102 | K11: =-SUM('Proy Economica'!K19:K26)-'Proy Economica'!K10-'Proy Economica'!K11 -> 8412839.692 | L11: =-SUM('Proy Economica'!L19:L26)-'Proy Economica'!L10-'Proy Economica'!L11 -> 9374541.153 | M11: miles/$
C12: Impuesto Ganancias | G12: =-'Proy Economica'!G43 -> 1646131.635 | H12: =-'Proy Economica'!H43 -> 1736480.727 | I12: =-'Proy Economica'!I43 -> 1904570.781 | J12: =-'Proy Economica'!J43 -> 2044365.596 | K12: =-'Proy Economica'!K43 -> 2211523.783 | L12: =-'Proy Economica'!L43 -> 2280576.637 | M12: miles/$
C13: Inversiones | G13: =-'Flujo de Fondos y Balance'!G114 -> 2767423 | H13: =-'Flujo de Fondos y Balance'!H114 -> 2456815 | I13: =-'Flujo de Fondos y Balance'!I114 -> 3197132 | J13: =-'Flujo de Fondos y Balance'!J114 -> 3263945 | K13: =-'Flujo de Fondos y Balance'!K114 -> 2725237 | L13: =-'Flujo de Fondos y Balance'!L114 -> 2770256 | M13: miles/$
C14: Variación del Capital de Trabajo | G14: ='Flujo de Fondos y Balance'!G94 -> -196326.9877 | H14: ='Flujo de Fondos y Balance'!H94 -> -334481.0445 | I14: ='Flujo de Fondos y Balance'!I94 -> 736440.4746 | J14: ='Flujo de Fondos y Balance'!J94 -> 91973.23735 | K14: ='Flujo de Fondos y Balance'!K94 -> -507921.2856 | L14: ='Flujo de Fondos y Balance'!L94 -> 261212.6058 | M14: miles/$
C15: Total egresos anuales | G15: =SUM(G10:G14) -> 18795867.7 | H15: 18756746.67 | I15: 20966786.54 | J15: 20917404.34 | K15: 20605106.43 | L15: 22661634.51 | M15: miles/$
C17: Base de Capital Regulatoria (Redes + Cap Trabajo) | G17: =+Rentabilidad!F20 -> 36019613.66 | H17: =G21 -> 36530661.25 | I17: 36538806.03 | J17: 38283307.76 | K17: 39373952.17 | L17: 39265798.1 | M17: miles/$
C18: Inversiones | G18: =G13 -> 2767423 | H18: 2456815 | I18: 3197132 | J18: 3263945 | K18: 2725237 | L18: 2770256 | M18: miles/$
C19: Depreciaciones | G19: ='Proy Economica'!G31+'Proy Economica'!G32+'Proy Economica'!G33 -> -2060048.415 | H19: ='Proy Economica'!H31+'Proy Economica'!H32+'Proy Economica'!H33 -> -2114189.183 | I19: ='Proy Economica'!I31+'Proy Economica'!I32+'Proy Economica'!I33 -> -2189070.738 | J19: ='Proy Economica'!J31+'Proy Economica'!J32+'Proy Economica'!J33 -> -2265273.83 | K19: ='Proy Economica'!K31+'Proy Economica'!K32+'Proy Economica'!K33 -> -2325469.781 | L19: ='Proy Economica'!L31+'Proy Economica'!L32+'Proy Economica'!L33 -> -2386473.017 | M19: miles/$
C20: Variación del Capital de Trabajo | G20: =G14 -> -196326.9877 | H20: -334481.0445 | I20: 736440.4746 | J20: 91973.23735 | K20: -507921.2856 | L20: 261212.6058 | M20: miles/$
C21: Base de Capital Cierre | G21: =SUM(G17:G20) -> 36530661.25 | H21: 36538806.03 | I21: 38283307.76 | J21: 39373952.17 | K21: 39265798.1 | L21: 39910793.69 | M21: miles/$
C23: Flujo de Fondos | G23: =G15+G17 -> 54815481.36 | H23: =H15 -> 18756746.67 | I23: =I15 -> 20966786.54 | J23: =J15 -> 20917404.34 | K23: =K15 -> 20605106.43 | L23: =L15-L21 -> -17249159.18 | M23: miles/$
C25: VP Flujo de Fondos | G25: =G15/(1+$G$6)^1+G17 -> 53407095.34 | H25: =H23/(1+$G$6)^2 -> 16051148.95 | I25: =I23/(1+$G$6)^3 -> 16597962.99 | J25: =J23/(1+$G$6)^4 -> 15318104.07 | K25: =K23/(1+$G$6)^5 -> 13958745.6 | L25: =L23/(1+$G$6)^6 -> -10809703.12 | M25: miles/$
C26: VPN Ingresos Requeridos | G26: =SUM(G25:L25) -> 104523353.8
C27: Anualidad equivalente | G27: =-PMT($G$6,6,G26) -> 22678644.89
C31: COMPARACION DE INGRESOS REQUERIDOS E INGRESOS PROYECTADOS
G32: =+'Proy Economica'!G$6 -> Año 1 | H32: =+'Proy Economica'!H$6 -> Año 2 | I32: =+'Proy Economica'!I$6 -> Año 3 | J32: =+'Proy Economica'!J$6 -> Año 4 | K32: =+'Proy Economica'!K$6 -> Año 5 | L32: =+'Proy Economica'!L$6 -> Año 6
C33: Flujo de Fondos | G33: =G23 -> 54815481.36 | H33: 18756746.67 | I33: 20966786.54 | J33: 20917404.34 | K33: 20605106.43 | L33: -17249159.18 | M33: miles/$
C35: VALOR PRESENTE Flujo de Fondos | F35: =SUM(G35:L35) -> 104523353.8 | G35: =G25 -> 53407095.34 | H35: 16051148.95 | I35: 16597962.99 | J35: 15318104.07 | K35: 13958745.6 | L35: -10809703.12 | M35: miles/$
C36: Anualidad equivalente | F36: =-PMT($G$6,6,F35) -> 22678644.89
C38: Ingresos Totales Proyectados | G38: ='Proy Economica'!G9+'Proy Economica'!G12+'Proy Economica'!G13 -> 19607055.51 | H38: ='Proy Economica'!H9+'Proy Economica'!H12+'Proy Economica'!H13 -> 20258078.5 | I38: ='Proy Economica'!I9+'Proy Economica'!I12+'Proy Economica'!I13 -> 21065409.68 | J38: ='Proy Economica'!J9+'Proy Economica'!J12+'Proy Economica'!J13 -> 21989153.55 | K38: ='Proy Economica'!K9+'Proy Economica'!K12+'Proy Economica'!K13 -> 23197012.92 | L38: ='Proy Economica'!L9+'Proy Economica'!L12+'Proy Economica'!L13 -> 24640654.24 | M38: miles/$
C40: VALOR PRESENTE Ing. Proyectados | F40: =SUM(G40:L40) -> 99409217.15 | G40: =G38/(1+$G$6)^1 -> 18137886.69 | H40: =H38/(1+$G$6)^2 -> 17335918.7 | I40: =I38/(1+$G$6)^3 -> 16676036.15 | J40: =J38/(1+$G$6)^4 -> 16102960.82 | K40: =K38/(1+$G$6)^5 -> 15714609.54 | L40: =L38/(1+$G$6)^6 -> 15441805.25 | M40: miles/$
C41: Anualidad equivalente | F41: =-PMT($G$6,6,F40) -> 21569020.24
C43: Diferencia entre VP de Ingresos | F43: =F40-F35 -> -5114136.685
C44: Diferencia anualidad | F44: =F41-F36 -> -1109624.649
C45: Proyectados e Ingresos Requeridos | F45: =F43/F35 -> -0.04892817248

Sheet Rentabilidad
B3: Rentabilidad del negocio
C6: Flujo de Fondos Libre | F6: =+'Proy Economica'!F$6 -> Base | G6: =+'Proy Economica'!G$6 -> Año 1 | H6: =+'Proy Economica'!H$6 -> Año 2 | I6: =+'Proy Economica'!I$6 -> Año 3 | J6: =+'Proy Economica'!J$6 -> Año 4 | K6: =+'Proy Economica'!K$6 -> Año 5 | L6: =+'Proy Economica'!L$6 -> Año 6
B8: 1 | C8: EBIT | D8: miles/$ | G8: ='Proy Economica'!G35 -> 2942777.02 | H8: ='Proy Economica'!H35 -> 3220124.094 | I8: ='Proy Economica'!I35 -> 3721705.816 | J8: ='Proy Economica'!J35 -> 4180613.741 | K8: ='Proy Economica'!K35 -> 4668976.124 | L8: ='Proy Economica'!L35 -> 4878138.249
B9: 2 | C9: Resultados Financieros | D9: miles/$ | G9: =-('Proy Economica'!G38+'Proy Economica'!G39) -> -46408.0677 | H9: =-('Proy Economica'!H38+'Proy Economica'!H39) -> -57000.09208 | I9: =-('Proy Economica'!I38+'Proy Economica'!I39) -> -70220.1804 | J9: =-('Proy Economica'!J38+'Proy Economica'!J39) -> -45362.08087 | K9: =-('Proy Economica'!K38+'Proy Economica'!K39) -> -65192.7516 | L9: =-('Proy Economica'!L38+'Proy Economica'!L39) -> -83914.26584
B10: 3 | C10: Resultado Antes de Impuestos | D10: miles/$ | G10: =G8-G9 -> 2989185.087 | H10: 3277124.186 | I10: 3791925.997 | J10: 4225975.822 | K10: 4734168.875 | L10: 4962052.515
B11: 4 | C11: Impuestos | D11: miles/$ | G11: =-('Proy Economica'!G43) -> 1646131.635 | H11: =-('Proy Economica'!H43) -> 1736480.727 | I11: =-('Proy Economica'!I43) -> 1904570.781 | J11: =-('Proy Economica'!J43) -> 2044365.596 | K11: =-('Proy Economica'!K43) -> 2211523.783 | L11: =-('Proy Economica'!L43) -> 2280576.637
B12: 5 | C12: Resultado neto | D12: miles/$ | G12: =G10-G11 -> 1343053.452 | H12: 1540643.458 | I12: 1887355.216 | J12: 2181610.226 | K12: 2522645.092 | L12: 2681475.878
B13: 6 | C13: Amortizaciones y otros | D13: miles/$ | G13: =-('Proy Economica'!G31+'Proy Economica'!G32+'Proy Economica'!G33) -> 2060048.415 | H13: =-('Proy Economica'!H31+'Proy Economica'!H32+'Proy Economica'!H33) -> 2114189.183 | I13: =-('Proy Economica'!I31+'Proy Economica'!I32+'Proy Economica'!I33) -> 2189070.738 | J13: =-('Proy Economica'!J31+'Proy Economica'!J32+'Proy Economica'!J33) -> 2265273.83 | K13: =-('Proy Economica'!K31+'Proy Economica'!K32+'Proy Economica'!K33) -> 2325469.781 | L13: =-('Proy Economica'!L31+'Proy Economica'!L32+'Proy Economica'!L33) -> 2386473.017
B14: 7 | C14: Nuevas Inversiones | D14: miles/$ | G14: =-'Flujo de Fondos y Balance'!G114 -> 2767423 | H14: =-'Flujo de Fondos y Balance'!H114 -> 2456815 | I14: =-'Flujo de Fondos y Balance'!I114 -> 3197132 | J14: =-'Flujo de Fondos y Balance'!J114 -> 3263945 | K14: =-'Flujo de Fondos y Balance'!K114 -> 2725237 | L14: =-'Flujo de Fondos y Balance'!L114 -> 2770256
B15: 8 | C15: Variación del Capital de Trabajo | D15: miles/$ | G15: ='Flujo de Fondos y Balance'!G94 -> -196326.9877 | H15: ='Flujo de Fondos y Balance'!H94 -> -334481.0445 | I15: ='Flujo de Fondos y Balance'!I94 -> 736440.4746 | J15: ='Flujo de Fondos y Balance'!J94 -> 91973.23735 | K15: ='Flujo de Fondos y Balance'!K94 -> -507921.2856 | L15: ='Flujo de Fondos y Balance'!L94 -> 261212.6058
B16: 9 | C16: Variacion Deuda | D16: miles/$ | G16: ='Flujo de Fondos y Balance'!G63 -> 0 | H16: ='Flujo de Fondos y Balance'!H63 -> 0 | I16: ='Flujo de Fondos y Balance'!I63 -> 0 | J16: ='Flujo de Fondos y Balance'!J63 -> 800000 | K16: ='Flujo de Fondos y Balance'!K63 -> 0 | L16: ='Flujo de Fondos y Balance'!L63 -> 100000
C18: Flujo de Fondos Libre | D18: miles/$ | G18: =(G8-G11+G13-G14-G15) -> 785597.7869 | H18: =(H8-H11+H13-H14-H15) -> 1475498.594 | I18: 72633.29862 | J18: 1045603.738 | K18: 2565606.407 | L18: =(L8-L11+L13-L14-L15) -> 1952566.023
C20: Base de Capital + Capital Trabajo | D20: miles/$ | F20: ='Proyección Bienes de Uso'!F29+'Flujo de Fondos y Balance'!F92 -> 36019613.66 | G20: ='Proyección Bienes de Uso'!G29+'Flujo de Fondos y Balance'!G92 -> 36530661.25 | H20: ='Proyección Bienes de Uso'!H29+'Flujo de Fondos y Balance'!H92 -> 36538806.03 | I20: ='Proyección Bienes de Uso'!I29+'Flujo de Fondos y Balance'!I92 -> 38283307.76 | J20: ='Proyección Bienes de Uso'!J29+'Flujo de Fondos y Balance'!J92 -> 39373952.17 | K20: ='Proyección Bienes de Uso'!K29+'Flujo de Fondos y Balance'!K92 -> 39265798.1 | L20: ='Proyección Bienes de Uso'!L29+'Flujo de Fondos y Balance'!L92 -> 39910793.69
C22: Egresos/Ingresos Empresa | D22: miles/$ | F22: =-F20 -> -36019613.66 | G22: =G18 -> 785597.7869 | H22: =H18 -> 1475498.594 | I22: =I18 -> 72633.29862 | J22: =J18 -> 1045603.738 | K22: =K18 -> 2565606.407 | L22: =L18+L20 -> 41863359.72
C24: TIR Empresa sobre BC contable = | D24: =IRR(F22:L22) -> 0.05123267513
C27: Flujo de Fondos del Accionista | D27: miles/$ | F27: =+F18-F9-F16 -> 0 | G27: =+G18-G9-G16 -> 832005.8547 | H27: =+H18-H9-H16 -> 1532498.686 | I27: 142853.479 | J27: 290965.819 | K27: 2630799.159 | L27: 1936480.289
C29: Capital del Accionista | D29: miles/$ | F29: =+F20-'Flujo de Fondos y Balance'!F54 -> 31526748.7 | G29: =+G20-'Flujo de Fondos y Balance'!G54 -> 32869802.15 | H29: =+H20-'Flujo de Fondos y Balance'!H54 -> 33067392.16 | I29: =+I20-'Flujo de Fondos y Balance'!I54 -> 33414103.92 | J29: =+J20-'Flujo de Fondos y Balance'!J54 -> 33708358.93 | K29: =+K20-'Flujo de Fondos y Balance'!K54 -> 34049393.79 | L29: =+L20-'Flujo de Fondos y Balance'!L54 -> 34208224.58
C31: Egresos/Ingresos Accionista | D31: miles/$ | F31: =-F29 -> -31526748.7 | G31: =G27 -> 832005.8547 | H31: =H27 -> 1532498.686 | I31: =I27 -> 142853.479 | J31: =J27 -> 290965.819 | K31: =K27 -> 2630799.159 | L31: =L27+L29 -> 36144704.87
C33: TIR Accionista sobre BC contable = | D33: =IRR(F31:L31) -> 0.05030560063
C37: Estado de Resultados - Resumido | G37: =+'Proy Economica'!G$6 -> Año 1 | H37: =+'Proy Economica'!H$6 -> Año 2 | I37: =+'Proy Economica'!I$6 -> Año 3 | J37: =+'Proy Economica'!J$6 -> Año 4 | K37: =+'Proy Economica'!K$6 -> Año 5 | L37: =+'Proy Economica'!L$6 -> Año 6
B39: 1 | C39: Total Ingresos | D39: miles/$ | G39: =+'Proy Economica'!G14 -> 19283195.01 | H39: =+'Proy Economica'!H14 -> 19900144.49 | I39: =+'Proy Economica'!I14 -> 20732197.96 | J39: =+'Proy Economica'!J14 -> 21536437.46 | K39: =+'Proy Economica'!K14 -> 22394200.78 | L39: =+'Proy Economica'!L14 -> 23008851.39
B40: 2 | C40: Compra de energia | D40: miles/$ | G40: =+'Proy Economica'!G16 -> -6887103.372 | H40: =+'Proy Economica'!H16 -> -7112630.998 | I40: =+'Proy Economica'!I16 -> -7335459.551 | J40: =+'Proy Economica'!J16 -> -7550891.41 | K40: =+'Proy Economica'!K16 -> -7763427.235 | L40: =+'Proy Economica'!L16 -> -7975048.112
B41: 3 | C41: Margen Bruto de Distribución | D41: miles/$ | G41: =+G39+G40 -> 12396091.63 | H41: 12787513.5 | I41: 13396738.4 | J41: 13985546.05 | K41: 14630773.54 | L41: 15033803.28
B42: 4 | C42: Costo Explotación | D42: miles/$ | G42: =+'Proy Economica'!G19+'Proy Economica'!G20+'Proy Economica'!G21+'Proy Economica'!G23+'Proy Economica'!G22+'Proy Economica'!G25 -> -7102661.532 | H42: =+'Proy Economica'!H19+'Proy Economica'!H20+'Proy Economica'!H21+'Proy Economica'!H23+'Proy Economica'!H22+'Proy Economica'!H25 -> -7156129.838 | I42: =+'Proy Economica'!I19+'Proy Economica'!I20+'Proy Economica'!I21+'Proy Economica'!I23+'Proy Economica'!I22+'Proy Economica'!I25 -> -7180893.459 | J42: =+'Proy Economica'!J19+'Proy Economica'!J20+'Proy Economica'!J21+'Proy Economica'!J23+'Proy Economica'!J22+'Proy Economica'!J25 -> -7225596.355 | K42: =+'Proy Economica'!K19+'Proy Economica'!K20+'Proy Economica'!K21+'Proy Economica'!K23+'Proy Economica'!K22+'Proy Economica'!K25 -> -7310856.149 | L42: =+'Proy Economica'!L19+'Proy Economica'!L20+'Proy Economica'!L21+'Proy Economica'!L23+'Proy Economica'!L22+'Proy Economica'!L25 -> -7430304.857
B43: 5 | C43: EBITDA | D43: miles/$ | G43: =+G41+G42 -> 5293430.101 | H43: 5631383.658 | I43: 6215844.946 | J43: 6759949.695 | K43: 7319917.394 | L43: 7603498.425
B44: 6 | C44: Depreciaciones | D44: miles/$ | G44: =+'Proy Economica'!G31+'Proy Economica'!G32+'Proy Economica'!G33 -> -2060048.415 | H44: =+'Proy Economica'!H31+'Proy Economica'!H32+'Proy Economica'!H33 -> -2114189.183 | I44: =+'Proy Economica'!I31+'Proy Economica'!I32+'Proy Economica'!I33 -> -2189070.738 | J44: =+'Proy Economica'!J31+'Proy Economica'!J32+'Proy Economica'!J33 -> -2265273.83 | K44: =+'Proy Economica'!K31+'Proy Economica'!K32+'Proy Economica'!K33 -> -2325469.781 | L44: =+'Proy Economica'!L31+'Proy Economica'!L32+'Proy Economica'!L33 -> -2386473.017
B45: 7 | C45: EBIT | D45: miles/$ | G45: =SUM(G43:G44) -> 3233381.686 | H45: 3517194.475 | I45: 4026774.208 | J45: 4494675.865 | K45: 4994447.613 | L45: 5217025.408
B46: 8 | C46: Resultados Financieros | D46: miles/$ | G46: =+'Proy Economica'!G39+'Proy Economica'!G38 -> 46408.0677 | H46: =+'Proy Economica'!H39+'Proy Economica'!H38 -> 57000.09208 | I46: =+'Proy Economica'!I39+'Proy Economica'!I38 -> 70220.1804 | J46: =+'Proy Economica'!J39+'Proy Economica'!J38 -> 45362.08087 | K46: =+'Proy Economica'!K39+'Proy Economica'!K38 -> 65192.7516 | L46: =+'Proy Economica'!L39+'Proy Economica'!L38 -> 83914.26584
B47: 9 | C47: Impuestos | D47: miles/$ | G47: =+'Proy Economica'!G43 -> -1646131.635 | H47: =+'Proy Economica'!H43 -> -1736480.727 | I47: =+'Proy Economica'!I43 -> -1904570.781 | J47: =+'Proy Economica'!J43 -> -2044365.596 | K47: =+'Proy Economica'!K43 -> -2211523.783 | L47: =+'Proy Economica'!L43 -> -2280576.637
B48: 10 | C48: Resultado Neto | D48: miles/$ | G48: =SUM(G45:G47) -> 1633658.119 | H48: 1837713.84 | I48: 2192423.608 | J48: 2495672.35 | K48: 2848116.581 | L48: 3020363.037
C51: Balance General - Resúmen | G51: =+'Proy Economica'!G$6 -> Año 1 | H51: =+'Proy Economica'!H$6 -> Año 2 | I51: =+'Proy Economica'!I$6 -> Año 3 | J51: =+'Proy Economica'!J$6 -> Año 4 | K51: =+'Proy Economica'!K$6 -> Año 5 | L51: =+'Proy Economica'!L$6 -> Año 6
C53: ACTIVO
C54: Activo Corriente | D54: miles/$ | G54: =+'Flujo de Fondos y Balance'!G14 -> 7417261.046 | H54: =+'Flujo de Fondos y Balance'!H14 -> 7802644.226 | I54: =+'Flujo de Fondos y Balance'!I14 -> 6649407.778 | J54: =+'Flujo de Fondos y Balance'!J14 -> 6933122.804 | K54: =+'Flujo de Fondos y Balance'!K14 -> 7749151.99 | L54: =+'Flujo de Fondos y Balance'!L14 -> 7801802.716
C55: Activo No corriente | D55: miles/$ | G55: =+'Flujo de Fondos y Balance'!G23 -> 37684511.26 | H55: =+'Flujo de Fondos y Balance'!H23 -> 37613612.35 | I55: =+'Flujo de Fondos y Balance'!I23 -> 39653691.23 | J55: =+'Flujo de Fondos y Balance'!J23 -> 40758632.81 | K55: =+'Flujo de Fondos y Balance'!K23 -> 40434585.23 | L55: =+'Flujo de Fondos y Balance'!L23 -> 40898723.96
C56: Total del activo | D56: miles/$ | G56: =SUM(G54:G55) -> 45101772.3 | H56: 45416256.58 | I56: 46303099.01 | J56: 47691755.61 | K56: 48183737.22 | L56: 48700526.67
C58: PASIVO
C59: Pasivo Corriente | D59: miles/$ | G59: =+'Flujo de Fondos y Balance'!G35 -> 11539028.58 | H59: =+'Flujo de Fondos y Balance'!H35 -> 11632387.95 | I59: =+'Flujo de Fondos y Balance'!I35 -> 12143144.31 | J59: =+'Flujo de Fondos y Balance'!J35 -> 13203901.43 | K59: =+'Flujo de Fondos y Balance'!K35 -> 13310785.5 | L59: =+'Flujo de Fondos y Balance'!L35 -> 13616036.26
C60: Pasivo No corriente | D60: miles/$ | G60: =+'Flujo de Fondos y Balance'!G40 -> 692941.5637 | H60: =+'Flujo de Fondos y Balance'!H40 -> 716476.463 | I60: =+'Flujo de Fondos y Balance'!I40 -> 745850.7768 | J60: =+'Flujo de Fondos y Balance'!J40 -> 779495.252 | K60: =+'Flujo de Fondos y Balance'!K40 -> 823557.9186 | L60: =+'Flujo de Fondos y Balance'!L40 -> 876265.8268
C61: Total Pasivo | D61: miles/$ | G61: =SUM(G58:G60) -> 12231970.15 | H61: 12348864.42 | I61: 12888995.09 | J61: 13983396.68 | K61: 14134343.42 | L61: 14492302.09
C63: Patrimonio | D63: miles/$ | G63: =+'Flujo de Fondos y Balance'!G44 -> 32869802.15 | H63: =+'Flujo de Fondos y Balance'!H44 -> 33067392.16 | I63: =+'Flujo de Fondos y Balance'!I44 -> 33414103.92 | J63: =+'Flujo de Fondos y Balance'!J44 -> 33708358.93 | K63: =+'Flujo de Fondos y Balance'!K44 -> 34049393.79 | L63: =+'Flujo de Fondos y Balance'!L44 -> 34208224.58
C65: Total pasivo + patrimonio | D65: miles/$ | G65: =+G61+G63 -> 45101772.3 | H65: 45416256.58 | I65: 46303099.01 | J65: 47691755.61 | K65: =+K61+K63 -> 48183737.22 | L65: =+L61+L63 -> 48700526.67

Sheet Flujo de Fondos y Balance
B3: Flujo de Fondos y Balance
E5: =+E48 -> -0.0001999977976 | F5: =+F48 -> -0.000199995935 | G5: -0.0002000033855 | H5: -0.000199995935 | I5: -0.0002000033855 | J5: -0.0002000182867 | K5: -0.0002000033855 | L5: -0.0002000108361
C6: BALANCE GENERAL | N6: VARIACIONES
C7: (miles de $)
C9: ACTIVO CORRIENTE | E9: =+'Proy Economica'!E$6 -> 2015 | F9: =+'Proy Economica'!F$6 -> Base | G9: =+'Proy Economica'!G$6 -> Año 1 | H9: =+'Proy Economica'!H$6 -> Año 2 | I9: =+'Proy Economica'!I$6 -> Año 3 | J9: =+'Proy Economica'!J$6 -> Año 4 | K9: =+'Proy Economica'!K$6 -> Año 5 | L9: =+'Proy Economica'!L$6 -> Año 6 | N9: =+G9 -> Año 1 | O9: Año 2 | P9: Año 3 | Q9: Año 4 | R9: Año 5 | S9: Año 6
C10: Caja y Bancos | D10: miles/$ | E10: =[1]Balance!$E$13/1000 -> 385131.204 | F10: =+E10 -> 385131.204 | G10: =+G106/365*7 -> 369814.6987 | H10: 381646.6067 | I10: 397603.7964 | J10: 413027.5677 | K10: 429477.8231 | L10: 441265.6432 | N10: =+G10-F10 -> -15316.50527 | O10: =+H10-G10 -> 11831.90802 | P10: 15957.18966 | Q10: 15423.77132 | R10: 16450.25541 | S10: 11787.82003
C11: Inversiones Financieras | D11: miles/$ | E11: =+[1]Balance!$E$14/1000+[1]Balance!$E$23/1000 -> 431093.686 | F11: =+E11 -> 431093.686 | G11: =+G125-G10 -> 1278416.046 | H11: 1456029.372 | I11: 42282.20275 | J11: 30469.03447 | K11: 463207.7116 | L11: 65255.08838 | N11: =+G11-F11 -> 847322.3599 | O11: 177613.3256 | P11: -1413747.169 | Q11: -11813.16829 | R11: 432738.6771 | S11: -397952.6232
C12: Creditos por Servicios | D12: miles/$ | E12: =+[1]Balance!$E$15/1000+[1]Balance!$E$21/1000 -> 926543.534 | F12: =+F101/365*F73 -> 5176835.297 | G12: =+G101/365*G73 -> 5178593.243 | H12: =+H101/365*H73 -> 5354477.729 | I12: 5574002.189 | J12: 5825439.051 | K12: 6154734.679 | L12: 6548639.203 | N12: 1757.946215 | O12: 175884.4855 | P12: 219524.46 | Q12: 251436.862 | R12: 329295.6279 | S12: 393904.5243
C13: Otros activos corrientes (2015 Incluye M$ 514,007 de Cred Res 32) | D13: miles/$ | E13: =+[1]Balance!$E$16/1000 -> 1104444.058 | F13: =+E13 -> 1104444.058 | G13: =+(F13-514007) -> 590437.058 | H13: =+G13*H101/G101 -> 610490.5191 | I13: =+H13*I101/H101 -> 635519.5898 | J13: 664187.1514 | K13: 701731.7765 | L13: 746642.7818 | N13: -514007 | O13: 20053.4611 | P13: 25029.07068 | Q13: 28667.56165 | R13: 37544.62508 | S13: 44911.00528
C14: Total activo corriente | D14: miles/$ | E14: =SUM(E10:E13) -> 2847212.482 | F14: 7097504.245 | G14: 7417261.046 | H14: 7802644.226 | I14: 6649407.778 | J14: 6933122.804 | K14: 7749151.99 | L14: 7801802.716 | N14: 319756.8009 | O14: 385383.1802 | P14: -1153236.449 | Q14: 283715.0266 | R14: 816029.1856 | S14: 52650.72644
N15: 0 | O15: 0 | P15: 0 | Q15: 0 | R15: 0 | S15: 0
C16: ACTIVO NO CORRIENTE | N16: 0 | O16: 0 | P16: 0 | Q16: 0 | R16: 0 | S16: 0
C17: Bienes de Uso | D17: miles/$ | E17: ='Proyección Bienes de Uso'!E29 -> 6013235.955 | F17: ='Proyección Bienes de Uso'!F29 -> 32590633.72 | G17: ='Proyección Bienes de Uso'!G29 -> 33298008.3 | H17: ='Proyección Bienes de Uso'!H29 -> 33640634.12 | I17: ='Proyección Bienes de Uso'!I29 -> 34648695.38 | J17: ='Proyección Bienes de Uso'!J29 -> 35647366.55 | K17: ='Proyección Bienes de Uso'!K29 -> 36047133.77 | L17: ='Proyección Bienes de Uso'!L29 -> 36430916.75 | N17: 707374.5852 | O17: 342625.8168 | P17: 1008061.262 | Q17: 998671.1699 | R17: 399767.2187 | S17: 383782.9833
C18: Obras en curso - Anticipo Proveedores | D18: miles/$ | E18: =+'Proyección Bienes de Uso'!E34 -> 3489745.308 | F18: =+'Proyección Bienes de Uso'!F34 -> 3489745.308 | G18: =+'Proyección Bienes de Uso'!G34 -> 3705937.595 | H18: =+'Proyección Bienes de Uso'!H34 -> 3289993.28 | I18: =+'Proyección Bienes de Uso'!I34 -> 4281373.565 | J18: =+'Proyección Bienes de Uso'!J34 -> 4370844.82 | K18: =+'Proyección Bienes de Uso'!K34 -> 3649445.081 | L18: =+'Proyección Bienes de Uso'!L34 -> 3709731.349
C19: Materiales y Repuestos | D19: miles/$ | E19: =[1]Balance!$E$24/1000+[1]Balance!$E$17/1000 -> 471762.362 | F19: =+'Proyección Ingresos'!$H$227 -> 557145.4 | G19: =+F19*G$114/F$114 -> 591660.9671 | H19: =+G19*(H$114+H$109)/(G$109+G$114) -> 591061.0339 | I19: =+H19*(I$114+I$109)/(H$109+H$114) -> 627929.6416 | J19: =+I19*(J$114+J$109)/(I$109+I$114) -> 640412.2077 | K19: =+J19*(K$114+K$109)/(J$109+J$114) -> 632343.9079 | L19: =+K19*(L$114+L$109)/(K$109+K$114) -> 645650.9608 | N19: 34515.56708 | O19: =+H19-G19 -> -599.933196 | P19: =+I19-H19 -> 36868.60775 | Q19: =+J19-I19 -> 12482.5661 | R19: =+K19-J19 -> -8068.299788 | S19: =+L19-K19 -> 13307.05283
C20: Otros Activo no corrientes | D20: miles/$ | E20: =+[1]Balance!$E$22/1000 -> 88904.393 | F20: =+E20 -> 88904.393 | G20: =+F20 -> 88904.393 | H20: =+G20*H101/G101 -> 91923.92025 | I20: 95692.64429 | J20: 100009.23 | K20: 105662.4695 | L20: 112424.8934 | N20: 0 | O20: 3019.527251 | P20: 3768.724043 | Q20: 4316.58571 | R20: 5653.239508 | S20: 6762.423885
C21: Total activo fijo | D21: miles/$ | E21: =SUM(E17:E20) -> 10063648.02 | F21: =SUM(F17:F20) -> 36726428.82 | G21: 37684511.26 | H21: 37613612.35 | I21: 39653691.23 | J21: 40758632.81 | K21: 40434585.23 | L21: 40898723.96 | N21: 958082.4394 | O21: -70898.90429 | P21: 2040078.879 | Q21: 1104941.577 | R21: -324047.5806 | S21: 464138.728
C22: Otros activos | D22: miles/$ | E22: 0 | F22: 0 | G22: 0 | H22: 0 | I22: 0 | J22: 0 | K22: 0 | L22: 0 | N22: 0 | O22: 0 | P22: 0 | Q22: 0 | R22: 0 | S22: 0
C23: Total activo no corriente | D23: miles/$ | E23: =SUM(E21:E22) -> 10063648.02 | F23: 36726428.82 | G23: 37684511.26 | H23: 37613612.35 | I23: 39653691.23 | J23: 40758632.81 | K23: =SUM(K21:K22) -> 40434585.23 | L23: =SUM(L21:L22) -> 40898723.96 | N23: 958082.4394 | O23: -70898.90429 | P23: 2040078.879 | Q23: 1104941.577 | R23: -324047.5806 | S23: 464138.728
N24: 0 | O24: 0 | P24: 0 | Q24: 0 | R24: 0 | S24: 0
C25: Total activo | D25: miles/$ | E25: =+E14+E23 -> 12910860.5 | F25: 43823933.06 | G25: 45101772.3 | H25: 45416256.58 | I25: 46303099.01 | J25: 47691755.61 | K25: 48183737.22 | L25: 48700526.67 | N25: 1277839.24 | O25: 314484.276 | P25: 886842.4306 | Q25: 1388656.603 | R25: 491981.605 | S25: 516789.4544
N26: 0 | O26: 0 | P26: 0 | Q26: 0 | R26: 0 | S26: 0
C27: PASIVO CORRIENTE | N27: 0 | O27: 0 | P27: 0 | Q27: 0 | R27: 0 | S27: 0
C28: Deudas Comerciales | D28: miles/$ | E28: =+[1]Balance!$E$31/1000+[1]Balance!$E$41/1000 -> 4113955.607 | F28: =-(F$109+F$114)/365*F$74 -> 5245410.183 | G28: 5392700.957 | H28: 5387232.859 | I28: 5723272.225 | J28: 5837044.723 | K28: 5763506.108 | L28: 5884793.4 | N28: 147290.7743 | O28: -5468.098286 | P28: 336039.366 | Q28: 113772.498 | R28: -73538.61486 | S28: 121287.2921
N29: 0 | O29: 0 | P29: 0 | Q29: 0 | R29: 0 | S29: 0
N30: 0 | O30: 0 | P30: 0 | Q30: 0 | R30: 0 | S30: 0
C31: Deudas Sociales | D31: miles/$ | E31: =+[1]Balance!$E$34/1000+[1]Balance!$E$44/1000 -> 801169.416 | F31: =+E31 -> 801169.416 | G31: =+F31*G$72/F$72 -> 814444.5359 | H31: =+G31*H$72/G$72 -> 822922.9125 | I31: 829549.8523 | J31: 836739.6573 | K31: 850004.1571 | L31: 864914.7717 | N31: 13275.1199 | O31: 8478.376575 | P31: 6626.939853 | Q31: 7189.804937 | R31: 13264.4998 | S31: 14910.61467
C32: Deudas Fiscales | D32: miles/$ | E32: =+[1]Balance!$E$35/1000+[1]Balance!$E$45/1000 -> 248808.582 | F32: =+E32 -> 248808.582 | G32: =+F32-'Proy Economica'!G$43+'Proy Economica'!F$43 -> 22793.24712 | H32: =+G32-'Proy Economica'!H$43+'Proy Economica'!G$43 -> 113142.3395 | I32: =+H32-'Proy Economica'!I$43+'Proy Economica'!H$43 -> 281232.3928 | J32: =+I32-'Proy Economica'!J$43+'Proy Economica'!I$43 -> 421027.2076 | K32: =+J32-'Proy Economica'!K$43+'Proy Economica'!J$43 -> 588185.3954 | L32: =+K32-'Proy Economica'!L$43+'Proy Economica'!K$43 -> 657238.2489 | N32: -226015.3349 | O32: 90349.09241 | P32: 168090.0533 | Q32: 139794.8148 | R32: 167158.1878 | S32: 69052.85354
F33: =+E33 -> 0 | G33: =+F33 -> 0 | H33: =+G33 -> 0 | I33: =+H33 -> 0 | J33: =+I33 -> 0 | K33: =+J33 -> 0 | L33: =+K33 -> 0
C34: Otras Deudas | D34: miles/$ | E34: =+[1]Balance!$E$32/1000+[1]Balance!$E$33/1000+[1]Balance!$E$43/1000+[1]Balance!$E$36/1000 -> 5309089.844 | F34: =+F51 -> 5309089.844 | G34: 5309089.844 | H34: 5309089.844 | I34: 5309089.844 | J34: 6109089.844 | K34: 6109089.844 | L34: 6209089.844 | N34: 0 | O34: 0 | P34: 0 | Q34: 800000 | R34: 0 | S34: 100000
C35: Total pasivo corriente | D35: miles/$ | E35: =SUM(E28:E34) -> 10473023.45 | F35: 11604478.02 | G35: 11539028.58 | H35: 11632387.95 | I35: 12143144.31 | J35: 13203901.43 | K35: 13310785.5 | L35: 13616036.26 | N35: -65449.44065 | O35: 93359.3707 | P35: 510756.3592 | Q35: 1060757.118 | R35: 106884.0727 | S35: 305250.7603
N36: 0 | O36: 0 | P36: 0 | Q36: 0 | R36: 0 | S36: 0
C37: PASIVO NO CORRIENTE | N37: 0 | O37: 0 | P37: 0 | Q37: 0 | R37: 0 | S37: 0
C38: Deuda Financiera LP | D38: miles/$ | E38: =+[1]Balance!$E$42/1000 -> 0 | F38: 0 | G38: 0 | H38: 0 | I38: 0 | J38: 0 | K38: 0 | L38: 0 | N38: 0 | O38: 0 | P38: 0 | Q38: 0 | R38: 0 | S38: 0
C39: Previsiones | D39: miles/$ | E39: =+[1]Balance!$E$37/1000+[1]Balance!$E$47/1000 -> 692706.335 | F39: =+E39 -> 692706.335 | G39: =+F39*G101/F101 -> 692941.5637 | H39: =+G39*H101/G101 -> 716476.463 | I39: 745850.7768 | J39: 779495.252 | K39: 823557.9186 | L39: 876265.8268 | N39: 235.2287468 | O39: 23534.89928 | P39: 29374.31372 | Q39: 33644.47527 | R39: 44062.66657 | S39: 52707.90816
C40: Total Pasivo No Corriente | D40: miles/$ | E40: =SUM(E38:E39) -> 692706.335 | F40: 692706.335 | G40: 692941.5637 | H40: 716476.463 | I40: 745850.7768 | J40: 779495.252 | K40: =SUM(K38:K39) -> 823557.9186 | L40: =SUM(L38:L39) -> 876265.8268 | N40: 235.2287468 | O40: 23534.89928 | P40: 29374.31372 | Q40: 33644.47527 | R40: 44062.66657 | S40: 52707.90816
N41: 0 | O41: 0 | P41: 0 | Q41: 0 | R41: 0 | S41: 0
C42: Patrimonio | D42: miles/$ | E42: =+[1]Balance!$E$56/1000 -> 1745130.716 | F42: =+E42 -> 1745130.716 | G42: =+F42+'Proy Economica'!G45+G118 -> 3088184.168 | H42: =+G42+'Proy Economica'!H45+H118 -> 3285774.174 | I42: =+H42+'Proy Economica'!I45+I118 -> 3632485.932 | J42: =+I42+'Proy Economica'!J45+J118 -> 3926740.942 | K42: =+J42+'Proy Economica'!K45+K118 -> 4267775.808 | L42: =+K42+'Proy Economica'!L45+L118 -> 4426606.594 | N42: 1343053.452 | O42: 197590.006 | P42: 346711.7577 | Q42: 294255.0103 | R42: 341034.8657 | S42: 158830.7859
C43: Ajuste Balance de Inicio | F43: =+(F19-E19)+(F17-E17)+(F12-E12)-(F28-E28) -> 29781617.99 | G43: =+F43 -> 29781617.99 | H43: =+G43 -> 29781617.99 | I43: 29781617.99 | J43: 29781617.99 | K43: 29781617.99 | L43: 29781617.99 | N43: 0 | O43: 0 | P43: 0 | Q43: 0 | R43: 0 | S43: 0
C44: Total Pasivo No Corriente | D44: miles/$ | E44: =SUM(E42:E43) -> 1745130.716 | F44: 31526748.7 | G44: 32869802.15 | H44: 33067392.16 | I44: 33414103.92 | J44: 33708358.93 | K44: =SUM(K42:K43) -> 34049393.79 | L44: =SUM(L42:L43) -> 34208224.58 | N44: =+G44-F44 -> 1343053.452 | O44: =+H44-G44 -> 197590.006 | P44: =+I44-H44 -> 346711.7577 | Q44: =+J44-I44 -> 294255.0103 | R44: =+K44-J44 -> 341034.8657 | S44: =+L44-K44 -> 158830.7859
N45: 0 | O45: 0 | P45: 0 | Q45: 0 | R45: 0 | S45: 0
C46: Total pasivo + patrimonio | D46: miles/$ | E46: =+E35+E40+E44 -> 12910860.5 | F46: =+F35+F40+F44 -> 43823933.06 | G46: 45101772.3 | H46: 45416256.58 | I46: 46303099.01 | J46: 47691755.61 | K46: 48183737.22 | L46: 48700526.67 | N46: 1277839.24 | O46: 314484.276 | P46: 886842.4306 | Q46: 1388656.603 | R46: 491981.605 | S46: 516789.4544
C48: Diferencia | D48: miles/$ | E48: =+E46-E25 -> -0.0001999977976 | F48: -0.000199995935 | G48: -0.0002000033855 | H48: -0.000199995935 | I48: -0.0002000033855 | J48: -0.0002000182867 | K48: -0.0002000033855 | L48: -0.0002000108361 | N48: =8023-325 -> 7698
F50: =F51-F48 -> 5309089.844 | G50: =G51-G48 -> 5309089.844 | H50: 5309089.844 | I50: 5309089.844 | J50: 6109089.844 | K50: 6109089.844 | L50: 6209089.844
C51: DEUDA TOTAL | E51: =+E34 -> 5309089.844 | F51: =+E51 -> 5309089.844 | G51: =+F51+G52 -> 5309089.844 | H51: =+G51+H52 -> 5309089.844 | I51: 5309089.844 | J51: 6109089.844 | K51: 6109089.844 | L51: 6209089.844
C52: Toma (+) / Pago (-) DEUDAS | F52: 0 | G52: 0 | J52: 800000 | L52: 100000
C54: DEUDA NETA (Deuda menos Disponibilidades) | E54: =+E51-E10-E11 -> 4492864.954 | F54: =+F51-F10-F11 -> 4492864.954 | G54: 3660859.099 | H54: 3471413.866 | I54: 4869203.845 | J54: 5665593.242 | K54: 5216404.309 | L54: 5702569.112
C56: RATIOS DE DEUDA Y DIVIDENDOS
C57: Deuda Corto Plazo_1 | D57: 1 | E57: 0 | F57: =$D57*F$51 -> 5309089.844 | G57: =$D57*G$51 -> 5309089.844 | H57: 5309089.844 | I57: 5309089.844 | J57: 6109089.844 | K57: 6109089.844 | L57: 6209089.844
C58: Deuda Corto Plazo_2 | D58: =E58/$E$51 -> 0 | E58: 0 | F58: 0 | G58: 0 | H58: 0 | I58: 0 | J58: 0 | K58: 0 | L58: 0
C60: Deuda Largo Plazo_1 | D60: =E60/$E$51 -> 0 | E60: =E38 -> 0 | F60: =$D60*F$51 -> 0 | G60: 0 | H60: 0 | I60: 0 | J60: 0 | K60: 0 | L60: 0
C61: Deuda Largo Plazo_2 | D61: =E61/$E$51 -> 0 | E61: 0 | F61: 0 | G61: 0 | H61: 0 | I61: 0 | J61: 0 | K61: 0 | L61: 0
C63: Amortizacion | E63: =E116 -> 0 | F63: =F51-E51 -> 0 | G63: =G51-F51 -> 0 | H63: 0 | I63: 0 | J63: 800000 | K63: 0 | L63: 100000
C64: Interes | D64: =+'Ingresos Requeridos'!G6/0.65*0+5% -> 0.05 | E64: 0
C65: Política Dividendos | G65: 0 | H65: 1 | I65: 1 | J65: 1 | K65: 1 | L65: 1
C68: CAPITAL DE TRABAJO | E68: =+'Proy Economica'!E$6 -> 2015 | F68: =+'Proy Economica'!F$6 -> Base | G68: =+'Proy Economica'!G$6 -> Año 1 | H68: =+'Proy Economica'!H$6 -> Año 2 | I68: =+'Proy Economica'!I$6 -> Año 3 | J68: =+'Proy Economica'!J$6 -> Año 4 | K68: =+'Proy Economica'!K$6 -> Año 5 | L68: =+'Proy Economica'!L$6 -> Año 6 | N68: =+G68 -> Año 1 | O68: Año 2 | P68: Año 3 | Q68: Año 4 | R68: Año 5 | S68: Año 6
C69: (miles de $)
C72: Nº de Empleados | D72: Unid. | E72: =+F72 -> 4352.25 | F72: =+'Proyeccion costos '!F41 -> 4352.25 | G72: =+'Proyeccion costos '!G41 -> 4424.365385 | H72: =+'Proyeccion costos '!H41 -> 4470.423077 | I72: =+'Proyeccion costos '!I41 -> 4506.423077 | J72: =+'Proyeccion costos '!J41 -> 4545.480769 | K72: =+'Proyeccion costos '!K41 -> 4617.538462 | L72: =+'Proyeccion costos '!L41 -> 4698.538462
C73: Nº días período de cobro | D73: dias | E73: =+E78/E106*365 -> 85.75462908 | F73: 100 | G73: =+F73 -> 100 | H73: =+G73 -> 100 | I73: =+H73 -> 100 | J73: 100 | K73: 100 | L73: 100
C74: Nº días período de pago | D74: dias | E74: =-E86/(E109+E114)*365 -> 162.8217243 | F74: 120 | G74: =+F74 -> 120 | H74: 120 | I74: 120 | J74: 120 | K74: 120 | L74: 120
F75: TAX | G75: 0.35
C78: Cuentas por cobrar servicios | D78: miles/$ | E78: =+E12 -> 926543.534 | F78: =++F12 -> 5176835.297 | G78: =+G12 -> 5178593.243 | H78: 5354477.729 | I78: 5574002.189 | J78: 5825439.051 | K78: 6154734.679 | L78: 6548639.203 | N78: =+G78-F78 -> 1757.946215 | O78: =+H78-G78 -> 175884.4855 | P78: 219524.46 | Q78: 251436.862 | R78: 329295.6279 | S78: 393904.5243
C79: Otros activos corrientes (2015 Incluye M$ 514,007 de Cred Res 32) | D79: miles/$ | E79: =+E13 -> 1104444.058 | F79: =+F13 -> 1104444.058 | G79: 590437.058 | H79: 610490.5191 | I79: 635519.5898 | J79: 664187.1514 | K79: 701731.7765 | L79: 746642.7818 | N79: =+G79-F79 -> -514007 | O79: 20053.4611 | P79: 25029.07068 | Q79: 28667.56165 | R79: 37544.62508 | S79: 44911.00528
C80: Obras en curso | D80: miles/$ | E80: =+E18 -> 3489745.308 | F80: 3489745.308 | G80: 3705937.595 | H80: 3289993.28 | I80: 4281373.565 | J80: 4370844.82 | K80: 3649445.081 | L80: 3709731.349 | N80: =+G80-F80 -> 216192.2871 | O80: -415944.3152 | P80: 991380.2851 | Q80: =+J80-I80 -> 89471.25486 | R80: =+K80-J80 -> -721399.739 | S80: =+L80-K80 -> 60286.26798
C81: Materiales y Repuestos | D81: miles/$ | E81: 471762.362 | F81: 557145.4 | G81: 591660.9671 | H81: 591061.0339 | I81: 627929.6416 | J81: 640412.2077 | K81: 632343.9079 | L81: 645650.9608 | N81: 34515.56708 | O81: =+H81-G81 -> -599.933196 | P81: =+I81-H81 -> 36868.60775 | Q81: =+J81-I81 -> 12482.5661 | R81: =+K81-J81 -> -8068.299788 | S81: =+L81-K81 -> 13307.05283
C82: Otros Activo no corrientes | D82: miles/$ | E82: =+E20 -> 88904.393 | F82: =+F20 -> 88904.393 | G82: =+G20 -> 88904.393 | H82: 91923.92025 | I82: 95692.64429 | J82: 100009.23 | K82: 105662.4695 | L82: 112424.8934 | N82: 0 | O82: 3019.527251 | P82: 3768.724043 | Q82: 4316.58571 | R82: 5653.239508 | S82: 6762.423885
C84: Activo Circulante | D84: miles/$ | E84: =SUM(E78:E83) -> 6081399.655 | F84: 10417074.46 | G84: 10155533.26 | H84: 9937946.482 | I84: 11214517.63 | J84: 11600892.46 | K84: 11243917.91 | L84: 11763089.19 | N84: -261541.1996 | O84: -217586.7745 | P84: 1276571.147 | Q84: 386374.8303 | R84: -356974.5463 | S84: 519171.2743
N85: 0 | O85: 0 | P85: 0 | Q85: 0 | R85: 0 | S85: 0
C86: Deudas Comerciales | D86: miles/$ | E86: =+E28 -> 4113955.607 | F86: =+F28 -> 5245410.183 | G86: 5392700.957 | H86: 5387232.859 | I86: 5723272.225 | J86: 5837044.723 | K86: 5763506.108 | L86: 5884793.4 | N86: 147290.7743 | O86: -5468.098286 | P86: 336039.366 | Q86: 113772.498 | R86: -73538.61486 | S86: 121287.2921
C87: Deudas Sociales | D87: miles/$ | E87: =+E31 -> 801169.416 | F87: =+F31 -> 801169.416 | G87: 814444.5359 | H87: 822922.9125 | I87: 829549.8523 | J87: 836739.6573 | K87: 850004.1571 | L87: 864914.7717 | N87: 13275.1199 | O87: 8478.376575 | P87: 6626.939853 | Q87: 7189.804937 | R87: 13264.4998 | S87: 14910.61467
C88: Deudas Fiscales | D88: miles/$ | E88: =+E32 -> 248808.582 | F88: =+F32 -> 248808.582 | G88: =+G32 -> 22793.24712 | H88: 113142.3395 | I88: 281232.3928 | J88: 421027.2076 | K88: 588185.3954 | L88: 657238.2489 | N88: -226015.3349 | O88: 90349.09241 | P88: 168090.0533 | Q88: 139794.8148 | R88: 167158.1878 | S88: 69052.85354
C89: Previsiones | D89: miles/$ | E89: =+E39 -> 692706.335 | F89: =+F39 -> 692706.335 | G89: =+G39 -> 692941.5637 | H89: 716476.463 | I89: 745850.7768 | J89: 779495.252 | K89: 823557.9186 | L89: 876265.8268 | N89: 235.2287468 | O89: 23534.89928 | P89: 29374.31372 | Q89: 33644.47527 | R89: 44062.66657 | S89: 52707.90816
C90: Pasivo Circulante | D90: miles/$ | E90: =SUM(E86:E89) -> 5856639.94 | F90: 6988094.516 | G90: 6922880.304 | H90: 7039774.574 | I90: 7579905.247 | J90: 7874306.839 | K90: 8025253.579 | L90: 8283212.247 | N90: -65214.2119 | O90: 116894.27 | P90: 540130.6729 | Q90: 294401.5929 | R90: 150946.7393 | S90: 257958.6685
N91: 0 | O91: 0 | P91: 0 | Q91: 0 | R91: 0 | S91: 0
C92: Capital de trabajo | D92: miles/$ | E92: =+E84-E90 -> 224759.715 | F92: 3428979.94 | G92: 3232652.953 | H92: 2898171.908 | I92: 3634612.383 | J92: 3726585.62 | K92: 3218664.335 | L92: 3479876.94 | N92: -196326.9877 | O92: -334481.0445 | P92: 736440.4746 | Q92: 91973.23735 | R92: -507921.2856 | S92: 261212.6058
C94: Variación de capital de trabajo | D94: miles/$ | G94: =+G92-F92 -> -196326.9877 | H94: -334481.0445 | I94: 736440.4746 | J94: 91973.23735 | K94: -507921.2856 | L94: 261212.6058
C97: FLUJO DE FONDOS | E97: =+'Proy Economica'!E$6 -> 2015 | F97: =+'Proy Economica'!F$6 -> Base | G97: =+'Proy Economica'!G$6 -> Año 1 | H97: =+'Proy Economica'!H$6 -> Año 2 | I97: =+'Proy Economica'!I$6 -> Año 3 | J97: =+'Proy Economica'!J$6 -> Año 4 | K97: =+'Proy Economica'!K$6 -> Año 5 | L97: =+'Proy Economica'!L$6 -> Año 6
C98: (miles de $)
C100: ORIGENES DE FONDOS
C101: ='Proy Economica'!C9 -> Ingresos por Servicios (inc peaje) | D101: miles/$ | E101: =+'Proy Economica'!E9 -> 3939684.678 | F101: =+'Proy Economica'!F9 -> 18895448.83 | G101: =+'Proy Economica'!G9 -> 18901865.34 | H101: =+'Proy Economica'!H9 -> 19543843.71 | I101: =+'Proy Economica'!I9 -> 20345107.99 | J101: =+'Proy Economica'!J9 -> 21262852.53 | K101: =+'Proy Economica'!K9 -> 22464781.58 | L101: =+'Proy Economica'!L9 -> 23902533.09
C102: Penalidades Servicio Técnico | D102: miles/$ | E102: =+'Proy Economica'!E10 -> -99689.42543 | F102: =+'Proy Economica'!F10 -> -99689.42543 | G102: =+'Proy Economica'!G10 -> -317383.2151 | H102: =+'Proy Economica'!H10 -> -353006.1716 | I102: =+'Proy Economica'!I10 -> -317706.2338 | J102: =+'Proy Economica'!J10 -> -421705.0996 | K102: =+'Proy Economica'!K10 -> -740790.1568 | L102: =+'Proy Economica'!L10 -> -1554275.364
C103: Penalidades Producto Técnico | D103: miles/$ | E103: =+'Proy Economica'!E11 -> -14261.1803 | F103: =+'Proy Economica'!F11 -> -14261.1803 | G103: =+'Proy Economica'!G11 -> -6477.29226 | H103: =+'Proy Economica'!H11 -> -4927.82993 | I103: =+'Proy Economica'!I11 -> -15505.4956 | J103: =+'Proy Economica'!J11 -> -31010.9912 | K103: =+'Proy Economica'!K11 -> -62021.9824 | L103: =+'Proy Economica'!L11 -> -77527.478
C104: ='Proy Economica'!C12 -> Otros Ingresos Regulados | D104: miles/$ | E104: =+'Proy Economica'!E12 -> 18521.55 | F104: =+'Proy Economica'!F12 -> 596570.2426 | G104: =+'Proy Economica'!G12 -> 604772.5806 | H104: =+'Proy Economica'!H12 -> 612862.8236 | I104: =+'Proy Economica'!I12 -> 618315.1556 | J104: =+'Proy Economica'!J12 -> 623703.8075 | K104: =+'Proy Economica'!K12 -> 629027.4043 | L104: =+'Proy Economica'!L12 -> 634314.3911
C105: ='Proy Economica'!C13 -> Otros Ingresos No Regulados | D105: miles/$ | E105: =+'Proy Economica'!E13 -> 99419.414 | F105: =+'Proy Economica'!F13 -> 99419.414 | G105: =+'Proy Economica'!G13 -> 100417.5945 | H105: =+'Proy Economica'!H13 -> 101371.9631 | I105: =+'Proy Economica'!I13 -> 101986.5407 | J105: =+'Proy Economica'!J13 -> 102597.2087 | K105: =+'Proy Economica'!K13 -> 103203.9361 | L105: =+'Proy Economica'!L13 -> 103806.754
C106: Total Ingresos | D106: miles/$ | E106: =SUM(E101:E105) -> 3943675.036 | F106: =SUM(F101:F105) -> 19477487.88 | G106: 19283195.01 | H106: 19900144.49 | I106: 20732197.96 | J106: 21536437.46 | K106: 22394200.78 | L106: 23008851.39
C108: APLICACIONES DE FONDOS
C109: Gtos operativos, Comerc y Admin. | D109: miles/$ | E109: =+'Proy Economica'!E16+'Proy Economica'!E19+'Proy Economica'!E20+'Proy Economica'!E21+'Proy Economica'!E22+'Proy Economica'!E27 -> -6616337.893 | F109: =+'Proy Economica'!F16+'Proy Economica'!F19+'Proy Economica'!F20+'Proy Economica'!F21+'Proy Economica'!F22+'Proy Economica'!F27 -> -13348808.72 | G109: =+'Proy Economica'!G16+'Proy Economica'!G19+'Proy Economica'!G20+'Proy Economica'!G21+'Proy Economica'!G22+'Proy Economica'!G27 -> -13635375.74 | H109: =+'Proy Economica'!H16+'Proy Economica'!H19+'Proy Economica'!H20+'Proy Economica'!H21+'Proy Economica'!H22+'Proy Economica'!H27 -> -13929351.61 | I109: =+'Proy Economica'!I16+'Proy Economica'!I19+'Proy Economica'!I20+'Proy Economica'!I21+'Proy Economica'!I22+'Proy Economica'!I27 -> -14211154.35 | J109: =+'Proy Economica'!J16+'Proy Economica'!J19+'Proy Economica'!J20+'Proy Economica'!J21+'Proy Economica'!J22+'Proy Economica'!J27 -> -14490399.36 | K109: =+'Proy Economica'!K16+'Proy Economica'!K19+'Proy Economica'!K20+'Proy Economica'!K21+'Proy Economica'!K22+'Proy Economica'!K27 -> -14805427.41 | L109: =+'Proy Economica'!L16+'Proy Economica'!L19+'Proy Economica'!L20+'Proy Economica'!L21+'Proy Economica'!L22+'Proy Economica'!L27 -> -15129323.92
C110: Incobrables | D110: miles/$ | E110: =+'Proy Economica'!E25 -> -32333 | F110: =+E110 -> -32333 | G110: =+'Proy Economica'!G25 -> -283527.9801 | H110: =+'Proy Economica'!H25 -> -273613.8119 | I110: =+'Proy Economica'!I25 -> -244141.2959 | J110: =+'Proy Economica'!J25 -> -233891.3779 | K110: =+'Proy Economica'!K25 -> -224647.8158 | L110: =+'Proy Economica'!L25 -> -239025.3309
C111: Penalidades Servicio Comercial | D111: miles/$ | E111: =+'Proy Economica'!E23 -> -28477.921 | F111: =+'Proy Economica'!F23 -> -28477.921 | G111: =+'Proy Economica'!G23 -> -96451.20479 | H111: =+'Proy Economica'!H23 -> -91628.64455 | I111: =+'Proy Economica'!I23 -> -87047.21233 | J111: =+'Proy Economica'!J23 -> -78342.49109 | K111: =+'Proy Economica'!K23 -> -70508.24198 | L111: =+'Proy Economica'!L23 -> -63457.41779
C112: Penalidades Seguridad Via Pública | D112: miles/$ | E112: =+'Proy Economica'!E24 -> -104988.319 | F112: =+'Proy Economica'!F24 -> -104988.319 | G112: =+'Proy Economica'!G24 -> -104988.319 | H112: =+'Proy Economica'!H24 -> -105775.7314 | I112: =+'Proy Economica'!I24 -> -106833.4887 | J112: =+'Proy Economica'!J24 -> -107901.8236 | K112: =+'Proy Economica'!K24 -> -108980.8418 | L112: =+'Proy Economica'!L24 -> -110070.6502
C113: Otros ingresos y egresos (Ing Res 32; juicios) | D113: miles/$ | E113: =+'Proy Economica'!E26 -> 4493153.644 | F113: =+'Proy Economica'!F26 -> -159972 | G113: =+'Proy Economica'!G26 -> -160026.3232 | H113: =+'Proy Economica'!H26 -> -165461.4184 | I113: =+'Proy Economica'!I26 -> -172245.0545 | J113: =+'Proy Economica'!J26 -> -180014.8319 | K113: =+'Proy Economica'!K26 -> -190190.5623 | L113: =+'Proy Economica'!L26 -> -202362.8048
C114: Inversiones | D114: miles/$ | E114: =-'Proyección Bienes de Uso'!E26 -> -2605980.587 | F114: =-'Proyección Bienes de Uso'!F26 -> -2605980.587 | G114: =-'Proyección Bienes de Uso'!G26 -> -2767423 | H114: =-'Proyección Bienes de Uso'!H26 -> -2456815 | I114: =-'Proyección Bienes de Uso'!I26 -> -3197132 | J114: =-'Proyección Bienes de Uso'!J26 -> -3263945 | K114: =-'Proyección Bienes de Uso'!K26 -> -2725237 | L114: =-'Proyección Bienes de Uso'!L26 -> -2770256
C115: Impuestos | D115: miles/$ | E115: ='Proy Economica'!$E$43 -> -7635.133 | F115: =+'Proy Economica'!F43 -> -1872146.97 | G115: =+'Proy Economica'!G43 -> -1646131.635 | H115: =+'Proy Economica'!H43 -> -1736480.727 | I115: =+'Proy Economica'!I43 -> -1904570.781 | J115: =+'Proy Economica'!J43 -> -2044365.596 | K115: =+'Proy Economica'!K43 -> -2211523.783 | L115: =+'Proy Economica'!L43 -> -2280576.637
C116: Amortizacion prestamos | D116: miles/$ | F116: =+F51-E51 -> 0 | G116: 0 | H116: 0 | I116: 0 | J116: 800000 | K116: 0 | L116: 100000
C117: Intereses de prestamos | D117: miles/$ | E117: -15428.70637 | F117: =-F51*$D$64 -> -265454.4922 | G117: -265454.4922 | H117: -265454.4922 | I117: -265454.4922 | J117: -305454.4922 | K117: -305454.4922 | L117: -310454.4922
C118: Dividendos | D118: miles/$ | E118: 0 | F118: =IF('Proy Economica'!E45<0,0,-F65*'Proy Economica'!E45) -> 0 | G118: =IF('Proy Economica'!F45<0,0,-G65*'Proy Economica'!F45) -> 0 | H118: =IF('Proy Economica'!G45<0,0,-H65*'Proy Economica'!G45) -> -1343053.452 | I118: =IF('Proy Economica'!H45<0,0,-I65*'Proy Economica'!H45) -> -1540643.458 | J118: =IF('Proy Economica'!I45<0,0,-J65*'Proy Economica'!I45) -> -1887355.216 | K118: =IF('Proy Economica'!J45<0,0,-K65*'Proy Economica'!J45) -> -2181610.226 | L118: =IF('Proy Economica'!K45<0,0,-L65*'Proy Economica'!K45) -> -2522645.092
C119: Recargos cobrados a clientes | D119: miles/$ | E119: 65001 | F119: =+E119*F101/E101 -> 311756.6938 | G119: =+F119*G101/F101 -> 311862.5599 | H119: 322454.5843 | I119: 335674.6726 | J119: 350816.5731 | K119: 370647.2438 | L119: 394368.758
C120: Variación de capital de trabajo | D120: miles/$ | F120: =-F94 -> 0 | G120: 196326.9877 | H120: 334481.0445 | I120: -736440.4746 | J120: -91973.23735 | K120: 507921.2856 | L120: -261212.6058
C121: Total Egresos | D121: miles/$ | E121: =SUM(E109:E120) -> -4853026.916 | F121: =+E121 -> -4853026.916 | G121: =SUM(G109:G120) -> -18451189.15 | H121: -19710699.26 | I121: -22129987.93 | J121: -21532826.86 | K121: -21945011.85 | L121: -23395016.2
F122: 0
C123: Caja Generada | D123: miles/$ | E123: =+E106+E121 -> -909351.8796 | F123: -909351.8796 | G123: =+G106+G121 -> 832005.8547 | H123: 189445.2337 | I123: -1397789.979 | J123: 3610.603035 | K123: 449188.9325 | L123: -386164.8032
F124: 0
C125: Saldo Disponibilidad Final | D125: miles/$ | E125: =E10+E11 -> 816224.89 | F125: 816224.89 | G125: =+F125+G123 -> 1648230.745 | H125: 1837675.978 | I125: 439885.9992 | J125: 443496.6022 | K125: 892685.5347 | L125: 506520.7316

Sheet Proy Economica
B3: Proyección Económica e Indicadores
C6: ESTADO DE RESULTADOS | E6: 2015 | F6: Base | G6: Año 1 | H6: Año 2 | I6: Año 3 | J6: Año 4 | K6: Año 5 | L6: Año 6
C7: (miles de $ moneda corriente)
C8: Ingresos
C9: Ingresos por Servicios (inc peaje) | D9: miles/$ | E9: =+[1]Resultados!$D$12/1000-E10-E11-E12-E13 -> 3939684.678 | F9: ='Resumen Ingresos y Abastec'!F37/1000 -> 18895448.83 | G9: ='Resumen Ingresos y Abastec'!G37/1000 -> 18901865.34 | H9: ='Resumen Ingresos y Abastec'!H37/1000 -> 19543843.71 | I9: ='Resumen Ingresos y Abastec'!I37/1000 -> 20345107.99 | J9: ='Resumen Ingresos y Abastec'!J37/1000 -> 21262852.53 | K9: ='Resumen Ingresos y Abastec'!K37/1000 -> 22464781.58 | L9: ='Resumen Ingresos y Abastec'!L37/1000 -> 23902533.09
C10: Penalidades Servicio Técnico | D10: mil/$ | E10: =-'Proyeccion costos '!F52 -> -99689.42543 | F10: =-'Proyeccion costos '!F52 -> -99689.42543 | G10: =-'Proyeccion costos '!G52 -> -317383.2151 | H10: =-'Proyeccion costos '!H52 -> -353006.1716 | I10: =-'Proyeccion costos '!I52 -> -317706.2338 | J10: =-'Proyeccion costos '!J52 -> -421705.0996 | K10: =-'Proyeccion costos '!K52 -> -740790.1568 | L10: =-'Proyeccion costos '!L52 -> -1554275.364
C11: Penalidades Producto Técnico | D11: mil/$ | E11: =-'Proyeccion costos '!F53 -> -14261.1803 | F11: =-'Proyeccion costos '!F53 -> -14261.1803 | G11: =-'Proyeccion costos '!G53 -> -6477.29226 | H11: =-'Proyeccion costos '!H53 -> -4927.82993 | I11: =-'Proyeccion costos '!I53 -> -15505.4956 | J11: =-'Proyeccion costos '!J53 -> -31010.9912 | K11: =-'Proyeccion costos '!K53 -> -62021.9824 | L11: =-'Proyeccion costos '!L53 -> -77527.478
C12: Otros Ingresos Regulados | D12: miles/$ | E12: ='Resumen Ingresos y Abastec'!E324/1000 -> 18521.55 | F12: ='Resumen Ingresos y Abastec'!F324/1000 -> 596570.2426 | G12: ='Resumen Ingresos y Abastec'!G324/1000 -> 604772.5806 | H12: ='Resumen Ingresos y Abastec'!H324/1000 -> 612862.8236 | I12: ='Resumen Ingresos y Abastec'!I324/1000 -> 618315.1556 | J12: ='Resumen Ingresos y Abastec'!J324/1000 -> 623703.8075 | K12: ='Resumen Ingresos y Abastec'!K324/1000 -> 629027.4043 | L12: ='Resumen Ingresos y Abastec'!L324/1000 -> 634314.3911
C13: Otros Ingresos No Regulados | D13: miles/$ | E13: ='Resumen Ingresos y Abastec'!E334/1000 -> 99419.414 | F13: ='Resumen Ingresos y Abastec'!F334/1000 -> 99419.414 | G13: ='Resumen Ingresos y Abastec'!G334/1000 -> 100417.5945 | H13: ='Resumen Ingresos y Abastec'!H334/1000 -> 101371.9631 | I13: ='Resumen Ingresos y Abastec'!I334/1000 -> 101986.5407 | J13: ='Resumen Ingresos y Abastec'!J334/1000 -> 102597.2087 | K13: ='Resumen Ingresos y Abastec'!K334/1000 -> 103203.9361 | L13: ='Resumen Ingresos y Abastec'!L334/1000 -> 103806.754
C14: Total Ingresos Operacionales | D14: miles/$ | E14: =SUM(E9:E13) -> 3943675.036 | F14: 19477487.88 | G14: 19283195.01 | H14: 19900144.49 | I14: 20732197.96 | J14: 21536437.46 | K14: 22394200.78 | L14: 23008851.39
C16: Compras de Energía | D16: miles/$ | E16: =+[1]Resultados!$D$14/1000 -> -2208080.665 | F16: =-'Resumen Ingresos y Abastec'!F76/1000 -> -6697002.138 | G16: =-'Resumen Ingresos y Abastec'!G76/1000 -> -6887103.372 | H16: =-'Resumen Ingresos y Abastec'!H76/1000 -> -7112630.998 | I16: =-'Resumen Ingresos y Abastec'!I76/1000 -> -7335459.551 | J16: =-'Resumen Ingresos y Abastec'!J76/1000 -> -7550891.41 | K16: =-'Resumen Ingresos y Abastec'!K76/1000 -> -7763427.235 | L16: =-'Resumen Ingresos y Abastec'!L76/1000 -> -7975048.112
C17: Margen Bruto de Distribucion | E17: =+E14+E16 -> 1735594.371 | F17: 12780485.75 | G17: 12396091.63 | H17: 12787513.5 | I17: 13396738.4 | J17: 13985546.05 | K17: 14630773.54 | L17: 15033803.28
C19: Costos de operación (según anexo, excepto depreciacion y penalidades SVP) | D19: miles/$ | E19: =(+[1]Resultados!$D$19)/1000-E31-E24 -> -2766150.484 | F19: =-'Proyeccion costos '!F8 -> -3662309.054 | G19: =-'Proyeccion costos '!G8 -> -3699494.789 | H19: =-'Proyeccion costos '!H8 -> -3720973.607 | I19: =-'Proyeccion costos '!I8 -> -3739753.794 | J19: =-'Proyeccion costos '!J8 -> -3764924.652 | K19: =-'Proyeccion costos '!K8 -> -3824752.426 | L19: =-'Proyeccion costos '!L8 -> -3884798.96
C20: Gastos comerciales (según anexo, excepto depreciacion, incobrables, penalidades comerciales) | D20: miles/$ | E20: =(+[1]Resultados!$D$18)/1000-E32-E25-E23 -> -982204.164 | F20: =-'Proyeccion costos '!F17 -> -2196463.667 | G20: =-'Proyeccion costos '!G17 -> -2250214.355 | H20: =-'Proyeccion costos '!H17 -> -2285302.568 | I20: =-'Proyeccion costos '!I17 -> -2310570.037 | J20: =-'Proyeccion costos '!J17 -> -2333262.623 | K20: =-'Proyeccion costos '!K17 -> -2355887.923 | L20: =-'Proyeccion costos '!L17 -> -2383048.25
C21: Gastos administrativos (según anexo, excepto depreciacion, Imp y Tasas) | D21: miles/$ | E21: =(+[1]Resultados!$D$20)/1000-E33-E22 -> -522783.929 | F21: =-'Proyeccion costos '!F26 -> -495145.6366 | G21: =-'Proyeccion costos '!G26 -> -500328.0795 | H21: =-'Proyeccion costos '!H26 -> -502706.0296 | I21: =-'Proyeccion costos '!I26 -> -505918.311 | J21: =-'Proyeccion costos '!J26 -> -508474.6314 | K21: =-'Proyeccion costos '!K26 -> -511022.2435 | L21: =-'Proyeccion costos '!L26 -> -515198.9198
C22: Impuestos y Tasas | D22: miles/$ | E22: -111782.999 | F22: =-'Proyeccion costos '!F44 -> -272552.571 | G22: =-'Proyeccion costos '!G44 -> -272645.1242 | H22: =-'Proyeccion costos '!H44 -> -281905.1771 | I22: =-'Proyeccion costos '!I44 -> -293462.8089 | J22: =-'Proyeccion costos '!J44 -> -306700.5804 | K22: =-'Proyeccion costos '!K44 -> -324037.4986 | L22: =-'Proyeccion costos '!L44 -> -344775.9778
C23: Penalidades Servicio Comercial | D23: miles/$ | E23: =-'[1]Anexo D'!$J$44/1000 -> -28477.921 | F23: =-'Proyeccion costos '!F54 -> -28477.921 | G23: =-'Proyeccion costos '!G54 -> -96451.20479 | H23: =-'Proyeccion costos '!H54 -> -91628.64455 | I23: =-'Proyeccion costos '!I54 -> -87047.21233 | J23: =-'Proyeccion costos '!J54 -> -78342.49109 | K23: =-'Proyeccion costos '!K54 -> -70508.24198 | L23: =-'Proyeccion costos '!L54 -> -63457.41779
C24: Penalidades Seguridad Via Pública | D24: miles/$ | E24: =-'[1]Anexo E'!$J$42/1000 -> -104988.319 | F24: =-'Proyeccion costos '!F55 -> -104988.319 | G24: =-'Proyeccion costos '!G55 -> -104988.319 | H24: =-'Proyeccion costos '!H55 -> -105775.7314 | I24: =-'Proyeccion costos '!I55 -> -106833.4887 | J24: =-'Proyeccion costos '!J55 -> -107901.8236 | K24: =-'Proyeccion costos '!K55 -> -108980.8418 | L24: =-'Proyeccion costos '!L55 -> -110070.6502
C25: Incobrables | D25: miles/$ | E25: =-'[1]Anexo D'!$J$35/1000 -> -32333 | F25: =-'Proyeccion costos '!F57 -> -283431.7325 | G25: =-'Proyeccion costos '!G57 -> -283527.9801 | H25: =-'Proyeccion costos '!H57 -> -273613.8119 | I25: =-'Proyeccion costos '!I57 -> -244141.2959 | J25: =-'Proyeccion costos '!J57 -> -233891.3779 | K25: =-'Proyeccion costos '!K57 -> -224647.8158 | L25: =-'Proyeccion costos '!L57 -> -239025.3309
C26: Otros ingresos y egresos (Ing Res 32; juicios) | D26: miles/$ | E26: =[1]Resultados!$D$28/1000+[1]Resultados!$D$13/1000 -> 4493153.644 | F26: =-13331*12 -> -159972 | G26: =+F26*G9/F9 -> -160026.3232 | H26: -165461.4184 | I26: -172245.0545 | J26: -180014.8319 | K26: -190190.5623 | L26: -202362.8048
C27: Costos Actividades No Reguladas | D27: miles/$ | E27: =[1]Resultados!$D$22/1000 -> -25335.652 | F27: =+IF(F13=0,0,E27*F13/E13) -> -25335.652 | G27: =+IF(G13=0,0,F27*G13/F13) -> -25590.02439 | H27: =+IF(H13=0,0,G27*H13/G13) -> -25833.23191 | I27: =+IF(I13=0,0,H27*I13/H13) -> -25989.84845 | J27: -26145.46869 | K27: -26300.08472 | L27: -26453.70445
C29: EBITDA | E29: =SUM(E17:E28) -> 1654691.547 | F29: 5551809.194 | G29: 5002825.434 | H29: 5334313.277 | I29: 5910776.554 | J29: 6445887.571 | K29: 6994445.905 | L29: 7264611.266
C31: Depreciaciones operación | E31: =-'Proyección Bienes de Uso'!E48-'Proyección Bienes de Uso'!E53 -> -230325.2078 | F31: =-'Proyección Bienes de Uso'!F48-'Proyección Bienes de Uso'!F53 -> -1840030.084 | G31: =-'Proyección Bienes de Uso'!G48-'Proyección Bienes de Uso'!G53 -> -1904628.206 | H31: =-'Proyección Bienes de Uso'!H48-'Proyección Bienes de Uso'!H53 -> -1954684.328 | I31: =-'Proyección Bienes de Uso'!I48-'Proyección Bienes de Uso'!I53 -> -2023916.449 | J31: =-'Proyección Bienes de Uso'!J48-'Proyección Bienes de Uso'!J53 -> -2094370.404 | K31: =-'Proyección Bienes de Uso'!K48-'Proyección Bienes de Uso'!K53 -> -2150024.876 | L31: =-'Proyección Bienes de Uso'!L48-'Proyección Bienes de Uso'!L53 -> -2206425.727
C32: Depreciacion comerciales | D32: miles/$ | E32: =-'Proyección Bienes de Uso'!E49 -> -6130.73 | F32: =-'Proyección Bienes de Uso'!F49 -> -48977.39046 | G32: =-'Proyección Bienes de Uso'!G49 -> -50696.84466 | H32: =-'Proyección Bienes de Uso'!H49 -> -52029.22408 | I32: =-'Proyección Bienes de Uso'!I49 -> -53872.02472 | J32: =-'Proyección Bienes de Uso'!J49 -> -55747.3478 | K32: =-'Proyección Bienes de Uso'!K49 -> -57228.7425 | L32: =-'Proyección Bienes de Uso'!L49 -> -58730.00408
C33: Depreciacion administracion | D33: miles/$ | E33: =-'Proyección Bienes de Uso'!E50 -> -12664.115 | F33: =-'Proyección Bienes de Uso'!F50 -> -101171.5253 | G33: =-'Proyección Bienes de Uso'!G50 -> -104723.3642 | H33: =-'Proyección Bienes de Uso'!H50 -> -107475.6313 | I33: =-'Proyección Bienes de Uso'!I50 -> -111282.2643 | J33: =-'Proyección Bienes de Uso'!J50 -> -115156.0782 | K33: =-'Proyección Bienes de Uso'!K50 -> -118216.1629 | L33: =-'Proyección Bienes de Uso'!L50 -> -121317.2861
C35: EBIT | E35: =SUM(E29:E34) -> 1405571.494 | F35: 3561630.194 | G35: 2942777.02 | H35: 3220124.094 | I35: 3721705.816 | J35: 4180613.741 | K35: 4668976.124 | L35: 4878138.249
C37: Resultados Financieros
C38: Generados por activos | D38: miles/$ | E38: =+[1]Resultados!$D$25/1000 -> 978360.498 | F38: ='Flujo de Fondos y Balance'!F119 -> 311756.6938 | G38: ='Flujo de Fondos y Balance'!G119 -> 311862.5599 | H38: ='Flujo de Fondos y Balance'!H119 -> 322454.5843 | I38: ='Flujo de Fondos y Balance'!I119 -> 335674.6726 | J38: ='Flujo de Fondos y Balance'!J119 -> 350816.5731 | K38: ='Flujo de Fondos y Balance'!K119 -> 370647.2438 | L38: ='Flujo de Fondos y Balance'!L119 -> 394368.758
C39: Generados por pasivos | D39: miles/$ | E39: =+[1]Resultados!$D$26/1000 -> -1034045.546 | F39: ='Flujo de Fondos y Balance'!F117 -> -265454.4922 | G39: ='Flujo de Fondos y Balance'!G117 -> -265454.4922 | H39: ='Flujo de Fondos y Balance'!H117 -> -265454.4922 | I39: ='Flujo de Fondos y Balance'!I117 -> -265454.4922 | J39: ='Flujo de Fondos y Balance'!J117 -> -305454.4922 | K39: ='Flujo de Fondos y Balance'!K117 -> -305454.4922 | L39: ='Flujo de Fondos y Balance'!L117 -> -310454.4922
C41: Resultado antes de Impuestos | D41: miles/$ | E41: =E35+E38+E39 -> 1349886.446 | F41: 3607932.396 | G41: 2989185.087 | H41: 3277124.186 | I41: 3791925.997 | J41: 4225975.822 | K41: 4734168.875 | L41: 4962052.515
C43: Impuestos Ganancias | D43: miles/$ | E43: =+[1]Resultados!$D$32/1000 -> -7635.133 | F43: =-'Proyección Impuestos'!F18 -> -1872146.97 | G43: =-'Proyección Impuestos'!G18 -> -1646131.635 | H43: =-'Proyección Impuestos'!H18 -> -1736480.727 | I43: =-'Proyección Impuestos'!I18 -> -1904570.781 | J43: =-'Proyección Impuestos'!J18 -> -2044365.596 | K43: =-'Proyección Impuestos'!K18 -> -2211523.783 | L43: =-'Proyección Impuestos'!L18 -> -2280576.637
C45: Resultado neto | D45: miles/$ | E45: =SUM(E41:E44) -> 1342251.313 | F45: 1735785.426 | G45: 1343053.452 | H45: 1540643.458 | I45: 1887355.216 | J45: 2181610.226 | K45: 2522645.092 | L45: 2681475.878
C46: Tasa efectiva de impuestos | F46: =-F43/F41 -> 0.5188974639 | G46: =-G43/G41 -> 0.5506957873 | H46: 0.5298794397 | I46: 0.5022700291 | J46: 0.4837617823 | K46: 0.4671408734 | L46: 0.4596034867
C49: INDICADORES DE GESTIÓN | F49: =+F$6 -> Base | G49: =+G$6 -> Año 1 | H49: Año 2 | I49: Año 3 | J49: Año 4 | K49: Año 5 | L49: Año 6
C51: ENERGIA Y CLIENTES
B52: 1.1 | C52: Energia Vendida | D52: GWh | F52: ='Resumen Ingresos y Abastec'!F190/1000 -> 14896.44863 | G52: ='Resumen Ingresos y Abastec'!G190/1000 -> 15190.51112 | H52: ='Resumen Ingresos y Abastec'!H190/1000 -> 15825.27605 | I52: ='Resumen Ingresos y Abastec'!I190/1000 -> 16393.26806 | J52: ='Resumen Ingresos y Abastec'!J190/1000 -> 16915.29492 | K52: ='Resumen Ingresos y Abastec'!K190/1000 -> 17439.23933 | L52: ='Resumen Ingresos y Abastec'!L190/1000 -> 17956.54249
B53: 1.2 | C53: Energia Distribuida | D53: GWh | F53: ='Resumen Ingresos y Abastec'!F188/1000 -> 17851.695 | G53: ='Resumen Ingresos y Abastec'!G188/1000 -> 18245.15285 | H53: ='Resumen Ingresos y Abastec'!H188/1000 -> 18917.15576 | I53: ='Resumen Ingresos y Abastec'!I188/1000 -> 19634.61239 | J53: ='Resumen Ingresos y Abastec'!J188/1000 -> 20313.38981 | K53: ='Resumen Ingresos y Abastec'!K188/1000 -> 20950.87231 | L53: ='Resumen Ingresos y Abastec'!L188/1000 -> 21581.35548
B54: 1.3 | C54: Energía Comprada | D54: GWh | F54: ='Resumen Ingresos y Abastec'!F194/1000 -> 17486.78157 | G54: ='Resumen Ingresos y Abastec'!G194/1000 -> 17927.11922 | H54: ='Resumen Ingresos y Abastec'!H194/1000 -> 18572.68024 | I54: ='Resumen Ingresos y Abastec'!I194/1000 -> 19115.57789 | J54: ='Resumen Ingresos y Abastec'!J194/1000 -> 19618.01451 | K54: ='Resumen Ingresos y Abastec'!K194/1000 -> 20154.08262 | L54: ='Resumen Ingresos y Abastec'!L194/1000 -> 20687.45677
B55: 1.4 | C55: Cantidad de Clientes | D55: Miles | F55: ='Resumen Ingresos y Abastec'!F313 -> 2378920 | G55: ='Resumen Ingresos y Abastec'!G313 -> 2411090 | H55: ='Resumen Ingresos y Abastec'!H313 -> 2441848 | I55: ='Resumen Ingresos y Abastec'!I313 -> 2461655 | J55: ='Resumen Ingresos y Abastec'!J313 -> 2481336 | K55: ='Resumen Ingresos y Abastec'!K313 -> 2500890 | L55: ='Resumen Ingresos y Abastec'!L313 -> 2520318
C57: GASTOS
B58: 2.2 | C58: Gastos operación/MWh distribuido | D58: $/MWh | F58: =-F19/F53 -> 205.1518948 | G58: 202.7658973 | H58: 196.698365 | I58: 190.4674113 | J58: 185.3420176 | K58: 182.5581469 | L58: 180.0071809
B59: 2.1 | C59: Gastos operación/clientes | D59: $/cliente-año | F59: =-F19/F55*1000 -> 1539.483906 | G59: 1534.366112 | H59: 1523.835066 | I59: 1519.203054 | J59: 1517.297396 | K59: 1529.35652 | L59: 1541.39238
B60: 2.4 | C60: Gastos comerciales/clientes | D60: $/cliente-año | F60: =-F20/F55*1000 -> 923.3028714 | G60: 933.276798 | H60: 935.890591 | I60: 938.6246395 | J60: 940.3251404 | K60: 942.0198101 | L60: 945.5347501
B61: 2.3 | C61: Gastos administracion/clientes | D61: $/cliente-año | F61: =-F21/F55*1000 -> 208.1388347 | G61: 207.5111586 | H61: 205.8711392 | I61: 205.5195838 | J61: 204.9197011 | K61: 204.3361537 | L61: 204.4182202
B62: 2.5 | C62: Gasto Total / cliente | D62: $/cliente-año | F62: =+F59+F61+F60 -> 2670.925612 | G62: 2675.154068 | H62: 2665.596796 | I62: 2663.347277 | J62: 2662.542238 | K62: 2675.712483 | L62: 2691.34535
B63: 2.6 | C63: Gasto Total /MWh distribuido | D63: $/MWh | F63: =+F62/1000*F55/F53 -> 355.9280146 | G63: 353.5205912 | H63: 344.0782689 | I63: 333.9124813 | J63: 325.2368004 | K63: 319.3978032 | L63: 314.3012096
C65: MARGEN DE DISTRIBUCION
B66: 3.1 | C66: Margen de distribución | D66: miles $/año | F66: =F17 -> 12780485.75 | G66: 12396091.63 | H66: 12787513.5 | I66: 13396738.4 | J66: 13985546.05 | K66: 14630773.54 | L66: 15033803.28
B67: 3.2 | C67: Margen/cliente | D67: $/cliente-año | F67: =F17*1000/F55 -> 5372.389886 | G67: 5141.281177 | H67: 5236.817974 | I67: 5442.167324 | J67: 5636.296757 | K67: 5850.226736 | L67: 5965.042222
B68: 3.3 | C68: Margen/MWh distribuido | D68: $/MWh | F68: =F17/F53 -> 715.9256164 | G68: 679.4183493 | H68: 675.9744256 | I68: 682.3021581 | J68: 688.4890304 | K68: 698.3372016 | L68: 696.6107063
B69: 3.4 | C69: Margen/ventas | D69: % | F69: =F17/F9 -> 0.6763790508 | G69: 0.6558131386 | H69: 0.6542988005 | I69: 0.6584746767 | J69: 0.6577455225 | K69: 0.6512760203 | L69: 0.6289627641
C71: GESTION
B72: 4.1 | C72: Cantidad de Empleados | D72: empleados | F72: =+'Flujo de Fondos y Balance'!F72 -> 4352.25 | G72: =+'Flujo de Fondos y Balance'!G72 -> 4424.365385 | H72: =+'Flujo de Fondos y Balance'!H72 -> 4470.423077 | I72: =+'Flujo de Fondos y Balance'!I72 -> 4506.423077 | J72: =+'Flujo de Fondos y Balance'!J72 -> 4545.480769 | K72: =+'Flujo de Fondos y Balance'!K72 -> 4617.538462 | L72: =+'Flujo de Fondos y Balance'!L72 -> 4698.538462
B73: 4.2 | C73: Clientes por empleado | D73: clientes/empleado | F73: =F55/F72 -> 546.5954391 | G73: 544.9572516 | H73: 546.2230214 | I73: 546.2547475 | J73: 545.8907706 | K73: 541.6067502 | L73: 536.4046758
B74: 4.3 | C74: Costo laboral por empleado (inc cargas Sociales) | D74: $/empleado-año | F74: =+'Proyeccion costos '!F36/F72*1000 -> 885099.8052 | G74: =+'Proyeccion costos '!G36/G72*1000 -> 884258.835 | H74: =+'Proyeccion costos '!H36/H72*1000 -> 883554.5397 | I74: =+'Proyeccion costos '!I36/I72*1000 -> 883407.41 | J74: =+'Proyeccion costos '!J36/J72*1000 -> 882905.4692 | K74: =+'Proyeccion costos '!K36/K72*1000 -> 882528.9106 | L74: =+'Proyeccion costos '!L36/L72*1000 -> 881869.3815
B75: 4.4 | C75: Ingresos por Cliente (con compra de energía) | D75: $/cliente-año | F75: =+F9/F55*1000 -> 7942.868543 | G75: 7839.551961 | H75: 8003.710186 | I75: 8264.808833 | J75: 8569.114596 | K75: 8982.714784 | L75: 9483.935396
B76: 4.5 | C76: Energia Distribuida por Cliente | D76: MWh/cliente-año | F76: =+F53/F55*1000000 -> 7504.117414 | G76: 7567.180342 | H76: 7747.065238 | I76: 7976.18366 | J76: 8186.472854 | K76: 8377.366583 | L76: 8562.949388
B77: 4.6 | C77: Pérdidas de energía | D77: % | F77: =+'Proyección Ingresos'!F207 -> 0.1227912265 | G77: =+'Proyección Ingresos'!G207 -> 0.1283 | H77: =+'Proyección Ingresos'!H207 -> 0.1215426575 | I77: =+'Proyección Ingresos'!I207 -> 0.1143601197 | J77: =+'Proyección Ingresos'!J207 -> 0.1079733181 | K77: =+'Proyección Ingresos'!K207 -> 0.1037636191 | L77: =+'Proyección Ingresos'!L207 -> 0.1000492236
C79: LIQUIDEZ
B80: 5.1 | C80: CAPITAL DE TRABAJO | D80: Activo circ - Pasivo Circ | F80: =+'Flujo de Fondos y Balance'!F92 -> 3428979.94 | G80: =+'Flujo de Fondos y Balance'!G92 -> 3232652.953 | H80: =+'Flujo de Fondos y Balance'!H92 -> 2898171.908 | I80: =+'Flujo de Fondos y Balance'!I92 -> 3634612.383 | J80: =+'Flujo de Fondos y Balance'!J92 -> 3726585.62 | K80: =+'Flujo de Fondos y Balance'!K92 -> 3218664.335 | L80: =+'Flujo de Fondos y Balance'!L92 -> 3479876.94
B81: 5.2 | C81: INDICE DE LIQUIDEZ CORRIENTE | D81: Activo corr / Pasivo Corr | F81: =+'Flujo de Fondos y Balance'!F14/'Flujo de Fondos y Balance'!F35 -> 0.6116177074 | G81: =+'Flujo de Fondos y Balance'!G14/'Flujo de Fondos y Balance'!G35 -> 0.642797701 | H81: =+'Flujo de Fondos y Balance'!H14/'Flujo de Fondos y Balance'!H35 -> 0.6707689132 | I81: =+'Flujo de Fondos y Balance'!I14/'Flujo de Fondos y Balance'!I35 -> 0.5475853375 | J81: =+'Flujo de Fondos y Balance'!J14/'Flujo de Fondos y Balance'!J35 -> 0.5250813815 | K81: =+'Flujo de Fondos y Balance'!K14/'Flujo de Fondos y Balance'!K35 -> 0.582170901 | L81: =+'Flujo de Fondos y Balance'!L14/'Flujo de Fondos y Balance'!L35 -> 0.572986335
B82: 5.3 | C82: INDICE DE LIQUIDEZ SECA (PRUEBA ACIDA) | D82: (A Corr - Bienes Cambio) / Pasivo Corr | F82: =+('Flujo de Fondos y Balance'!F14-'Flujo de Fondos y Balance'!F19)/'Flujo de Fondos y Balance'!F35 -> 0.5636064656 | G82: =+('Flujo de Fondos y Balance'!G14-'Flujo de Fondos y Balance'!G19)/'Flujo de Fondos y Balance'!G35 -> 0.5915229371 | H82: =+('Flujo de Fondos y Balance'!H14-'Flujo de Fondos y Balance'!H19)/'Flujo de Fondos y Balance'!H35 -> 0.6199572453 | I82: =+('Flujo de Fondos y Balance'!I14-'Flujo de Fondos y Balance'!I19)/'Flujo de Fondos y Balance'!I35 -> 0.4958747076 | J82: =+('Flujo de Fondos y Balance'!J14-'Flujo de Fondos y Balance'!J19)/'Flujo de Fondos y Balance'!J35 -> 0.4765796404 | K82: =+('Flujo de Fondos y Balance'!K14-'Flujo de Fondos y Balance'!K19)/'Flujo de Fondos y Balance'!K35 -> 0.5346647709 | L82: =+('Flujo de Fondos y Balance'!L14-'Flujo de Fondos y Balance'!L19)/'Flujo de Fondos y Balance'!L35 -> 0.5255679125
B83: 5.4 | C83: INDICE DE LIQUIDEZ INMEDIATA (RAZON EFEC.) | D83: (Caja + Inv Financieras) / Pasivo Corr | F83: =+'Flujo de Fondos y Balance'!F10/'Flujo de Fondos y Balance'!F35 -> 0.03318815402 | G83: =+'Flujo de Fondos y Balance'!G10/'Flujo de Fondos y Balance'!G35 -> 0.03204903221 | H83: =+'Flujo de Fondos y Balance'!H10/'Flujo de Fondos y Balance'!H35 -> 0.03280896478 | I83: =+'Flujo de Fondos y Balance'!I10/'Flujo de Fondos y Balance'!I35 -> 0.0327430677 | J83: =+'Flujo de Fondos y Balance'!J10/'Flujo de Fondos y Balance'!J35 -> 0.03128072183 | K83: =+'Flujo de Fondos y Balance'!K10/'Flujo de Fondos y Balance'!K35 -> 0.03226540034 | L83: =+'Flujo de Fondos y Balance'!L10/'Flujo de Fondos y Balance'!L35 -> 0.03240778995
C85: RENTABILIDAD Y EFICIENCIA
B86: 7.1 | C86: RESULTADO NETO | D86: ( RESULTADO NETO / VENTAS ) *100 | F86: =+F45/F9 -> 0.09186261947 | G86: 0.07105401653 | H86: 0.07883011556 | I86: 0.09276702866 | J86: 0.1026019544 | K86: 0.1122933283 | L86: 0.1121837534
B87: 7.2 | C87: MARGEN DE EXPLOTACION | D87: ( EBITDA / VENTAS ) *100 | F87: =+F29/F9 -> 0.2938172701 | G87: 0.2646736364 | H87: 0.2729408481 | I87: 0.2905256909 | J87: 0.3031525314 | K87: 0.3113516097 | L87: 0.3039264181
B88: 7.3 | C88: MARGEN OPERATIVO | D88: ( EBIT / VENTAS ) *100 | F88: =+F35/F9 -> 0.1884914312 | G88: 0.1556871223 | H88: 0.164764114 | I88: 0.1829287816 | J88: 0.1966158461 | K88: 0.207835367 | L88: 0.2040845726
B89: 7.4 | C89: RENDIMIENTO SOBRE CAPITAL ( ROE ) | D89: ( RESULTADO NETO / PATRIMONIO ) *100 | F89: =+F45/'Flujo de Fondos y Balance'!F44 -> 0.05505754628 | G89: =+G45/'Flujo de Fondos y Balance'!G44 -> 0.04085979727 | H89: =+H45/'Flujo de Fondos y Balance'!H44 -> 0.04659101784 | I89: =+I45/'Flujo de Fondos y Balance'!I44 -> 0.05648378962 | J89: =+J45/'Flujo de Fondos y Balance'!J44 -> 0.06472015534 | K89: =+K45/'Flujo de Fondos y Balance'!K44 -> 0.07408781217 | L89: =+L45/'Flujo de Fondos y Balance'!L44 -> 0.07838687657
B90: 7.5 | C90: RETORNO SOBRE ACTIVOS (ROA) | D90: ( EBIT / ACTIVOS ) * 100 | F90: =+F35/'Flujo de Fondos y Balance'!F25 -> 0.08127134982 | G90: =+G35/'Flujo de Fondos y Balance'!G25 -> 0.06524748074 | H90: =+H35/'Flujo de Fondos y Balance'!H25 -> 0.07090245512 | I90: =+I35/'Flujo de Fondos y Balance'!I25 -> 0.08037703514 | J90: =+J35/'Flujo de Fondos y Balance'!J25 -> 0.08765904478 | K90: =+K35/'Flujo de Fondos y Balance'!K25 -> 0.09689941863 | L90: =+L35/'Flujo de Fondos y Balance'!L25 -> 0.1001660266
C92: FINANCIACION
B93: 8.1 | C93: TASA INTERES MEDIA FINANC. | D93: INTERES / DEUDA | F93: =-F39/('Flujo de Fondos y Balance'!F34+'Flujo de Fondos y Balance'!F38) -> 0.05 | G93: =-G39/('Flujo de Fondos y Balance'!G34+'Flujo de Fondos y Balance'!G38) -> 0.05 | H93: =-H39/('Flujo de Fondos y Balance'!H34+'Flujo de Fondos y Balance'!H38) -> 0.05 | I93: =-I39/('Flujo de Fondos y Balance'!I34+'Flujo de Fondos y Balance'!I38) -> 0.05 | J93: =-J39/('Flujo de Fondos y Balance'!J34+'Flujo de Fondos y Balance'!J38) -> 0.05 | K93: =-K39/('Flujo de Fondos y Balance'!K34+'Flujo de Fondos y Balance'!K38) -> 0.05 | L93: =-L39/('Flujo de Fondos y Balance'!L34+'Flujo de Fondos y Balance'!L38) -> 0.05
B94: 8.2 | C94: COBERTURA INTERESES | D94: EBITDA / INTERESES | F94: =+F29/-F39 -> 20.9143539 | G94: 18.84626398 | H94: 20.0950198 | I94: 22.26662847 | J94: 21.1026118 | K94: 22.89848761 | L94: 23.39992317
B95: 8.3 | C95: DEUDA FINANCIERA | D95: DEUDA FINANCIERA / EBITDA | F95: =+'Flujo de Fondos y Balance'!F51/F29 -> 0.9562810353 | G95: =+'Flujo de Fondos y Balance'!G51/G29 -> 1.061218288 | H95: =+'Flujo de Fondos y Balance'!H51/H29 -> 0.9952714752 | I95: =+'Flujo de Fondos y Balance'!I51/I29 -> 0.8982051335 | J95: =+'Flujo de Fondos y Balance'!J51/J29 -> 0.9477499843 | K95: =+'Flujo de Fondos y Balance'!K51/K29 -> 0.8734201289 | L95: =+'Flujo de Fondos y Balance'!L51/L29 -> 0.8547036609

Sheet Proyección Impuestos
B3: Proyección impuestos
H7: 1 | I7: =1+H7 -> 2 | J7: =1+I7 -> 3 | K7: =1+J7 -> 4
B8: (miles de $ moneda constante) | C8: miles/$ | E8: =+'Proy Economica'!E$6 -> 2015 | F8: =+'Proy Economica'!F$6 -> Base | G8: =+'Proy Economica'!G$6 -> Año 1 | H8: =+'Proy Economica'!H$6 -> Año 2 | I8: =+'Proy Economica'!I$6 -> Año 3 | J8: =+'Proy Economica'!J$6 -> Año 4 | K8: =+'Proy Economica'!K$6 -> Año 5 | L8: =+'Proy Economica'!L$6 -> Año 6
B11: Resultado contable antes de Impuestos | E11: =+'Proy Economica'!E41 -> 1349886.446 | F11: =+'Proy Economica'!F41 -> 3607932.396 | G11: =+'Proy Economica'!G41 -> 2989185.087 | H11: =+'Proy Economica'!H41 -> 3277124.186 | I11: =+'Proy Economica'!I41 -> 3791925.997 | J11: =+'Proy Economica'!J41 -> 4225975.822 | K11: =+'Proy Economica'!K41 -> 4734168.875 | L11: =+'Proy Economica'!L41 -> 4962052.515
A13: 1 | B13: - Depreciaciones ajustadas | C13: mil/$ | E13: =+'Proyección Bienes de Uso'!E51*$A13 -> 249120.0528 | F13: =+'Proyección Bienes de Uso'!F51*$A13 -> 1990179 | G13: =+'Proyección Bienes de Uso'!G51*$A13 -> 2060048.415 | H13: =+'Proyección Bienes de Uso'!H51*$A13 -> 2114189.183 | I13: =+'Proyección Bienes de Uso'!I51*$A13 -> 2189070.738 | J13: =+'Proyección Bienes de Uso'!J51*$A13 -> 2265273.83 | K13: =+'Proyección Bienes de Uso'!K51*$A13 -> 2325469.781 | L13: =+'Proyección Bienes de Uso'!L51*$A13 -> 2386473.017
A14: 1 | B14: - Depreciaciones historicas | C14: mil/$ | E14: =+'Proyección Bienes Uso Hist'!E51*$A14 -> 249120.0528 | F14: =+'Proyección Bienes Uso Hist'!F51*$A14 -> 249120.0528 | G14: =+'Proyección Bienes Uso Hist'!G51*$A14 -> 346000.259 | H14: =+'Proyección Bienes Uso Hist'!H51*$A14 -> 429939.8618 | I14: =+'Proyección Bienes Uso Hist'!I51*$A14 -> 539365.9322 | J14: =+'Proyección Bienes Uso Hist'!J51*$A14 -> 650205.0931 | K14: =+'Proyección Bienes Uso Hist'!K51*$A14 -> 740999.2756 | L14: =+'Proyección Bienes Uso Hist'!L51*$A14 -> 832592.2833
B16: Resultado Impositivo | E16: =+E11+E13-E14 -> 1349886.446 | F16: 5348991.343 | G16: =+G11+G13-G14 -> 4703233.243 | H16: =+H11+H13-H14 -> 4961373.507 | I16: 5441630.802 | J16: 5841044.559 | K16: 6318639.381 | L16: 6515933.248
B18: Impuesto determinado | C18: mil/$ | F18: =+F16*0.35 -> 1872146.97 | G18: 1646131.635 | H18: 1736480.727 | I18: 1904570.781 | J18: 2044365.596 | K18: 2211523.783 | L18: 2280576.637
B42: Inicio | C42: 4716798 | E42: Inicio | F42: 2116216 | H42: 2600582
B43: Alta | C43: 149224 | E43: Alta | F43: 192509
B44: Baja | C44: 49485 | E44: Baja | F44: 26375
C45: 99739 | F45: 166134 | H45: -66395
B46: Cierre | C46: 4816537 | E46: Cierre | F46: 2282350 | H46: 2534187

Sheet Proyección Bienes Uso Hist
B3: Proyección Bienes de Uso Históricos | F3: ||
E6: Valor Contable | F6: Valor LEVIN
H7: 1 | I7: =1+H7 -> 2 | J7: =1+I7 -> 3 | K7: =1+J7 -> 4
B8: (miles de $ moneda constante) | E8: =+'Proy Economica'!E$6 -> 2015 | F8: =+'Proy Economica'!F$6 -> Base | G8: =+'Proy Economica'!G$6 -> Año 1 | H8: =+'Proy Economica'!H$6 -> Año 2 | I8: =+'Proy Economica'!I$6 -> Año 3 | J8: =+'Proy Economica'!J$6 -> Año 4 | K8: =+'Proy Economica'!K$6 -> Año 5 | L8: =+'Proy Economica'!L$6 -> Año 6
B10: BIENES DE USO CONTABLES
B12: VALOR DE ORIGEN (VO)
B13: Saldo al inicio | C13: mil/$ | E13: =+'[1]Anexo B'!$D$36/1000-E34 -> 7503699.87 | G13: =F16 -> 7552531.841 | H13: 10273963.81 | I13: 12674043.91 | J13: 15800445.78 | K13: 18979430.04 | L13: 21607939.88
B14: Inversiones | C14: mil/$ | E14: =+'[1]Anexo B'!$F$36/1000 -> 2605980.587 | G14: =+'Proyección Ingresos'!G$218 -> 2767423 | H14: =+'Proyección Ingresos'!H$218 -> 2456815 | I14: =+'Proyección Ingresos'!I$218 -> 3197132 | J14: =+'Proyección Ingresos'!J$218 -> 3263945 | K14: =+'Proyección Ingresos'!K$218 -> 2725237 | L14: =+'Proyección Ingresos'!L$218 -> 2770256
B15: Bajas (VO) | C15: mil/$ | E15: =+'[1]Anexo B'!$J$36/1000 -> -33657.969 | G15: =-G40 -> -45991.03022 | H15: =-H40 -> -56734.90262 | I15: -70730.12838 | J15: -84960.73732 | K15: -96727.16724 | L15: -108641.7877
B16: Saldo de Cierre | C16: mil/$ | E16: =+'[1]Anexo B'!$L$36/1000-E29 -> 7552531.841 | F16: =+E16 -> 7552531.841 | G16: =SUM(G13:G15) -> 10273963.81 | H16: =SUM(H13:H15) -> 12674043.91 | I16: 15800445.78 | J16: 18979430.04 | K16: 21607939.88 | L16: 24269554.09
B18: AMORTIZACIONES ACUMULADAS (AA)
B19: Saldo al inicio | C19: mil/$ | E19: =+'[1]Anexo B'!$N$36/1000 -> 3847324.449 | G19: =F22 -> 4062786.533 | H19: 4362795.762 | I19: 4736000.721 | J19: 5204636.525 | K19: 5769880.88 | L19: 6414152.989
B20: Depreciaciones | C20: mil/$ | E20: =+'[1]Anexo B'!$R$36/1000 -> 234935.56 | F20: =+E20 -> 234935.56 | G20: =+G38 -> 321021.4033 | H20: =+H38 -> 396014.57 | I20: 493702.4667 | J20: 593033.3586 | K20: 675164.066 | L20: 758329.1564
B21: Bajas (AA) | C21: mil/$ | E21: =+'[1]Anexo B'!$T$36/1000 -> -19473.4762 | G21: =-G42 -> -21012.17448 | H21: =-H42 -> -22809.61084 | I21: -25066.66292 | J21: -27789.00284 | K21: -30891.95761 | L21: -34378.66086
B22: Saldo de Cierre | C22: mil/$ | E22: =+'[1]Anexo B'!$V$36/1000 -> 4062786.533 | F22: =+E22 -> 4062786.533 | G22: =SUM(G19:G21) -> 4362795.762 | H22: =SUM(H19:H21) -> 4736000.721 | I22: 5204636.525 | J22: 5769880.88 | K22: 6414152.989 | L22: 7138103.484
B24: VALOR NETO (VN)
B25: Saldo al inicio | C25: mil/$ | E25: =+E13-E19 -> 3656375.421 | G25: =F29 -> 6013235.955 | H25: 8434658.696 | I25: 10461533.83 | J25: 13119299.9 | K25: 15733039.81 | L25: 17717277.53
B26: Inversiones | C26: mil/$ | E26: =+E14 -> 2605980.587 | G26: =+G14 -> 2767423 | H26: =+H14 -> 2456815 | I26: 3197132 | J26: 3263945 | K26: 2725237 | L26: 2770256
B27: Depreciaciones | C27: mil/$ | E27: =-E20 -> -234935.56 | G27: =-G20 -> -321021.4033 | H27: -396014.57 | I27: -493702.4667 | J27: -593033.3586 | K27: -675164.066 | L27: -758329.1564
B28: Bajas | C28: mil/$ | E28: =(E15-E21) -> -14184.4928 | G28: =(G15-G21) -> -24978.85574 | H28: -33925.29179 | I28: -45663.46546 | J28: -57171.73449 | K28: -65835.20963 | L28: -74263.12687
B29: Saldo de Cierre | C29: mil/$ | E29: =SUM(E25:E28) -> 6013235.955 | F29: =+E29 -> 6013235.955 | G29: =SUM(G25:G28) -> 8434658.696 | H29: 10461533.83 | I29: 13119299.9 | J29: 15733039.81 | K29: 17717277.53 | L29: 19654941.25
B32: Obras en Curso | C32: mil/$ | E32: =+'[1]Anexo B'!$L$30/1000 -> 2927986.145 | F32: =+'[1]Anexo B'!$L$30/1000 -> 2927986.145 | G32: =F32*(1+'Resumen Ingresos y Abastec'!G189) -> 2992520.025 | H32: =G32*(1+'Resumen Ingresos y Abastec'!H189) -> 3102740.102 | I32: =H32*(1+'Resumen Ingresos y Abastec'!I189) -> 3220415.374 | J32: =I32*(1+'Resumen Ingresos y Abastec'!J189) -> 3331746.588 | K32: =J32*(1+'Resumen Ingresos y Abastec'!K189) -> 3436304.724 | L32: =K32*(1+'Resumen Ingresos y Abastec'!L189) -> 3539714.847
B33: Anticipo a proveedores | C33: mil/$ | E33: =+'[1]Anexo B'!$L$31/1000 -> 561759.163 | F33: =+'[1]Anexo B'!$L$31/1000 -> 561759.163 | G33: =F33*(1+'Resumen Ingresos y Abastec'!G189) -> 574140.5393 | H33: =G33*(1+'Resumen Ingresos y Abastec'!H189) -> 595287.203 | I33: =H33*(1+'Resumen Ingresos y Abastec'!I189) -> 617864.2096 | J33: =I33*(1+'Resumen Ingresos y Abastec'!J189) -> 639224.0544 | K33: =J33*(1+'Resumen Ingresos y Abastec'!K189) -> 659284.4263 | L33: =K33*(1+'Resumen Ingresos y Abastec'!L189) -> 679124.5419
B34: OTROS | E34: =SUM(E32:E33) -> 3489745.308 | F34: 3489745.308 | G34: 3566660.564 | H34: 3698027.305 | I34: 3838279.584 | J34: 3970970.643 | K34: 4095589.15 | L34: 4218839.389
G35: =+G34-F34 -> 76915.25619 | H35: =+H34-G34 -> 131366.7405 | I35: 140252.2791 | J35: 132691.0589 | K35: 124618.5078 | L35: 123250.2381
B36: DEPRECIACION DEL EJERCICIO
B38: Depreciaciones del Período | C38: mil/$ | E38: =+E20 -> 234935.56 | F38: =+F20 -> 234935.56 | G38: =(G13+G14)*G$39 -> 321021.4033 | H38: =(H13+H14)*H$39 -> 396014.57 | I38: 493702.4667 | J38: 593033.3586 | K38: 675164.066 | L38: 758329.1564
C39: % | E39: =+E38/E$16 -> 0.03110686124 | F39: =+F38/F$16 -> 0.03110686124 | G39: =+F39 -> 0.03110686124 | H39: 0.03110686124 | I39: 0.03110686124 | J39: 0.03110686124 | K39: 0.03110686124 | L39: 0.03110686124
B40: Bajas VO | C40: mil/$ | E40: =-E15 -> 33657.969 | F40: =+F41*F16 -> 33657.969 | G40: =+G41*(G13+G14) -> 45991.03022 | H40: =+H41*(H13+H14) -> 56734.90262 | I40: 70730.12838 | J40: 84960.73732 | K40: 96727.16724 | L40: 108641.7877
C41: % | E41: =+E40/E$16 -> 0.004456514677 | F41: =+E41 -> 0.004456514677 | G41: 0.004456514677 | H41: 0.004456514677 | I41: 0.004456514677 | J41: 0.004456514677 | K41: 0.004456514677 | L41: 0.004456514677
B42: Bajas AA | C42: mil/$ | E42: =-E21 -> 19473.4762 | F42: =+F43*F22 -> 19473.4762 | G42: =+G43*(G19+G20) -> 21012.17448 | H42: =+H43*(H19+H20) -> 22809.61084 | I42: 25066.66292 | J42: 27789.00284 | K42: 30891.95761 | L42: 34378.66086
C43: % | E43: =+E42/E22 -> 0.004793132999 | F43: =+E43 -> 0.004793132999 | G43: =+F43 -> 0.004793132999 | H43: 0.004793132999 | I43: 0.004793132999 | J43: 0.004793132999 | K43: 0.004793132999 | L43: 0.004793132999
B45: Total Depreciaciones más Bajas | E45: =+E38+E40-E42 -> 249120.0528 | F45: =+F38+F40-F42 -> 249120.0528 | G45: 346000.259 | H45: 429939.8618 | I45: 539365.9322 | J45: 650205.0931 | K45: 740999.2756 | L45: 832592.2833
B48: Depreciaciones Operativas | E48: =+'[1]Anexo E'!$J$31/1000+E40-E42 -> 230325.2078 | F48: =+F$45*$E48/$E$51 -> 230325.2078 | G48: =+G$45*$E48/$E$51 -> 319896.2936 | H48: 397503.0789 | I48: 498673.5071 | J48: 601150.4153 | K48: 685094.637 | L48: 769777.4166
B49: Depreciaciones Comerciales | E49: =+'[1]Anexo D'!$J$36/1000 -> 6130.73 | F49: =+F$45*$E49/$E$51 -> 6130.73 | G49: 8514.907347 | H49: 10580.62239 | I49: 13273.54769 | J49: 16001.2485 | K49: 18235.6516 | L49: 20489.71342
B50: Depreciaciones Administrativas | E50: =+'[1]Anexo F'!$J$17/1000 -> 12664.115 | F50: 12664.115 | G50: 17589.05805 | H50: 21856.16048 | I50: 27418.87743 | J50: 33053.42938 | K50: 37668.98704 | L50: 42325.1533
B51: Total Depreciaciones | E51: =SUM(E48:E50) -> 249120.0528 | F51: =SUM(F48:F50) -> 249120.0528 | G51: 346000.259 | H51: 429939.8618 | I51: 539365.9322 | J51: 650205.0931 | K51: 740999.2756 | L51: =SUM(L48:L50) -> 832592.2833
B53: Depreciacion Intangibles | C53: mil/$ | E53: 0 | F53: 0 | G53: 0 | H53: 0 | I53: 0 | J53: 0 | K53: 0 | L53: 0
B92: Inicio | C92: 4716798 | E92: Inicio | F92: 2116216 | H92: 2600582
B93: Alta | C93: 149224 | E93: Alta | F93: 192509
B94: Baja | C94: 49485 | E94: Baja | F94: 26375
C95: 99739 | F95: 166134 | H95: -66395
B96: Cierre | C96: 4816537 | E96: Cierre | F96: 2282350 | H96: 2534187

Sheet Resumen Ingresos y Abastec
B3: Resúmen de Ingresos y Abastecimiento por Categoría Tarifaria
B6: Facturación Clientes
E7: =+'Proy Economica'!E$6 -> 2015 | F7: =+'Proy Economica'!F$6 -> Base | G7: =+'Proy Economica'!G$6 -> Año 1 | H7: =+'Proy Economica'!H$6 -> Año 2 | I7: =+'Proy Economica'!I$6 -> Año 3 | J7: =+'Proy Economica'!J$6 -> Año 4 | K7: =+'Proy Economica'!K$6 -> Año 5 | L7: =+'Proy Economica'!L$6 -> Año 6
B8: T1 Residencial | C8: [$] | E8: =SUM(E9:E11) -> 9244739370 | F8: 9244739370 | G8: 8887357782 | H8: 9232130836 | I8: 9750851986 | J8: 1.008882195e+10 | K8: 1.066399372e+10 | L8: 1.134917931e+10 | O8: =+H8/G8-1 -> 0.03879365085 | P8: =+I8/H8-1 -> 0.05618650333 | Q8: =+J8/I8-1 -> 0.03466055754 | R8: =+K8/J8-1 -> 0.05701079567 | S8: =+L8/K8-1 -> 0.06425225023 | T8: =+#REF!/L8-1 -> 
B9: T1R1 | C9: [$] | E9: =T1R!E31 -> 1149331194 | F9: =T1R!F31 -> 1149331194 | G9: =T1R!G31 -> 1123342393 | H9: =T1R!H31 -> 1157339480 | I9: =T1R!I31 -> 1207480371 | J9: =T1R!J31 -> 1246626409 | K9: =T1R!K31 -> 1310242030 | L9: =T1R!L31 -> 1387102665
B10: T1R2 | C10: [$] | E10: =T1R!E34 -> 5031035644 | F10: =T1R!F34 -> 5031035644 | G10: =T1R!G34 -> 4836964374 | H10: =T1R!H34 -> 5024390884 | I10: =T1R!I34 -> 5306356706 | J10: =T1R!J34 -> 5490216706 | K10: =T1R!K34 -> 5803049478 | L10: =T1R!L34 -> 6175742562
B11: T1R3 | C11: [$] | E11: =T1R!E37 -> 3064372532 | F11: =T1R!F37 -> 3064372532 | G11: =T1R!G37 -> 2927051014 | H11: =T1R!H37 -> 3050400473 | I11: =T1R!I37 -> 3237014909 | J11: =T1R!J37 -> 3351978838 | K11: =T1R!K37 -> 3550702212 | L11: =T1R!L37 -> 3786334086
B12: T1 General | C12: [$] | E12: =SUM(E13:E15) -> 2231055549 | F12: 2231055549 | G12: 2364264185 | H12: 2476594315 | I12: 2516880832 | J12: 2681413988 | K12: 2847809287 | L12: 3045886599 | O12: =+H12/G12-1 -> 0.04751166586 | P12: =+I12/H12-1 -> 0.01626690211 | Q12: =+J12/I12-1 -> 0.06537184973 | R12: =+K12/J12-1 -> 0.0620550574 | S12: =+L12/K12-1 -> 0.06955427577 | T12: =+#REF!/L12-1 -> 
B13: T1G1 | C13: [$] | E13: =T1G!E31 -> 789627276.7 | F13: =T1G!F31 -> 789627276.7 | G13: =T1G!G31 -> 831722076.7 | H13: =T1G!H31 -> 866350412.2 | I13: =T1G!I31 -> 880175657.1 | J13: =T1G!J31 -> 932965666.5 | K13: =T1G!K31 -> 987662343.8 | L13: =T1G!L31 -> 1053149304
B14: T1G2 | C14: [$] | E14: =T1G!E34 -> 716980757.8 | F14: =T1G!F34 -> 716980757.8 | G14: =T1G!G34 -> 762377680.7 | H14: =T1G!H34 -> 801104479.6 | I14: =T1G!I34 -> 814273096.9 | J14: =T1G!J34 -> 869937131.5 | K14: =T1G!K34 -> 925560248.7 | L14: =T1G!L34 -> 991581481.6
B15: T1G3 | C15: [$] | E15: =T1G!E37 -> 724447514.4 | F15: =T1G!F37 -> 724447514.4 | G15: =T1G!G37 -> 770164427.6 | H15: =T1G!H37 -> 809139423.2 | I15: =T1G!I37 -> 822432078.3 | J15: =T1G!J37 -> 878511189.9 | K15: =T1G!K37 -> 934586694.3 | L15: =T1G!L37 -> 1001155814
B16: T1 Alumbrado Público | C16: [$] | E16: =SUM(E17) -> 631020897.7 | F16: 631020897.7 | G16: 644582102.2 | H16: 683111294 | I16: 700436307.7 | J16: 753672162.9 | K16: 806960965.1 | L16: 869701798.3 | O16: =+H16/G16-1 -> 0.05977390882 | P16: 0.02536191951 | Q16: 0.07600384874 | R16: 0.07070554661 | S16: 0.07774952684 | T16: =+#REF!/L16-1 -> 
B17: T1AP | C17: [$] | E17: =T1AP!E19 -> 631020897.7 | F17: =T1AP!F19 -> 631020897.7 | G17: =T1AP!G19 -> 644582102.2 | H17: =T1AP!H19 -> 683111294 | I17: =T1AP!I19 -> 700436307.7 | J17: =T1AP!J19 -> 753672162.9 | K17: =T1AP!K19 -> 806960965.1 | L17: =T1AP!L19 -> 869701798.3 | O17: 0.05977390882 | P17: 0.02536191951 | Q17: 0.07600384874 | R17: 0.07070554661 | S17: 0.07774952684 | T17: =+#REF!/L17-1 -> 
B18: T2 Mediana Demanda | C18: [$] | E18: =SUM(E19) -> 1722202181 | F18: 1722202181 | G18: 1692138481 | H18: 1733063352 | I18: 1766718623 | J18: 1841639809 | K18: 1929409496 | L18: 2036404381 | O18: 0.02418529649 | P18: 0.01941952727 | Q18: 0.04240697146 | R18: 0.0476584438 | S18: 0.05545473117 | T18: =+#REF!/L18-1 -> 
B19: T2 | C19: [$] | E19: ='T2'!E29 -> 1722202181 | F19: ='T2'!F29 -> 1722202181 | G19: ='T2'!G29 -> 1692138481 | H19: ='T2'!H29 -> 1733063352 | I19: ='T2'!I29 -> 1766718623 | J19: ='T2'!J29 -> 1841639809 | K19: ='T2'!K29 -> 1929409496 | L19: ='T2'!L29 -> 2036404381 | O19: 0.02418529649 | P19: 0.01941952727 | Q19: 0.04240697146 | R19: 0.0476584438 | S19: 0.05545473117 | T19: =+#REF!/L19-1 -> 
B20: T3 Grandes Demandas < 300 kW | C20: [$] | E20: =SUM(E21:E23) -> 1888044575 | F20: 1888044575 | G20: 2049893253 | H20: 2101652298 | I20: 2152976484 | J20: 2251789647 | K20: 2366533681 | L20: 2505853635 | O20: 0.02524962943 | P20: 0.02442087398 | Q20: 0.04589607145 | R20: 0.05095681736 | S20: 0.05887089454 | T20: =+#REF!/L20-1 -> 
B21: T3BT < 300 kW | C21: [$] | E21: =+'T3BT<'!E37 -> 1692322287 | F21: =+'T3BT<'!F37 -> 1692322287 | G21: =+'T3BT<'!G37 -> 1852517552 | H21: =+'T3BT<'!H37 -> 1901472500 | I21: =+'T3BT<'!I37 -> 1943629833 | J21: =+'T3BT<'!J37 -> 2031262949 | K21: =+'T3BT<'!K37 -> 2133595115 | L21: =+'T3BT<'!L37 -> 2258029698 | O21: 0.02642617234 | P21: 0.02217088769 | Q21: 0.04508734877 | R21: 0.050378591 | S21: 0.05832155449 | T21: =+#REF!/L21-1 -> 
B22: T3MT < 300 kW | C22: [$] | E22: =+'T3MT<'!E37 -> 195722288 | F22: =+'T3MT<'!F37 -> 195722288 | G22: =+'T3MT<'!G37 -> 197375701.6 | H22: =+'T3MT<'!H37 -> 200179798.5 | I22: =+'T3MT<'!I37 -> 209346651.2 | J22: =+'T3MT<'!J37 -> 220526697.6 | K22: =+'T3MT<'!K37 -> 232938566 | L22: =+'T3MT<'!L37 -> 247823937 | O22: 0.01420690042 | P22: 0.04579309573 | Q22: 0.05340446736 | R22: 0.05628283817 | S22: 0.0639025614 | T22: =+#REF!/L22-1 -> 
B23: T3AT < 300 kW | C23: [$] | E23: =+'T3AT<'!E37 -> 0 | F23: =+'T3AT<'!F37 -> 0 | G23: =+'T3AT<'!G37 -> 0 | H23: =+'T3AT<'!H37 -> 0 | I23: =+'T3AT<'!I37 -> 0 | J23: =+'T3AT<'!J37 -> 0 | K23: =+'T3AT<'!K37 -> 0 | L23: =+'T3AT<'!L37 -> 0
B24: PJ Servicio de Peaje < 300 kW | C24: [$] | E24: =SUM(E25:E27) -> 100599607.1 | F24: 100599607.1 | G24: 104207064.2 | H24: 106499422.3 | I24: 109241470.7 | J24: 113344608.2 | K24: 118486688.7 | L24: 124764940.4 | O24: =+H24/G24-1 -> 0.02199810678 | P24: 0.02574707235 | Q24: 0.03756025541 | R24: 0.04536678551 | S24: 0.05298697906 | T24: =+#REF!/L24-1 -> 
B25: PJBT < 300 kW | C25: [$] | E25: =+'PJBT<'!E37 -> 68743086.66 | F25: =+'PJBT<'!F37 -> 68743086.66 | G25: =+'PJBT<'!G37 -> 71952377.55 | H25: =+'PJBT<'!H37 -> 72937642.62 | I25: =+'PJBT<'!I37 -> 74300443.24 | J25: =+'PJBT<'!J37 -> 76671409.09 | K25: =+'PJBT<'!K37 -> 79792843.54 | L25: =+'PJBT<'!L37 -> 83687633.6 | O25: 0.01369329415 | P25: 0.01868446202 | Q25: 0.03191052098 | R25: 0.04071184402 | S25: 0.04881127038 | T25: =+#REF!/L25-1 -> 
B26: PJMT < 300 kW | C26: [$] | E26: =+'PJMT<'!E37 -> 31856520.43 | F26: =+'PJMT<'!F37 -> 31856520.43 | G26: =+'PJMT<'!G37 -> 32254686.65 | H26: =+'PJMT<'!H37 -> 33561779.71 | I26: =+'PJMT<'!I37 -> 34941027.43 | J26: =+'PJMT<'!J37 -> 36673199.11 | K26: =+'PJMT<'!K37 -> 38693845.2 | L26: =+'PJMT<'!L37 -> 41077306.83 | O26: 0.04052412814 | P26: 0.04109578606 | Q26: 0.04957414864 | R26: 0.05509871325 | S26: 0.0615979524 | T26: =+#REF!/L26-1 -> 
B27: PJAT < 300 kW | C27: [$] | E27: =+'PJAT<'!E37 -> 0 | F27: =+'PJAT<'!F37 -> 0 | G27: =+'PJAT<'!G37 -> 0 | H27: =+'PJAT<'!H37 -> 0 | I27: =+'PJAT<'!I37 -> 0 | J27: =+'PJAT<'!J37 -> 0 | K27: =+'PJAT<'!K37 -> 0 | L27: =+'PJAT<'!L37 -> 0
B28: T3 Grandes Demandas > 300 kW | C28: [$] | E28: =SUM(E29:E31) -> 2260053481 | F28: 2260053481 | G28: 2337353215 | H28: 2374478849 | I28: 2484577309 | J28: 2632388837 | K28: 2788035912 | L28: 2973986370
B29: T3BT > 300 kW | C29: [$] | E29: =+'T3BT>'!E37 -> 470086865.6 | F29: =+'T3BT>'!F37 -> 470086865.6 | G29: =+'T3BT>'!G37 -> 536690778.6 | H29: =+'T3BT>'!H37 -> 557021794.4 | I29: =+'T3BT>'!I37 -> 570076440.8 | J29: =+'T3BT>'!J37 -> 601958517.8 | K29: =+'T3BT>'!K37 -> 636618754.6 | L29: =+'T3BT>'!L37 -> 678184573.2 | O29: =+H29/G29-1 -> 0.03788217836 | P29: 0.02343650919 | Q29: 0.05592596841 | R29: 0.05757911182 | S29: 0.06529153957 | T29: =+#REF!/L29-1 -> 
B30: T3MT > 300 kW | C30: [$] | E30: =+'T3MT>'!E37 -> 1762677737 | F30: =+'T3MT>'!F37 -> 1762677737 | G30: =+'T3MT>'!G37 -> 1763268128 | H30: =+'T3MT>'!H37 -> 1777044640 | I30: =+'T3MT>'!I37 -> 1872172656 | J30: =+'T3MT>'!J37 -> 1984251055 | K30: =+'T3MT>'!K37 -> 2101353993 | L30: =+'T3MT>'!L37 -> 2241236238 | O30: 0.007813055712 | P30: 0.05353158479 | Q30: 0.05986541821 | R30: 0.05901619059 | S30: 0.06656767266 | T30: =+#REF!/L30-1 -> 
B31: T3AT > 300 kW | C31: [$] | E31: =+'T3AT>'!E37 -> 27288878.85 | F31: =+'T3AT>'!F37 -> 27288878.85 | G31: =+'T3AT>'!G37 -> 37394308.16 | H31: =+'T3AT>'!H37 -> 40412414.36 | I31: =+'T3AT>'!I37 -> 42328212.19 | J31: =+'T3AT>'!J37 -> 46179264.62 | K31: =+'T3AT>'!K37 -> 50063164.43 | L31: =+'T3AT>'!L37 -> 54565559.26 | O31: 0.08071030985 | P31: 0.04740617129 | Q31: 0.09098074849 | R31: 0.08410484322 | S31: 0.08993428357 | T31: =+#REF!/L31-1 -> 
B32: PJ Servicio de Peaje > 300 kW | C32: [$] | E32: =SUM(E33:E35) -> 817733172.2 | F32: 817733172.2 | G32: 822069255.5 | H32: 836313342.9 | I32: 863424975.6 | J32: 899781529.9 | K32: 943551827.1 | L32: 996756052.8
B33: PJBT > 300 kW | C33: [$] | E33: =+'PJBT>'!E37 -> 121447345.5 | F33: =+'PJBT>'!F37 -> 121447345.5 | G33: =+'PJBT>'!G37 -> 127619631 | H33: =+'PJBT>'!H37 -> 129373784.9 | I33: =+'PJBT>'!I37 -> 131713569.6 | J33: =+'PJBT>'!J37 -> 136028831.7 | K33: =+'PJBT>'!K37 -> 141612025.4 | L33: =+'PJBT>'!L37 -> 148570762.1 | O33: =+H33/G33-1 -> 0.01374517296 | P33: 0.01808546227 | Q33: 0.03276247234 | R33: 0.04104419289 | S33: 0.04913944777 | T33: =+#REF!/L33-1 -> 
B34: PJMT > 300 kW | C34: [$] | E34: =+'PJMT>'!E37 -> 690558901.7 | F34: =+'PJMT>'!F37 -> 690558901.7 | G34: =+'PJMT>'!G37 -> 687138544.9 | H34: =+'PJMT>'!H37 -> 698900703 | I34: =+'PJMT>'!I37 -> 723107086.2 | J34: =+'PJMT>'!J37 -> 754355992.6 | K34: =+'PJMT>'!K37 -> 791715634.4 | L34: =+'PJMT>'!L37 -> 837013710.1 | O34: 0.01711759332 | P34: 0.03463493888 | Q34: 0.04321477005 | R34: 0.04952521383 | S34: 0.0572150829 | T34: =+#REF!/L34-1 -> 
B35: PJAT > 300 kW | C35: [$] | E35: =+'PJAT>'!E37 -> 5726925.038 | F35: =+'PJAT>'!F37 -> 5726925.038 | G35: =+'PJAT>'!G37 -> 7311079.689 | H35: =+'PJAT>'!H37 -> 8038855.012 | I35: =+'PJAT>'!I37 -> 8604319.828 | J35: =+'PJAT>'!J37 -> 9396705.504 | K35: =+'PJAT>'!K37 -> 10224167.31 | L35: =+'PJAT>'!L37 -> 11171580.65 | O35: 0.09954416505 | P35: 0.07034146219 | Q35: 0.09209161115 | R35: 0.08805871455 | S35: 0.09266410707 | T35: =+#REF!/L35-1 -> 
B37: TOTAL | C37: [$] | E37: =E8+E12+E16+E18+E20+E24+E28+E32 -> 1.889544883e+10 | F37: 1.889544883e+10 | G37: 1.890186534e+10 | H37: 1.954384371e+10 | I37: 2.034510799e+10 | J37: 2.126285253e+10 | K37: 2.246478158e+10 | L37: 2.390253309e+10 | O37: =+H37/G37-1 -> 0.03396375757 | P37: =+I37/H37-1 -> 0.04099829546 | Q37: =+J37/I37-1 -> 0.04510885598 | R37: =+K37/J37-1 -> 0.05652717762 | S37: =+L37/K37-1 -> 0.06400024451 | T37: =+#REF!/L37-1 -> 
B39: CLIENTES FINALES | C39: [$] | E39: =E8+E12+E16+E18+E20+E28 -> 1.797711605e+10 | F39: 1.797711605e+10 | G39: 1.797558902e+10 | H39: 1.860103094e+10 | I39: 1.937244154e+10 | J39: 2.02497264e+10 | K39: 2.140274306e+10 | L39: 2.27810121e+10 | O39: =+H39/G39-1 -> 0.03479396007 | P39: =+I39/H39-1 -> 0.04147138942 | Q39: =+J39/I39-1 -> 0.04528519817 | R39: =+K39/J39-1 -> 0.05693986386 | S39: =+L39/K39-1 -> 0.06439684075 | T39: =+#REF!/L39-1 -> 
B41: PEAJE | C41: [$] | E41: =E24+E32 -> 918332779.3 | F41: 918332779.3 | G41: 926276319.7 | H41: 942812765.2 | I41: 972666446.2 | J41: 1013126138 | K41: 1062038516 | L41: 1121520993 | O41: =+H41/G41-1 -> 0.01785260528 | P41: =+I41/H41-1 -> 0.03166448534 | Q41: =+J41/I41-1 -> 0.04159667685 | R41: =+K41/J41-1 -> 0.04827866535 | S41: =+L41/K41-1 -> 0.05600783449 | T41: =+#REF!/L41-1 -> 
B43: Costo de Abastecimiento
E46: =+'Proy Economica'!E$6 -> 2015 | F46: =+'Proy Economica'!F$6 -> Base | G46: =+'Proy Economica'!G$6 -> Año 1 | H46: =+'Proy Economica'!H$6 -> Año 2 | I46: =+'Proy Economica'!I$6 -> Año 3 | J46: =+'Proy Economica'!J$6 -> Año 4 | K46: =+'Proy Economica'!K$6 -> Año 5 | L46: =+'Proy Economica'!L$6 -> Año 6
B47: T1 Residencial | C47: [$] | E47: =SUM(E48:E50) -> 2993421944 | F47: 2993421944 | G47: 2867016913 | H47: 2971793069 | I47: 3110144417 | J47: 3140001260 | K47: 3218130552 | L47: 3295054885
B48: T1R1 | C48: [$] | E48: =+'Proy Abastecimiento'!F444 -> 260157884.5 | F48: =+'Proy Abastecimiento'!F444 -> 260157884.5 | G48: =+'Proy Abastecimiento'!G444 -> 249172040.8 | H48: =+'Proy Abastecimiento'!H444 -> 258278121.8 | I48: =+'Proy Abastecimiento'!I444 -> 270302218.3 | J48: =+'Proy Abastecimiento'!J444 -> 272897072.4 | K48: =+'Proy Abastecimiento'!K444 -> 279687278.2 | L48: =+'Proy Abastecimiento'!L444 -> 286372761.3
B49: T1R2 | C49: [$] | E49: =+'Proy Abastecimiento'!F445 -> 1646209692 | F49: =+'Proy Abastecimiento'!F445 -> 1646209692 | G49: =+'Proy Abastecimiento'!G445 -> 1576694204 | H49: =+'Proy Abastecimiento'!H445 -> 1634315056 | I49: =+'Proy Abastecimiento'!I445 -> 1710400331 | J49: =+'Proy Abastecimiento'!J445 -> 1726819875 | K49: =+'Proy Abastecimiento'!K445 -> 1769786486 | L49: =+'Proy Abastecimiento'!L445 -> 1812090440
B50: T1R3 | C50: [$] | E50: =+'Proy Abastecimiento'!F446 -> 1087054368 | F50: =+'Proy Abastecimiento'!F446 -> 1087054368 | G50: =+'Proy Abastecimiento'!G446 -> 1041150668 | H50: =+'Proy Abastecimiento'!H446 -> 1079199891 | I50: =+'Proy Abastecimiento'!I446 -> 1129441868 | J50: =+'Proy Abastecimiento'!J446 -> 1140284313 | K50: =+'Proy Abastecimiento'!K446 -> 1168656787 | L50: =+'Proy Abastecimiento'!L446 -> 1196591684
B51: T1 General | C51: [$] | E51: =SUM(E52:E54) -> 751414685.2 | F51: 751414685.2 | G51: 802607498 | H51: 837123714.1 | I51: 837518656.6 | J51: 871508566.8 | K51: 895962667 | L51: 920557682.8
B52: T1G1 | C52: [$] | E52: =+'Proy Abastecimiento'!F448 -> 245823039.7 | F52: =+'Proy Abastecimiento'!F448 -> 245823039.7 | G52: =+'Proy Abastecimiento'!G448 -> 262570616 | H52: =+'Proy Abastecimiento'!H448 -> 273862499.9 | I52: =+'Proy Abastecimiento'!I448 -> 273991702.7 | J52: =+'Proy Abastecimiento'!J448 -> 285111395.5 | K52: =+'Proy Abastecimiento'!K448 -> 293111479 | L52: =+'Proy Abastecimiento'!L448 -> 301157662.4
B53: T1G2 | C53: [$] | E53: =+'Proy Abastecimiento'!F449 -> 253701903.8 | F53: =+'Proy Abastecimiento'!F449 -> 253701903.8 | G53: =+'Proy Abastecimiento'!G449 -> 270986254.3 | H53: =+'Proy Abastecimiento'!H449 -> 282640048.4 | I53: =+'Proy Abastecimiento'!I449 -> 282773393.2 | J53: =+'Proy Abastecimiento'!J449 -> 294249485.1 | K53: =+'Proy Abastecimiento'!K449 -> 302505979.9 | L53: =+'Proy Abastecimiento'!L449 -> 310810052.2
B54: T1G3 | C54: [$] | E54: =+'Proy Abastecimiento'!F450 -> 251889741.7 | F54: =+'Proy Abastecimiento'!F450 -> 251889741.7 | G54: =+'Proy Abastecimiento'!G450 -> 269050627.8 | H54: =+'Proy Abastecimiento'!H450 -> 280621165.7 | I54: =+'Proy Abastecimiento'!I450 -> 280753560.7 | J54: =+'Proy Abastecimiento'!J450 -> 292147686.2 | K54: =+'Proy Abastecimiento'!K450 -> 300345208.1 | L54: =+'Proy Abastecimiento'!L450 -> 308589968.2
B55: T1 Alumbrado Público | C55: [$] | E55: =SUM(E56) -> 220616674.4 | F55: 220616674.4 | G55: 226560926.5 | H55: 238500017.3 | I55: 240717043.6 | J55: 252445695.5 | K55: 261289115.7 | L55: 270175913.8
B56: T1AP | C56: [$] | E56: =+'Proy Abastecimiento'!F452 -> 220616674.4 | F56: =+'Proy Abastecimiento'!F452 -> 220616674.4 | G56: =+'Proy Abastecimiento'!G452 -> 226560926.5 | H56: =+'Proy Abastecimiento'!H452 -> 238500017.3 | I56: =+'Proy Abastecimiento'!I452 -> 240717043.6 | J56: =+'Proy Abastecimiento'!J452 -> 252445695.5 | K56: =+'Proy Abastecimiento'!K452 -> 261289115.7 | L56: =+'Proy Abastecimiento'!L452 -> 270175913.8
B57: T2 Mediana Demanda | C57: [$] | E57: =SUM(E58) -> 511294853.3 | F57: 511294853.3 | G57: 567550982.6 | H57: 583665432.9 | I57: 575992459.4 | J57: 591968346.8 | K57: 601931788.2 | L57: 611981276.6
B58: T2 | C58: [$] | E58: =+'Proy Abastecimiento'!F454 -> 511294853.3 | F58: =+'Proy Abastecimiento'!F454 -> 511294853.3 | G58: =+'Proy Abastecimiento'!G454 -> 567550982.6 | H58: =+'Proy Abastecimiento'!H454 -> 583665432.9 | I58: =+'Proy Abastecimiento'!I454 -> 575992459.4 | J58: =+'Proy Abastecimiento'!J454 -> 591968346.8 | K58: =+'Proy Abastecimiento'!K454 -> 601931788.2 | L58: =+'Proy Abastecimiento'!L454 -> 611981276.6
B59: T3 Grandes Demandas < 300 kW | C59: [$] | E59: =SUM(E60:E62) -> 556933191.7 | F59: 556933191.7 | G59: 679683086.4 | H59: 713048773.3 | I59: 725561174.8 | J59: 762464844.3 | K59: 790420994.8 | L59: 818481364.5
B60: T3BT | C60: [$] | E60: =+'Proy Abastecimiento'!F456 -> 465871317.2 | F60: =+'Proy Abastecimiento'!F456 -> 465871317.2 | G60: =+'Proy Abastecimiento'!G456 -> 588492480.7 | H60: =+'Proy Abastecimiento'!H456 -> 621548042.6 | I60: =+'Proy Abastecimiento'!I456 -> 629266557.2 | J60: =+'Proy Abastecimiento'!J456 -> 661717986.5 | K60: =+'Proy Abastecimiento'!K456 -> 686494947.7 | L60: =+'Proy Abastecimiento'!L456 -> 711387935.6
B61: T3MT | C61: [$] | E61: =+'Proy Abastecimiento'!F457 -> 91061874.54 | F61: =+'Proy Abastecimiento'!F457 -> 91061874.54 | G61: =+'Proy Abastecimiento'!G457 -> 91190605.75 | H61: =+'Proy Abastecimiento'!H457 -> 91500730.74 | I61: =+'Proy Abastecimiento'!I457 -> 96294617.55 | J61: =+'Proy Abastecimiento'!J457 -> 100746857.8 | K61: =+'Proy Abastecimiento'!K457 -> 103926047.1 | L61: =+'Proy Abastecimiento'!L457 -> 107093428.9
B62: T3AT | C62: [$] | E62: =+'Proy Abastecimiento'!F458 -> 0 | F62: =+'Proy Abastecimiento'!F458 -> 0 | G62: =+'Proy Abastecimiento'!G458 -> 0 | H62: =+'Proy Abastecimiento'!H458 -> 0 | I62: =+'Proy Abastecimiento'!I458 -> 0 | J62: =+'Proy Abastecimiento'!J458 -> 0 | K62: =+'Proy Abastecimiento'!K458 -> 0 | L62: =+'Proy Abastecimiento'!L458 -> 0
B63: PJ Servicio de Peaje < 300 kW | C63: [$] | E63: =SUM(E64:E66) -> 11453474.8 | F63: 11453474.8 | G63: 13095123.33 | H63: 13237700.24 | I63: 13351046.01 | J63: 13730467.92 | K63: 14017154.05 | L63: 14313578.23
B64: PJBT | C64: [$] | E64: =+'Proy Abastecimiento'!F460 -> 5403236.943 | F64: =+'Proy Abastecimiento'!F460 -> 5403236.943 | G64: =+'Proy Abastecimiento'!G460 -> 7036332.5 | H64: =+'Proy Abastecimiento'!H460 -> 7158304.588 | I64: =+'Proy Abastecimiento'!I460 -> 6953139.921 | J64: =+'Proy Abastecimiento'!J460 -> 7036750.665 | K64: =+'Proy Abastecimiento'!K460 -> 7112208.394 | L64: =+'Proy Abastecimiento'!L460 -> 7198188.675
B65: PJMT | C65: [$] | E65: =+'Proy Abastecimiento'!F461 -> 6050237.856 | F65: =+'Proy Abastecimiento'!F461 -> 6050237.856 | G65: =+'Proy Abastecimiento'!G461 -> 6058790.826 | H65: =+'Proy Abastecimiento'!H461 -> 6079395.656 | I65: =+'Proy Abastecimiento'!I461 -> 6397906.093 | J65: =+'Proy Abastecimiento'!J461 -> 6693717.259 | K65: =+'Proy Abastecimiento'!K461 -> 6904945.654 | L65: =+'Proy Abastecimiento'!L461 -> 7115389.56
B66: PJAT | C66: [$] | E66: =+'Proy Abastecimiento'!F462 -> 0 | F66: =+'Proy Abastecimiento'!F462 -> 0 | G66: =+'Proy Abastecimiento'!G462 -> 0 | H66: =+'Proy Abastecimiento'!H462 -> 0 | I66: =+'Proy Abastecimiento'!I462 -> 0 | J66: =+'Proy Abastecimiento'!J462 -> 0 | K66: =+'Proy Abastecimiento'!K462 -> 0 | L66: =+'Proy Abastecimiento'!L462 -> 0
B67: T3 Grandes Demandas > 300 kW | C67: [$] | E67: =SUM(E68:E70) -> 1551525499 | F67: 1551525499 | G67: 1625281544 | H67: 1649187394 | I67: 1722112349 | J67: 1804200118 | K67: 1863829532 | L67: 1923348204
B68: T3BT | C68: [$] | E68: =+'Proy Abastecimiento'!F464 -> 237953775.7 | F68: =+'Proy Abastecimiento'!F464 -> 237953775.7 | G68: =+'Proy Abastecimiento'!G464 -> 300592074.7 | H68: =+'Proy Abastecimiento'!H464 -> 317499231.8 | I68: =+'Proy Abastecimiento'!I464 -> 321437706.8 | J68: =+'Proy Abastecimiento'!J464 -> 338003619.2 | K68: =+'Proy Abastecimiento'!K464 -> 350655337.4 | L68: =+'Proy Abastecimiento'!L464 -> 363365457
B69: T3MT | C69: [$] | E69: =+'Proy Abastecimiento'!F465 -> 1289823795 | F69: =+'Proy Abastecimiento'!F465 -> 1289823795 | G69: =+'Proy Abastecimiento'!G465 -> 1291676937 | H69: =+'Proy Abastecimiento'!H465 -> 1296163590 | I69: =+'Proy Abastecimiento'!I465 -> 1364053632 | J69: =+'Proy Abastecimiento'!J465 -> 1427076153 | K69: =+'Proy Abastecimiento'!K465 -> 1472091249 | L69: =+'Proy Abastecimiento'!L465 -> 1516935676
B70: T3AT | C70: [$] | E70: =+'Proy Abastecimiento'!F466 -> 23747929.08 | F70: =+'Proy Abastecimiento'!F466 -> 23747929.08 | G70: =+'Proy Abastecimiento'!G466 -> 33012531.95 | H70: =+'Proy Abastecimiento'!H466 -> 35524572.68 | I70: =+'Proy Abastecimiento'!I466 -> 36621010.66 | J70: =+'Proy Abastecimiento'!J466 -> 39120345.98 | K70: =+'Proy Abastecimiento'!K466 -> 41082945.26 | L70: =+'Proy Abastecimiento'!L466 -> 43047070.43
B71: PJ Servicio de Peaje > 300 kW | C71: [$] | E71: =SUM(E72:E74) -> 100341814.7 | F71: 100341814.7 | G71: 105307298.5 | H71: 106074897.4 | I71: 110062403.9 | J71: 114572110.5 | K71: 117845431.6 | L71: 121135207.3
B72: PJBT | C72: [$] | E72: =+'Proy Abastecimiento'!F468 -> 14176175.37 | F72: =+'Proy Abastecimiento'!F468 -> 14176175.37 | G72: =+'Proy Abastecimiento'!G468 -> 18461263.15 | H72: =+'Proy Abastecimiento'!H468 -> 18782640.53 | I72: =+'Proy Abastecimiento'!I468 -> 18244065.69 | J72: =+'Proy Abastecimiento'!J468 -> 18462862.8 | K72: =+'Proy Abastecimiento'!K468 -> 18660618.86 | L72: =+'Proy Abastecimiento'!L468 -> 18885949.38
B73: PJMT | C73: [$] | E73: =+'Proy Abastecimiento'!F469 -> 84733638.34 | F73: =+'Proy Abastecimiento'!F469 -> 84733638.34 | G73: =+'Proy Abastecimiento'!G469 -> 84855378.38 | H73: =+'Proy Abastecimiento'!H469 -> 85150123.67 | I73: =+'Proy Abastecimiento'!I469 -> 89610089.78 | J73: =+'Proy Abastecimiento'!J469 -> 93750289.3 | K73: =+'Proy Abastecimiento'!K469 -> 96707509.59 | L73: =+'Proy Abastecimiento'!L469 -> 99653517.92
B74: PJAT | C74: [$] | E74: =+'Proy Abastecimiento'!F470 -> 1432000.993 | F74: =+'Proy Abastecimiento'!F470 -> 1432000.993 | G74: =+'Proy Abastecimiento'!G470 -> 1990656.93 | H74: =+'Proy Abastecimiento'!H470 -> 2142133.236 | I74: =+'Proy Abastecimiento'!I470 -> 2208248.464 | J74: =+'Proy Abastecimiento'!J470 -> 2358958.413 | K74: =+'Proy Abastecimiento'!K470 -> 2477303.197 | L74: =+'Proy Abastecimiento'!L470 -> 2595739.985
B76: TOTAL | C76: [$] | E76: =E47+E51+E55+E57+E59+E63+E67+E71 -> 6697002138 | F76: 6697002138 | G76: 6887103372 | H76: 7112630998 | I76: 7335459551 | J76: 7550891410 | K76: 7763427235 | L76: 7975048112
B78: Margen
E79: =+'Proy Economica'!E$6 -> 2015 | F79: =+'Proy Economica'!F$6 -> Base | G79: =+'Proy Economica'!G$6 -> Año 1 | H79: =+'Proy Economica'!H$6 -> Año 2 | I79: =+'Proy Economica'!I$6 -> Año 3 | J79: =+'Proy Economica'!J$6 -> Año 4 | K79: =+'Proy Economica'!K$6 -> Año 5 | L79: =+'Proy Economica'!L$6 -> Año 6
B80: T1 Residencial | C80: [$] | E80: =SUM(E81:E83) -> 6251317426 | F80: 6251317426 | G80: 6020340868 | H80: 6260337768 | I80: 6640707569 | J80: 6948820693 | K80: 7445863168 | L80: 8054124428 | O80: =+H80/G80-1 -> 0.03986433736 | P80: =+I80/H80-1 -> 0.06075867081 | Q80: =+J80/I80-1 -> 0.04639763462 | R80: =+K80/J80-1 -> 0.07152904031 | S80: =+L80/K80-1 -> 0.08169116808 | T80: =+#REF!/L80-1 -> 
B81: T1R1 | C81: [$] | E81: =+E9-E48 -> 889173309.9 | F81: 889173309.9 | G81: 874170352.3 | H81: 899061358.2 | I81: 937178153 | J81: 973729337 | K81: 1030554752 | L81: 1100729903
B82: T1R2 | C82: [$] | E82: 3384825952 | F82: 3384825952 | G82: 3260270170 | H82: 3390075827 | I82: 3595956375 | J82: 3763396830 | K82: 4033262991 | L82: 4363652122
B83: T1R3 | C83: [$] | E83: 1977318164 | F83: 1977318164 | G83: 1885900346 | H83: 1971200582 | I83: 2107573041 | J83: 2211694525 | K83: 2382045425 | L83: 2589742402
B84: T1 General | C84: [$] | E84: =SUM(E85:E87) -> 1479640864 | F84: 1479640864 | G84: 1561656687 | H84: 1639470601 | I84: 1679362176 | J84: 1809905421 | K84: 1951846620 | L84: 2125328917 | O84: =+H84/G84-1 -> 0.04982779798 | P84: =+I84/H84-1 -> 0.02433198541 | Q84: =+J84/I84-1 -> 0.07773382495 | R84: =+K84/J84-1 -> 0.07842464974 | S84: =+L84/K84-1 -> 0.08888111133 | T84: =+#REF!/L84-1 -> 
B85: T1G1 | C85: [$] | E85: =+E13-E52 -> 543804237 | F85: 543804237 | G85: 569151460.8 | H85: 592487912.3 | I85: 606183954.4 | J85: 647854271 | K85: 694550864.8 | L85: 751991641.2
B86: T1G2 | C86: [$] | E86: 463278853.9 | F86: 463278853.9 | G86: 491391426.4 | H86: 518464431.2 | I86: 531499703.7 | J86: 575687646.3 | K86: 623054268.8 | L86: 680771429.4
B87: T1G3 | C87: [$] | E87: 472557772.7 | F87: 472557772.7 | G87: 501113799.9 | H87: 528518257.4 | I87: 541678517.6 | J87: 586363503.8 | K87: 634241486.2 | L87: 692565846
B88: T1 Alumbrado Público | C88: [$] | E88: =SUM(E89) -> 410404223.3 | F88: 410404223.3 | G88: 418021175.7 | H88: 444611276.8 | I88: 459719264.1 | J88: 501226467.4 | K88: 545671849.4 | L88: 599525884.5 | O88: =+H88/G88-1 -> 0.06360945956 | P88: 0.03398021626 | Q88: 0.09028815308 | R88: 0.0886732543 | S88: 0.0986930793 | T88: =+#REF!/L88-1 -> 
B89: T1AP | C89: [$] | E89: =+E17-E56 -> 410404223.3 | F89: 410404223.3 | G89: 418021175.7 | H89: 444611276.8 | I89: 459719264.1 | J89: 501226467.4 | K89: 545671849.4 | L89: 599525884.5 | O89: 0.06360945956 | P89: 0.03398021626 | Q89: 0.09028815308 | R89: 0.0886732543 | S89: 0.0986930793 | T89: =+#REF!/L89-1 -> 
B90: T2 Mediana Demanda | C90: [$] | E90: =SUM(E91) -> 1210907328 | F90: 1210907328 | G90: 1124587498 | H90: 1149397919 | I90: 1190726163 | J90: 1249671462 | K90: 1327477708 | L90: 1424423105 | O90: 0.02206179651 | P90: 0.03595642885 | Q90: 0.04950365642 | R90: 0.06226136088 | S90: 0.07302977363 | T90: =+#REF!/L90-1 -> 
B91: T2 | C91: [$] | E91: =+E19-E58 -> 1210907328 | F91: 1210907328 | G91: 1124587498 | H91: 1149397919 | I91: 1190726163 | J91: 1249671462 | K91: 1327477708 | L91: 1424423105 | O91: 0.02206179651 | P91: 0.03595642885 | Q91: 0.04950365642 | R91: 0.06226136088 | S91: 0.07302977363 | T91: =+#REF!/L91-1 -> 
B92: T3 Grandes Demandas < 300 kW | C92: [$] | E92: =SUM(E93:E95) -> 1331111384 | F92: 1331111384 | G92: 1370210167 | H92: 1388603525 | I92: 1427415310 | J92: 1489324803 | K92: 1576112686 | L92: 1687372271 | O92: 0.01342374954 | P92: 0.02795022753 | Q92: 0.04337174514 | R92: 0.05827330828 | S92: 0.07059113601 | T92: =+#REF!/L92-1 -> 
B93: T3BT < 300 kW | C93: [$] | E93: =+E21-E60 -> 1226450970 | F93: 1226450970 | G93: 1264025071 | H93: 1279924457 | I93: 1314363276 | J93: 1369544963 | K93: 1447100167 | L93: 1546641763 | O93: 0.01257837879 | P93: 0.02690691503 | Q93: 0.04198358849 | R93: 0.05662844685 | S93: 0.06878694237 | T93: =+#REF!/L93-1 -> 
B94: T3MT < 300 kW | C94: [$] | E94: 104660413.5 | F94: 104660413.5 | G94: 106185095.8 | H94: 108679067.8 | I94: 113052033.6 | J94: 119779839.7 | K94: 129012518.9 | L94: 140730508.1 | O94: 0.02348702453 | P94: 0.04023742524 | Q94: 0.059510704 | R94: 0.0770804105 | S94: 0.09082831097 | T94: =+#REF!/L94-1 -> 
B95: T3AT < 300 kW | C95: [$] | E95: 0 | F95: 0 | G95: 0 | H95: 0 | I95: 0 | J95: 0 | K95: 0 | L95: 0
B96: PJ Servicio de Peaje < 300 kW | C96: [$] | E96: =SUM(E97:E99) -> 89146132.29 | F96: 89146132.29 | G96: 91111940.88 | H96: 93261722.09 | I96: 95890424.65 | J96: 99614140.28 | K96: 104469534.7 | L96: 110451362.2 | O96: =+H96/G96-1 -> 0.0235949447 | P96: 0.02818629663 | Q96: 0.03883302887 | R96: 0.04874201989 | S96: 0.05725906146 | T96: =+#REF!/L96-1 -> 
B97: PJBT < 300 kW | C97: [$] | E97: =+E25-E64 -> 63339849.72 | F97: 63339849.72 | G97: 64916045.05 | H97: 65779338.04 | I97: 67347303.32 | J97: 69634658.43 | K97: 72680635.14 | L97: 76489444.92 | O97: 0.01329860716 | P97: 0.02383674461 | Q97: 0.03396357382 | R97: 0.04374225117 | S97: 0.05240473989 | T97: =+#REF!/L97-1 -> 
B98: PJMT < 300 kW | C98: [$] | E98: 25806282.57 | F98: 25806282.57 | G98: 26195895.83 | H98: 27482384.05 | I98: 28543121.33 | J98: 29979481.85 | K98: 31788899.54 | L98: 33961917.27 | O98: 0.04911029702 | P98: 0.03859698926 | Q98: 0.05032247538 | R98: 0.06035520215 | S98: 0.06835775254 | T98: =+#REF!/L98-1 -> 
B99: PJAT < 300 kW | C99: [$] | E99: 0 | F99: 0 | G99: 0 | H99: 0 | I99: 0 | J99: 0 | K99: 0 | L99: 0
B100: T3 Grandes Demandas > 300 kW | C100: [$] | E100: =SUM(E101:E103) -> 708527981.7 | F100: 708527981.7 | G100: 712071671 | H100: 725291454.6 | I100: 762464959.3 | J100: 828188719.5 | K100: 924206380.2 | L100: 1050638167
B101: T3BT > 300 kW | C101: [$] | E101: =+E29-E68 -> 232133089.9 | F101: 232133089.9 | G101: 236098703.9 | H101: 239522562.6 | I101: 248638734 | J101: 263954898.6 | K101: 285963417.2 | L101: 314819116.2 | O101: =+H101/G101-1 -> 0.01450181058 | P101: 0.03805976077 | Q101: 0.06160007468 | R101: 0.0833798452 | S101: 0.1009069597 | T101: =+#REF!/L101-1 -> 
B102: T3MT > 300 kW | C102: [$] | E102: 472853942.1 | F102: 472853942.1 | G102: 471591190.8 | H102: 480881050.3 | I102: 508119023.8 | J102: 557174902.2 | K102: 629262743.8 | L102: 724300561.5 | O102: 0.01969896733 | P102: 0.05664181076 | Q102: 0.09654406966 | R102: 0.129380992 | S102: 0.1510304219 | T102: =+#REF!/L102-1 -> 
B103: T3AT > 300 kW | C103: [$] | E103: 3540949.764 | F103: 3540949.764 | G103: 4381776.213 | H103: 4887841.679 | I103: 5707201.532 | J103: 7058918.638 | K103: 8980219.169 | L103: 11518488.83 | O103: 0.115493225 | P103: 0.1676322407 | Q103: 0.2368441168 | R103: 0.2721805747 | S103: 0.2826511926 | T103: =+#REF!/L103-1 -> 
B104: PJ Servicio de Peaje > 300 kW | C104: [$] | E104: =SUM(E105:E107) -> 717391357.5 | F104: 717391357.5 | G104: 716761957 | H104: 730238445.5 | I104: 753362571.6 | J104: 785209419.3 | K104: 825706395.5 | L104: 875620845.5
B105: PJBT > 300 kW | C105: [$] | E105: =+E33-E72 -> 107271170.1 | F105: 107271170.1 | G105: 109158367.8 | H105: 110591144.3 | I105: 113469503.9 | J105: 117565968.9 | K105: 122951406.5 | L105: 129684812.7 | O105: =+H105/G105-1 -> 0.01312566822 | P105: 0.02602703466 | Q105: 0.0361019034 | R105: 0.04580779282 | S105: 0.05476477572 | T105: =+#REF!/L105-1 -> 
B106: PJMT > 300 kW | C106: [$] | E106: 605825263.4 | F106: 605825263.4 | G106: 602283166.5 | H106: 613750579.4 | I106: 633496996.4 | J106: 660605703.3 | K106: 695008124.9 | L106: 737360192.2 | O106: 0.01903990268 | P106: 0.03217335785 | Q106: 0.04279216331 | R106: 0.05207708831 | S106: 0.06093751398 | T106: =+#REF!/L106-1 -> 
B107: PJAT > 300 kW | C107: [$] | E107: 4294924.045 | F107: 4294924.045 | G107: 5320422.758 | H107: 5896721.776 | I107: 6396071.364 | J107: 7037747.091 | K107: 7746864.114 | L107: 8575840.66 | O107: 0.1083182753 | P107: 0.08468257576 | Q107: 0.1003234158 | R107: 0.1007590944 | S107: 0.1070080143 | T107: =+#REF!/L107-1 -> 
B109: TOTAL | C109: [$] | E109: =E80+E84+E88+E90+E92+E96+E100+E104 -> 1.21984467e+10 | F109: 1.21984467e+10 | G109: 1.201476197e+10 | H109: 1.243121271e+10 | I109: 1.300964844e+10 | J109: 1.371196113e+10 | K109: 1.470135434e+10 | L109: 1.592748498e+10 | O109: =+H109/G109-1 -> 0.03466158942 | P109: =+I109/H109-1 -> 0.04653091693 | Q109: =+J109/I109-1 -> 0.05398398664 | R109: =+K109/J109-1 -> 0.07215548583 | S109: =+L109/K109-1 -> 0.08340256335 | T109: =+#REF!/L109-1 -> 
B111: CLIENTES FINALES | C111: [$] | E111: =E80+E84+E88+E90+E92+E100 -> 1.139190921e+10 | F111: 1.139190921e+10 | G111: 1.120688807e+10 | H111: 1.160771254e+10 | I111: 1.216039544e+10 | J111: 1.282713757e+10 | K111: 1.377117841e+10 | L111: 1.494141277e+10 | O111: =+H111/G111-1 -> 0.03576590345 | P111: =+I111/H111-1 -> 0.04761342041 | Q111: =+J111/I111-1 -> 0.05482898376 | R111: =+K111/J111-1 -> 0.07359715613 | S111: =+L111/K111-1 -> 0.08497706763 | T111: =+#REF!/L111-1 -> 
B113: PEAJE | C113: [$] | E113: =E96+E104 -> 806537489.8 | F113: 806537489.8 | G113: 807873897.9 | H113: 823500167.6 | I113: 849252996.3 | J113: 884823559.6 | K113: 930175930.2 | L113: 986072207.7 | O113: =+H113/G113-1 -> 0.01934246132 | P113: =+I113/H113-1 -> 0.03127240253 | Q113: =+J113/I113-1 -> 0.04188453088 | R113: =+K113/J113-1 -> 0.05125583517 | S113: =+L113/K113-1 -> 0.06009215651 | T113: =+#REF!/L113-1 -> 
B117: Margen medio
E118: =+'Proy Economica'!E$6 -> 2015 | F118: =+'Proy Economica'!F$6 -> Base | G118: =+'Proy Economica'!G$6 -> Año 1 | H118: =+'Proy Economica'!H$6 -> Año 2 | I118: =+'Proy Economica'!I$6 -> Año 3 | J118: =+'Proy Economica'!J$6 -> Año 4 | K118: =+'Proy Economica'!K$6 -> Año 5 | L118: =+'Proy Economica'!L$6 -> Año 6
B119: T1 Residencial | C119: [$/MWh] | E119: =+E80/E159 -> 804.0142112 | F119: 804.0142112 | G119: 812.7614336 | H119: 809.9189357 | I119: 815.2509426 | J119: 839.8450849 | K119: 874.5644877 | L119: 920.685141 | O119: =+H119/G119-1 -> -0.003497333673 | P119: =+I119/H119-1 -> 0.006583383414 | Q119: =+J119/I119-1 -> 0.03016757307 | R119: =+K119/J119-1 -> 0.04134024645 | S119: =+L119/K119-1 -> 0.05273556606 | T119: =+#REF!/L119-1 -> 
B120: T1R1 | C120: [$/MWh] | E120: 1315.855934 | F120: 1315.855934 | G120: 1357.900135 | H120: 1338.328946 | I120: 1323.819767 | J120: 1354.116676 | K120: 1392.764247 | L120: 1447.782479
B121: T1R2 | C121: [$/MWh] | E121: 791.610257 | F121: 791.610257 | G121: 800.3473182 | H121: 797.5099257 | I121: 802.7388194 | J121: 827.0866136 | K121: 861.4225301 | L121: 907.0387005
B122: T1R3 | C122: [$/MWh] | E122: 700.3022402 | F122: 700.3022402 | G122: 701.0960701 | H122: 702.249425 | I122: 712.4860648 | J122: 736.0884596 | K122: 770.4484984 | L122: 815.2037211
B123: T1 General | C123: [$/MWh] | E123: 758.6610196 | F123: 758.6610196 | G123: 753.6429602 | H123: 753.5072111 | I123: 766.1581945 | J123: 788.7024137 | K123: 824.0380392 | L123: 870.2451873 | O123: =+H123/G123-1 -> -0.0001801238237 | P123: =+I123/H123-1 -> 0.01678946551 | Q123: =+J123/I123-1 -> 0.02942501871 | R123: =+K123/J123-1 -> 0.04480222815 | S123: =+L123/K123-1 -> 0.0560740475 | T123: =+#REF!/L123-1 -> 
B124: T1G1 | C124: [$/MWh] | E124: 852.5036157 | F124: 852.5036157 | G124: 839.7888912 | H124: 832.5790204 | I124: 845.5527555 | J124: 863.1709274 | K124: 896.5361764 | L124: 941.4357396
B125: T1G2 | C125: [$/MWh] | E125: 703.6024234 | F125: 703.6024234 | G125: 702.4267658 | H125: 705.8235466 | I125: 718.241518 | J125: 743.08346 | K125: 779.1495866 | L125: 825.6770162
B126: T1G3 | C126: [$/MWh] | E126: 722.5623387 | F126: 722.5623387 | G126: 721.1828681 | H126: 724.3904751 | I126: 736.9612503 | J126: 761.9968526 | K126: 798.518857 | L126: 845.6789229
B127: T1 Alumbrado Público | C127: [$/MWh] | E127: 818.7795124 | F127: 818.7795124 | G127: 816.4299498 | H127: 819.3847862 | I127: 833.6367261 | J127: 861.4247741 | K127: 902.4519571 | L127: 955.5428334 | O127: =+H127/G127-1 -> 0.003619216043 | P127: 0.01739346426 | Q127: 0.03333352181 | R127: 0.0476271222 | S127: 0.05882958743 | T127: =+#REF!/L127-1 -> 
B128: T1AP | C128: [$/MWh] | E128: 818.7795124 | F128: 818.7795124 | G128: 816.4299498 | H128: 819.3847862 | I128: 833.6367261 | J128: 861.4247741 | K128: 902.4519571 | L128: 955.5428334 | O128: 0.003619216043 | P128: 0.01739346426 | Q128: 0.03333352181 | R128: 0.0476271222 | S128: 0.05882958743 | T128: =+#REF!/L128-1 -> 
B129: T2 Mediana Demanda | C129: [$/MWh] | E129: =+E90/E169 -> 911.8387932 | F129: 911.8387932 | G129: 766.971278 | H129: 757.1592911 | I129: 789.352661 | J129: 801.1867124 | K129: 833.6406279 | L129: 876.7480215 | O129: -0.01279316081 | P129: 0.04251862227 | Q129: 0.01499209664 | R129: 0.04050730625 | S129: 0.05170980414 | T129: =+#REF!/L129-1 -> 
B130: T2 | C130: [$/MWh] | E130: 911.8387932 | F130: 911.8387932 | G130: 766.971278 | H130: 757.1592911 | I130: 789.352661 | J130: 801.1867124 | K130: 833.6406279 | L130: 876.7480215 | O130: -0.01279316081 | P130: 0.04251862227 | Q130: 0.01499209664 | R130: 0.04050730625 | S130: 0.05170980414 | T130: =+#REF!/L130-1 -> 
B131: T3 Grandes Demandas < 300 kW | C131: [$/MWh] | E131: 903.4569831 | F131: 903.4569831 | G131: 768.1770762 | H131: 738.3339677 | I131: 741.1050119 | J131: 732.0590643 | K131: 744.8129127 | L131: 767.7875231 | O131: -0.0388492567 | P131: 0.003753103968 | Q131: -0.01220602669 | R131: 0.0174218844 | S131: 0.03084614944 | T131: =+#REF!/L131-1 -> 
B132: T3BT < 300 kW | C132: [$/MWh] | E132: 1014.863813 | F132: 1014.863813 | G132: 832.4353041 | H132: 792.7486612 | I132: 798.5494055 | J132: 786.4746763 | K132: 797.8204578 | L132: 819.9779052 | O132: -0.04767534819 | P132: 0.007317255313 | Q132: -0.01512082926 | R132: 0.01442612437 | S132: 0.02777247339 | T132: =+#REF!/L132-1 -> 
B133: T3MT < 300 kW | C133: [$/MWh] | E133: 395.1460567 | F133: 395.1460567 | G133: 400.3206389 | H133: 408.2832565 | I133: 403.5772191 | J133: 408.7203931 | K133: 426.7668854 | L133: 451.7717012 | O133: 0.01989059969 | P133: -0.01152640316 | Q133: 0.01274396533 | R133: 0.04415363792 | S133: 0.05859127474 | T133: =+#REF!/L133-1 -> 
B134: T3AT < 300 kW | C134: [$/MWh]
B135: PJ Servicio de Peaje < 300 kW | C135: [$/MWh] | E135: 186.3410961 | F135: 186.3410961 | G135: 181.01134 | H135: 182.0585932 | I135: 179.2659187 | J135: 177.5224074 | K135: 180.054673 | L135: 184.3227073 | O135: =+H135/G135-1 -> 0.00578556663 | P135: -0.01533942695 | Q135: -0.009725838127 | R135: 0.0142644845 | S135: 0.02370410178 | T135: =+#REF!/L135-1 -> 
B136: PJBT < 300 kW | C136: [$/MWh] | E136: 666.1431039 | F136: 666.1431039 | G136: 543.3501452 | H136: 517.8137875 | I136: 520.0433137 | J136: 508.2376448 | K136: 509.2818752 | L136: 515.4029007 | O136: -0.04699797718 | P136: 0.004305652609 | Q136: -0.02270131851 | R136: 0.002054610446 | S136: 0.0120189344 | T136: =+#REF!/L136-1 -> 
B137: PJMT < 300 kW | C137: [$/MWh] | E137: 67.32333995 | F137: 67.32333995 | G137: 68.24057406 | H137: 71.34032262 | I137: 70.40681962 | J137: 70.68572248 | K137: 72.66066218 | L137: 75.33346897 | O137: 0.04542383472 | P137: -0.0130852085 | Q137: 0.003961304562 | R137: 0.02793972578 | S137: 0.03678478433 | T137: =+#REF!/L137-1 -> 
B138: PJAT < 300 kW | C138: [$/MWh]
B139: T3 Grandes Demandas > 300 kW | C139: [$/MWh] | E139: =+E100/E179 -> 379.2149566 | F139: 379.2149566 | G139: 365.333205 | H139: 366.5822803 | I139: 368.3881992 | J139: 381.5642787 | K139: 411.9213602 | L139: 453.5332299
B140: T3BT > 300 kW | C140: [$/MWh] | E140: 892.8665353 | F140: 892.8665353 | G140: 722.7370579 | H140: 689.5877321 | I140: 702.1777733 | J140: 704.5796451 | K140: 732.8396703 | L140: 775.8279662 | O140: =+H140/G140-1 -> -0.04586637068 | P140: 0.01825734521 | Q140: 0.003420603505 | R140: 0.04010905712 | S140: 0.05865989198 | T140: =+#REF!/L140-1 -> 
B141: T3MT > 300 kW | C141: [$/MWh] | E141: 299.5786282 | F141: 299.5786282 | G141: 298.3449627 | H141: 303.1530464 | I141: 304.3843554 | J141: 319.0382342 | K141: 349.300724 | L141: 390.1738843 | O141: 0.01611585332 | P141: 0.004061674687 | Q141: 0.04814268045 | R141: 0.09485537007 | S141: 0.1170142444 | T141: =+#REF!/L141-1 -> 
B142: T3AT > 300 kW | C142: [$/MWh] | E142: 117.9366652 | F142: 117.9366652 | G142: 104.9829811 | H142: 108.8210549 | I142: 123.2598915 | J142: 142.7165774 | K142: 172.8893198 | L142: 211.640635 | O142: 0.03655900935 | P142: 0.1326842184 | Q142: 0.1578509091 | R142: 0.2114172223 | S142: 0.2241394389 | T142: =+#REF!/L142-1 -> 
B143: PJ Servicio de Peaje > 300 kW | C143: [$/MWh] | E143: 289.6393675 | F143: 289.6393675 | G143: 280.9407354 | H143: 283.0801167 | I143: 278.3594133 | J143: 276.7785284 | K143: 281.6742654 | L143: 289.405488
B144: PJBT > 300 kW | C144: [$/MWh] | E144: 1021.503738 | F144: 1021.503738 | G144: 827.2774799 | H144: 788.2625566 | I144: 793.3501292 | J144: 776.9435081 | K144: 780.0805366 | L144: 791.2266427 | O144: =+H144/G144-1 -> -0.04716062535 | P144: 0.006454159871 | Q144: -0.02068017703 | R144: 0.004037653223 | S144: 0.01428840437 | T144: =+#REF!/L144-1 -> 
B145: PJMT > 300 kW | C145: [$/MWh] | E145: 268.2468769 | F145: 268.2468769 | G145: 266.2914555 | H145: 270.408083 | I145: 265.2191709 | J145: 264.3607572 | K145: 269.6254163 | L145: 277.6019701 | O145: 0.01545910456 | P145: -0.01918919004 | Q145: -0.003236619985 | R145: 0.01991467714 | S145: 0.02958383464 | T145: =+#REF!/L145-1 -> 
B146: PJAT > 300 kW | C146: [$/MWh] | E146: 37.88452093 | F146: 37.88452093 | G146: 33.75919512 | H146: 34.76831727 | I146: 36.58382468 | J146: 37.6831445 | K146: 39.49884547 | L146: 41.73087466 | O146: 0.0298917714 | P146: 0.05221729306 | Q146: 0.03004934086 | R146: 0.04818337199 | S146: 0.05650871987 | T146: =+#REF!/L146-1 -> 
B148: TOTAL | C148: [$/MWh] | E148: =+E109/E188 -> 683.3214827 | F148: 683.3214827 | G148: 658.5180219 | H148: 657.1396288 | I148: 662.5874849 | J148: 675.020824 | K148: 701.7060732 | L148: 738.0206028 | O148: =+H148/G148-1 -> -0.002093174489 | P148: =+I148/H148-1 -> 0.008290256504 | Q148: =+J148/I148-1 -> 0.01876482642 | R148: =+K148/J148-1 -> 0.03953248293 | S148: =+L148/K148-1 -> 0.05175176759 | T148: =+#REF!/L148-1 -> 
B150: CLIENTES FINALES | C150: [$/MWh] | E150: =+E111/E190 -> 764.7399382 | F150: 764.7399382 | G150: 737.7558253 | H150: 733.4919471 | I150: 741.7920209 | J150: 758.315928 | K150: 789.666232 | L150: 832.0874011 | O150: =+H150/G150-1 -> -0.005779524864 | P150: =+I150/H150-1 -> 0.01131583496 | Q150: =+J150/I150-1 -> 0.02227566026 | R150: =+K150/J150-1 -> 0.04134200918 | S150: =+L150/K150-1 -> 0.05372037875 | T150: =+#REF!/L150-1 -> 
B152: PEAJE | C152: [$/MWh] | E152: =+E113/E192 -> 272.9171749 | F152: 272.9171749 | G152: 264.4741901 | H152: 266.3428871 | I152: 262.0064115 | J152: 260.3881262 | K152: 264.8841535 | L152: 272.0339534 | O152: =+H152/G152-1 -> 0.007065706693 | P152: =+I152/H152-1 -> -0.01628155237 | Q152: =+J152/I152-1 -> -0.006176510052 | R152: =+K152/J152-1 -> 0.01726663697 | S152: =+L152/K152-1 -> 0.02699217676 | T152: =+#REF!/L152-1 -> 
B155: Valores físicos
E158: =+'Proy Economica'!E$6 -> 2015 | F158: =+'Proy Economica'!F$6 -> Base | G158: =+'Proy Economica'!G$6 -> Año 1 | H158: =+'Proy Economica'!H$6 -> Año 2 | I158: =+'Proy Economica'!I$6 -> Año 3 | J158: =+'Proy Economica'!J$6 -> Año 4 | K158: =+'Proy Economica'!K$6 -> Año 5 | L158: =+'Proy Economica'!L$6 -> Año 6
B159: T1 Residencial | C159: [MWh] | E159: =SUM(E160:E162) -> 7775133 | F159: 7775133 | G159: 7407266.904 | H159: 7729585.631 | I159: 8145599.376 | J159: 8273931.487 | K159: 8513795.463 | L159: 8747968.299 | O159: =+H159/G159-1 -> 0.0435138535
B160: T1R1 | C160: [MWh] | E160: =T1R!E$12/1000 -> 675737.584 | F160: =T1R!F$12/1000 -> 675737.584 | G160: =T1R!G$12/1000 -> 643766.305 | H160: =T1R!H$12/1000 -> 671779.0577 | I160: =T1R!I$12/1000 -> 707934.8537 | J160: =T1R!J$12/1000 -> 719088.2103 | K160: =T1R!K$12/1000 -> 739934.8124 | L160: =T1R!L$12/1000 -> 760286.7969 | O160: =+H160/G160-1 -> 0.0435138535
B161: T1R2 | C161: [MWh] | E161: =T1R!E$14/1000 -> 4275874.298 | F161: =T1R!F$14/1000 -> 4275874.298 | G161: =T1R!G$14/1000 -> 4073569.182 | H161: =T1R!H$14/1000 -> 4250825.874 | I161: =T1R!I$14/1000 -> 4479609.418 | J161: =T1R!J$14/1000 -> 4550184.67 | K161: =T1R!K$14/1000 -> 4682096.01 | L161: =T1R!L$14/1000 -> 4810877.551 | O161: 0.0435138535
B162: T1R3 | C162: [MWh] | E162: =T1R!E$17/1000 -> 2823521.118 | F162: =T1R!F$17/1000 -> 2823521.118 | G162: =T1R!G$17/1000 -> 2689931.418 | H162: =T1R!H$17/1000 -> 2806980.699 | I162: =T1R!I$17/1000 -> 2958055.105 | J162: =T1R!J$17/1000 -> 3004658.606 | K162: =T1R!K$17/1000 -> 3091764.641 | L162: =T1R!L$17/1000 -> 3176803.951 | O162: 0.0435138535
B163: T1 General | C163: [MWh] | E163: =SUM(E164:E166) -> 1950332 | F163: 1950332 | G163: 2072143.932 | H163: 2175786.212 | I163: 2191926.142 | J163: 2294788.744 | K163: 2368636.552 | L163: 2442218.524 | O163: 0.05001693105
B164: T1G1 | C164: [MWh] | E164: =T1G!E$12/1000 -> 637890.8277 | F164: =T1G!F$12/1000 -> 637890.8277 | G164: =T1G!G$12/1000 -> 677731.5903 | H164: =T1G!H$12/1000 -> 711629.6445 | I164: =T1G!I$12/1000 -> 716908.4962 | J164: =T1G!J$12/1000 -> 750551.5426 | K164: =T1G!K$12/1000 -> 774704.7839 | L164: =T1G!L$12/1000 -> 798771.0786 | O164: 0.05001693105
B165: T1G2 | C165: [MWh] | E165: =T1G!E$14/1000 -> 658438.4 | F165: =T1G!F$14/1000 -> 658438.4 | G165: =T1G!G$14/1000 -> 699562.5029 | H165: =T1G!H$14/1000 -> 734552.4724 | I165: =T1G!I$14/1000 -> 740001.365 | J165: =T1G!J$14/1000 -> 774728.1124 | K165: =T1G!K$14/1000 -> 799659.3716 | L165: =T1G!L$14/1000 -> 824500.8835 | O165: 0.05001693105
B166: T1G3 | C166: [MWh] | E166: =T1G!E$17/1000 -> 654002.7723 | F166: =T1G!F$17/1000 -> 654002.7723 | G166: =T1G!G$17/1000 -> 694849.8391 | H166: =T1G!H$17/1000 -> 729604.0956 | I166: =T1G!I$17/1000 -> 735016.2813 | J166: =T1G!J$17/1000 -> 769509.0889 | K166: =T1G!K$17/1000 -> 794272.3965 | L166: =T1G!L$17/1000 -> 818946.5614 | O166: 0.05001693105
B167: T1 Alumbrado Público | C167: [MWh] | E167: =SUM(E168) -> 501238.9991 | F167: 501238.9991 | G167: 512011.0743 | H167: 542615.9776 | I167: 551462.3453 | J167: 581857.5022 | K167: 604654.7355 | L167: 627419.1627 | O167: 0.05977390882
B168: T1AP | C168: [MWh] | E168: =T1AP!E10/1000 -> 501238.9991 | F168: =T1AP!F10/1000 -> 501238.9991 | G168: =T1AP!G10/1000 -> 512011.0743 | H168: =T1AP!H10/1000 -> 542615.9776 | I168: =T1AP!I10/1000 -> 551462.3453 | J168: =T1AP!J10/1000 -> 581857.5022 | K168: =T1AP!K10/1000 -> 604654.7355 | L168: =T1AP!L10/1000 -> 627419.1627 | O168: 0.05977390882
B169: T2 Mediana Demanda | C169: [MWh] | E169: =SUM(E170) -> 1327984 | F169: 1327984 | G169: 1466270.681 | H169: 1518039.773 | I169: 1508484.385 | J169: 1559775.571 | K169: 1592386.052 | L169: 1624666.46 | O169: 0.03530664085
B170: T2 | C170: [MWh] | E170: ='T2'!E14/1000 -> 1327984 | F170: ='T2'!F14/1000 -> 1327984 | G170: ='T2'!G14/1000 -> 1466270.681 | H170: ='T2'!H14/1000 -> 1518039.773 | I170: ='T2'!I14/1000 -> 1508484.385 | J170: ='T2'!J14/1000 -> 1559775.571 | K170: ='T2'!K14/1000 -> 1592386.052 | L170: ='T2'!L14/1000 -> 1624666.46 | O170: 0.03530664085
B171: T3 Grandes Demandas < 300 kW | C171: [MWh] | E171: =SUM(E172:E174) -> 1473353.362 | F171: 1473353.362 | G171: 1783716.554 | H171: 1880725.506 | I171: 1926063.495 | J171: 2034432.569 | K171: 2116118.906 | L171: 2197707.335 | O171: 0.05438585633
B172: T3BT | C172: [MWh] | E172: =('T3BT<'!E$10+'T3BT<'!E$12+'T3BT<'!E$14)/1000 -> 1208488.228 | F172: =('T3BT<'!F10+'T3BT<'!F12+'T3BT<'!F14)/1000 -> 1208488.228 | G172: =('T3BT<'!G10+'T3BT<'!G12+'T3BT<'!G14)/1000 -> 1518466.438 | H172: =('T3BT<'!H10+'T3BT<'!H12+'T3BT<'!H14)/1000 -> 1614540.043 | I172: =('T3BT<'!I10+'T3BT<'!I12+'T3BT<'!I14)/1000 -> 1645938.582 | J172: =('T3BT<'!J10+'T3BT<'!J12+'T3BT<'!J14)/1000 -> 1741371.978 | K172: =('T3BT<'!K10+'T3BT<'!K12+'T3BT<'!K14)/1000 -> 1813816.822 | L172: =('T3BT<'!L10+'T3BT<'!L12+'T3BT<'!L14)/1000 -> 1886199.315 | O172: 0.06327015358
B173: T3MT | C173: [MWh] | E173: =('T3MT<'!E$10+'T3MT<'!E$12+'T3MT<'!E$14)/1000 -> 264865.1346 | F173: =('T3MT<'!F10+'T3MT<'!F12+'T3MT<'!F14)/1000 -> 264865.1346 | G173: =('T3MT<'!G10+'T3MT<'!G12+'T3MT<'!G14)/1000 -> 265250.1158 | H173: =('T3MT<'!H10+'T3MT<'!H12+'T3MT<'!H14)/1000 -> 266185.4632 | I173: =('T3MT<'!I10+'T3MT<'!I12+'T3MT<'!I14)/1000 -> 280124.9136 | J173: =('T3MT<'!J10+'T3MT<'!J12+'T3MT<'!J14)/1000 -> 293060.5904 | K173: =('T3MT<'!K10+'T3MT<'!K12+'T3MT<'!K14)/1000 -> 302302.0843 | L173: =('T3MT<'!L10+'T3MT<'!L12+'T3MT<'!L14)/1000 -> 311508.02 | O173: 0.003526284918
B174: T3AT | C174: [MWh] | E174: =('T3AT<'!E$10+'T3AT<'!E$12+'T3AT<'!E$14)/1000 -> 0 | F174: =('T3AT<'!F10+'T3AT<'!F12+'T3AT<'!F14)/1000 -> 0 | G174: =('T3AT<'!G10+'T3AT<'!G12+'T3AT<'!G14)/1000 -> 0 | H174: =('T3AT<'!H10+'T3AT<'!H12+'T3AT<'!H14)/1000 -> 0 | I174: =('T3AT<'!I10+'T3AT<'!I12+'T3AT<'!I14)/1000 -> 0 | J174: =('T3AT<'!J10+'T3AT<'!J12+'T3AT<'!J14)/1000 -> 0 | K174: =('T3AT<'!K10+'T3AT<'!K12+'T3AT<'!K14)/1000 -> 0 | L174: =('T3AT<'!L10+'T3AT<'!L12+'T3AT<'!L14)/1000 -> 0
B175: PJ Servicio de Peaje < 300 kW | C175: [MWh] | E175: =SUM(E176:E178) -> 478402.9618 | F175: 478402.9618 | G175: 503349.3529 | H175: 512262.1264 | I175: 534906.051 | J175: 561135.587 | K175: 580210.0713 | L175: 599228.1895 | O175: 0.01770693343
B176: PJBT | C176: [MWh] | E176: =('PJBT<'!E$10+'PJBT<'!E$12+'PJBT<'!E$14)/1000 -> 95084.44859 | F176: =('PJBT<'!F10+'PJBT<'!F12+'PJBT<'!F14)/1000 -> 95084.44859 | G176: =('PJBT<'!G10+'PJBT<'!G12+'PJBT<'!G14)/1000 -> 119473.6868 | H176: =('PJBT<'!H10+'PJBT<'!H12+'PJBT<'!H14)/1000 -> 127032.8053 | I176: =('PJBT<'!I10+'PJBT<'!I12+'PJBT<'!I14)/1000 -> 129503.2578 | J176: =('PJBT<'!J10+'PJBT<'!J12+'PJBT<'!J14)/1000 -> 137012.0044 | K176: =('PJBT<'!K10+'PJBT<'!K12+'PJBT<'!K14)/1000 -> 142712.0003 | L176: =('PJBT<'!L10+'PJBT<'!L12+'PJBT<'!L14)/1000 -> 148407.0905 | O176: 0.06327015358
B177: PJMT | C177: [MWh] | E177: =('PJMT<'!E$10+'PJMT<'!E$12+'PJMT<'!E$14)/1000 -> 383318.5132 | F177: =('PJMT<'!F10+'PJMT<'!F12+'PJMT<'!F14)/1000 -> 383318.5132 | G177: =('PJMT<'!G10+'PJMT<'!G12+'PJMT<'!G14)/1000 -> 383875.6662 | H177: =('PJMT<'!H10+'PJMT<'!H12+'PJMT<'!H14)/1000 -> 385229.3211 | I177: =('PJMT<'!I10+'PJMT<'!I12+'PJMT<'!I14)/1000 -> 405402.7932 | J177: =('PJMT<'!J10+'PJMT<'!J12+'PJMT<'!J14)/1000 -> 424123.5826 | K177: =('PJMT<'!K10+'PJMT<'!K12+'PJMT<'!K14)/1000 -> 437498.071 | L177: =('PJMT<'!L10+'PJMT<'!L12+'PJMT<'!L14)/1000 -> 450821.099 | O177: 0.003526284918
B178: PJAT | C178: [MWh] | E178: =('PJAT<'!E$10+'PJAT<'!E$12+'PJAT<'!E$14)/1000 -> 0 | F178: =('PJAT<'!F10+'PJAT<'!F12+'PJAT<'!F14)/1000 -> 0 | G178: =('PJAT<'!G10+'PJAT<'!G12+'PJAT<'!G14)/1000 -> 0 | H178: =('PJAT<'!H10+'PJAT<'!H12+'PJAT<'!H14)/1000 -> 0 | I178: =('PJAT<'!I10+'PJAT<'!I12+'PJAT<'!I14)/1000 -> 0 | J178: =('PJAT<'!J10+'PJAT<'!J12+'PJAT<'!J14)/1000 -> 0 | K178: =('PJAT<'!K10+'PJAT<'!K12+'PJAT<'!K14)/1000 -> 0 | L178: =('PJAT<'!L10+'PJAT<'!L12+'PJAT<'!L14)/1000 -> 0
B179: T3 Grandes Demandas > 300 kW | C179: [MWh] | E179: =SUM(E180:E182) -> 1868407.27 | F179: 1868407.27 | G179: 1949101.974 | H179: 1978522.95 | I179: 2069732.312 | J179: 2170509.048 | K179: 2243647.622 | L179: 2316562.706 | O179: 0.01509463128
B180: T3BT | C180: [MWh] | E180: =('T3BT>'!E$10+'T3BT>'!E$12+'T3BT>'!E$14)/1000 -> 259986.3257 | F180: =('T3BT>'!F$10+'T3BT>'!F$12+'T3BT>'!F$14)/1000 -> 259986.3257 | G180: =('T3BT>'!G$10+'T3BT>'!G$12+'T3BT>'!G$14)/1000 -> 326673.0291 | H180: =('T3BT>'!H$10+'T3BT>'!H$12+'T3BT>'!H$14)/1000 -> 347341.6818 | I180: =('T3BT>'!I$10+'T3BT>'!I$12+'T3BT>'!I$14)/1000 -> 354096.56 | J180: =('T3BT>'!J$10+'T3BT>'!J$12+'T3BT>'!J$14)/1000 -> 374627.4825 | K180: =('T3BT>'!K$10+'T3BT>'!K$12+'T3BT>'!K$14)/1000 -> 390212.7966 | L180: =('T3BT>'!L$10+'T3BT>'!L$12+'T3BT>'!L$14)/1000 -> 405784.6971 | O180: 0.06327015358
B181: T3MT | C181: [MWh] | E181: =('T3MT>'!E$10+'T3MT>'!E$12+'T3MT>'!E$14)/1000 -> 1578396.78 | F181: =('T3MT>'!F$10+'T3MT>'!F$12+'T3MT>'!F$14)/1000 -> 1578396.78 | G181: =('T3MT>'!G$10+'T3MT>'!G$12+'T3MT>'!G$14)/1000 -> 1580690.978 | H181: =('T3MT>'!H$10+'T3MT>'!H$12+'T3MT>'!H$14)/1000 -> 1586264.945 | I181: =('T3MT>'!I$10+'T3MT>'!I$12+'T3MT>'!I$14)/1000 -> 1669333.573 | J181: =('T3MT>'!J$10+'T3MT>'!J$12+'T3MT>'!J$14)/1000 -> 1746420.468 | K181: =('T3MT>'!K$10+'T3MT>'!K$12+'T3MT>'!K$14)/1000 -> 1801492.813 | L181: =('T3MT>'!L$10+'T3MT>'!L$12+'T3MT>'!L$14)/1000 -> 1856353.259 | O181: 0.003526284918
B182: T3AT | C182: [MWh] | E182: =('T3AT>'!E$10+'T3AT>'!E$12+'T3AT>'!E$14)/1000 -> 30024.16388 | F182: =('T3AT>'!F$10+'T3AT>'!F$12+'T3AT>'!F$14)/1000 -> 30024.16388 | G182: =('T3AT>'!G$10+'T3AT>'!G$12+'T3AT>'!G$14)/1000 -> 41737.96711 | H182: =('T3AT>'!H$10+'T3AT>'!H$12+'T3AT>'!H$14)/1000 -> 44916.32326 | I182: =('T3AT>'!I$10+'T3AT>'!I$12+'T3AT>'!I$14)/1000 -> 46302.17877 | J182: =('T3AT>'!J$10+'T3AT>'!J$12+'T3AT>'!J$14)/1000 -> 49461.09811 | K182: =('T3AT>'!K$10+'T3AT>'!K$12+'T3AT>'!K$14)/1000 -> 51942.01226 | L182: =('T3AT>'!L$10+'T3AT>'!L$12+'T3AT>'!L$14)/1000 -> 54424.75085 | O182: 0.07615023841
B183: PJ Servicio de Peaje > 300 kW | C183: [MWh] | E183: =SUM(E184:E186) -> 2476843.406 | F183: 2476843.406 | G183: 2551292.379 | H183: 2579617.58 | I183: 2706438.279 | J183: 2836959.297 | K183: 2931422.912 | L183: 3025584.8 | O183: 0.01110229512
B184: PJBT | C184: [MWh] | E184: =('PJBT>'!E$10+'PJBT>'!E$12+'PJBT>'!E$14)/1000 -> 105012.9981 | F184: =('PJBT>'!F$10+'PJBT>'!F$12+'PJBT>'!F$14)/1000 -> 105012.9981 | G184: =('PJBT>'!G$10+'PJBT>'!G$12+'PJBT>'!G$14)/1000 -> 131948.9173 | H184: =('PJBT>'!H$10+'PJBT>'!H$12+'PJBT>'!H$14)/1000 -> 140297.3456 | I184: =('PJBT>'!I$10+'PJBT>'!I$12+'PJBT>'!I$14)/1000 -> 143025.7584 | J184: =('PJBT>'!J$10+'PJBT>'!J$12+'PJBT>'!J$14)/1000 -> 151318.555 | K184: =('PJBT>'!K$10+'PJBT>'!K$12+'PJBT>'!K$14)/1000 -> 157613.7344 | L184: =('PJBT>'!L$10+'PJBT>'!L$12+'PJBT>'!L$14)/1000 -> 163903.4958 | O184: 0.06327015358
B185: PJMT | C185: [MWh] | E185: =('PJMT>'!E$10+'PJMT>'!E$12+'PJMT>'!E$14)/1000 -> 2258461.572 | F185: =('PJMT>'!F$10+'PJMT>'!F$12+'PJMT>'!F$14)/1000 -> 2258461.572 | G185: =('PJMT>'!G$10+'PJMT>'!G$12+'PJMT>'!G$14)/1000 -> 2261744.243 | H185: =('PJMT>'!H$10+'PJMT>'!H$12+'PJMT>'!H$14)/1000 -> 2269719.798 | I185: =('PJMT>'!I$10+'PJMT>'!I$12+'PJMT>'!I$14)/1000 -> 2388579.205 | J185: =('PJMT>'!J$10+'PJMT>'!J$12+'PJMT>'!J$14)/1000 -> 2498879.6 | K185: =('PJMT>'!K$10+'PJMT>'!K$12+'PJMT>'!K$14)/1000 -> 2577680.303 | L185: =('PJMT>'!L$10+'PJMT>'!L$12+'PJMT>'!L$14)/1000 -> 2656177.807 | O185: 0.003526284918
B186: PJAT | C186: [MWh] | E186: =('PJAT>'!E$10+'PJAT>'!E$12+'PJAT>'!E$14)/1000 -> 113368.8361 | F186: =('PJAT>'!F$10+'PJAT>'!F$12+'PJAT>'!F$14)/1000 -> 113368.8361 | G186: =('PJAT>'!G$10+'PJAT>'!G$12+'PJAT>'!G$14)/1000 -> 157599.2182 | H186: =('PJAT>'!H$10+'PJAT>'!H$12+'PJAT>'!H$14)/1000 -> 169600.4362 | I186: =('PJAT>'!I$10+'PJAT>'!I$12+'PJAT>'!I$14)/1000 -> 174833.3155 | J186: =('PJAT>'!J$10+'PJAT>'!J$12+'PJAT>'!J$14)/1000 -> 186761.1417 | K186: =('PJAT>'!K$10+'PJAT>'!K$12+'PJAT>'!K$14)/1000 -> 196128.8747 | L186: =('PJAT>'!L$10+'PJAT>'!L$12+'PJAT>'!L$14)/1000 -> 205503.4966 | O186: 0.07615023841
B188: Energía Distribuida TOTAL | C188: [MWh] | E188: =E159+E163+E167+E169+E171+E175+E179+E183 -> 17851695 | F188: 17851695 | G188: 18245152.85 | H188: 18917155.76 | I188: 19634612.39 | J188: 20313389.81 | K188: 20950872.31 | L188: 21581355.48 | O188: 0.03683185942
B189: Variacion Anual | G189: =(G188/F188)-1 -> 0.02204036381 | H189: 0.03683185942 | I189: 0.03792624215 | J189: 0.03457045169 | K189: 0.03138237952 | L189: 0.03009340867
B190: Venta a CLIENTES FINALES | C190: [MWh] | E190: =E159+E163+E167+E169+E171+E179 -> 14896448.63 | F190: 14896448.63 | G190: 15190511.12 | H190: 15825276.05 | I190: 16393268.06 | J190: 16915294.92 | K190: 17439239.33 | L190: 17956542.49
B192: PEAJE | C192: [MWh] | E192: =E175+E183 -> 2955246.368 | F192: 2955246.368 | G192: 3054641.732 | H192: 3091879.706 | I192: 3241344.33 | J192: 3398094.884 | K192: 3511632.983 | L192: 3624812.989
B194: Compra Total | C194: [MWh] | E194: ='Proy Abastecimiento'!F136 -> 17486781.57 | F194: ='Proy Abastecimiento'!F136 -> 17486781.57 | G194: ='Proy Abastecimiento'!G136 -> 17927119.22 | H194: ='Proy Abastecimiento'!H136 -> 18572680.24 | I194: ='Proy Abastecimiento'!I136 -> 19115577.89 | J194: ='Proy Abastecimiento'!J136 -> 19618014.51 | K194: ='Proy Abastecimiento'!K136 -> 20154082.62 | L194: ='Proy Abastecimiento'!L136 -> 20687456.77
B196: Energía Ingresada a la Red | C196: [MWh] | E196: =E194+E192 -> 20442027.94 | F196: 20442027.94 | G196: 20981760.95 | H196: 21664559.95 | I196: 22356922.22 | J196: 23016109.4 | K196: 23665715.6 | L196: 24312269.76
B198: Tarifa Media
E201: =+'Proy Economica'!E$6 -> 2015 | F201: =+'Proy Economica'!F$6 -> Base | G201: =+'Proy Economica'!G$6 -> Año 1 | H201: =+'Proy Economica'!H$6 -> Año 2 | I201: =+'Proy Economica'!I$6 -> Año 3 | J201: =+'Proy Economica'!J$6 -> Año 4 | K201: =+'Proy Economica'!K$6 -> Año 5 | L201: =+'Proy Economica'!L$6 -> Año 6
B202: T1 Residencial | C202: [$/MWh] | E202: =E8/E159 -> 1189.013663 | F202: 1189.013663 | G202: 1199.816059 | H202: 1194.388843 | I202: 1197.069919 | J202: 1219.350434 | K202: 1252.554606 | L202: 1297.350302
B203: T1R1 | C203: [$/MWh] | E203: 1700.854328 | F203: 1700.854328 | G203: 1744.953696 | H203: 1722.797796 | I203: 1705.637694 | J203: 1733.620982 | K203: 1770.753326 | L203: 1824.446604
B204: T1R2 | C204: [$/MWh] | E204: 1176.60981 | F204: 1176.60981 | G204: 1187.402044 | H204: 1181.979933 | I204: 1184.557896 | J204: 1206.592062 | K204: 1239.412747 | L204: 1283.70396
B205: T1R3 | C205: [$/MWh] | E205: 1085.301793 | F205: 1085.301793 | G205: 1088.150796 | H205: 1086.719433 | I205: 1094.305141 | J205: 1115.593908 | K205: 1148.438715 | L205: 1191.86898
B206: T1 General | C206: [$/MWh] | E206: 1143.936288 | F206: 1143.936288 | G206: 1140.974885 | H206: 1138.252601 | I206: 1148.250748 | J206: 1168.479667 | K206: 1202.29897 | L206: 1247.180205
B207: T1G1 | C207: [$/MWh] | E207: 1237.872129 | F207: 1237.872129 | G207: 1227.214562 | H207: 1217.417541 | I207: 1227.737796 | J207: 1243.040103 | K207: 1274.88866 | L207: 1318.461987
B208: T1G2 | C208: [$/MWh] | E208: 1088.910911 | F208: 1088.910911 | G208: 1089.792088 | H208: 1090.602115 | I208: 1100.36702 | J208: 1122.893461 | K208: 1157.443133 | L208: 1202.644535
B209: T1G3 | C209: [$/MWh] | E209: 1107.713216 | F209: 1107.713216 | G209: 1108.389733 | H209: 1109.011624 | I209: 1118.930423 | J209: 1141.65148 | K209: 1176.657653 | L209: 1222.492237
B210: T1 Alumbrado Público | C210: [$/MWh] | E210: 1258.922188 | F210: 1258.922188 | G210: 1258.922188 | H210: 1258.922188 | I210: 1270.14349 | J210: 1295.286492 | K210: 1334.581403 | L210: 1386.157532
B211: T1AP | C211: [$/MWh] | E211: 1258.922188 | F211: 1258.922188 | G211: 1258.922188 | H211: 1258.922188 | I211: 1270.14349 | J211: 1295.286492 | K211: 1334.581403 | L211: 1386.157532
B212: T2 Mediana Demanda | C212: [$/MWh] | E212: 1296.854617 | F212: 1296.854617 | G212: 1154.042362 | H212: 1141.64555 | I212: 1171.187876 | J212: 1180.708201 | K212: 1211.64682 | L212: 1253.4292
B213: T2 | C213: [$/MWh] | E213: 1296.854617 | F213: 1296.854617 | G213: 1154.042362 | H213: 1141.64555 | I213: 1171.187876 | J213: 1180.708201 | K213: 1211.64682 | L213: 1253.4292
B214: T3 Grandes Demandas < 300 kW | C214: [$/MWh] | E214: 1281.460798 | F214: 1281.460798 | G214: 1149.225895 | H214: 1117.468919 | I214: 1117.811791 | J214: 1106.839166 | K214: 1118.336817 | L214: 1140.212619
B215: T3BT | C215: [$/MWh] | E215: 1400.363072 | F215: 1400.363072 | G215: 1219.992425 | H215: 1177.717771 | I215: 1180.864131 | J215: 1166.472744 | K215: 1176.301316 | L215: 1197.132075
B216: T3MT | C216: [$/MWh] | E216: 738.9507431 | F216: 738.9507431 | G216: 744.111651 | H216: 752.0312945 | I216: 747.333211 | J216: 752.495234 | K216: 770.548991 | L216: 795.5619795
B217: T3AT | C217: [$/MWh] | E217: =IF(E174=0,"",E23/E174) -> 
B218: PJ Servicio de Peaje < 300 kW | C218: [$/MWh] | E218: =E24/E175 -> 210.2821578 | F218: 210.2821578 | G218: 207.0273133 | H218: 207.9002465 | I218: 204.225528 | J218: 201.9914809 | K218: 204.2134299 | L218: 208.2093977
B219: PJBT | C219: [$/MWh] | E219: 722.9687681 | F219: 722.9687681 | G219: 602.2445569 | H219: 574.1638348 | I219: 573.7341632 | J219: 559.5962882 | K219: 559.1179673 | L219: 563.9058977
B220: PJMT | C220: [$/MWh] | E220: 83.10717936 | F220: 83.10717936 | G220: 84.02378556 | H220: 87.12156076 | I220: 86.18842301 | J220: 86.4681914 | K220: 88.44346469 | L220: 91.11664677
B221: PJAT | C221: [$/MWh] | E221: =IF(E27=0,"",E27/E178) -> 
B222: T3 Grandes Demandas > 300 kW | C222: [$/MWh] | E222: =E28/E179 -> 1209.615012 | F222: 1209.615012 | G222: 1199.194935 | H222: 1200.127019 | I222: 1200.434131 | J222: 1212.79791 | K222: 1242.635379 | L222: 1283.792734
B223: T3BT | C223: [$/MWh] | E223: 1808.121501 | F223: 1808.121501 | G223: 1642.898957 | H223: 1603.671035 | I223: 1609.946284 | J223: 1606.818896 | K223: 1631.465601 | L223: 1671.291644
B224: T3MT | C224: [$/MWh] | E224: 1116.751985 | F224: 1116.751985 | G224: 1115.504645 | H224: 1120.269754 | I224: 1121.509017 | J224: 1136.181745 | K224: 1166.4515 | L224: 1207.332833
B225: T3AT | C225: [$/MWh] | E225: =IF(E182=0,"",E31/E182) -> 908.8972123 | F225: 908.8972123 | G225: 895.9302703 | H225: 899.7266789 | I225: 914.1732272 | J225: 933.648188 | K225: 963.8279738 | L225: 1002.587213
B226: PJ Servicio de Peaje > 300 kW | C226: [$/MWh] | E226: =E32/E183 -> 330.1513411 | F226: 330.1513411 | G226: 322.2167958 | H226: 324.2005131 | I226: 319.0262945 | J226: 317.1640604 | K226: 321.8750264 | L226: 329.4424446
B227: PJBT | C227: [$/MWh] | E227: 1156.498221 | F227: 1156.498221 | G227: 967.1896787 | H227: 922.1399329 | I227: 920.9080313 | J227: 898.9567193 | K227: 898.4751608 | L227: 906.4526743
B228: PJMT | C228: [$/MWh] | E228: 305.7651767 | F228: 305.7651767 | G228: 303.8091274 | H228: 307.9237815 | I228: 302.7352346 | J228: 301.8776865 | K228: 307.1426792 | L228: 315.1196082
B229: PJAT | C229: [$/MWh] | E229: =IF(E35=0,"",E35/E186) -> 50.51586692 | F229: 50.51586692 | G229: 46.39032968 | H229: 47.39878735 | I229: 49.21441775 | J229: 50.31402901 | K229: 52.12984231 | L229: 54.36199787
B231: TOTAL | C231: [$/MWh] | E231: =E37/E188 -> 1058.468052 | F231: 1058.468052 | G231: 1035.993806 | H231: 1033.128022 | I231: 1036.185874 | J231: 1046.740733 | K231: 1072.259963 | L231: 1107.554765
B233: CLIENTES FINALES | C233: [$/MWh] | E233: =E39/E190 -> 1206.805494 | F233: 1206.805494 | G233: 1183.343264 | H233: 1175.400093 | I233: 1181.731518 | J233: 1197.125234 | K233: 1227.275035 | L233: 1268.674753
B235: PEAJE | C235: [$/MWh] | E235: =E41/E192 -> 310.7466062 | F235: 310.7466062 | G235: 303.235666 | H235: 304.9319039 | I235: 300.0811846 | J235: 298.1453351 | K235: 302.4343719 | L235: 309.4010633
... 84 more rows

Sheet Proy Abastecimiento
B3: Abastecimiento de Energía y Potencia
B6: COMPRA DE ENERGÍA EN PUNTA | F6: 2015 | G6: 2016 | H6: 2017 | I6: 2018 | J6: 2019 | K6: 2020 | L6: 2021
B7: T1 Residencial | C7: [MWh] | F7: =SUM(F8:F10) -> 2707865.855 | G7: =SUM(G8:G10) -> 2593622.276 | H7: 2688743.047 | I7: 2813851.971 | J7: 2840708.777 | K7: 2911329.603 | L7: 2980849.518
B8: T1R1 | C8: [MWh] | F8: =T1R!F12*KEPR1/1000*'Proyección Ingresos'!F$190 -> 234712.4397 | G8: =T1R!G12*KEPR1/1000*'Proyección Ingresos'!G$190 -> 224810.033 | H8: =T1R!H12*KEPR1/1000*'Proyección Ingresos'!H$190 -> 233054.9126 | I8: =T1R!I12*KEPR1/1000*'Proyección Ingresos'!I$190 -> 243899.106 | J8: =T1R!J12*KEPR1/1000*'Proyección Ingresos'!J$190 -> 246227.0006 | K8: =T1R!K12*KEPR1/1000*'Proyección Ingresos'!K$190 -> 252348.2737 | L8: =T1R!L12*KEPR1/1000*'Proyección Ingresos'!L$190 -> 258374.122
B9: T1R2 | C9: [MWh] | F9: =T1R!F14*KEPR2/1000*'Proyección Ingresos'!F$190 -> 1489548.405 | G9: =T1R!G14*KEPR2/1000*'Proyección Ingresos'!G$190 -> 1426705.064 | H9: =T1R!H14*KEPR2/1000*'Proyección Ingresos'!H$190 -> 1479029.292 | I9: =T1R!I14*KEPR2/1000*'Proyección Ingresos'!I$190 -> 1547849.466 | J9: =T1R!J14*KEPR2/1000*'Proyección Ingresos'!J$190 -> 1562622.913 | K9: =T1R!K14*KEPR2/1000*'Proyección Ingresos'!K$190 -> 1601470.162 | L9: =T1R!L14*KEPR2/1000*'Proyección Ingresos'!L$190 -> 1639711.819
B10: T1R3 | C10: [MWh] | F10: =T1R!F17*KEPR3/1000*'Proyección Ingresos'!F$190 -> 983605.0096 | G10: =T1R!G17*KEPR3/1000*'Proyección Ingresos'!G$190 -> 942107.1799 | H10: =T1R!H17*KEPR3/1000*'Proyección Ingresos'!H$190 -> 976658.842 | I10: =T1R!I17*KEPR3/1000*'Proyección Ingresos'!I$190 -> 1022103.399 | J10: =T1R!J17*KEPR3/1000*'Proyección Ingresos'!J$190 -> 1031858.864 | K10: =T1R!K17*KEPR3/1000*'Proyección Ingresos'!K$190 -> 1057511.168 | L10: =T1R!L17*KEPR3/1000*'Proyección Ingresos'!L$190 -> 1082763.577
B11: T1 General | C11: [MWh] | F11: =SUM(F12:F14) -> 543171.5297 | G11: =SUM(G12:G14) -> 580200.0808 | H11: 605227.2037 | I11: 605498.7477 | J11: 630037.8435 | K11: 647702.724 | L11: 665466.9709
B12: T1G1 | C12: [MWh] | F12: =T1G!F12*KEPG1/1000*'Proyección Ingresos'!F$190 -> 187691.6808 | G12: =T1G!G12*KEPG1/1000*'Proyección Ingresos'!G$190 -> 200486.8121 | H12: =T1G!H12*KEPG1/1000*'Proyección Ingresos'!H$190 -> 209134.8772 | I12: =T1G!I12*KEPG1/1000*'Proyección Ingresos'!I$190 -> 209228.7086 | J12: =T1G!J12*KEPG1/1000*'Proyección Ingresos'!J$190 -> 217708.1371 | K12: =T1G!K12*KEPG1/1000*'Proyección Ingresos'!K$190 -> 223812.1962 | L12: =T1G!L12*KEPG1/1000*'Proyección Ingresos'!L$190 -> 229950.5911
B13: T1G2 | C13: [MWh] | F13: =T1G!F14*KEPG2/1000*'Proyección Ingresos'!F$190 -> 188417.6566 | G13: =T1G!G14*KEPG2/1000*'Proyección Ingresos'!G$190 -> 201262.2783 | H13: =T1G!H14*KEPG2/1000*'Proyección Ingresos'!H$190 -> 209943.7934 | I13: =T1G!I14*KEPG2/1000*'Proyección Ingresos'!I$190 -> 210037.9878 | J13: =T1G!J14*KEPG2/1000*'Proyección Ingresos'!J$190 -> 218550.214 | K13: =T1G!K14*KEPG2/1000*'Proyección Ingresos'!K$190 -> 224677.883 | L13: =T1G!L14*KEPG2/1000*'Proyección Ingresos'!L$190 -> 230840.0208
B14: T1G3 | C14: [MWh] | F14: =T1G!F17*KEPG3/1000*'Proyección Ingresos'!F$190 -> 167062.1923 | G14: =T1G!G17*KEPG3/1000*'Proyección Ingresos'!G$190 -> 178450.9905 | H14: =T1G!H17*KEPG3/1000*'Proyección Ingresos'!H$190 -> 186148.5331 | I14: =T1G!I17*KEPG3/1000*'Proyección Ingresos'!I$190 -> 186232.0514 | J14: =T1G!J17*KEPG3/1000*'Proyección Ingresos'!J$190 -> 193779.4925 | K14: =T1G!K17*KEPG3/1000*'Proyección Ingresos'!K$190 -> 199212.6448 | L14: =T1G!L17*KEPG3/1000*'Proyección Ingresos'!L$190 -> 204676.3591
B15: T1 Alumbrado Público | C15: [MWh] | F15: =SUM(F16) -> 205802.1653 | G15: 211355.6465 | H15: 222521.2196 | I15: 224584.5262 | J15: 235514.2542 | K15: 243759.4094 | L15: 252044.0194
B16: T1AP | C16: [MWh] | F16: =T1AP!F10*KEPAP/1000*'Proyección Ingresos'!F$190 -> 205802.1653 | G16: =T1AP!G10*KEPAP/1000*'Proyección Ingresos'!G$190 -> 211355.6465 | H16: =T1AP!H10*KEPAP/1000*'Proyección Ingresos'!H$190 -> 222521.2196 | I16: =T1AP!I10*KEPAP/1000*'Proyección Ingresos'!I$190 -> 224584.5262 | J16: =T1AP!J10*KEPAP/1000*'Proyección Ingresos'!J$190 -> 235514.2542 | K16: =T1AP!K10*KEPAP/1000*'Proyección Ingresos'!K$190 -> 243759.4094 | L16: =T1AP!L10*KEPAP/1000*'Proyección Ingresos'!L$190 -> 252044.0194
B17: T2 Mediana Demanda | C17: [MWh] | F17: =SUM(F18) -> 325014.6085 | G17: 360789.263 | H17: 371079.4958 | I17: 366192.7478 | J17: 376328.9485 | K17: 382654.8734 | L17: 389034.2041
B18: T2 | C18: [MWh] | F18: ='T2'!F14*KEPT2/1000*'Proyección Ingresos'!F$190 -> 325014.6085 | G18: ='T2'!G14*KEPT2/1000*'Proyección Ingresos'!G$190 -> 360789.263 | H18: ='T2'!H14*KEPT2/1000*'Proyección Ingresos'!H$190 -> 371079.4958 | I18: ='T2'!I14*KEPT2/1000*'Proyección Ingresos'!I$190 -> 366192.7478 | J18: ='T2'!J14*KEPT2/1000*'Proyección Ingresos'!J$190 -> 376328.9485 | K18: ='T2'!K14*KEPT2/1000*'Proyección Ingresos'!K$190 -> 382654.8734 | L18: ='T2'!L14*KEPT2/1000*'Proyección Ingresos'!L$190 -> 389034.2041
B19: T3 Grandes Demandas < 300 kW | C19: [MWh] | F19: =SUM(F20:F22) -> 435063.8516 | G19: =SUM(G20:G22) -> 534859.4597 | H19: 561997.5852 | I19: 571224.9684 | J19: 600332.6933 | K19: 622431.3436 | L19: 644614.3995
B20: T3BT | C20: [MWh] | F20: ='T3BT<'!F$10/1000*'Proyección Ingresos'!F$190 -> 378767.7403 | G20: ='T3BT<'!G$10/1000*'Proyección Ingresos'!G$190 -> 478481.5221 | H20: ='T3BT<'!H$10/1000*'Proyección Ingresos'!H$190 -> 505420.8429 | I20: ='T3BT<'!I$10/1000*'Proyección Ingresos'!I$190 -> 511685.4472 | J20: ='T3BT<'!J$10/1000*'Proyección Ingresos'!J$190 -> 538043.7415 | K20: ='T3BT<'!K$10/1000*'Proyección Ingresos'!K$190 -> 558178.1462 | L20: ='T3BT<'!L$10/1000*'Proyección Ingresos'!L$190 -> 578404.5143
B21: T3MT | C21: [MWh] | F21: ='T3MT<'!F$10/1000*'Proyección Ingresos'!F$191 -> 56296.11128 | G21: ='T3MT<'!G$10/1000*'Proyección Ingresos'!G$191 -> 56377.9376 | H21: ='T3MT<'!H$10/1000*'Proyección Ingresos'!H$191 -> 56576.74227 | I21: ='T3MT<'!I$10/1000*'Proyección Ingresos'!I$191 -> 59539.52124 | J21: ='T3MT<'!J$10/1000*'Proyección Ingresos'!J$191 -> 62288.95182 | K21: ='T3MT<'!K$10/1000*'Proyección Ingresos'!K$191 -> 64253.19738 | L21: ='T3MT<'!L$10/1000*'Proyección Ingresos'!L$191 -> 66209.8852
B22: T3AT | C22: [MWh] | F22: ='T3AT<'!F$10/1000*'Proyección Ingresos'!F$192 -> 0 | G22: ='T3AT<'!G$10/1000*'Proyección Ingresos'!G$192 -> 0 | H22: ='T3AT<'!H$10/1000*'Proyección Ingresos'!H$192 -> 0 | I22: ='T3AT<'!I$10/1000*'Proyección Ingresos'!I$192 -> 0 | J22: ='T3AT<'!J$10/1000*'Proyección Ingresos'!J$192 -> 0 | K22: ='T3AT<'!K$10/1000*'Proyección Ingresos'!K$192 -> 0 | L22: ='T3AT<'!L$10/1000*'Proyección Ingresos'!L$192 -> 0
B23: PJ Servicio de Peaje < 300 kW | C23: [MWh] | F23: =SUM(F24:F26) -> 7647.077426 | G23: =SUM(G24:G26) -> 8751.045004 | H23: 8847.828998 | I23: 8921.037709 | J23: 9173.058514 | K23: 9363.761716 | L23: 9560.98579
B24: PJBT | C24: [MWh] | F24: ='PJBT<'!F$10/1000*('Proyección Ingresos'!F$190-1) -> 3632.644002 | G24: ='PJBT<'!G$10/1000*('Proyección Ingresos'!G$190-1) -> 4730.776607 | H24: ='PJBT<'!H$10/1000*('Proyección Ingresos'!H$190-1) -> 4813.383989 | I24: ='PJBT<'!I$10/1000*('Proyección Ingresos'!I$190-1) -> 4675.319157 | J24: ='PJBT<'!J$10/1000*('Proyección Ingresos'!J$190-1) -> 4731.280132 | K24: ='PJBT<'!K$10/1000*('Proyección Ingresos'!K$190-1) -> 4781.914457 | L24: ='PJBT<'!L$10/1000*('Proyección Ingresos'!L$190-1) -> 4839.608592
B25: PJMT | C25: [MWh] | F25: ='PJMT<'!F$10/1000*('Proyección Ingresos'!F$191-1) -> 4014.433423 | G25: ='PJMT<'!G$10/1000*('Proyección Ingresos'!G$191-1) -> 4020.268397 | H25: ='PJMT<'!H$10/1000*('Proyección Ingresos'!H$191-1) -> 4034.445009 | I25: ='PJMT<'!I$10/1000*('Proyección Ingresos'!I$191-1) -> 4245.718552 | J25: ='PJMT<'!J$10/1000*('Proyección Ingresos'!J$191-1) -> 4441.778383 | K25: ='PJMT<'!K$10/1000*('Proyección Ingresos'!K$191-1) -> 4581.847259 | L25: ='PJMT<'!L$10/1000*('Proyección Ingresos'!L$191-1) -> 4721.377198
B26: PJAT | C26: [MWh] | F26: ='PJAT<'!F$10/1000*('Proyección Ingresos'!F$192-1) -> 0 | G26: ='PJAT<'!G$10/1000*('Proyección Ingresos'!G$192-1) -> 0 | H26: ='PJAT<'!H$10/1000*('Proyección Ingresos'!H$192-1) -> 0 | I26: ='PJAT<'!I$10/1000*('Proyección Ingresos'!I$192-1) -> 0 | J26: ='PJAT<'!J$10/1000*('Proyección Ingresos'!J$192-1) -> 0 | K26: ='PJAT<'!K$10/1000*('Proyección Ingresos'!K$192-1) -> 0 | L26: ='PJAT<'!L$10/1000*('Proyección Ingresos'!L$192-1) -> 0
B27: T3 Grandes Demandas > 300 kW | C27: [MWh] | F27: =SUM(F28:F30) -> 415087.7031 | G27: =SUM(G28:G30) -> 436650.2598 | H27: 443529.6638 | I27: 462542.0358 | J27: 484506.0847 | K27: 500475.9411 | L27: 516419.8227
B28: T3BT | C28: [MWh] | F28: ='T3BT>'!F$10/1000*'Proyección Ingresos'!F$190 -> 78288.52525 | G28: ='T3BT>'!G$10/1000*'Proyección Ingresos'!G$190 -> 98898.63558 | H28: ='T3BT>'!H$10/1000*'Proyección Ingresos'!H$190 -> 104466.7964 | I28: ='T3BT>'!I$10/1000*'Proyección Ingresos'!I$190 -> 105761.6444 | J28: ='T3BT>'!J$10/1000*'Proyección Ingresos'!J$190 -> 111209.7113 | K28: ='T3BT>'!K$10/1000*'Proyección Ingresos'!K$190 -> 115371.3457 | L28: ='T3BT>'!L$10/1000*'Proyección Ingresos'!L$190 -> 119551.9882
B29: T3MT | C29: [MWh] | F29: ='T3MT>'!F$10/1000*'Proyección Ingresos'!F$191 -> 335608.2381 | G29: ='T3MT>'!G$10/1000*'Proyección Ingresos'!G$191 -> 336096.0442 | H29: ='T3MT>'!H$10/1000*'Proyección Ingresos'!H$191 -> 337281.2146 | I29: ='T3MT>'!I$10/1000*'Proyección Ingresos'!I$191 -> 354943.7672 | J29: ='T3MT>'!J$10/1000*'Proyección Ingresos'!J$191 -> 371334.4474 | K29: ='T3MT>'!K$10/1000*'Proyección Ingresos'!K$191 -> 383044.2614 | L29: ='T3MT>'!L$10/1000*'Proyección Ingresos'!L$191 -> 394709.0201
B30: T3AT | C30: [MWh] | F30: ='T3AT>'!F$10/1000*'Proyección Ingresos'!F$192 -> 1190.939751 | G30: ='T3AT>'!G$10/1000*'Proyección Ingresos'!G$192 -> 1655.579965 | H30: ='T3AT>'!H$10/1000*'Proyección Ingresos'!H$192 -> 1781.652774 | I30: ='T3AT>'!I$10/1000*'Proyección Ingresos'!I$192 -> 1836.624177 | J30: ='T3AT>'!J$10/1000*'Proyección Ingresos'!J$192 -> 1961.926005 | K30: ='T3AT>'!K$10/1000*'Proyección Ingresos'!K$192 -> 2060.33405 | L30: ='T3AT>'!L$10/1000*'Proyección Ingresos'!L$192 -> 2158.814464
B31: PJ Servicio de Peaje > 300 kW | C31: [MWh] | F31: =SUM(F32:F34) -> 26885.18436 | G31: =SUM(G32:G34) -> 28218.52915 | H31: 28425.76994 | I31: 29493.10283 | J31: 30700.40433 | K31: 31576.94822 | L31: 32457.86875
B32: PJBT | C32: [MWh] | F32: ='PJBT>'!F$10/1000*('Proyección Ingresos'!F$190-1) -> 3807.767398 | G32: ='PJBT>'!G$10/1000*('Proyección Ingresos'!G$190-1) -> 4958.83905 | H32: ='PJBT>'!H$10/1000*('Proyección Ingresos'!H$190-1) -> 5045.428789 | I32: ='PJBT>'!I$10/1000*('Proyección Ingresos'!I$190-1) -> 4900.708094 | J32: ='PJBT>'!J$10/1000*('Proyección Ingresos'!J$190-1) -> 4959.366849 | K32: ='PJBT>'!K$10/1000*('Proyección Ingresos'!K$190-1) -> 5012.442166 | L32: ='PJBT>'!L$10/1000*('Proyección Ingresos'!L$190-1) -> 5072.917634
B33: PJMT | C33: [MWh] | F33: ='PJMT>'!F$10/1000*('Proyección Ingresos'!F$191-1) -> 22694.77466 | G33: ='PJMT>'!G$10/1000*('Proyección Ingresos'!G$191-1) -> 22727.76149 | H33: ='PJMT>'!H$10/1000*('Proyección Ingresos'!H$191-1) -> 22807.90605 | I33: ='PJMT>'!I$10/1000*('Proyección Ingresos'!I$191-1) -> 24002.29763 | J33: ='PJMT>'!J$10/1000*('Proyección Ingresos'!J$191-1) -> 25110.6816 | K33: ='PJMT>'!K$10/1000*('Proyección Ingresos'!K$191-1) -> 25902.53222 | L33: ='PJMT>'!L$10/1000*('Proyección Ingresos'!L$191-1) -> 26691.33606
B34: PJAT | C34: [MWh] | F34: ='PJAT>'!F$10/1000*('Proyección Ingresos'!F$192-1) -> 382.6423008 | G34: ='PJAT>'!G$10/1000*('Proyección Ingresos'!G$192-1) -> 531.9286103 | H34: ='PJAT>'!H$10/1000*('Proyección Ingresos'!H$192-1) -> 572.4351008 | I34: ='PJAT>'!I$10/1000*('Proyección Ingresos'!I$192-1) -> 590.0971061 | J34: ='PJAT>'!J$10/1000*('Proyección Ingresos'!J$192-1) -> 630.3558845 | K34: ='PJAT>'!K$10/1000*('Proyección Ingresos'!K$192-1) -> 661.9738408 | L34: ='PJAT>'!L$10/1000*('Proyección Ingresos'!L$192-1) -> 693.6150485
B36: TOTAL | C36: [MWh] | F36: =F7+F11+F15+F17+F19+F23+F27+F31 -> 4666537.975 | G36: =G7+G11+G15+G17+G19+G23+G27+G31 -> 4754446.56 | H36: 4930371.814 | I36: 5082309.138 | J36: 5207302.064 | K36: 5349294.605 | L36: 5490447.789
B39: COMPRA DE ENERGÍA EN RESTO | F39: 2015 | G39: 2016 | H39: 2017 | I39: 2018 | J39: 2019 | K39: 2020 | L39: 2021
B40: T1 Residencial | C40: [MWh] | F40: =SUM(F41:F43) -> 4165793.525 | G40: =SUM(G41:G43) -> 3990040.669 | H40: 4136374.907 | I40: 4328843.063 | J40: 4370159.7 | K40: 4478803.109 | L40: 4585752.872
B41: T1R1 | C41: [MWh] | F41: =T1R!F12*KERR1/1000*'Proyección Ingresos'!F$190 -> 363089.4298 | G41: =T1R!G12*KERR1/1000*'Proyección Ingresos'!G$190 -> 347770.8587 | H41: =T1R!H12*KERR1/1000*'Proyección Ingresos'!H$190 -> 360525.3111 | I41: =T1R!I12*KERR1/1000*'Proyección Ingresos'!I$190 -> 377300.7832 | J41: =T1R!J12*KERR1/1000*'Proyección Ingresos'!J$190 -> 380901.9299 | K41: =T1R!K12*KERR1/1000*'Proyección Ingresos'!K$190 -> 390371.26 | L41: =T1R!L12*KERR1/1000*'Proyección Ingresos'!L$190 -> 399692.9721
B42: T1R2 | C42: [MWh] | F42: =T1R!F14*KERR2/1000*'Proyección Ingresos'!F$190 -> 2290319.633 | G42: =T1R!G14*KERR2/1000*'Proyección Ingresos'!G$190 -> 2193692.132 | H42: =T1R!H14*KERR2/1000*'Proyección Ingresos'!H$190 -> 2274145.514 | I42: =T1R!I14*KERR2/1000*'Proyección Ingresos'!I$190 -> 2379962.952 | J42: =T1R!J14*KERR2/1000*'Proyección Ingresos'!J$190 -> 2402678.505 | K42: =T1R!K14*KERR2/1000*'Proyección Ingresos'!K$190 -> 2462409.774 | L42: =T1R!L14*KERR2/1000*'Proyección Ingresos'!L$190 -> 2521209.89
B43: T1R3 | C43: [MWh] | F43: =T1R!F17*KERR3/1000*'Proyección Ingresos'!F$190 -> 1512384.462 | G43: =T1R!G17*KERR3/1000*'Proyección Ingresos'!G$190 -> 1448577.678 | H43: =T1R!H17*KERR3/1000*'Proyección Ingresos'!H$190 -> 1501704.082 | I43: =T1R!I17*KERR3/1000*'Proyección Ingresos'!I$190 -> 1571579.328 | J43: =T1R!J17*KERR3/1000*'Proyección Ingresos'!J$190 -> 1586579.265 | K43: =T1R!K17*KERR3/1000*'Proyección Ingresos'!K$190 -> 1626022.075 | L43: =T1R!L17*KERR3/1000*'Proyección Ingresos'!L$190 -> 1664850.01
B44: T1 General | C44: [MWh] | F44: =SUM(F45:F47) -> 1413550.269 | G44: =SUM(G45:G47) -> 1509913.417 | H44: 1575044.033 | I44: 1575750.7 | J44: 1639611.273 | K44: 1685582.38 | L44: 1731812.079
B45: T1G1 | C45: [MWh] | F45: =T1G!F12*KERG1/1000*'Proyección Ingresos'!F$190 -> 455667.3804 | G45: =T1G!G12*KERG1/1000*'Proyección Ingresos'!G$190 -> 486730.6854 | H45: =T1G!H12*KERG1/1000*'Proyección Ingresos'!H$190 -> 507725.9749 | I45: =T1G!I12*KERG1/1000*'Proyección Ingresos'!I$190 -> 507953.7736 | J45: =T1G!J12*KERG1/1000*'Proyección Ingresos'!J$190 -> 528539.6565 | K45: =T1G!K12*KERG1/1000*'Proyección Ingresos'!K$190 -> 543358.7502 | L45: =T1G!L12*KERG1/1000*'Proyección Ingresos'!L$190 -> 558261.2026
B46: T1G2 | C46: [MWh] | F46: =T1G!F14*KERG2/1000*'Proyección Ingresos'!F$190 -> 472218.388 | G46: =T1G!G14*KERG2/1000*'Proyección Ingresos'!G$190 -> 504409.9919 | H46: =T1G!H14*KERG2/1000*'Proyección Ingresos'!H$190 -> 526167.8842 | I46: =T1G!I14*KERG2/1000*'Proyección Ingresos'!I$190 -> 526403.9571 | J46: =T1G!J14*KERG2/1000*'Proyección Ingresos'!J$190 -> 547737.572 | K46: =T1G!K14*KERG2/1000*'Proyección Ingresos'!K$190 -> 563094.9332 | L46: =T1G!L14*KERG2/1000*'Proyección Ingresos'!L$190 -> 578538.6809
B47: T1G3 | C47: [MWh] | F47: =T1G!F17*KERG3/1000*'Proyección Ingresos'!F$190 -> 485664.5009 | G47: =T1G!G17*KERG3/1000*'Proyección Ingresos'!G$190 -> 518772.7399 | H47: =T1G!H17*KERG3/1000*'Proyección Ingresos'!H$190 -> 541150.174 | I47: =T1G!I17*KERG3/1000*'Proyección Ingresos'!I$190 -> 541392.9689 | J47: =T1G!J17*KERG3/1000*'Proyección Ingresos'!J$190 -> 563334.0448 | K47: =T1G!K17*KERG3/1000*'Proyección Ingresos'!K$190 -> 579128.6969 | L47: =T1G!L17*KERG3/1000*'Proyección Ingresos'!L$190 -> 595012.1953
B48: T1 Alumbrado Público | C48: [MWh] | F48: =SUM(F49) -> 368346.9194 | G48: 378286.5995 | H48: 398270.8618 | I48: 401963.79 | J48: 421525.9344 | K48: 436283.2013 | L48: 451111.0851
B49: T1AP | C49: [MWh] | F49: =T1AP!F10*KERT2/1000*'Proyección Ingresos'!F$190 -> 368346.9194 | G49: =T1AP!G10*KERT2/1000*'Proyección Ingresos'!G$190 -> 378286.5995 | H49: =T1AP!H10*KERT2/1000*'Proyección Ingresos'!H$190 -> 398270.8618 | I49: =T1AP!I10*KERT2/1000*'Proyección Ingresos'!I$190 -> 401963.79 | J49: =T1AP!J10*KERT2/1000*'Proyección Ingresos'!J$190 -> 421525.9344 | K49: =T1AP!K10*KERT2/1000*'Proyección Ingresos'!K$190 -> 436283.2013 | L49: =T1AP!L10*KERT2/1000*'Proyección Ingresos'!L$190 -> 451111.0851
B50: T2 Mediana Demanda | C50: [MWh] | F50: =SUM(F51) -> 975899.354 | G50: 1083317.486 | H50: 1114215.271 | I50: 1099542.164 | J50: 1129977.448 | K50: 1148971.874 | L50: 1168126.658
B51: T2 | C51: [MWh] | F51: ='T2'!F14*KERT2/1000*'Proyección Ingresos'!F$190 -> 975899.354 | G51: ='T2'!G14*KERT2/1000*'Proyección Ingresos'!G$190 -> 1083317.486 | H51: ='T2'!H14*KERT2/1000*'Proyección Ingresos'!H$190 -> 1114215.271 | I51: ='T2'!I14*KERT2/1000*'Proyección Ingresos'!I$190 -> 1099542.164 | J51: ='T2'!J14*KERT2/1000*'Proyección Ingresos'!J$190 -> 1129977.448 | K51: ='T2'!K14*KERT2/1000*'Proyección Ingresos'!K$190 -> 1148971.874 | L51: ='T2'!L14*KERT2/1000*'Proyección Ingresos'!L$190 -> 1168126.658
B52: T3 Grandes Demandas < 300 kW | C52: [MWh] | F52: =SUM(F53:F55) -> 1018496.251 | G52: =SUM(G53:G55) -> 1243074.438 | H52: 1304270.041 | I52: 1327118.564 | J52: 1394543.54 | K52: 1445645.929 | L52: 1496932.887
B53: T3BT | C53: [MWh] | F53: ='T3BT<'!F$12/1000*'Proyección Ingresos'!F$190 -> 852152.9577 | G53: ='T3BT<'!G$12/1000*'Proyección Ingresos'!G$190 -> 1076489.365 | H53: ='T3BT<'!H$12/1000*'Proyección Ingresos'!H$190 -> 1137097.541 | I53: ='T3BT<'!I$12/1000*'Proyección Ingresos'!I$190 -> 1151191.669 | J53: ='T3BT<'!J$12/1000*'Proyección Ingresos'!J$190 -> 1210492.65 | K53: ='T3BT<'!K$12/1000*'Proyección Ingresos'!K$190 -> 1255791.103 | L53: ='T3BT<'!L$12/1000*'Proyección Ingresos'!L$190 -> 1301296.455
B54: T3MT | C54: [MWh] | F54: ='T3MT<'!F$12/1000*'Proyección Ingresos'!F$191 -> 166343.2933 | G54: ='T3MT<'!G$12/1000*'Proyección Ingresos'!G$191 -> 166585.0731 | H54: ='T3MT<'!H$12/1000*'Proyección Ingresos'!H$191 -> 167172.4995 | I54: ='T3MT<'!I$12/1000*'Proyección Ingresos'!I$191 -> 175926.8948 | J54: ='T3MT<'!J$12/1000*'Proyección Ingresos'!J$191 -> 184050.89 | K54: ='T3MT<'!K$12/1000*'Proyección Ingresos'!K$191 -> 189854.8269 | L54: ='T3MT<'!L$12/1000*'Proyección Ingresos'!L$191 -> 195636.4322
B55: T3AT | C55: [MWh] | F55: ='T3AT<'!F$12/1000*'Proyección Ingresos'!F$192 -> 0 | G55: ='T3AT<'!G$12/1000*'Proyección Ingresos'!G$192 -> 0 | H55: ='T3AT<'!H$12/1000*'Proyección Ingresos'!H$192 -> 0 | I55: ='T3AT<'!I$12/1000*'Proyección Ingresos'!I$192 -> 0 | J55: ='T3AT<'!J$12/1000*'Proyección Ingresos'!J$192 -> 0 | K55: ='T3AT<'!K$12/1000*'Proyección Ingresos'!K$192 -> 0 | L55: ='T3AT<'!L$12/1000*'Proyección Ingresos'!L$192 -> 0
B56: PJ Servicio de Peaje < 300 kW | C56: [MWh] | F56: =SUM(F57:F59) -> 20431.10162 | G56: =SUM(G57:G59) -> 23521.27885 | H56: 23788.84223 | I56: 23942.0644 | J56: 24599.77093 | K56: 25099.48708 | L56: 25617.59674
B57: PJBT | C57: [MWh] | F57: ='PJBT<'!F$12/1000*('Proyección Ingresos'!F$190-1) -> 10173.04354 | G57: ='PJBT<'!G$12/1000*('Proyección Ingresos'!G$190-1) -> 13248.31069 | H57: ='PJBT<'!H$12/1000*('Proyección Ingresos'!H$190-1) -> 13479.64867 | I57: ='PJBT<'!I$12/1000*('Proyección Ingresos'!I$190-1) -> 13093.00479 | J57: ='PJBT<'!J$12/1000*('Proyección Ingresos'!J$190-1) -> 13249.72079 | K57: ='PJBT<'!K$12/1000*('Proyección Ingresos'!K$190-1) -> 13391.51976 | L57: ='PJBT<'!L$12/1000*('Proyección Ingresos'!L$190-1) -> 13553.0894
B58: PJMT | C58: [MWh] | F58: ='PJMT<'!F$12/1000*('Proyección Ingresos'!F$191-1) -> 10258.05808 | G58: ='PJMT<'!G$12/1000*('Proyección Ingresos'!G$191-1) -> 10272.96816 | H58: ='PJMT<'!H$12/1000*('Proyección Ingresos'!H$191-1) -> 10309.19357 | I58: ='PJMT<'!I$12/1000*('Proyección Ingresos'!I$191-1) -> 10849.05961 | J58: ='PJMT<'!J$12/1000*('Proyección Ingresos'!J$191-1) -> 11350.05014 | K58: ='PJMT<'!K$12/1000*('Proyección Ingresos'!K$191-1) -> 11707.96731 | L58: ='PJMT<'!L$12/1000*('Proyección Ingresos'!L$191-1) -> 12064.50735
B59: PJAT | C59: [MWh] | F59: ='PJAT<'!F$12/1000*('Proyección Ingresos'!F$192-1) -> 0 | G59: ='PJAT<'!G$12/1000*('Proyección Ingresos'!G$192-1) -> 0 | H59: ='PJAT<'!H$12/1000*('Proyección Ingresos'!H$192-1) -> 0 | I59: ='PJAT<'!I$12/1000*('Proyección Ingresos'!I$192-1) -> 0 | J59: ='PJAT<'!J$12/1000*('Proyección Ingresos'!J$192-1) -> 0 | K59: ='PJAT<'!K$12/1000*('Proyección Ingresos'!K$192-1) -> 0 | L59: ='PJAT<'!L$12/1000*('Proyección Ingresos'!L$192-1) -> 0
B60: T3 Grandes Demandas > 300 kW | C60: [MWh] | F60: =SUM(F61:F63) -> 1197630.296 | G60: =SUM(G61:G63) -> 1255772.456 | H60: 1274601.929 | I60: 1330775.673 | J60: 1394235.593 | K60: 1440359.932 | L60: 1486397.602
B61: T3BT | C61: [MWh] | F61: ='T3BT>'!F$12/1000*'Proyección Ingresos'!F$190 -> 186469.0669 | G61: ='T3BT>'!G$12/1000*'Proyección Ingresos'!G$190 -> 235558.6114 | H61: ='T3BT>'!H$12/1000*'Proyección Ingresos'!H$190 -> 248820.9606 | I61: ='T3BT>'!I$12/1000*'Proyección Ingresos'!I$190 -> 251905.0535 | J61: ='T3BT>'!J$12/1000*'Proyección Ingresos'!J$190 -> 264881.3607 | K61: ='T3BT>'!K$12/1000*'Proyección Ingresos'!K$190 -> 274793.619 | L61: ='T3BT>'!L$12/1000*'Proyección Ingresos'!L$190 -> 284751.1512
B62: T3MT | C62: [MWh] | F62: ='T3MT>'!F$12/1000*'Proyección Ingresos'!F$191 -> 991652.5018 | G62: ='T3MT>'!G$12/1000*'Proyección Ingresos'!G$191 -> 993093.8675 | H62: ='T3MT>'!H$12/1000*'Proyección Ingresos'!H$191 -> 996595.7994 | I62: ='T3MT>'!I$12/1000*'Proyección Ingresos'!I$191 -> 1048784.967 | J62: ='T3MT>'!J$12/1000*'Proyección Ingresos'!J$191 -> 1097216.016 | K62: ='T3MT>'!K$12/1000*'Proyección Ingresos'!K$191 -> 1131816.079 | L62: ='T3MT>'!L$12/1000*'Proyección Ingresos'!L$191 -> 1166283.013
B63: T3AT | C63: [MWh] | F63: ='T3AT>'!F$12/1000*'Proyección Ingresos'!F$192 -> 19508.72736 | G63: ='T3AT>'!G$12/1000*'Proyección Ingresos'!G$192 -> 27119.97657 | H63: ='T3AT>'!H$12/1000*'Proyección Ingresos'!H$192 -> 29185.16925 | I63: ='T3AT>'!I$12/1000*'Proyección Ingresos'!I$192 -> 30085.65319 | J63: ='T3AT>'!J$12/1000*'Proyección Ingresos'!J$192 -> 32138.21646 | K63: ='T3AT>'!K$12/1000*'Proyección Ingresos'!K$192 -> 33750.23397 | L63: ='T3AT>'!L$12/1000*'Proyección Ingresos'!L$192 -> 35363.43693
B64: PJ Servicio de Peaje > 300 kW | C64: [MWh] | F64: =SUM(F65:F67) -> 73532.89285 | G64: =SUM(G65:G67) -> 77451.31852 | H64: 78031.31591 | I64: 80862.76765 | J64: 84129.28553 | K64: 86503.75747 | L64: 88892.20954
B65: PJBT | C65: [MWh] | F65: ='PJBT>'!F$12/1000*('Proyección Ingresos'!F$190-1) -> 11386.84511 | G65: ='PJBT>'!G$12/1000*('Proyección Ingresos'!G$190-1) -> 14829.03925 | H65: ='PJBT>'!H$12/1000*('Proyección Ingresos'!H$190-1) -> 15087.97942 | I65: ='PJBT>'!I$12/1000*('Proyección Ingresos'!I$190-1) -> 14655.20295 | J65: ='PJBT>'!J$12/1000*('Proyección Ingresos'!J$190-1) -> 14830.61759 | K65: ='PJBT>'!K$12/1000*('Proyección Ingresos'!K$190-1) -> 14989.33538 | L65: ='PJBT>'!L$12/1000*('Proyección Ingresos'!L$190-1) -> 15170.18277
B66: PJMT | C66: [MWh] | F66: ='PJMT>'!F$12/1000*('Proyección Ingresos'!F$191-1) -> 61153.2257 | G66: ='PJMT>'!G$12/1000*('Proyección Ingresos'!G$191-1) -> 61242.11184 | H66: ='PJMT>'!H$12/1000*('Proyección Ingresos'!H$191-1) -> 61458.06897 | I66: ='PJMT>'!I$12/1000*('Proyección Ingresos'!I$191-1) -> 64676.4705 | J66: ='PJMT>'!J$12/1000*('Proyección Ingresos'!J$191-1) -> 67663.11638 | K66: ='PJMT>'!K$12/1000*('Proyección Ingresos'!K$191-1) -> 69796.83307 | L66: ='PJMT>'!L$12/1000*('Proyección Ingresos'!L$191-1) -> 71922.33995
B67: PJAT | C67: [MWh] | F67: ='PJAT>'!F$12/1000*('Proyección Ingresos'!F$192-1) -> 992.8220345 | G67: ='PJAT>'!G$12/1000*('Proyección Ingresos'!G$192-1) -> 1380.167441 | H67: ='PJAT>'!H$12/1000*('Proyección Ingresos'!H$192-1) -> 1485.267521 | I67: ='PJAT>'!I$12/1000*('Proyección Ingresos'!I$192-1) -> 1531.094205 | J67: ='PJAT>'!J$12/1000*('Proyección Ingresos'!J$192-1) -> 1635.551559 | K67: ='PJAT>'!K$12/1000*('Proyección Ingresos'!K$192-1) -> 1717.589023 | L67: ='PJAT>'!L$12/1000*('Proyección Ingresos'!L$192-1) -> 1799.686815
B69: TOTAL | C69: [MWh] | F69: =F40+F44+F48+F50+F52+F56+F60+F64 -> 9233680.609 | G69: =G40+G44+G48+G50+G52+G56+G60+G64 -> 9561377.662 | H69: 9904597.202 | I69: 10168798.79 | J69: 10458782.54 | K69: 10747249.67 | L69: 11034642.99
B72: COMPRA DE ENERGÍA EN VALLE | F72: 2015 | G72: 2016 | H72: 2017 | I72: 2018 | J72: 2019 | K72: 2020 | L72: 2021
B73: T1 Residencial | C73: [MWh] | F73: =SUM(F74:F76) -> 2247391.284 | G73: =SUM(G74:G76) -> 2152574.91 | H73: 2231520.323 | I73: 2335354.384 | J73: 2357644.17 | K73: 2416255.873 | L73: 2473953.875
B74: T1R1 | C74: [MWh] | F74: =T1R!F12*KEVR1/1000*'Proyección Ingresos'!F$190 -> 194909.5529 | G74: =T1R!G12*KEVR1/1000*'Proyección Ingresos'!G$190 -> 186686.4111 | H74: =T1R!H12*KEVR1/1000*'Proyección Ingresos'!H$190 -> 193533.1117 | I74: =T1R!I12*KEVR1/1000*'Proyección Ingresos'!I$190 -> 202538.3305 | J74: =T1R!J12*KEVR1/1000*'Proyección Ingresos'!J$190 -> 204471.4573 | K74: =T1R!K12*KEVR1/1000*'Proyección Ingresos'!K$190 -> 209554.6758 | L74: =T1R!L12*KEVR1/1000*'Proyección Ingresos'!L$190 -> 214558.6516
B75: T1R2 | C75: [MWh] | F75: =T1R!F14*KEVR2/1000*'Proyección Ingresos'!F$190 -> 1236183.276 | G75: =T1R!G14*KEVR2/1000*'Proyección Ingresos'!G$190 -> 1184029.288 | H75: =T1R!H14*KEVR2/1000*'Proyección Ingresos'!H$190 -> 1227453.413 | I75: =T1R!I14*KEVR2/1000*'Proyección Ingresos'!I$190 -> 1284567.602 | J75: =T1R!J14*KEVR2/1000*'Proyección Ingresos'!J$190 -> 1296828.155 | K75: =T1R!K14*KEVR2/1000*'Proyección Ingresos'!K$190 -> 1329067.671 | L75: =T1R!L14*KEVR2/1000*'Proyección Ingresos'!L$190 -> 1360804.603
B76: T1R3 | C76: [MWh] | F76: =T1R!F17*KEVR3/1000*'Proyección Ingresos'!F$190 -> 816298.4554 | G76: =T1R!G17*KEVR3/1000*'Proyección Ingresos'!G$190 -> 781859.21 | H76: =T1R!H17*KEVR3/1000*'Proyección Ingresos'!H$190 -> 810533.798 | I76: =T1R!I17*KEVR3/1000*'Proyección Ingresos'!I$190 -> 848248.4513 | J76: =T1R!J17*KEVR3/1000*'Proyección Ingresos'!J$190 -> 856344.5574 | K76: =T1R!K17*KEVR3/1000*'Proyección Ingresos'!K$190 -> 877633.5261 | L76: =T1R!L17*KEVR3/1000*'Proyección Ingresos'!L$190 -> 898590.6198
B77: T1 General | C77: [MWh] | F77: =SUM(F78:F80) -> 331223.2409 | G77: =SUM(G78:G80) -> 353803.0633 | H77: 369064.4758 | I77: 369230.062 | J77: 384193.878 | K77: 394965.8324 | L77: 405798.38
B78: T1G1 | C78: [MWh] | F78: =T1G!F12*KEVG1/1000*'Proyección Ingresos'!F$190 -> 104954.126 | G78: =T1G!G12*KEVG1/1000*'Proyección Ingresos'!G$190 -> 112108.9547 | H78: =T1G!H12*KEVG1/1000*'Proyección Ingresos'!H$190 -> 116944.8116 | I78: =T1G!I12*KEVG1/1000*'Proyección Ingresos'!I$190 -> 116997.2806 | J78: =T1G!J12*KEVG1/1000*'Proyección Ingresos'!J$190 -> 121738.8387 | K78: =T1G!K12*KEVG1/1000*'Proyección Ingresos'!K$190 -> 125152.1289 | L78: =T1G!L12*KEVG1/1000*'Proyección Ingresos'!L$190 -> 128584.6192
B79: T1G2 | C79: [MWh] | F79: =T1G!F14*KEVG2/1000*'Proyección Ingresos'!F$190 -> 111781.6112 | G79: =T1G!G14*KEVG2/1000*'Proyección Ingresos'!G$190 -> 119401.8764 | H79: =T1G!H14*KEVG2/1000*'Proyección Ingresos'!H$190 -> 124552.3159 | I79: =T1G!I14*KEVG2/1000*'Proyección Ingresos'!I$190 -> 124608.1981 | J79: =T1G!J14*KEVG2/1000*'Proyección Ingresos'!J$190 -> 129658.2044 | K79: =T1G!K14*KEVG2/1000*'Proyección Ingresos'!K$190 -> 133293.5364 | L79: =T1G!L14*KEVG2/1000*'Proyección Ingresos'!L$190 -> 136949.3173
B80: T1G3 | C80: [MWh] | F80: =T1G!F17*KEVG3/1000*'Proyección Ingresos'!F$190 -> 114487.5037 | G80: =T1G!G17*KEVG3/1000*'Proyección Ingresos'!G$190 -> 122292.2323 | H80: =T1G!H17*KEVG3/1000*'Proyección Ingresos'!H$190 -> 127567.3483 | I80: =T1G!I17*KEVG3/1000*'Proyección Ingresos'!I$190 -> 127624.5832 | J80: =T1G!J17*KEVG3/1000*'Proyección Ingresos'!J$190 -> 132796.8349 | K80: =T1G!K17*KEVG3/1000*'Proyección Ingresos'!K$190 -> 136520.1671 | L80: =T1G!L17*KEVG3/1000*'Proyección Ingresos'!L$190 -> 140264.4434
B81: T1 Alumbrado Público | C81: [MWh] | F81: =SUM(F82) -> 96984.59858 | G81: 99601.68544 | H81: 104863.4796 | I81: 105835.8161 | J81: 110986.4679 | K81: 114872.0104 | L81: 118776.146
B82: T1AP | C82: [MWh] | F82: =T1AP!F10*KEVT2/1000*'Proyección Ingresos'!F$190 -> 96984.59858 | G82: =T1AP!G10*KEVT2/1000*'Proyección Ingresos'!G$190 -> 99601.68544 | H82: =T1AP!H10*KEVT2/1000*'Proyección Ingresos'!H$190 -> 104863.4796 | I82: =T1AP!I10*KEVT2/1000*'Proyección Ingresos'!I$190 -> 105835.8161 | J82: =T1AP!J10*KEVT2/1000*'Proyección Ingresos'!J$190 -> 110986.4679 | K82: =T1AP!K10*KEVT2/1000*'Proyección Ingresos'!K$190 -> 114872.0104 | L82: =T1AP!L10*KEVT2/1000*'Proyección Ingresos'!L$190 -> 118776.146
B83: T2 Mediana Demanda | C83: [MWh] | F83: =SUM(F84) -> 256951.2655 | G83: 285234.1257 | H83: 293369.4165 | I83: 289506.033 | J83: 297519.5485 | K83: 302520.7218 | L83: 307564.117
B84: T2 | C84: [MWh] | F84: ='T2'!F14*KEVT2/1000*'Proyección Ingresos'!F$190 -> 256951.2655 | G84: ='T2'!G14*KEVT2/1000*'Proyección Ingresos'!G$190 -> 285234.1257 | H84: ='T2'!H14*KEVT2/1000*'Proyección Ingresos'!H$190 -> 293369.4165 | I84: ='T2'!I14*KEVT2/1000*'Proyección Ingresos'!I$190 -> 289506.033 | J84: ='T2'!J14*KEVT2/1000*'Proyección Ingresos'!J$190 -> 297519.5485 | K84: ='T2'!K14*KEVT2/1000*'Proyección Ingresos'!K$190 -> 302520.7218 | L84: ='T2'!L14*KEVT2/1000*'Proyección Ingresos'!L$190 -> 307564.117
B85: T3 Grandes Demandas < 300 kW | C85: [MWh] | F85: =SUM(F86:F88) -> 241736.9944 | G85: =SUM(G86:G88) -> 290983.9264 | H85: 304461.3433 | I85: 310443.4816 | J85: 326125.1116 | K85: 337971.117 | L85: 349855.0876
B86: T3BT | C86: [MWh] | F86: ='T3BT<'!F$14/1000*'Proyección Ingresos'!F$190 -> 186763.3917 | G86: ='T3BT<'!G$14/1000*'Proyección Ingresos'!G$190 -> 235930.4196 | H86: ='T3BT<'!H$14/1000*'Proyección Ingresos'!H$190 -> 249213.7022 | I86: ='T3BT<'!I$14/1000*'Proyección Ingresos'!I$190 -> 252302.6631 | J86: ='T3BT<'!J$14/1000*'Proyección Ingresos'!J$190 -> 265299.4522 | K86: ='T3BT<'!K$14/1000*'Proyección Ingresos'!K$190 -> 275227.3561 | L86: ='T3BT<'!L$14/1000*'Proyección Ingresos'!L$190 -> 285200.6054
B87: T3MT | C87: [MWh] | F87: ='T3MT<'!F$14/1000*'Proyección Ingresos'!F$191 -> 54973.6027 | G87: ='T3MT<'!G$14/1000*'Proyección Ingresos'!G$191 -> 55053.50677 | H87: ='T3MT<'!H$14/1000*'Proyección Ingresos'!H$191 -> 55247.64112 | I87: ='T3MT<'!I$14/1000*'Proyección Ingresos'!I$191 -> 58140.81846 | J87: ='T3MT<'!J$14/1000*'Proyección Ingresos'!J$191 -> 60825.6594 | K87: ='T3MT<'!K$14/1000*'Proyección Ingresos'!K$191 -> 62743.7609 | L87: ='T3MT<'!L$14/1000*'Proyección Ingresos'!L$191 -> 64654.4822
B88: T3AT | C88: [MWh] | F88: ='T3AT<'!F$14/1000*'Proyección Ingresos'!F$192 -> 0 | G88: ='T3AT<'!G$14/1000*'Proyección Ingresos'!G$192 -> 0 | H88: ='T3AT<'!H$14/1000*'Proyección Ingresos'!H$192 -> 0 | I88: ='T3AT<'!I$14/1000*'Proyección Ingresos'!I$192 -> 0 | J88: ='T3AT<'!J$14/1000*'Proyección Ingresos'!J$192 -> 0 | K88: ='T3AT<'!K$14/1000*'Proyección Ingresos'!K$192 -> 0 | L88: ='T3AT<'!L$14/1000*'Proyección Ingresos'!L$192 -> 0
B89: PJ Servicio de Peaje < 300 kW | C89: [MWh] | F89: =SUM(F90:F92) -> 6830.449606 | G89: =SUM(G90:G92) -> 7638.796532 | H89: 7713.896983 | I89: 7832.832301 | J89: 8077.691544 | K89: 8260.407815 | L89: 8447.721165
B90: PJBT | C90: [MWh] | F90: ='PJBT<'!F$14/1000*('Proyección Ingresos'!F$190-1) -> 2653.94587 | G90: ='PJBT<'!G$14/1000*('Proyección Ingresos'!G$190-1) -> 3456.222253 | H90: ='PJBT<'!H$14/1000*('Proyección Ingresos'!H$190-1) -> 3516.573755 | I90: ='PJBT<'!I$14/1000*('Proyección Ingresos'!I$190-1) -> 3415.706015 | J90: ='PJBT<'!J$14/1000*('Proyección Ingresos'!J$190-1) -> 3456.590119 | K90: ='PJBT<'!K$14/1000*('Proyección Ingresos'!K$190-1) -> 3493.582668 | L90: ='PJBT<'!L$14/1000*('Proyección Ingresos'!L$190-1) -> 3535.732989
B91: PJMT | C91: [MWh] | F91: ='PJMT<'!F$14/1000*('Proyección Ingresos'!F$191-1) -> 4176.503736 | G91: ='PJMT<'!G$14/1000*('Proyección Ingresos'!G$191-1) -> 4182.574279 | H91: ='PJMT<'!H$14/1000*('Proyección Ingresos'!H$191-1) -> 4197.323228 | I91: ='PJMT<'!I$14/1000*('Proyección Ingresos'!I$191-1) -> 4417.126286 | J91: ='PJMT<'!J$14/1000*('Proyección Ingresos'!J$191-1) -> 4621.101424 | K91: ='PJMT<'!K$14/1000*('Proyección Ingresos'!K$191-1) -> 4766.825147 | L91: ='PJMT<'!L$14/1000*('Proyección Ingresos'!L$191-1) -> 4911.988176
B92: PJAT | C92: [MWh] | F92: ='PJAT<'!F$14/1000*('Proyección Ingresos'!F$192-1) -> 0 | G92: ='PJAT<'!G$14/1000*('Proyección Ingresos'!G$192-1) -> 0 | H92: ='PJAT<'!H$14/1000*('Proyección Ingresos'!H$192-1) -> 0 | I92: ='PJAT<'!I$14/1000*('Proyección Ingresos'!I$192-1) -> 0 | J92: ='PJAT<'!J$14/1000*('Proyección Ingresos'!J$192-1) -> 0 | K92: ='PJAT<'!K$14/1000*('Proyección Ingresos'!K$192-1) -> 0 | L92: ='PJAT<'!L$14/1000*('Proyección Ingresos'!L$192-1) -> 0
B93: T3 Grandes Demandas > 300 kW | C93: [MWh] | F93: =SUM(F94:F96) -> 377148.614 | G93: =SUM(G94:G96) -> 392043.6878 | H93: 397098.9958 | I93: 415432.2743 | J93: 435239.7073 | K93: 449602.217 | L93: 463931.1778
B94: T3BT | C94: [MWh] | F94: ='T3BT>'!F$14/1000*'Proyección Ingresos'!F$190 -> 40233.77559 | G94: ='T3BT>'!G$14/1000*'Proyección Ingresos'!G$190 -> 50825.65417 | H94: ='T3BT>'!H$14/1000*'Proyección Ingresos'!H$190 -> 53687.22467 | I94: ='T3BT>'!I$14/1000*'Proyección Ingresos'!I$190 -> 54352.66857 | J94: ='T3BT>'!J$14/1000*'Proyección Ingresos'!J$190 -> 57152.52078 | K94: ='T3BT>'!K$14/1000*'Proyección Ingresos'!K$190 -> 59291.25393 | L94: ='T3BT>'!L$14/1000*'Proyección Ingresos'!L$190 -> 61439.75569
B95: T3MT | C95: [MWh] | F95: ='T3MT>'!F$14/1000*'Proyección Ingresos'!F$191 -> 327103.7633 | G95: ='T3MT>'!G$14/1000*'Proyección Ingresos'!G$191 -> 327579.2082 | H95: ='T3MT>'!H$14/1000*'Proyección Ingresos'!H$191 -> 328734.3459 | I95: ='T3MT>'!I$14/1000*'Proyección Ingresos'!I$191 -> 345949.3209 | J95: ='T3MT>'!J$14/1000*'Proyección Ingresos'!J$191 -> 361924.6533 | K95: ='T3MT>'!K$14/1000*'Proyección Ingresos'!K$191 -> 373337.735 | L95: ='T3MT>'!L$14/1000*'Proyección Ingresos'!L$191 -> 384706.903
B96: T3AT | C96: [MWh] | F96: ='T3AT>'!F$14/1000*'Proyección Ingresos'!F$192 -> 9811.075095 | G96: ='T3AT>'!G$14/1000*'Proyección Ingresos'!G$192 -> 13638.82543 | H96: ='T3AT>'!H$14/1000*'Proyección Ingresos'!H$192 -> 14677.42523 | I96: ='T3AT>'!I$14/1000*'Proyección Ingresos'!I$192 -> 15130.28489 | J96: ='T3AT>'!J$14/1000*'Proyección Ingresos'!J$192 -> 16162.53328 | K96: ='T3AT>'!K$14/1000*'Proyección Ingresos'!K$192 -> 16973.22813 | L96: ='T3AT>'!L$14/1000*'Proyección Ingresos'!L$192 -> 17784.51916
B97: PJ Servicio de Peaje > 300 kW | C97: [MWh] | F97: =SUM(F98:F100) -> 28296.54286 | G97: =SUM(G98:G100) -> 29414.80119 | H97: 29619.29856 | I97: 30835.08571 | J97: 32143.33092 | K97: 33090.16492 | L97: 34039.48937
B98: PJBT | C98: [MWh] | F98: ='PJBT>'!F$14/1000*('Proyección Ingresos'!F$190-1) -> 2983.706637 | G98: ='PJBT>'!G$14/1000*('Proyección Ingresos'!G$190-1) -> 3885.668277 | H98: ='PJBT>'!H$14/1000*('Proyección Ingresos'!H$190-1) -> 3953.518634 | I98: ='PJBT>'!I$14/1000*('Proyección Ingresos'!I$190-1) -> 3840.117774 | J98: ='PJBT>'!J$14/1000*('Proyección Ingresos'!J$190-1) -> 3886.081851 | K98: ='PJBT>'!K$14/1000*('Proyección Ingresos'!K$190-1) -> 3927.670835 | L98: ='PJBT>'!L$14/1000*('Proyección Ingresos'!L$190-1) -> 3975.058461
B99: PJMT | C99: [MWh] | F99: ='PJMT>'!F$14/1000*('Proyección Ingresos'!F$191-1) -> 24851.01981 | G99: ='PJMT>'!G$14/1000*('Proyección Ingresos'!G$191-1) -> 24887.14073 | H99: ='PJMT>'!H$14/1000*('Proyección Ingresos'!H$191-1) -> 24974.89988 | I99: ='PJMT>'!I$14/1000*('Proyección Ingresos'!I$191-1) -> 26282.77137 | J99: ='PJMT>'!J$14/1000*('Proyección Ingresos'!J$191-1) -> 27496.46362 | K99: ='PJMT>'!K$14/1000*('Proyección Ingresos'!K$191-1) -> 28363.54847 | L99: ='PJMT>'!L$14/1000*('Proyección Ingresos'!L$191-1) -> 29227.29708
B100: PJAT | C100: [MWh] | F100: ='PJAT>'!F$14/1000*('Proyección Ingresos'!F$192-1) -> 461.8164175 | G100: ='PJAT>'!G$14/1000*('Proyección Ingresos'!G$192-1) -> 641.9921809 | H100: ='PJAT>'!H$14/1000*('Proyección Ingresos'!H$192-1) -> 690.8800385 | I100: ='PJAT>'!I$14/1000*('Proyección Ingresos'!I$192-1) -> 712.1965631 | J100: ='PJAT>'!J$14/1000*('Proyección Ingresos'!J$192-1) -> 760.7854536 | K100: ='PJAT>'!K$14/1000*('Proyección Ingresos'!K$192-1) -> 798.9456132 | L100: ='PJAT>'!L$14/1000*('Proyección Ingresos'!L$192-1) -> 837.1338355
B102: TOTAL | C102: [MWh] | F102: =F73+F77+F81+F83+F85+F89+F93+F97 -> 3586562.99 | G102: =G73+G77+G81+G83+G85+G89+G93+G97 -> 3611294.996 | H102: 3737711.23 | I102: 3864469.968 | J102: 3951929.906 | K102: 4057538.344 | L102: 4162365.994
B106: COMPRA DE ENERGÍA TOTAL | F106: 2015 | G106: 2016 | H106: 2017 | I106: 2018 | J106: 2019 | K106: 2020 | L106: 2021
B107: T1 Residencial | C107: [MWh] | F107: =+F7+F40+F73 -> 9121050.663 | G107: 8736237.855 | H107: 9056638.277 | I107: 9478049.418 | J107: 9568512.647 | K107: 9806388.586 | L107: 10040556.26
B108: T1R1 | C108: [MWh] | F108: =+F8+F41+F74 -> 792711.4223 | G108: 759267.3028 | H108: 787113.3354 | I108: 823738.2197 | J108: 831600.3879 | K108: 852274.2095 | L108: 872625.7457
B109: T1R2 | C109: [MWh] | F109: =+F9+F42+F75 -> 5016051.314 | G109: 4804426.484 | H109: 4980628.22 | I109: 5212380.02 | J109: 5262129.573 | K109: 5392947.607 | L109: 5521726.312
B110: T1R3 | C110: [MWh] | F110: 3312287.927 | G110: 3172544.068 | H110: 3288896.722 | I110: 3441931.179 | J110: 3474782.686 | K110: 3561166.769 | L110: 3646204.207
B111: T1 General | C111: [MWh] | F111: =+F11+F44+F77 -> 2287945.04 | G111: 2443916.561 | H111: 2549335.713 | I111: 2550479.509 | J111: 2653842.995 | K111: 2728250.937 | L111: 2803077.43
B112: T1G1 | C112: [MWh] | F112: =+F12+F45+F78 -> 748313.1873 | G112: 799326.4521 | H112: 833805.6637 | I112: 834179.7628 | J112: 867986.6322 | K112: 892323.0753 | L112: 916796.4129
B113: T1G2 | C113: [MWh] | F113: =+F13+F46+F79 -> 772417.6558 | G113: 825074.1466 | H113: 860663.9935 | I113: 861050.1429 | J113: 895945.9904 | K113: 921066.3526 | L113: 946328.019
B114: T1G3 | C114: [MWh] | F114: =+F14+F47+F80 -> 767214.1969 | G114: 819515.9626 | H114: 854866.0555 | I114: 855249.6035 | J114: 889910.3721 | K114: 914861.5088 | L114: 939952.9978
B115: T1 Alumbrado Público | C115: [MWh] | F115: =+F15+F48+F81 -> 671133.6833 | G115: 689243.9315 | H115: 725655.5609 | I115: 732384.1323 | J115: 768026.6565 | K115: 794914.6211 | L115: 821931.2505
B116: T1AP | C116: [MWh] | F116: =+F16+F49+F82 -> 671133.6833 | G116: 689243.9315 | H116: 725655.5609 | I116: 732384.1323 | J116: 768026.6565 | K116: 794914.6211 | L116: 821931.2505
B117: T2 Mediana Demanda | C117: [MWh] | F117: =+F17+F50+F83 -> 1557865.228 | G117: 1729340.875 | H117: 1778664.184 | I117: 1755240.945 | J117: 1803825.945 | K117: 1834147.469 | L117: 1864724.979
B118: T2 | C118: [MWh] | F118: =+F18+F51+F84 -> 1557865.228 | G118: 1729340.875 | H118: 1778664.184 | I118: 1755240.945 | J118: 1803825.945 | K118: 1834147.469 | L118: 1864724.979
B119: T3 Grandes Demandas < 300 kW | C119: [MWh] | F119: =+F19+F52+F85 -> 1695297.097 | G119: 2068917.824 | H119: 2170728.969 | I119: 2208787.014 | J119: 2321001.345 | K119: 2406048.39 | L119: 2491402.374
B120: T3BT | C120: [MWh] | F120: =+F20+F53+F86 -> 1417684.09 | G120: 1790901.307 | H120: 1891732.086 | I120: 1915179.78 | J120: 2013835.844 | K120: 2089196.605 | L120: 2164901.574
B121: T3MT | C121: [MWh] | F121: =+F21+F54+F87 -> 277613.0073 | G121: 278016.5175 | H121: 278996.8829 | I121: 293607.2345 | J121: 307165.5012 | K121: 316851.7852 | L121: 326500.7996
B122: T3AT | C122: [MWh] | F122: =+F22+F55+F88 -> 0 | G122: 0 | H122: 0 | I122: 0 | J122: 0 | K122: 0 | L122: 0
B123: PJ Servicio de Peaje < 300 kW | C123: [MWh] | F123: =+F23+F56+F89 -> 34908.62865 | G123: 39911.12039 | H123: 40350.56822 | I123: 40695.93441 | J123: 41850.52099 | K123: 42723.65661 | L123: 43626.3037
B124: PJBT | C124: [MWh] | F124: =+F24+F57+F90 -> 16459.63341 | G124: 21435.30955 | H124: 21809.60641 | I124: 21184.02996 | J124: 21437.59104 | K124: 21667.01689 | L124: 21928.43098
B125: PJMT | C125: [MWh] | F125: =+F25+F58+F91 -> 18448.99524 | G125: 18475.81083 | H125: 18540.96181 | I125: 19511.90445 | J125: 20412.92995 | K125: 21056.63972 | L125: 21697.87272
B126: PJAT | C126: [MWh] | F126: =+F26+F59+F92 -> 0 | G126: 0 | H126: 0 | I126: 0 | J126: 0 | K126: 0 | L126: 0
B127: T3 Grandes Demandas > 300 kW | C127: [MWh] | F127: =+F27+F60+F93 -> 1989866.613 | G127: 2084466.403 | H127: 2115230.589 | I127: 2208749.984 | J127: 2313981.385 | K127: 2390438.09 | L127: 2466748.602
B128: T3BT | C128: [MWh] | F128: =+F28+F61+F94 -> 304991.3678 | G128: 385282.9012 | H128: 406974.9817 | I128: 412019.3665 | J128: 433243.5928 | K128: 449456.2186 | L128: 465742.8951
B129: T3MT | C129: [MWh] | F129: =+F29+F62+F95 -> 1654364.503 | G129: 1656769.12 | H129: 1662611.36 | I129: 1749678.055 | J129: 1830475.116 | K129: 1888198.076 | L129: 1945698.937
B130: T3AT | C130: [MWh] | F130: =+F30+F63+F96 -> 30510.7422 | G130: 42414.38196 | H130: 45644.24726 | I130: 47052.56225 | J130: 50262.67574 | K130: 52783.79615 | L130: 55306.77055
B131: PJ Servicio de Peaje > 300 kW | C131: [MWh] | F131: =+F31+F64+F97 -> 128714.6201 | G131: 135084.6489 | H131: 136076.3844 | I131: 141190.9562 | J131: 146973.0208 | K131: 151170.8706 | L131: 155389.5677
B132: PJBT | C132: [MWh] | F132: =+F32+F65+F98 -> 18178.31915 | G132: 23673.54658 | H132: 24086.92685 | I132: 23396.02882 | J132: 23676.06629 | K132: 23929.44838 | L132: 24218.15886
B133: PJMT | C133: [MWh] | F133: =+F33+F66+F99 -> 108699.0202 | G133: 108857.0141 | H133: 109240.8749 | I133: 114961.5395 | J133: 120270.2616 | K133: 124062.9138 | L133: 127840.9731
B134: PJAT | C134: [MWh] | F134: =+F34+F67+F100 -> 1837.280753 | G134: 2554.088232 | H134: 2748.58266 | I134: 2833.387874 | J134: 3026.692897 | K134: 3178.508477 | L134: 3330.435699
B136: TOTAL | C136: [MWh] | F136: =F36+F69+F102 -> 17486781.57 | G136: 17927119.22 | H136: 18572680.24 | I136: 19115577.89 | J136: 19618014.51 | K136: 20154082.62 | L136: 20687456.77
B139: COMPRA DE POTENCIA | F139: 2015 | G139: 2016 | H139: 2017 | I139: 2018 | J139: 2019 | K139: 2020 | L139: 2021
B140: T1 Residencial | C140: [MW] | F140: =SUM(F141:F143) -> 24166.62652 | G140: =SUM(G141:G143) -> 23092.56933 | H140: 23761.99797 | I140: 24902.03824 | J140: 25221.96409 | K140: 25881.4774 | L140: 26536.92494
B141: T1R1 | C141: [MW] | F141: =+F108/F$136*'Proyección Ingresos'!F$212*12 -> 2100.32392 | G141: =+G108/G$136*'Proyección Ingresos'!G$212*12 -> 2006.977502 | H141: =+H108/H$136*'Proyección Ingresos'!H$212*12 -> 2065.157612 | I141: =+I108/I$136*'Proyección Ingresos'!I$212*12 -> 2164.238626 | J141: =+J108/J$136*'Proyección Ingresos'!J$212*12 -> 2192.043413 | K141: =+K108/K$136*'Proyección Ingresos'!K$212*12 -> 2249.361781 | L141: =+L108/L$136*'Proyección Ingresos'!L$212*12 -> 2306.326792
B142: T1R2 | C142: [MW] | F142: =+F109/F$136*'Proyección Ingresos'!F$212*12 -> 13290.24947 | G142: =+G109/G$136*'Proyección Ingresos'!G$212*12 -> 12699.58001 | H142: =+H109/H$136*'Proyección Ingresos'!H$212*12 -> 13067.72712 | I142: =+I109/I$136*'Proyección Ingresos'!I$212*12 -> 13694.68346 | J142: =+J109/J$136*'Proyección Ingresos'!J$212*12 -> 13870.62421 | K142: =+K109/K$136*'Proyección Ingresos'!K$212*12 -> 14233.31845 | L142: =+L109/L$136*'Proyección Ingresos'!L$212*12 -> 14593.77676
B143: T1R3 | C143: [MW] | F143: =+F110/F$136*'Proyección Ingresos'!F$212*12 -> 8776.053135 | G143: =+G110/G$136*'Proyección Ingresos'!G$212*12 -> 8386.011811 | H143: =+H110/H$136*'Proyección Ingresos'!H$212*12 -> 8629.113236 | I143: =+I110/I$136*'Proyección Ingresos'!I$212*12 -> 9043.116158 | J143: =+J110/J$136*'Proyección Ingresos'!J$212*12 -> 9159.296472 | K143: =+K110/K$136*'Proyección Ingresos'!K$212*12 -> 9398.797166 | L143: =+L110/L$136*'Proyección Ingresos'!L$212*12 -> 9636.821386
B144: T1 General | C144: [MW] | F144: =SUM(F145:F147) -> 6062.01142 | G144: =SUM(G145:G147) -> 6460.024734 | H144: 6688.719167 | I144: 6700.971421 | J144: 6995.353948 | K144: 7200.526916 | L144: 7408.45959
B145: T1G1 | C145: [MW] | F145: =+F112/F$136*'Proyección Ingresos'!F$212*12 -> 1982.688835 | G145: =+G112/G$136*'Proyección Ingresos'!G$212*12 -> 2112.866181 | H145: =+H112/H$136*'Proyección Ingresos'!H$212*12 -> 2187.66477 | I145: =+I112/I$136*'Proyección Ingresos'!I$212*12 -> 2191.672087 | J145: =+J112/J$136*'Proyección Ingresos'!J$212*12 -> 2287.955138 | K145: =+K112/K$136*'Proyección Ingresos'!K$212*12 -> 2355.060612 | L145: =+L112/L$136*'Proyección Ingresos'!L$212*12 -> 2423.068698
B146: T1G2 | C146: [MW] | F146: =+F113/F$136*'Proyección Ingresos'!F$212*12 -> 2046.554689 | G146: =+G113/G$136*'Proyección Ingresos'!G$212*12 -> 2180.925273 | H146: =+H113/H$136*'Proyección Ingresos'!H$212*12 -> 2258.133255 | I146: =+I113/I$136*'Proyección Ingresos'!I$212*12 -> 2262.269655 | J146: =+J113/J$136*'Proyección Ingresos'!J$212*12 -> 2361.65415 | K146: =+K113/K$136*'Proyección Ingresos'!K$212*12 -> 2430.921208 | L146: =+L113/L$136*'Proyección Ingresos'!L$212*12 -> 2501.119953
B147: T1G3 | C147: [MW] | F147: =+F114/F$136*'Proyección Ingresos'!F$212*12 -> 2032.767895 | G147: =+G114/G$136*'Proyección Ingresos'!G$212*12 -> 2166.23328 | H147: =+H114/H$136*'Proyección Ingresos'!H$212*12 -> 2242.921143 | I147: =+I114/I$136*'Proyección Ingresos'!I$212*12 -> 2247.029678 | J147: =+J114/J$136*'Proyección Ingresos'!J$212*12 -> 2345.74466 | K147: =+K114/K$136*'Proyección Ingresos'!K$212*12 -> 2414.545095 | L147: =+L114/L$136*'Proyección Ingresos'!L$212*12 -> 2484.27094
B148: T1 Alumbrado Público | C148: [MW] | F148: =SUM(F149) -> 1778.198331 | G148: 1821.884149 | H148: 1903.910197 | I148: 1924.220572 | J148: 2024.467278 | K148: 2097.975684 | L148: 2172.34258
B149: T1AP | C149: [MW] | F149: =+F116/F$136*'Proyección Ingresos'!F$212*12 -> 1778.198331 | G149: =+G116/G$136*'Proyección Ingresos'!G$212*12 -> 1821.884149 | H149: =+H116/H$136*'Proyección Ingresos'!H$212*12 -> 1903.910197 | I149: =+I116/I$136*'Proyección Ingresos'!I$212*12 -> 1924.220572 | J149: =+J116/J$136*'Proyección Ingresos'!J$212*12 -> 2024.467278 | K149: =+K116/K$136*'Proyección Ingresos'!K$212*12 -> 2097.975684 | L149: =+L116/L$136*'Proyección Ingresos'!L$212*12 -> 2172.34258
B150: T2 Mediana Demanda | C150: [MW] | F150: =SUM(F151) -> 4127.632717 | G150: 4571.180949 | H150: 4666.700097 | I150: 4611.611019 | J150: 4754.765435 | K150: 4840.767409 | L150: 4928.418854
B151: T2 | C151: [MW] | F151: =+F118/F$136*'Proyección Ingresos'!F$212*12 -> 4127.632717 | G151: =+G118/G$136*'Proyección Ingresos'!G$212*12 -> 4571.180949 | H151: =+H118/H$136*'Proyección Ingresos'!H$212*12 -> 4666.700097 | I151: =+I118/I$136*'Proyección Ingresos'!I$212*12 -> 4611.611019 | J151: =+J118/J$136*'Proyección Ingresos'!J$212*12 -> 4754.765435 | K151: =+K118/K$136*'Proyección Ingresos'!K$212*12 -> 4840.767409 | L151: =+L118/L$136*'Proyección Ingresos'!L$212*12 -> 4928.418854
B152: T3 Grandes Demandas < 300 kW | C152: [MW] | F152: =SUM(F153:F155) -> 4491.764523 | G152: =SUM(G153:G155) -> 5468.78749 | H152: 5695.364636 | I152: 5803.229785 | J152: 6118.005455 | K152: 6350.154951 | L152: 6584.710652
B153: T3BT | C153: [MW] | F153: =+F120/F$136*'Proyección Ingresos'!F$212*12 -> 3756.216601 | G153: =+G120/G$136*'Proyección Ingresos'!G$212*12 -> 4733.904144 | H153: =+H120/H$136*'Proyección Ingresos'!H$212*12 -> 4963.357553 | I153: =+I120/I$136*'Proyección Ingresos'!I$212*12 -> 5031.824377 | J153: =+J120/J$136*'Proyección Ingresos'!J$212*12 -> 5308.337587 | K153: =+K120/K$136*'Proyección Ingresos'!K$212*12 -> 5513.904965 | L153: =+L120/L$136*'Proyección Ingresos'!L$212*12 -> 5721.777665
B154: T3MT | C154: [MW] | F154: =+F121/F$136*'Proyección Ingresos'!F$212*12 -> 735.5479223 | G154: =+G121/G$136*'Proyección Ingresos'!G$212*12 -> 734.8833458 | H154: =+H121/H$136*'Proyección Ingresos'!H$212*12 -> 732.0070829 | I154: =+I121/I$136*'Proyección Ingresos'!I$212*12 -> 771.4054083 | J154: =+J121/J$136*'Proyección Ingresos'!J$212*12 -> 809.6678687 | K154: =+K121/K$136*'Proyección Ingresos'!K$212*12 -> 836.2499859 | L154: =+L121/L$136*'Proyección Ingresos'!L$212*12 -> 862.9329873
B155: T3AT | C155: [MW] | F155: =+F122/F$136*'Proyección Ingresos'!F$212*12 -> 0 | G155: =+G122/G$136*'Proyección Ingresos'!G$212*12 -> 0 | H155: =+H122/H$136*'Proyección Ingresos'!H$212*12 -> 0 | I155: =+I122/I$136*'Proyección Ingresos'!I$212*12 -> 0 | J155: =+J122/J$136*'Proyección Ingresos'!J$212*12 -> 0 | K155: =+K122/K$136*'Proyección Ingresos'!K$212*12 -> 0 | L155: =+L122/L$136*'Proyección Ingresos'!L$212*12 -> 0
B156: PJ Servicio de Peaje < 300 kW | C156: [MW] | F156: =SUM(F157:F159) -> 92.49195318 | G156: =SUM(G157:G159) -> 105.4973926 | H156: 105.8682141 | I156: 106.9219699 | J156: 110.3151949 | K156: 112.758264 | L156: 115.3031681
B157: PJBT | C157: [MW] | F157: =+F124/F$136*'Proyección Ingresos'!F$212*12 -> 43.61052558 | G157: =+G124/G$136*'Proyección Ingresos'!G$212*12 -> 56.66012993 | H157: =+H124/H$136*'Proyección Ingresos'!H$212*12 -> 57.22209582 | I157: =+I124/I$136*'Proyección Ingresos'!I$212*12 -> 55.65760432 | J157: =+J124/J$136*'Proyección Ingresos'!J$212*12 -> 56.50806676 | K157: =+K124/K$136*'Proyección Ingresos'!K$212*12 -> 57.18459992 | L157: =+L124/L$136*'Proyección Ingresos'!L$212*12 -> 57.95626373
B158: PJMT | C158: [MW] | F158: =+F125/F$136*'Proyección Ingresos'!F$212*12 -> 48.8814276 | G158: =+G125/G$136*'Proyección Ingresos'!G$212*12 -> 48.83726263 | H158: =+H125/H$136*'Proyección Ingresos'!H$212*12 -> 48.64611828 | I158: =+I125/I$136*'Proyección Ingresos'!I$212*12 -> 51.26436562 | J158: =+J125/J$136*'Proyección Ingresos'!J$212*12 -> 53.80712814 | K158: =+K125/K$136*'Proyección Ingresos'!K$212*12 -> 55.57366407 | L158: =+L125/L$136*'Proyección Ingresos'!L$212*12 -> 57.34690435
B159: PJAT | C159: [MW] | F159: =+F126/F$136*'Proyección Ingresos'!F$212*12 -> 0 | G159: =+G126/G$136*'Proyección Ingresos'!G$212*12 -> 0 | H159: =+H126/H$136*'Proyección Ingresos'!H$212*12 -> 0 | I159: =+I126/I$136*'Proyección Ingresos'!I$212*12 -> 0 | J159: =+J126/J$136*'Proyección Ingresos'!J$212*12 -> 0 | K159: =+K126/K$136*'Proyección Ingresos'!K$212*12 -> 0 | L159: =+L126/L$136*'Proyección Ingresos'!L$212*12 -> 0
B160: T3 Grandes Demandas > 300 kW | C160: [MW] | F160: =SUM(F161:F163) -> 5272.239465 | G160: =SUM(G161:G163) -> 5509.887176 | H160: 5549.752946 | I160: 5803.132494 | J160: 6099.501307 | K160: 6308.955521 | L160: 6519.551385
B161: T3BT | C161: [MW] | F161: =+F128/F$136*'Proyección Ingresos'!F$212*12 -> 808.0880974 | G161: =+G128/G$136*'Proyección Ingresos'!G$212*12 -> 1018.42146 | H161: =+H128/H$136*'Proyección Ingresos'!H$212*12 -> 1067.784579 | I161: =+I128/I$136*'Proyección Ingresos'!I$212*12 -> 1082.514088 | J161: =+J128/J$136*'Proyección Ingresos'!J$212*12 -> 1142.001348 | K161: =+K128/K$136*'Proyección Ingresos'!K$212*12 -> 1186.225781 | L161: =+L128/L$136*'Proyección Ingresos'!L$212*12 -> 1230.946167
B162: T3MT | C162: [MW] | F162: =+F129/F$136*'Proyección Ingresos'!F$212*12 -> 4383.311808 | G162: =+G129/G$136*'Proyección Ingresos'!G$212*12 -> 4379.351432 | H162: =+H129/H$136*'Proyección Ingresos'!H$212*12 -> 4362.211071 | I162: =+I129/I$136*'Proyección Ingresos'!I$212*12 -> 4596.995427 | J162: =+J129/J$136*'Proyección Ingresos'!J$212*12 -> 4825.010883 | K162: =+K129/K$136*'Proyección Ingresos'!K$212*12 -> 4983.420287 | L162: =+L129/L$136*'Proyección Ingresos'!L$212*12 -> 5142.430885
B163: T3AT | C163: [MW] | F163: =+F130/F$136*'Proyección Ingresos'!F$212*12 -> 80.83955883 | G163: =+G130/G$136*'Proyección Ingresos'!G$212*12 -> 112.1142845 | H163: =+H130/H$136*'Proyección Ingresos'!H$212*12 -> 119.757296 | I163: =+I130/I$136*'Proyección Ingresos'!I$212*12 -> 123.622979 | J163: =+J130/J$136*'Proyección Ingresos'!J$212*12 -> 132.4890763 | K163: =+K130/K$136*'Proyección Ingresos'!K$212*12 -> 139.3094527 | L163: =+L130/L$136*'Proyección Ingresos'!L$212*12 -> 146.1743334
B164: PJ Servicio de Peaje > 300 kW | C164: [MW] | F164: =SUM(F165:F167) -> 341.0350699 | G164: =SUM(G165:G167) -> 357.0703627 | H164: 357.0250541 | I164: 370.9563472 | J164: 387.4111254 | K164: 398.9772012 | L164: 410.690522
B165: PJBT | C165: [MW] | F165: =+F132/F$136*'Proyección Ingresos'!F$212*12 -> 48.16425934 | G165: =+G132/G$136*'Proyección Ingresos'!G$212*12 -> 62.57648024 | H165: =+H132/H$136*'Proyección Ingresos'!H$212*12 -> 63.19712562 | I165: =+I132/I$136*'Proyección Ingresos'!I$212*12 -> 61.46927269 | J165: =+J132/J$136*'Proyección Ingresos'!J$212*12 -> 62.4085389 | K165: =+K132/K$136*'Proyección Ingresos'!K$212*12 -> 63.15571446 | L165: =+L132/L$136*'Proyección Ingresos'!L$212*12 -> 64.00795404
B166: PJMT | C166: [MW] | F166: =+F133/F$136*'Proyección Ingresos'!F$212*12 -> 288.0028541 | G166: =+G133/G$136*'Proyección Ingresos'!G$212*12 -> 287.74264 | H166: =+H133/H$136*'Proyección Ingresos'!H$212*12 -> 286.6164429 | I166: =+I133/I$136*'Proyección Ingresos'!I$212*12 -> 302.0428072 | J166: =+J133/J$136*'Proyección Ingresos'!J$212*12 -> 317.0244249 | K166: =+K133/K$136*'Proyección Ingresos'!K$212*12 -> 327.4326191 | L166: =+L133/L$136*'Proyección Ingresos'!L$212*12 -> 337.8803144
B167: PJAT | C167: [MW] | F167: =+F134/F$136*'Proyección Ingresos'!F$212*12 -> 4.867956489 | G167: =+G134/G$136*'Proyección Ingresos'!G$212*12 -> 6.751242417 | H167: =+H134/H$136*'Proyección Ingresos'!H$212*12 -> 7.211485497 | I167: =+I134/I$136*'Proyección Ingresos'!I$212*12 -> 7.444267284 | J167: =+J134/J$136*'Proyección Ingresos'!J$212*12 -> 7.978161538 | K167: =+K134/K$136*'Proyección Ingresos'!K$212*12 -> 8.388867582 | L167: =+L134/L$136*'Proyección Ingresos'!L$212*12 -> 8.802253564
B169: TOTAL | C169: [MW] | F169: =F140+F144+F148+F150+F152+F156+F160+F164 -> 46332 | G169: =G140+G144+G148+G150+G152+G156+G160+G164 -> 47386.90158 | H169: 48729.33828 | I169: 50223.08185 | J169: 51711.78383 | K169: 53191.59335 | L169: 54676.40169
F170: =+F169/12 -> 3861 | G170: =+G169/12 -> 3948.908465 | H170: 4060.77819 | I170: 4185.256821 | J170: 4309.315319 | K170: 4432.632779 | L170: 4556.366807
B174: Costo de Abastecimiento de Energía y Potencia
B178: COMPRA DE ENERGÍA EN PUNTA | F178: 2015 | G178: 2016 | H178: 2017 | I178: 2018 | J178: 2019 | K178: 2020 | L178: 2021
B179: T1 Residencial | C179: [$] | F179: =SUM(F180:F182) -> 870281007 | G179: 833564263.4 | H179: 864135127.7 | I179: 904343885 | J179: 912975393.9 | K179: 935672221.2 | L179: =SUM(L180:L182) -> 958015226.4
B180: T1R1 | C180: [$] | F180: =F8*PepR*1000 -> 75434230.99 | G180: 72251696.5 | H180: 74901518.36 | I180: 78386733.67 | J180: 79134895.73 | K180: 81102211.69 | L180: 83038859.06
B181: T1R2 | C181: [$] | F181: 478725962 | G181: 458528740.4 | H181: 475345224.1 | I181: 497463339.8 | J181: 502211377.9 | K181: 514696495.3 | L181: 526986981.5
B182: T1R3 | C182: [$] | F182: 316120814 | G182: 302783826.6 | H182: 313888385.2 | I182: 328493811.5 | J182: 331629120.2 | K182: 339873514.2 | L182: 347989385.9
B183: T1 General | C183: [$] | F183: =SUM(F184:F186) -> 174569897.9 | G183: 186470504 | H183: 194513971 | I183: 194601242.5 | J183: 202487862.5 | K183: 208165178.5 | L183: =SUM(L184:L186) -> 213874429.8
B184: T1G1 | C184: [$] | F184: =F12*PepG*1000 -> 60322229.31 | G184: 64434456.53 | H184: 67213858.18 | I184: 67244014.66 | J184: 69969218.18 | K184: 71931001.72 | L184: 73903820.47
B185: T1G2 | C185: [$] | F185: 60555550.65 | G185: 64683683.62 | H185: 67473835.77 | I185: 67504108.88 | J185: 70239853.26 | K185: 72209224.82 | L185: 74189674.27
B186: T1G3 | C186: [$] | F186: 53692117.98 | G186: 57352363.82 | H186: 59826277.06 | I186: 59853118.99 | J186: 62278791.09 | K186: 64024951.92 | L186: 65780935.05
B187: T1 Alumbrado Público | C187: [$] | F187: =SUM(F188) -> 66142757.91 | G187: 67927591.23 | H187: 71516094.75 | I187: 72179220.86 | J187: 75691926.17 | K187: 78341836.58 | L187: 81004427.39
B188: T1AP | C188: [$] | F188: =F16*PepA*1000 -> 66142757.91 | G188: 67927591.23 | H188: 71516094.75 | I188: 72179220.86 | J188: 75691926.17 | K188: 78341836.58 | L188: 81004427.39
B189: T2 Mediana Demanda | C189: [$] | F189: =SUM(F190) -> 104456445 | G189: 115954061.2 | H189: 119261239.2 | I189: 117690687.2 | J189: 120948360.8 | K189: 122981449.8 | L189: 125031702.8
B190: T2 | C190: [$] | F190: =F18*Pep*1000 -> 104456445 | G190: 115954061.2 | H190: 119261239.2 | I190: 117690687.2 | J190: 120948360.8 | K190: 122981449.8 | L190: 125031702.8
B191: T3 Grandes Demandas < 300 kW | C191: [$] | F191: =SUM(F192:F194) -> 139825171.3 | G191: =SUM(G192:G194) -> 171898481.7 | H191: 180620403.9 | I191: 183585992.6 | J191: 192940924.3 | K191: 200043209.5 | L191: 207172621.9
B192: T3BT | C192: [$] | F192: =F20*Pep*1000 -> 121732164.1 | G192: 153779176.4 | H192: 162437204.7 | I192: 164450585.9 | J192: 172921878.1 | K192: 179392874.4 | L192: 185893426.9
B193: T3MT | C193: [$] | F193: 18093007.2 | G193: 18119305.37 | H193: 18183199.2 | I193: 19135406.73 | J193: 20019046.23 | K193: 20650335.11 | L193: 21279195.01
B194: T3AT | C194: [$] | F194: 0 | G194: 0 | H194: 0 | I194: 0 | J194: 0 | K194: 0 | L194: 0
B195: PJ Servicio de Peaje < 300 kW | C195: [$] | F195: =SUM(F196:F198) -> 2457694.214 | G195: =SUM(G196:G198) -> 2812498.354 | H195: 2843603.762 | I195: 2867132.309 | J195: 2948129.276 | K195: 3009419.378 | L195: 3072805.223
B196: PJBT | C196: [$] | F196: =F24*Pep*1000 -> 1167495.456 | G196: 1520424.294 | H196: 1546973.48 | I196: 1502600.824 | J196: 1520586.122 | K196: 1536859.487 | L196: 1555401.805
B197: PJMT | C197: [$] | F197: 1290198.758 | G197: 1292074.06 | H197: 1296630.281 | I197: 1364531.485 | J197: 1427543.154 | K197: 1472559.89 | L197: 1517403.418
B198: PJAT | C198: [$] | F198: 0 | G198: 0 | H198: 0 | I198: 0 | J198: 0 | K198: 0 | L198: 0
B199: T3 Grandes Demandas > 300 kW | C199: [$] | F199: =SUM(F200:F202) -> 320871096.2 | G199: =SUM(G200:G202) -> 337539383.8 | H199: 342857300.7 | I199: 357554244.5 | J199: 374532893.6 | K199: 386877912 | L199: 399202851.4
B200: T3BT | C200: [$] | F200: =F28*Pepy*1000 -> 60518595.79 | G200: 76450623.28 | H200: 80754922.97 | I200: 81755866.33 | J200: 85967331 | K200: 89184357.62 | L200: 92416077.91
B201: T3MT | C201: [$] | F201: 259431880.2 | G201: 259808964.1 | H201: 260725124.5 | I201: 274378631 | J201: 287048954.5 | K201: 296100875 | L201: 305117966.7
B202: T3AT | C202: [$] | F202: 920620.2466 | G202: 1279796.424 | H202: 1377253.227 | I202: 1419747.221 | J202: 1516608.04 | K202: 1592679.428 | L202: 1668806.757
B203: PJ Servicio de Peaje > 300 kW | C203: [$] | F203: =SUM(F204:F206) -> 20782785.22 | G203: =SUM(G204:G206) -> 21813487.4 | H203: 21973688.68 | I203: 22798758.35 | J203: 23732026.56 | K203: 24409612.52 | L203: 25090581.7
B204: PJBT | C204: [$] | F204: =F32*Pepy*1000 -> 2943480.354 | G204: 3833281.763 | H204: 3900217.363 | I204: 3788345.371 | J204: 3833689.761 | K204: 3874718.043 | L204: 3921466.79
B205: PJMT | C205: [$] | F205: 17543514.71 | G205: 17569014.19 | H205: 17630967.54 | I205: 18554256.11 | J205: 19411059.09 | K205: 20023175.45 | L205: 20632936.6
B206: PJAT | C206: [$] | F206: 295790.1513 | G206: 411191.4543 | H206: 442503.7816 | I206: 456156.8649 | J206: 487277.7059 | K206: 511719.0184 | L206: 536178.3048
B208: TOTAL | C208: [$] | F208: =F179+F183+F187+F189+F191+F195+F199+F203 -> 1699386855 | G208: =G179+G183+G187+G189+G191+G195+G199+G203 -> 1737980271 | H208: 1797721430 | I208: 1855621163 | J208: 1906257517 | K208: 1959500839 | L208: 2012464647
B211: COMPRA DE ENERGÍA EN RESTO | F211: 2015 | G211: 2016 | H211: 2017 | I211: 2018 | J211: 2019 | K211: 2020 | L211: 2021
B212: T1 Residencial | C212: [$] | F212: =SUM(F213:F215) -> 1320931469 | G212: 1265201996 | H212: 1311603119 | I212: 1372632847 | J212: 1385733939 | K212: 1420183678 | L212: =SUM(L213:L215) -> 1454096378
B213: T1R1 | C213: [$] | F213: =F41*PerR*1000 -> 115132027.3 | G213: 110274661.6 | H213: 114318970.9 | I213: 119638305.3 | J213: 120780193 | K213: 123782822.8 | L213: 126738644.5
B214: T1R2 | C214: [$] | F214: 726237452.4 | G214: 695597838.1 | H214: 721108801.2 | I214: 754662452.5 | J214: 761865327.1 | K214: 780805515.3 | L214: 799450443.9
B215: T1R3 | C215: [$] | F215: 479561989.2 | G215: 459329495.9 | H215: 476175347.3 | I215: 498332089.2 | J215: 503088419 | K215: 515595339.9 | L215: 527907289.6
B216: T1 General | C216: [$] | F216: =SUM(F217:F219) -> 448222654.9 | G216: 478778445.4 | H216: 499430712.5 | I216: 499654789.3 | J216: 519904338.6 | K216: 534481317 | L216: =SUM(L217:L219) -> 549140292.1
B217: T1G1 | C217: [$] | F217: =F45*PerG*1000 -> 144487569.7 | G217: 154337433 | H217: 160994829.4 | I217: 161067062.1 | J217: 167594639.7 | K217: 172293626.1 | L217: 177019044.7
B218: T1G2 | C218: [$] | F218: 149735728.7 | G218: 159943364.3 | H218: 166842574.4 | I218: 166917430.7 | J218: 173682106.7 | K218: 178551772.4 | L218: 183448830.3
B219: T1G3 | C219: [$] | F219: 153999356.6 | G219: 164497648.1 | H219: 171593308.7 | I219: 171670296.5 | J219: 178627592.3 | K219: 183635918.5 | L219: 188672417
B220: T1 Alumbrado Público | C220: [$] | F220: =SUM(F221) -> 116799124.7 | G220: 119950897.8 | H220: 126287707.6 | I220: 127458698.2 | J220: 133661658.5 | K220: 138341040.3 | L220: 143042814
B221: T1AP | C221: [$] | F221: =F49*PerA*1000 -> 116799124.7 | G221: 119950897.8 | H221: 126287707.6 | I221: 127458698.2 | J221: 133661658.5 | K221: 138341040.3 | L221: 143042814
B222: T2 Mediana Demanda | C222: [$] | F222: =SUM(F223) -> 309447926.2 | G222: 343509141.7 | H222: 353306520.4 | I222: 348653824.8 | J222: 358304548.9 | K222: 364327491.5 | L222: 370401282
B223: T2 | C223: [$] | F223: =F51*Per*1000 -> 309447926.2 | G223: 343509141.7 | H223: 353306520.4 | I223: 348653824.8 | J223: 358304548.9 | K223: 364327491.5 | L223: 370401282
B224: T3 Grandes Demandas < 300 kW | C224: [$] | F224: =SUM(F225:F227) -> 322954976.3 | G224: =SUM(G225:G227) -> 394166473.6 | H224: 413570987.2 | I224: 420816025.5 | J224: 442195811.1 | K224: 458399867.8 | L224: 474662449.1
B225: T3BT | C225: [$] | F225: =F53*Per*1000 -> 270209181.4 | G225: 341344012.7 | H225: 360562259.3 | I225: 365031366.4 | J225: 383835114.4 | K225: 398198800.7 | L225: 412628092.8
B226: T3MT | C226: [$] | F226: 52745794.88 | G226: 52822460.83 | H226: 53008727.88 | I226: 55784659.07 | J226: 58360696.71 | K226: 60201067.05 | L226: 62034356.28
B227: T3AT | C227: [$] | F227: 0 | G227: 0 | H227: 0 | I227: 0 | J227: 0 | K227: 0 | L227: 0
... 223 more rows

Sheet Proyección Bienes de Uso
B3: Proyección Bienes de Uso
E6: Valor Contable | F6: Valor LEVIN
H7: 1 | I7: =1+H7 -> 2 | J7: =1+I7 -> 3 | K7: =1+J7 -> 4
B8: (miles de $ moneda constante) | E8: =+'Proy Economica'!E$6 -> 2015 | F8: =+'Proy Economica'!F$6 -> Base | G8: =+'Proy Economica'!G$6 -> Año 1 | H8: =+'Proy Economica'!H$6 -> Año 2 | I8: =+'Proy Economica'!I$6 -> Año 3 | J8: =+'Proy Economica'!J$6 -> Año 4 | K8: =+'Proy Economica'!K$6 -> Año 5 | L8: =+'Proy Economica'!L$6 -> Año 6
B10: BIENES DE USO
B12: VALOR DE ORIGEN (VO)
B13: Saldo al inicio | C13: mil/$ | E13: =+'[1]Anexo B'!$D$36/1000-E34 -> 7503699.87 | G13: =F16 -> 76603509.63 | H13: =G16 -> 79106684.48 | I13: =H16 -> 81291951.65 | J13: =I16 -> 84207795.73 | K13: =J16 -> 87180522.71 | L13: =K16 -> 89606438.16
B14: Inversiones | C14: mil/$ | E14: =+'[1]Anexo B'!$F$36/1000 -> 2605980.587 | G14: =+'Proyección Ingresos'!G$218 -> 2767423 | H14: =+'Proyección Ingresos'!H$218 -> 2456815 | I14: =+'Proyección Ingresos'!I$218 -> 3197132 | J14: =+'Proyección Ingresos'!J$218 -> 3263945 | K14: =+'Proyección Ingresos'!K$218 -> 2725237 | L14: =+'Proyección Ingresos'!L$218 -> 2770256
B15: Bajas (VO) | C15: mil/$ | E15: =+'[1]Anexo B'!$J$36/1000 -> -33657.969 | G15: =-G40 -> -264248.1532 | H15: =-H40 -> -271547.8247 | I15: -281287.9171 | J15: -291218.0212 | K15: -299321.5548 | L15: -307547.9904
B16: Saldo de Cierre | C16: mil/$ | E16: =+'[1]Anexo B'!$L$36/1000-E29 -> 7552531.841 | F16: =+'Proyección Ingresos'!$G$226+'Proyección Ingresos'!$G$228 -> 76603509.63 | G16: =SUM(G13:G15) -> 79106684.48 | H16: =SUM(H13:H15) -> 81291951.65 | I16: 84207795.73 | J16: 87180522.71 | K16: 89606438.16 | L16: 92069146.17
B18: AMORTIZACIONES ACUMULADAS (AA)
B19: Saldo al inicio | C19: mil/$ | E19: =+'[1]Anexo B'!$N$36/1000 -> 3847324.449 | G19: =F22 -> 44012875.91 | H19: =G22 -> 45808676.18 | I19: =H22 -> 47651317.53 | J19: =I22 -> 49559100.35 | K19: =J22 -> 51533156.16 | L19: =K22 -> 53559304.39
B20: Depreciaciones | C20: mil/$ | E20: =+'[1]Anexo B'!$R$36/1000 -> 234935.56 | F20: =+'Proyección Ingresos'!$I$226 -> 1945097.61 | G20: =+G38 -> 2015367.339 | H20: =+H38 -> 2071040.461 | I20: 2145326.18 | J20: 2221061.08 | K20: 2282865.096 | L20: 2345606.46
B21: Bajas (AA) | C21: mil/$ | E21: =+'[1]Anexo B'!$T$36/1000 -> -19473.4762 | G21: =-G42 -> -219567.0774 | H21: =-H42 -> -228399.1025 | I21: -237543.3593 | J21: -247005.2714 | K21: -256716.8693 | L21: -266681.4334
B22: Saldo de Cierre | C22: mil/$ | E22: =+'[1]Anexo B'!$V$36/1000 -> 4062786.533 | F22: =+F16-F29 -> 44012875.91 | G22: =SUM(G19:G21) -> 45808676.18 | H22: =SUM(H19:H21) -> 47651317.53 | I22: =SUM(I19:I21) -> 49559100.35 | J22: =SUM(J19:J21) -> 51533156.16 | K22: =SUM(K19:K21) -> 53559304.39 | L22: =SUM(L19:L21) -> 55638229.42
B24: VALOR NETO (VN)
B25: Saldo al inicio | C25: mil/$ | E25: =+E13-E19 -> 3656375.421 | G25: =F29 -> 32590633.72 | H25: 33298008.3 | I25: 33640634.12 | J25: 34648695.38 | K25: 35647366.55 | L25: 36047133.77
B26: Inversiones | C26: mil/$ | E26: =+E14 -> 2605980.587 | F26: =+E26 -> 2605980.587 | G26: =+G14 -> 2767423 | H26: =+H14 -> 2456815 | I26: 3197132 | J26: 3263945 | K26: 2725237 | L26: 2770256
B27: Depreciaciones | C27: mil/$ | E27: =-E20 -> -234935.56 | G27: =-G20 -> -2015367.339 | H27: -2071040.461 | I27: -2145326.18 | J27: -2221061.08 | K27: -2282865.096 | L27: -2345606.46
B28: Bajas | C28: mil/$ | E28: =(E15-E21) -> -14184.4928 | G28: =(G15-G21) -> -44681.07574 | H28: -43148.7222 | I28: -43744.55778 | J28: -44212.74987 | K28: -42604.68555 | L28: -40866.55697
B29: Saldo de Cierre | C29: mil/$ | E29: =SUM(E25:E28) -> 6013235.955 | F29: =+'Proyección Ingresos'!$H$226+'Proyección Ingresos'!$H$228 -> 32590633.72 | G29: =SUM(G25:G28) -> 33298008.3 | H29: 33640634.12 | I29: 34648695.38 | J29: 35647366.55 | K29: 36047133.77 | L29: 36430916.75
B32: Obras en Curso | C32: mil/$ | E32: =+'[1]Anexo B'!$L$30/1000 -> 2927986.145 | F32: =+E32 -> 2927986.145 | G32: =+F32*G$14/E$14 -> 3109377.039 | H32: =+G32*H$14/G$14 -> 2760389.052 | I32: =+H32*I$14/H$14 -> 3592182.63 | J32: 3667251.316 | K32: 3061978.365 | L32: 3112560.096
B33: Anticipo a proveedores | C33: mil/$ | E33: =+'[1]Anexo B'!$L$31/1000 -> 561759.163 | F33: =+E33 -> 561759.163 | G33: =+F33*G$14/E$14 -> 596560.5561 | H33: =+G33*H$14/G$14 -> 529604.2284 | I33: 689190.9346 | J33: 703593.5035 | K33: 587466.7155 | L33: 597171.2528
B34: OBRAS EN CURSO - ANTICIPO PROVEEDORES | E34: =SUM(E32:E33) -> 3489745.308 | F34: 3489745.308 | G34: 3705937.595 | H34: 3289993.28 | I34: 4281373.565 | J34: 4370844.82 | K34: 3649445.081 | L34: 3709731.349
B36: DEPRECIACION DEL EJERCICIO
B38: Depreciaciones del Período | C38: mil/$ | E38: =+E20 -> 234935.56 | F38: =+F20 -> 1945097.61 | G38: =(G13+G14)*G$39 -> 2015367.339 | H38: =(H13+H14)*H$39 -> 2071040.461 | I38: 2145326.18 | J38: 2221061.08 | K38: 2282865.096 | L38: 2345606.46
C39: % | E39: =+E38/(E$13+E$14) -> 0.02323867317 | F39: =+F38/F$16 -> 0.0253917558 | G39: =+F39 -> 0.0253917558 | H39: 0.0253917558 | I39: 0.0253917558 | J39: 0.0253917558 | K39: 0.0253917558 | L39: 0.0253917558
B40: Bajas VO | C40: mil/$ | E40: =-E15 -> 33657.969 | F40: =+F41*F16 -> 255034.6238 | G40: =+G41*(G13+G14) -> 264248.1532 | H40: =+H41*(H13+H14) -> 271547.8247 | I40: 281287.9171 | J40: 291218.0212 | K40: 299321.5548 | L40: 307547.9904
C41: % | E41: =+E40/(E$13+E$14) -> 0.003329281192 | F41: =+E41 -> 0.003329281192 | G41: 0.003329281192 | H41: 0.003329281192 | I41: 0.003329281192 | J41: 0.003329281192 | K41: 0.003329281192 | L41: 0.003329281192
B42: Bajas AA | C42: mil/$ | E42: =-E21 -> 19473.4762 | F42: =+F43*F22 -> 209953.2342 | G42: =+G43*(G19+G20) -> 219567.0774 | H42: =+H43*(H19+H20) -> 228399.1025 | I42: 237543.3593 | J42: 247005.2714 | K42: 256716.8693 | L42: 266681.4334
C43: % | E43: =+E42/(E19+E20) -> 0.004770268468 | F43: =+E43 -> 0.004770268468 | G43: =+F43 -> 0.004770268468 | H43: 0.004770268468 | I43: 0.004770268468 | J43: 0.004770268468 | K43: 0.004770268468 | L43: 0.004770268468
B45: Total Depreciaciones más Bajas | E45: =+E38+E40-E42 -> 249120.0528 | F45: =+F38+F40-F42 -> 1990179 | G45: 2060048.415 | H45: 2114189.183 | I45: 2189070.738 | J45: 2265273.83 | K45: 2325469.781 | L45: 2386473.017
B48: Depreciaciones Operativas | E48: =+'[1]Anexo E'!$J$31/1000+E40-E42 -> 230325.2078 | F48: =+F$45*$E48/$E$51 -> 1840030.084 | G48: =+G$45*$E48/$E$51 -> 1904628.206 | H48: 1954684.328 | I48: 2023916.449 | J48: 2094370.404 | K48: 2150024.876 | L48: 2206425.727
B49: Depreciaciones Comerciales | E49: =+'[1]Anexo D'!$J$36/1000 -> 6130.73 | F49: =+F$45*$E49/$E$51 -> 48977.39046 | G49: 50696.84466 | H49: 52029.22408 | I49: 53872.02472 | J49: 55747.3478 | K49: 57228.7425 | L49: 58730.00408
B50: Depreciaciones Administrativas | E50: =+'[1]Anexo F'!$J$17/1000 -> 12664.115 | F50: 101171.5253 | G50: 104723.3642 | H50: 107475.6313 | I50: 111282.2643 | J50: 115156.0782 | K50: 118216.1629 | L50: 121317.2861
B51: Total Depreciaciones | E51: =SUM(E48:E50) -> 249120.0528 | F51: =SUM(F48:F50) -> 1990179 | G51: 2060048.415 | H51: 2114189.183 | I51: 2189070.738 | J51: 2265273.83 | K51: 2325469.781 | L51: =SUM(L48:L50) -> 2386473.017
B53: Depreciacion Intangibles | C53: mil/$ | E53: 0 | F53: 0 | G53: 0 | H53: 0 | I53: 0 | J53: 0 | K53: 0 | L53: 0
B100: Inicio | C100: 4716798 | E100: Inicio | F100: 2116216 | H100: 2600582
B101: Alta | C101: 149224 | E101: Alta | F101: 192509
B102: Baja | C102: 49485 | E102: Baja | F102: 26375
C103: 99739 | F103: 166134 | H103: -66395
B104: Cierre | C104: 4816537 | E104: Cierre | F104: 2282350 | H104: 2534187

Sheet Proyeccion costos
B3: Proyección de Costos
E6: 2014 | F6: =+'Proy Economica'!F$6 -> Base | G6: =+'Proy Economica'!G$6 -> Año 1 | H6: =+'Proy Economica'!H$6 -> Año 2 | I6: =+'Proy Economica'!I$6 -> Año 3 | J6: =+'Proy Economica'!J$6 -> Año 4 | K6: =+'Proy Economica'!K$6 -> Año 5 | L6: =+'Proy Economica'!L$6 -> Año 6
B8: Costos de Operación y Mantenimiento | C8: mil/$ | E8: =SUM(E9:E12) -> 0 | F8: 3662309.054 | G8: 3699494.789 | H8: 3720973.607 | I8: 3739753.794 | J8: 3764924.652 | K8: 3824752.426 | L8: 3884798.96
B9: Remuneraciones y Cargas Sociales | C9: mil/$ | F9: =+[2]Hoja6!$C$6 -> 2119697.475 | G9: =+[2]Hoja6!$C$10 -> 2140439.106 | H9: =+[2]Hoja6!$C$14 -> 2153919.652 | I9: =+[2]Hoja6!$C$18 -> 2165943.89 | J9: =+[2]Hoja6!$C$22 -> 2182053.733 | K9: =+[2]Hoja6!$C$26 -> 2227862.823 | L9: =+[2]Hoja6!$C$30 -> 2274384.753
B10: Materiales de Explotación | C10: mil/$ | F10: =[2]Hoja6!$D$6 -> 289062.8813 | G10: =[2]Hoja6!$D$10 -> 291209.4281 | H10: =[2]Hoja6!$D$14 -> 292706.2312 | I10: =[2]Hoja6!$D$18 -> 293655.9921 | J10: =[2]Hoja6!$D$22 -> 295422.5492 | K10: =[2]Hoja6!$D$26 -> 299243.8565 | L10: =[2]Hoja6!$D$30 -> 302898.2062
B11: Servicios Contratados | C11: mil/$ | F11: =[2]Hoja6!$E$6 -> 1253548.697 | G11: =[2]Hoja6!$E$10 -> 1267846.254 | H11: =[2]Hoja6!$E$14 -> 1274347.724 | I11: =[2]Hoja6!$E$18 -> 1280153.912 | J11: =[2]Hoja6!$E$22 -> 1287448.369 | K11: =[2]Hoja6!$E$26 -> 1297645.747 | L11: =[2]Hoja6!$E$30 -> 1307516.001
B12: Otros Egresos Operativos | C12: mil/$
B14: Nº de Empleados | C14: Unid. | F14: =+[2]Hoja6!$B$6 -> 2335.440806 | G14: =+[2]Hoja6!$B$10 -> 2358.368063 | H14: =+[2]Hoja6!$B$14 -> 2373.458416 | I14: =+[2]Hoja6!$B$18 -> 2386.458164 | J14: =+[2]Hoja6!$B$22 -> 2405.547985 | K14: =+[2]Hoja6!$B$26 -> 2457.637137 | L14: =+[2]Hoja6!$B$30 -> 2511.636863
B17: Costos de Comercializacion | E17: =SUM(E18:E21) -> 0 | F17: =SUM(F18:F21) -> 2196463.667 | G17: =SUM(G18:G21) -> 2250214.355 | H17: 2285302.568 | I17: =SUM(I18:I21) -> 2310570.037 | J17: 2333262.623 | K17: =SUM(K18:K21) -> 2355887.923 | L17: 2383048.25
B18: Remuneraciones y Cargas Sociales | C18: mil/$ | F18: =+[2]Hoja6!$C$5 -> 1395863.965 | G18: =+[2]Hoja6!$C$9 -> 1432103.688 | H18: =+[2]Hoja6!$C$13 -> 1455396.972 | I18: =+[2]Hoja6!$C$17 -> 1472377.415 | J18: =+[2]Hoja6!$C$21 -> 1486971.852 | K18: =+[2]Hoja6!$C$25 -> 1501526.107 | L18: =+[2]Hoja6!$C$29 -> 1520262.996
B19: Materiales de Explotación | C19: mil/$ | F19: =[2]Hoja6!$D$5 -> 64054.67148 | G19: =[2]Hoja6!$D$9 -> 65068.14213 | H19: =[2]Hoja6!$D$13 -> 65819.20666 | I19: =[2]Hoja6!$D$17 -> 66324.26031 | J19: =[2]Hoja6!$D$21 -> 66825.30755 | K19: =[2]Hoja6!$D$25 -> 67324.46544 | L19: =[2]Hoja6!$D$29 -> 67820.17407
B20: Servicios Contratados | C20: mil/$ | F20: =[2]Hoja6!$E$5 -> 736545.0304 | G20: =[2]Hoja6!$E$9 -> 753042.5244 | H20: =[2]Hoja6!$E$13 -> 764086.3892 | I20: =[2]Hoja6!$E$17 -> 771868.3619 | J20: =[2]Hoja6!$E$21 -> 779465.4631 | K20: =[2]Hoja6!$E$25 -> 787037.3503 | L20: =[2]Hoja6!$E$29 -> 794965.0802
B21: Otros | C21: mil/$
B23: Nº de Empleados | C23: Unid. | F23: =[2]Hoja6!$B$5 -> 1654.809194 | G23: =[2]Hoja6!$B$9 -> 1699.997322 | H23: =[2]Hoja6!$B$13 -> 1729.964661 | I23: =[2]Hoja6!$B$17 -> 1749.964913 | J23: =[2]Hoja6!$B$21 -> 1767.932784 | K23: =[2]Hoja6!$B$25 -> 1785.901325 | L23: =[2]Hoja6!$B$29 -> 1808.901599
B26: Costos de Administración | E26: =SUM(E27:E30) -> 0 | F26: =SUM(F27:F30) -> 495145.6366 | G26: =SUM(G27:G30) -> 500328.0795 | H26: 502706.0296 | I26: =SUM(I27:I30) -> 505918.311 | J26: 508474.6314 | K26: =SUM(K27:K30) -> 511022.2435 | L26: 515198.9198
B27: Remuneraciones y Cargas Sociales | C27: mil/$ | F27: =+[2]Hoja6!$C$4 -> 336614.1869 | G27: =+[2]Hoja6!$C$8 -> 339741.3863 | H27: =+[2]Hoja6!$C$12 -> 340545.98 | I27: =+[2]Hoja6!$C$16 -> 342686.2344 | J27: =+[2]Hoja6!$C$20 -> 344204.2463 | K27: =+[2]Hoja6!$C$24 -> 345722.2582 | L27: =+[2]Hoja6!$C$28 -> 348849.4576
B28: Materiales de Explotación | C28: mil/$ | F28: =[2]Hoja6!$D$4 -> 24811.29491 | G28: =[2]Hoja6!$D$8 -> 25133.50626 | H28: =[2]Hoja6!$D$12 -> 25389.16119 | I28: =[2]Hoja6!$D$16 -> 25553.23722 | J28: =[2]Hoja6!$D$20 -> 25716.00254 | K28: =[2]Hoja6!$D$24 -> 25877.47419 | L28: =[2]Hoja6!$D$28 -> 26037.63514
B29: Servicios Contratados | C29: mil/$ | F29: =[2]Hoja6!$E$4 -> 133720.1547 | G29: =[2]Hoja6!$E$8 -> 135453.187 | H29: =[2]Hoja6!$E$12 -> 136770.8884 | I29: =[2]Hoja6!$E$16 -> 137678.8393 | J29: =[2]Hoja6!$E$20 -> 138554.3826 | K29: =[2]Hoja6!$E$24 -> 139422.5111 | L29: =[2]Hoja6!$E$28 -> 140311.8271
B30: Otros | C30: mil/$
B32: Nº de Empleados | C32: Unid. | F32: =[2]Hoja6!$B$4 -> 362 | G32: =[2]Hoja6!$B$8 -> 366 | H32: =[2]Hoja6!$B$12 -> 367 | I32: =[2]Hoja6!$B$16 -> 370 | J32: =[2]Hoja6!$B$20 -> 372 | K32: =[2]Hoja6!$B$24 -> 374 | L32: =[2]Hoja6!$B$28 -> 378
B35: TOTAL Costos OyM, Com y Adm | E35: =SUM(E36:E39) -> 0 | F35: =+F8+F17+F26 -> 6353918.358 | G35: =+G8+G17+G26 -> 6450037.223 | H35: 6508982.205 | I35: 6556242.142 | J35: 6606661.906 | K35: 6691662.593 | L35: 6783046.13
B36: Remuneraciones y Cargas Sociales | C36: mil/$ | F36: =+F9+F18+F27 -> 3852175.627 | G36: =+G9+G18+G27 -> 3912284.181 | H36: 3949862.604 | I36: 3981007.539 | J36: 4013229.831 | K36: 4075111.188 | L36: 4143497.207
B37: Materiales de Explotación | C37: mil/$ | F37: =+F10+F19+F28 -> 377928.8476 | G37: 381411.0765 | H37: 383914.599 | I37: 385533.4896 | J37: 387963.8593 | K37: 392445.7961 | L37: 396756.0154
B38: Servicios Contratados | C38: mil/$ | F38: =+F11+F20+F29 -> 2123813.883 | G38: 2156341.966 | H38: 2175205.002 | I38: 2189701.113 | J38: 2205468.215 | K38: 2224105.609 | L38: 2242792.908
B39: Otros | C39: mil/$ | F39: =+F12+F21+F30 -> 0 | G39: 0 | H39: 0 | I39: 0 | J39: 0 | K39: 0 | L39: 0
B41: Nº de Empleados | C41: Unid. | F41: =+F14+F23+F32 -> 4352.25 | G41: 4424.365385 | H41: 4470.423077 | I41: 4506.423077 | J41: 4545.480769 | K41: 4617.538462 | L41: 4698.538462
B44: Impuestos y Tasas | E44: =SUM(E45:E48) -> 0 | F44: =SUM(F45:F48) -> 272552.571 | G44: 272645.1242 | H44: 281905.1771 | I44: =SUM(I45:I48) -> 293462.8089 | J44: 306700.5804 | K44: =SUM(K45:K48) -> 324037.4986 | L44: 344775.9778
B45: Impuesto al Movimiento en Cuentas Corrientes | C45: miles $ | F45: =+[3]Hoja1!$D3/1000 -> 221269.864 | G45: =+F45*'Proy Economica'!G$9/'Proy Economica'!F$9 -> 221345.0027 | H45: =+G45*'Proy Economica'!H$9/'Proy Economica'!G$9 -> 228862.7107 | I45: =+H45*'Proy Economica'!I$9/'Proy Economica'!H$9 -> 238245.6917 | J45: =+I45*'Proy Economica'!J$9/'Proy Economica'!I$9 -> 248992.6823 | K45: =+J45*'Proy Economica'!K$9/'Proy Economica'!J$9 -> 263067.5359 | L45: =+K45*'Proy Economica'!L$9/'Proy Economica'!K$9 -> 279903.9225
B46: Tasa de Seguridad e Higiene | C46: miles $ | F46: =+[3]Hoja1!$D4/1000 -> 9057.47 | G46: =+F46*'Proy Economica'!G$9/'Proy Economica'!F$9 -> 9060.54573 | H46: =+G46*'Proy Economica'!H$9/'Proy Economica'!G$9 -> 9368.275908 | I46: =+H46*'Proy Economica'!I$9/'Proy Economica'!H$9 -> 9752.359252 | J46: =+I46*'Proy Economica'!J$9/'Proy Economica'!I$9 -> 10192.27702 | K46: =+J46*'Proy Economica'!K$9/'Proy Economica'!J$9 -> 10768.41767 | L46: =+K46*'Proy Economica'!L$9/'Proy Economica'!K$9 -> 11457.59904
B47: Tasa de Inspección y Control ENRE | C47: miles $ | F47: =+[3]Hoja1!$D5/1000 -> 22355.298 | G47: =+F47*'Proy Economica'!G$9/'Proy Economica'!F$9 -> 22362.8894 | H47: =+G47*'Proy Economica'!H$9/'Proy Economica'!G$9 -> 23122.41715 | I47: =+H47*'Proy Economica'!I$9/'Proy Economica'!H$9 -> 24070.39684 | J47: =+I47*'Proy Economica'!J$9/'Proy Economica'!I$9 -> 25156.18491 | K47: =+J47*'Proy Economica'!K$9/'Proy Economica'!J$9 -> 26578.19304 | L47: =+K47*'Proy Economica'!L$9/'Proy Economica'!K$9 -> 28279.20389
B48: Otras Tasas e Impuestos | C48: miles $ | F48: =+[3]Hoja1!$D6/1000 -> 19869.939 | G48: =+F48*'Proy Economica'!G$9/'Proy Economica'!F$9 -> 19876.68642 | H48: =+G48*'Proy Economica'!H$9/'Proy Economica'!G$9 -> 20551.77338 | I48: =+H48*'Proy Economica'!I$9/'Proy Economica'!H$9 -> 21394.36106 | J48: =+I48*'Proy Economica'!J$9/'Proy Economica'!I$9 -> 22359.43621 | K48: =+J48*'Proy Economica'!K$9/'Proy Economica'!J$9 -> 23623.35203 | L48: =+K48*'Proy Economica'!L$9/'Proy Economica'!K$9 -> 25135.25234
B51: Otros Gastos
B52: Penalidades Servicio Técnico | C52: mil/$ | F52: =113950.605726-F53 -> 99689.42543 | G52: =+'Proyección Ingresos'!G219 -> 317383.2151 | H52: =+'Proyección Ingresos'!H219 -> 353006.1716 | I52: =+'Proyección Ingresos'!I219 -> 317706.2338 | J52: =+'Proyección Ingresos'!J219 -> 421705.0996 | K52: =+'Proyección Ingresos'!K219 -> 740790.1568 | L52: =+'Proyección Ingresos'!L219 -> 1554275.364
B53: Penalidades Producto Técnico | C53: mil/$ | F53: =14261.1803 -> 14261.1803 | G53: =+'Proyección Ingresos'!G220 -> 6477.29226 | H53: =+'Proyección Ingresos'!H220 -> 4927.82993 | I53: =+'Proyección Ingresos'!I220 -> 15505.4956 | J53: =+'Proyección Ingresos'!J220 -> 31010.9912 | K53: =+'Proyección Ingresos'!K220 -> 62021.9824 | L53: =+'Proyección Ingresos'!L220 -> 77527.478
B54: Penalidades Servicio Comercial | C54: mil/$ | F54: =+'[1]Anexo D'!$J$44/1000 -> 28477.921 | G54: =+'Proyección Ingresos'!G221 -> 96451.20479 | H54: =+'Proyección Ingresos'!H221 -> 91628.64455 | I54: =+'Proyección Ingresos'!I221 -> 87047.21233 | J54: =+'Proyección Ingresos'!J221 -> 78342.49109 | K54: =+'Proyección Ingresos'!K221 -> 70508.24198 | L54: =+'Proyección Ingresos'!L221 -> 63457.41779
B55: Penalidades Seguridad Via Pública | C55: mil/$ | F55: =+'[1]Anexo E'!$J$42/1000 -> 104988.319 | G55: =+'Proyección Ingresos'!G222 -> 104988.319 | H55: =+'Proyección Ingresos'!H222 -> 105775.7314 | I55: =+'Proyección Ingresos'!I222 -> 106833.4887 | J55: =+'Proyección Ingresos'!J222 -> 107901.8236 | K55: =+'Proyección Ingresos'!K222 -> 108980.8418 | L55: =+'Proyección Ingresos'!L222 -> 110070.6502
B56: Incobrables - [ como % de la Facturación ] | C56: % | F56: =+'Proyección Ingresos'!F208 -> 0.015 | G56: =+'Proyección Ingresos'!G208 -> 0.015 | H56: =+'Proyección Ingresos'!H208 -> 0.014 | I56: =+'Proyección Ingresos'!I208 -> 0.012 | J56: =+'Proyección Ingresos'!J208 -> 0.011 | K56: =+'Proyección Ingresos'!K208 -> 0.01 | L56: =+'Proyección Ingresos'!L208 -> 0.01
B57: Incobrables | C57: mil/$ | F57: =F56*'Resumen Ingresos y Abastec'!F37/1000 -> 283431.7325 | G57: =G56*'Resumen Ingresos y Abastec'!G37/1000 -> 283527.9801 | H57: =H56*'Resumen Ingresos y Abastec'!H37/1000 -> 273613.8119 | I57: =I56*'Resumen Ingresos y Abastec'!I37/1000 -> 244141.2959 | J57: =J56*'Resumen Ingresos y Abastec'!J37/1000 -> 233891.3779 | K57: =K56*'Resumen Ingresos y Abastec'!K37/1000 -> 224647.8158 | L57: =L56*'Resumen Ingresos y Abastec'!L37/1000 -> 239025.3309

Sheet Proyección Ingresos
B3: Datos Generales para Proyección de Ingresos
B6: PROYECCIÓN DE LOS DATOS PARA CÁLCULO DE TARIFAS
B8: PRECIOS DE ENERGÍA | E8: =+'Proy Economica'!E$6 -> 2015 | F8: =+'Proy Economica'!F$6 -> Base | G8: =+'Proy Economica'!G$6 -> Año 1 | H8: =+'Proy Economica'!H$6 -> Año 2 | I8: =+'Proy Economica'!I$6 -> Año 3 | J8: =+'Proy Economica'!J$6 -> Año 4 | K8: =+'Proy Economica'!K$6 -> Año 5 | L8: =+'Proy Economica'!L$6 -> Año 6
B10: PpotR | C10: [$/kW] | E10: =VLOOKUP(B10,'[4]Salida Guille'!$D$177:$E$204,2,0) -> 1.4276 | F10: =+E10 -> 1.4276 | G10: 1.4276 | H10: 1.4276 | I10: 1.4276 | J10: 1.4276 | K10: 1.4276 | L10: 1.4276
B11: PpotA | C11: [$/kW] | E11: =VLOOKUP(B11,'[4]Salida Guille'!$D$177:$E$204,2,0) -> 1.4276 | F11: 1.4276 | G11: 1.4276 | H11: 1.4276 | I11: 1.4276 | J11: 1.4276 | K11: 1.4276 | L11: 1.4276
B12: PpotG | C12: [$/kW] | E12: =VLOOKUP(B12,'[4]Salida Guille'!$D$177:$E$204,2,0) -> 1.4276 | F12: 1.4276 | G12: 1.4276 | H12: 1.4276 | I12: 1.4276 | J12: 1.4276 | K12: 1.4276 | L12: 1.4276
B13: PPOT | C13: [$/kW] | E13: =VLOOKUP(B13,'[4]Salida Guille'!$D$177:$E$204,2,0) -> 1.4276 | F13: 1.4276 | G13: 1.4276 | H13: 1.4276 | I13: 1.4276 | J13: 1.4276 | K13: 1.4276 | L13: 1.4276
B14: PPOTy | C14: [$/kW] | E14: =+E13 -> 1.4276 | F14: 1.4276 | G14: 1.4276 | H14: 1.4276 | I14: 1.4276 | J14: 1.4276 | K14: 1.4276 | L14: 1.4276
B15: PepR | C15: [$/kWh] | E15: =VLOOKUP(B15,'[4]Salida Guille'!$D$177:$E$204,2,0) -> 0.32139 | F15: 0.32139 | G15: 0.32139 | H15: 0.32139 | I15: 0.32139 | J15: 0.32139 | K15: 0.32139 | L15: 0.32139
B16: PerR | C16: [$/kWh] | E16: =VLOOKUP(B16,'[4]Salida Guille'!$D$177:$E$204,2,0) -> 0.31709 | F16: 0.31709 | G16: 0.31709 | H16: 0.31709 | I16: 0.31709 | J16: 0.31709 | K16: 0.31709 | L16: 0.31709
B17: PevR | C17: [$/kWh] | E17: =VLOOKUP(B17,'[4]Salida Guille'!$D$177:$E$204,2,0) -> 0.31226 | F17: 0.31226 | G17: 0.31226 | H17: 0.31226 | I17: 0.31226 | J17: 0.31226 | K17: 0.31226 | L17: 0.31226
B18: PepA | C18: [$/kWh] | E18: =VLOOKUP(B18,'[4]Salida Guille'!$D$177:$E$204,2,0) -> 0.32139 | F18: 0.32139 | G18: 0.32139 | H18: 0.32139 | I18: 0.32139 | J18: 0.32139 | K18: 0.32139 | L18: 0.32139
B19: PerA | C19: [$/kWh] | E19: =VLOOKUP(B19,'[4]Salida Guille'!$D$177:$E$204,2,0) -> 0.31709 | F19: 0.31709 | G19: 0.31709 | H19: 0.31709 | I19: 0.31709 | J19: 0.31709 | K19: 0.31709 | L19: 0.31709
B20: PevA | C20: [$/kWh] | E20: =VLOOKUP(B20,'[4]Salida Guille'!$D$177:$E$204,2,0) -> 0.31226 | F20: =+E20 -> 0.31226 | G20: 0.31226 | H20: 0.31226 | I20: 0.31226 | J20: 0.31226 | K20: 0.31226 | L20: 0.31226
B21: PepG | C21: [$/kWh] | E21: =VLOOKUP(B21,'[4]Salida Guille'!$D$177:$E$204,2,0) -> 0.32139 | F21: 0.32139 | G21: 0.32139 | H21: 0.32139 | I21: 0.32139 | J21: 0.32139 | K21: 0.32139 | L21: 0.32139
B22: PerG | C22: [$/kWh] | E22: =VLOOKUP(B22,'[4]Salida Guille'!$D$177:$E$204,2,0) -> 0.31709 | F22: 0.31709 | G22: 0.31709 | H22: 0.31709 | I22: 0.31709 | J22: 0.31709 | K22: 0.31709 | L22: 0.31709
B23: PevG | C23: [$/kWh] | E23: =VLOOKUP(B23,'[4]Salida Guille'!$D$177:$E$204,2,0) -> 0.31226 | F23: 0.31226 | G23: 0.31226 | H23: 0.31226 | I23: 0.31226 | J23: 0.31226 | K23: 0.31226 | L23: 0.31226
B24: Pep | C24: [$/kWh] | E24: =VLOOKUP(B24,'[4]Salida Guille'!$D$177:$E$204,2,0) -> 0.32139 | F24: 0.32139 | G24: 0.32139 | H24: 0.32139 | I24: 0.32139 | J24: 0.32139 | K24: 0.32139 | L24: 0.32139
B25: Per | C25: [$/kWh] | E25: =VLOOKUP(B25,'[4]Salida Guille'!$D$177:$E$204,2,0) -> 0.31709 | F25: 0.31709 | G25: 0.31709 | H25: 0.31709 | I25: 0.31709 | J25: 0.31709 | K25: 0.31709 | L25: 0.31709
B26: Pev | C26: [$/kWh] | E26: =VLOOKUP(B26,'[4]Salida Guille'!$D$177:$E$204,2,0) -> 0.31226 | F26: 0.31226 | G26: 0.31226 | H26: 0.31226 | I26: 0.31226 | J26: 0.31226 | K26: 0.31226 | L26: 0.31226
B27: Pepy | C27: [$/kWh] | E27: =VLOOKUP(B27,'[4]Salida Guille'!$D$177:$E$204,2,0) -> 0.77302 | F27: 0.77302 | G27: 0.77302 | H27: 0.77302 | I27: 0.77302 | J27: 0.77302 | K27: 0.77302 | L27: 0.77302
B28: Pery | C28: [$/kWh] | E28: =VLOOKUP(B28,'[4]Salida Guille'!$D$177:$E$204,2,0) -> 0.76872 | F28: 0.76872 | G28: 0.76872 | H28: 0.76872 | I28: 0.76872 | J28: 0.76872 | K28: 0.76872 | L28: 0.76872
B29: Pevy | C29: [$/kWh] | E29: =VLOOKUP(B29,'[4]Salida Guille'!$D$177:$E$204,2,0) -> 0.76389 | F29: 0.76389 | G29: 0.76389 | H29: 0.76389 | I29: 0.76389 | J29: 0.76389 | K29: 0.76389 | L29: 0.76389
B30: CUSTR | C30: [$ / kW-mes] | E30: =VLOOKUP(B30,'[4]Salida Guille'!$D$177:$E$204,2,0) -> 0.6645285142 | F30: =+E30 -> 0.6645285142 | G30: 0.6645285142 | H30: 0.6645285142 | I30: 0.6645285142 | J30: 0.6645285142 | K30: 0.6645285142 | L30: 0.6645285142
B31: CUSTA | C31: [$ / kW-mes] | E31: =VLOOKUP(B31,'[4]Salida Guille'!$D$177:$E$204,2,0) -> 0.6645285142 | F31: 0.6645285142 | G31: 0.6645285142 | H31: 0.6645285142 | I31: 0.6645285142 | J31: 0.6645285142 | K31: 0.6645285142 | L31: 0.6645285142
B32: CUSTG | C32: [$ / kW-mes] | E32: =VLOOKUP(B32,'[4]Salida Guille'!$D$177:$E$204,2,0) -> 0.6645285142 | F32: 0.6645285142 | G32: 0.6645285142 | H32: 0.6645285142 | I32: 0.6645285142 | J32: 0.6645285142 | K32: 0.6645285142 | L32: 0.6645285142
B33: CUST | C33: [$ / kW-mes] | E33: =VLOOKUP(B33,'[4]Salida Guille'!$D$177:$E$204,2,0) -> 0.6645285142 | F33: 0.6645285142 | G33: 0.6645285142 | H33: 0.6645285142 | I33: 0.6645285142 | J33: 0.6645285142 | K33: 0.6645285142 | L33: 0.6645285142
B34: CUSTy | C34: [$ / kW-mes] | E34: =+E33 -> 0.6645285142 | F34: 0.6645285142 | G34: 0.6645285142 | H34: 0.6645285142 | I34: 0.6645285142 | J34: 0.6645285142 | K34: 0.6645285142 | L34: 0.6645285142
B35: FONINVEMEM | C35: [$/kWh] | E35: =VLOOKUP(B35,'[4]Salida Guille'!$D$177:$E$204,2,0)*0 -> 0 | F35: 0 | G35: 0 | H35: 0 | I35: 0 | J35: 0 | K35: 0 | L35: 0
B36: FNEE | C36: [$/kWh] | E36: =VLOOKUP(B36,'[4]Salida Guille'!$D$177:$E$204,2,0) -> 0.0054686 | F36: 0.0054686 | G36: 0.0054686 | H36: 0.0054686 | I36: 0.0054686 | J36: 0.0054686 | K36: 0.0054686 | L36: 0.0054686
B37: Tasas e Impuestos | C37: [ $ ] | F37: ='Proyeccion costos '!F44*1000 -> 272552571 | G37: ='Proyeccion costos '!G44*1000 -> 272645124.2 | H37: ='Proyeccion costos '!H44*1000 -> 281905177.1 | I37: ='Proyeccion costos '!I44*1000 -> 293462808.9 | J37: ='Proyeccion costos '!J44*1000 -> 306700580.4 | K37: ='Proyeccion costos '!K44*1000 -> 324037498.6 | L37: ='Proyeccion costos '!L44*1000 -> 344775977.8
B38: Energía Total Distribuida | C38: [ kWh ] | F38: ='Resumen Ingresos y Abastec'!F188*1000 -> 1.7851695e+10 | G38: ='Resumen Ingresos y Abastec'!G188*1000 -> 1.824515285e+10 | H38: ='Resumen Ingresos y Abastec'!H188*1000 -> 1.891715576e+10 | I38: ='Resumen Ingresos y Abastec'!I188*1000 -> 1.963461239e+10 | J38: ='Resumen Ingresos y Abastec'!J188*1000 -> 2.031338981e+10 | K38: ='Resumen Ingresos y Abastec'!K188*1000 -> 2.095087231e+10 | L38: ='Resumen Ingresos y Abastec'!L188*1000 -> 2.158135548e+10
B39: SCE | C39: [$/kWh] | F39: =F37/F38 -> 0.01526760182 | G39: 0.01494342779 | H39: 0.01490209103 | I39: 0.01494619823 | J39: 0.0150984441 | K39: 0.01546653971 | L39: 0.01597564055
B41: % respecto del año base
B42: CDR1 | C42: [$/kW mes] | E42: 36.19510459 | F42: 0 | G42: =IF('Ingresos Requeridos'!#REF!="NO",'Ingresos Requeridos'!#REF!,'Ingresos Requeridos'!#REF!) ->  | H42: =IF('Ingresos Requeridos'!#REF!="NO",'Ingresos Requeridos'!#REF!,'Ingresos Requeridos'!#REF!) ->  | I42: =IF('Ingresos Requeridos'!#REF!="NO",'Ingresos Requeridos'!#REF!,'Ingresos Requeridos'!#REF!) ->  | J42: =IF('Ingresos Requeridos'!#REF!="NO",'Ingresos Requeridos'!#REF!,'Ingresos Requeridos'!#REF!) ->  | K42: =IF('Ingresos Requeridos'!#REF!="NO",'Ingresos Requeridos'!#REF!,'Ingresos Requeridos'!#REF!) ->  | L42: =IF('Ingresos Requeridos'!#REF!="NO",'Ingresos Requeridos'!#REF!,'Ingresos Requeridos'!#REF!) -> 
B43: CDR2 | C43: [$/kW mes] | E43: 36.19510459 | F43: 0 | G43: =IF('Ingresos Requeridos'!#REF!="NO",'Ingresos Requeridos'!#REF!,'Ingresos Requeridos'!#REF!) ->  | H43: =IF('Ingresos Requeridos'!#REF!="NO",'Ingresos Requeridos'!#REF!,'Ingresos Requeridos'!#REF!) ->  | I43: =IF('Ingresos Requeridos'!#REF!="NO",'Ingresos Requeridos'!#REF!,'Ingresos Requeridos'!#REF!) ->  | J43: =IF('Ingresos Requeridos'!#REF!="NO",'Ingresos Requeridos'!#REF!,'Ingresos Requeridos'!#REF!) ->  | K43: =IF('Ingresos Requeridos'!#REF!="NO",'Ingresos Requeridos'!#REF!,'Ingresos Requeridos'!#REF!) ->  | L43: =IF('Ingresos Requeridos'!#REF!="NO",'Ingresos Requeridos'!#REF!,'Ingresos Requeridos'!#REF!) -> 
B44: CDG1 | C44: [$/kW mes] | E44: 38.602211 | F44: 0 | G44: =IF('Ingresos Requeridos'!#REF!="NO",'Ingresos Requeridos'!#REF!,'Ingresos Requeridos'!#REF!) ->  | H44: =IF('Ingresos Requeridos'!#REF!="NO",'Ingresos Requeridos'!#REF!,'Ingresos Requeridos'!#REF!) ->  | I44: =IF('Ingresos Requeridos'!#REF!="NO",'Ingresos Requeridos'!#REF!,'Ingresos Requeridos'!#REF!) ->  | J44: =IF('Ingresos Requeridos'!#REF!="NO",'Ingresos Requeridos'!#REF!,'Ingresos Requeridos'!#REF!) ->  | K44: =IF('Ingresos Requeridos'!#REF!="NO",'Ingresos Requeridos'!#REF!,'Ingresos Requeridos'!#REF!) ->  | L44: =IF('Ingresos Requeridos'!#REF!="NO",'Ingresos Requeridos'!#REF!,'Ingresos Requeridos'!#REF!) -> 
B45: CDG2 | C45: [$/kW mes] | E45: 36.84157713 | F45: 0 | G45: =IF('Ingresos Requeridos'!#REF!="NO",'Ingresos Requeridos'!#REF!,'Ingresos Requeridos'!#REF!) ->  | H45: =IF('Ingresos Requeridos'!#REF!="NO",'Ingresos Requeridos'!#REF!,'Ingresos Requeridos'!#REF!) ->  | I45: =IF('Ingresos Requeridos'!#REF!="NO",'Ingresos Requeridos'!#REF!,'Ingresos Requeridos'!#REF!) ->  | J45: =IF('Ingresos Requeridos'!#REF!="NO",'Ingresos Requeridos'!#REF!,'Ingresos Requeridos'!#REF!) ->  | K45: =IF('Ingresos Requeridos'!#REF!="NO",'Ingresos Requeridos'!#REF!,'Ingresos Requeridos'!#REF!) ->  | L45: =IF('Ingresos Requeridos'!#REF!="NO",'Ingresos Requeridos'!#REF!,'Ingresos Requeridos'!#REF!) -> 
B46: CDG3 | C46: [$/kW mes] | E46: 33.49814535 | F46: 0 | G46: =IF('Ingresos Requeridos'!#REF!="NO",'Ingresos Requeridos'!#REF!,'Ingresos Requeridos'!#REF!) ->  | H46: =IF('Ingresos Requeridos'!#REF!="NO",'Ingresos Requeridos'!#REF!,'Ingresos Requeridos'!#REF!) ->  | I46: =IF('Ingresos Requeridos'!#REF!="NO",'Ingresos Requeridos'!#REF!,'Ingresos Requeridos'!#REF!) ->  | J46: =IF('Ingresos Requeridos'!#REF!="NO",'Ingresos Requeridos'!#REF!,'Ingresos Requeridos'!#REF!) ->  | K46: =IF('Ingresos Requeridos'!#REF!="NO",'Ingresos Requeridos'!#REF!,'Ingresos Requeridos'!#REF!) ->  | L46: =IF('Ingresos Requeridos'!#REF!="NO",'Ingresos Requeridos'!#REF!,'Ingresos Requeridos'!#REF!) -> 
B47: CDAP | C47: [$/kW mes] | E47: 39.85965326 | F47: 0 | G47: =IF('Ingresos Requeridos'!#REF!="NO",'Ingresos Requeridos'!#REF!,'Ingresos Requeridos'!#REF!) ->  | H47: =IF('Ingresos Requeridos'!#REF!="NO",'Ingresos Requeridos'!#REF!,'Ingresos Requeridos'!#REF!) ->  | I47: =IF('Ingresos Requeridos'!#REF!="NO",'Ingresos Requeridos'!#REF!,'Ingresos Requeridos'!#REF!) ->  | J47: =IF('Ingresos Requeridos'!#REF!="NO",'Ingresos Requeridos'!#REF!,'Ingresos Requeridos'!#REF!) ->  | K47: =IF('Ingresos Requeridos'!#REF!="NO",'Ingresos Requeridos'!#REF!,'Ingresos Requeridos'!#REF!) ->  | L47: =IF('Ingresos Requeridos'!#REF!="NO",'Ingresos Requeridos'!#REF!,'Ingresos Requeridos'!#REF!) -> 
B48: CDT2 | C48: [$/kW mes] | E48: 24.93789026 | F48: 0 | G48: =IF('Ingresos Requeridos'!#REF!="NO",'Ingresos Requeridos'!#REF!,'Ingresos Requeridos'!#REF!) ->  | H48: =IF('Ingresos Requeridos'!#REF!="NO",'Ingresos Requeridos'!#REF!,'Ingresos Requeridos'!#REF!) ->  | I48: =IF('Ingresos Requeridos'!#REF!="NO",'Ingresos Requeridos'!#REF!,'Ingresos Requeridos'!#REF!) ->  | J48: =IF('Ingresos Requeridos'!#REF!="NO",'Ingresos Requeridos'!#REF!,'Ingresos Requeridos'!#REF!) ->  | K48: =IF('Ingresos Requeridos'!#REF!="NO",'Ingresos Requeridos'!#REF!,'Ingresos Requeridos'!#REF!) ->  | L48: =IF('Ingresos Requeridos'!#REF!="NO",'Ingresos Requeridos'!#REF!,'Ingresos Requeridos'!#REF!) -> 
B49: CDT3B | C49: [$/kW mes] | E49: 27.6335208 | F49: 0 | G49: =IF('Ingresos Requeridos'!#REF!="NO",'Ingresos Requeridos'!#REF!,'Ingresos Requeridos'!#REF!) ->  | H49: =IF('Ingresos Requeridos'!#REF!="NO",'Ingresos Requeridos'!#REF!,'Ingresos Requeridos'!#REF!) ->  | I49: =IF('Ingresos Requeridos'!#REF!="NO",'Ingresos Requeridos'!#REF!,'Ingresos Requeridos'!#REF!) ->  | J49: =IF('Ingresos Requeridos'!#REF!="NO",'Ingresos Requeridos'!#REF!,'Ingresos Requeridos'!#REF!) ->  | K49: =IF('Ingresos Requeridos'!#REF!="NO",'Ingresos Requeridos'!#REF!,'Ingresos Requeridos'!#REF!) ->  | L49: =IF('Ingresos Requeridos'!#REF!="NO",'Ingresos Requeridos'!#REF!,'Ingresos Requeridos'!#REF!) -> 
B50: CDT3M | C50: [$/kW mes] | E50: 19.09910917 | F50: 0 | G50: =IF('Ingresos Requeridos'!#REF!="NO",'Ingresos Requeridos'!#REF!,'Ingresos Requeridos'!#REF!) ->  | H50: =IF('Ingresos Requeridos'!#REF!="NO",'Ingresos Requeridos'!#REF!,'Ingresos Requeridos'!#REF!) ->  | I50: =IF('Ingresos Requeridos'!#REF!="NO",'Ingresos Requeridos'!#REF!,'Ingresos Requeridos'!#REF!) ->  | J50: =IF('Ingresos Requeridos'!#REF!="NO",'Ingresos Requeridos'!#REF!,'Ingresos Requeridos'!#REF!) ->  | K50: =IF('Ingresos Requeridos'!#REF!="NO",'Ingresos Requeridos'!#REF!,'Ingresos Requeridos'!#REF!) ->  | L50: =IF('Ingresos Requeridos'!#REF!="NO",'Ingresos Requeridos'!#REF!,'Ingresos Requeridos'!#REF!) -> 
B51: CDT3A | C51: [$/kW mes] | E51: 6.112326008 | F51: 0 | G51: =IF('Ingresos Requeridos'!#REF!="NO",'Ingresos Requeridos'!#REF!,'Ingresos Requeridos'!#REF!) ->  | H51: =IF('Ingresos Requeridos'!#REF!="NO",'Ingresos Requeridos'!#REF!,'Ingresos Requeridos'!#REF!) ->  | I51: =IF('Ingresos Requeridos'!#REF!="NO",'Ingresos Requeridos'!#REF!,'Ingresos Requeridos'!#REF!) ->  | J51: =IF('Ingresos Requeridos'!#REF!="NO",'Ingresos Requeridos'!#REF!,'Ingresos Requeridos'!#REF!) ->  | K51: =IF('Ingresos Requeridos'!#REF!="NO",'Ingresos Requeridos'!#REF!,'Ingresos Requeridos'!#REF!) ->  | L51: =IF('Ingresos Requeridos'!#REF!="NO",'Ingresos Requeridos'!#REF!,'Ingresos Requeridos'!#REF!) -> 
B52: CDFTTMA | C52: [$/kW mes] | E52: 1.525314284 | F52: 0 | G52: =IF('Ingresos Requeridos'!#REF!="NO",'Ingresos Requeridos'!#REF!,'Ingresos Requeridos'!#REF!) ->  | H52: =IF('Ingresos Requeridos'!#REF!="NO",'Ingresos Requeridos'!#REF!,'Ingresos Requeridos'!#REF!) ->  | I52: =IF('Ingresos Requeridos'!#REF!="NO",'Ingresos Requeridos'!#REF!,'Ingresos Requeridos'!#REF!) ->  | J52: =IF('Ingresos Requeridos'!#REF!="NO",'Ingresos Requeridos'!#REF!,'Ingresos Requeridos'!#REF!) ->  | K52: =IF('Ingresos Requeridos'!#REF!="NO",'Ingresos Requeridos'!#REF!,'Ingresos Requeridos'!#REF!) ->  | L52: =IF('Ingresos Requeridos'!#REF!="NO",'Ingresos Requeridos'!#REF!,'Ingresos Requeridos'!#REF!) -> 
B53: CDNFB | C53: [$/kW mes] | E53: 3.571130075 | F53: 0 | G53: =IF('Ingresos Requeridos'!#REF!="NO",'Ingresos Requeridos'!#REF!,'Ingresos Requeridos'!#REF!) ->  | H53: =IF('Ingresos Requeridos'!#REF!="NO",'Ingresos Requeridos'!#REF!,'Ingresos Requeridos'!#REF!) ->  | I53: =IF('Ingresos Requeridos'!#REF!="NO",'Ingresos Requeridos'!#REF!,'Ingresos Requeridos'!#REF!) ->  | J53: =IF('Ingresos Requeridos'!#REF!="NO",'Ingresos Requeridos'!#REF!,'Ingresos Requeridos'!#REF!) ->  | K53: =IF('Ingresos Requeridos'!#REF!="NO",'Ingresos Requeridos'!#REF!,'Ingresos Requeridos'!#REF!) ->  | L53: =IF('Ingresos Requeridos'!#REF!="NO",'Ingresos Requeridos'!#REF!,'Ingresos Requeridos'!#REF!) -> 
B54: CDNFM | C54: [$/kW mes] | E54: 1.113303954 | F54: 0 | G54: =IF('Ingresos Requeridos'!#REF!="NO",'Ingresos Requeridos'!#REF!,'Ingresos Requeridos'!#REF!) ->  | H54: =IF('Ingresos Requeridos'!#REF!="NO",'Ingresos Requeridos'!#REF!,'Ingresos Requeridos'!#REF!) ->  | I54: =IF('Ingresos Requeridos'!#REF!="NO",'Ingresos Requeridos'!#REF!,'Ingresos Requeridos'!#REF!) ->  | J54: =IF('Ingresos Requeridos'!#REF!="NO",'Ingresos Requeridos'!#REF!,'Ingresos Requeridos'!#REF!) ->  | K54: =IF('Ingresos Requeridos'!#REF!="NO",'Ingresos Requeridos'!#REF!,'Ingresos Requeridos'!#REF!) ->  | L54: =IF('Ingresos Requeridos'!#REF!="NO",'Ingresos Requeridos'!#REF!,'Ingresos Requeridos'!#REF!) -> 
B55: CDNFA | C55: [$/kW mes] | E55: 0.4327563079 | F55: 0 | G55: =IF('Ingresos Requeridos'!#REF!="NO",'Ingresos Requeridos'!#REF!,'Ingresos Requeridos'!#REF!) ->  | H55: =IF('Ingresos Requeridos'!#REF!="NO",'Ingresos Requeridos'!#REF!,'Ingresos Requeridos'!#REF!) ->  | I55: =IF('Ingresos Requeridos'!#REF!="NO",'Ingresos Requeridos'!#REF!,'Ingresos Requeridos'!#REF!) ->  | J55: =IF('Ingresos Requeridos'!#REF!="NO",'Ingresos Requeridos'!#REF!,'Ingresos Requeridos'!#REF!) ->  | K55: =IF('Ingresos Requeridos'!#REF!="NO",'Ingresos Requeridos'!#REF!,'Ingresos Requeridos'!#REF!) ->  | L55: =IF('Ingresos Requeridos'!#REF!="NO",'Ingresos Requeridos'!#REF!,'Ingresos Requeridos'!#REF!) -> 
B56: CDNFMA | C56: [$/kW mes] | E56: 0.1560659816 | F56: 0 | G56: =IF('Ingresos Requeridos'!#REF!="NO",'Ingresos Requeridos'!#REF!,'Ingresos Requeridos'!#REF!) ->  | H56: =IF('Ingresos Requeridos'!#REF!="NO",'Ingresos Requeridos'!#REF!,'Ingresos Requeridos'!#REF!) ->  | I56: =IF('Ingresos Requeridos'!#REF!="NO",'Ingresos Requeridos'!#REF!,'Ingresos Requeridos'!#REF!) ->  | J56: =IF('Ingresos Requeridos'!#REF!="NO",'Ingresos Requeridos'!#REF!,'Ingresos Requeridos'!#REF!) ->  | K56: =IF('Ingresos Requeridos'!#REF!="NO",'Ingresos Requeridos'!#REF!,'Ingresos Requeridos'!#REF!) ->  | L56: =IF('Ingresos Requeridos'!#REF!="NO",'Ingresos Requeridos'!#REF!,'Ingresos Requeridos'!#REF!) -> 
B57: % respecto del año base
B60: PROYECCIÓN DEL MERCADO
B62: FACTURAS ANUALES | E62: =+'Proy Economica'!E$6 -> 2015 | F62: =+'Proy Economica'!F$6 -> Base | G62: =+'Proy Economica'!G$6 -> Año 1 | H62: =+'Proy Economica'!H$6 -> Año 2 | I62: =+'Proy Economica'!I$6 -> Año 3 | J62: =+'Proy Economica'!J$6 -> Año 4 | K62: =+'Proy Economica'!K$6 -> Año 5 | L62: =+'Proy Economica'!L$6 -> Año 6
B64: T1R1 | C64: [%] | G64: =+'[4]Salida Guille'!B$146 -> 0.0113791581 | H64: =+'[4]Salida Guille'!C$146 -> 0.01308942034 | I64: =+'[4]Salida Guille'!D$146 -> 0.007785025761 | J64: =+'[4]Salida Guille'!E$146 -> 0.00766621494 | K64: =+'[4]Salida Guille'!F$146 -> 0.007549665209 | L64: =+'[4]Salida Guille'!G$146 -> 0.007435305142
B65: T1R2 | C65: [%] | G65: =+'[4]Salida Guille'!B$146 -> 0.0113791581 | H65: =+'[4]Salida Guille'!C$146 -> 0.01308942034 | I65: =+'[4]Salida Guille'!D$146 -> 0.007785025761 | J65: =+'[4]Salida Guille'!E$146 -> 0.00766621494 | K65: =+'[4]Salida Guille'!F$146 -> 0.007549665209 | L65: =+'[4]Salida Guille'!G$146 -> 0.007435305142
B66: T1R3 | C66: [%] | G66: =+'[4]Salida Guille'!B$146 -> 0.0113791581 | H66: =+'[4]Salida Guille'!C$146 -> 0.01308942034 | I66: =+'[4]Salida Guille'!D$146 -> 0.007785025761 | J66: =+'[4]Salida Guille'!E$146 -> 0.00766621494 | K66: =+'[4]Salida Guille'!F$146 -> 0.007549665209 | L66: =+'[4]Salida Guille'!G$146 -> 0.007435305142
B67: T1G1 | C67: [%] | G67: =+'[4]Salida Guille'!B$147 -> 0.01513334701 | H67: =+'[4]Salida Guille'!C$147 -> 0.005019507534 | I67: =+'[4]Salida Guille'!D$147 -> 0.004994437915 | J67: =+'[4]Salida Guille'!E$147 -> 0.004969617469 | K67: =+'[4]Salida Guille'!F$147 -> 0.0049450425 | L67: =+'[4]Salida Guille'!G$147 -> 0.004920709383
B68: T1G2 | C68: [%] | G68: =+'[4]Salida Guille'!B$147 -> 0.01513334701 | H68: =+'[4]Salida Guille'!C$147 -> 0.005019507534 | I68: =+'[4]Salida Guille'!D$147 -> 0.004994437915 | J68: =+'[4]Salida Guille'!E$147 -> 0.004969617469 | K68: =+'[4]Salida Guille'!F$147 -> 0.0049450425 | L68: =+'[4]Salida Guille'!G$147 -> 0.004920709383
B69: T1G3 | C69: [%] | G69: =+'[4]Salida Guille'!B$147 -> 0.01513334701 | H69: =+'[4]Salida Guille'!C$147 -> 0.005019507534 | I69: =+'[4]Salida Guille'!D$147 -> 0.004994437915 | J69: =+'[4]Salida Guille'!E$147 -> 0.004969617469 | K69: =+'[4]Salida Guille'!F$147 -> 0.0049450425 | L69: =+'[4]Salida Guille'!G$147 -> 0.004920709383
B70: T1AP | C70: [%] | G70: =+'[4]Salida Guille'!B$148 -> 0 | H70: =+'[4]Salida Guille'!C$148 -> 0 | I70: =+'[4]Salida Guille'!D$148 -> 0 | J70: =+'[4]Salida Guille'!E$148 -> 0 | K70: =+'[4]Salida Guille'!F$148 -> 0 | L70: =+'[4]Salida Guille'!G$148 -> 0
B71: T2 | C71: [%] | G71: =+'[4]Salida Guille'!B$149 -> 0.1269271052 | H71: =+'[4]Salida Guille'!C$149 -> 0.04652528777 | I71: =+'[4]Salida Guille'!D$149 -> 0.04445691692 | J71: =+'[4]Salida Guille'!E$149 -> 0.04256462492 | K71: =+'[4]Salida Guille'!F$149 -> 0.04082684555 | L71: =+'[4]Salida Guille'!G$149 -> 0.03922539636
B72: T3BT <300 kW | C72: [%] | G72: =+'[4]Salida Guille'!B$150 -> 0.1330171395 | H72: =+'[4]Salida Guille'!C$150 -> 0.04908466577 | I72: =+'[4]Salida Guille'!D$150 -> 0.0467880881 | J72: =+'[4]Salida Guille'!E$150 -> 0.04469680983 | K72: =+'[4]Salida Guille'!F$150 -> 0.04278448006 | L72: =+'[4]Salida Guille'!G$150 -> 0.04102907252
B73: T3MT <300 kW | C73: [%] | G73: =+'[4]Salida Guille'!B$151 -> 0.09885364613 | H73: =+'[4]Salida Guille'!C$151 -> 0.03604802979 | I73: =+'[4]Salida Guille'!D$151 -> 0.03479378248 | J73: =+'[4]Salida Guille'!E$151 -> 0.0336238805 | K73: =+'[4]Salida Guille'!F$151 -> 0.03253009255 | L73: =+'[4]Salida Guille'!G$151 -> 0.03150522468
B74: T3AT <300 kW | C74: [%] | G74: =+'[4]Salida Guille'!B$152 -> 0 | H74: =+'[4]Salida Guille'!C$152 -> 0.125 | I74: =+'[4]Salida Guille'!D$152 -> 0 | J74: =+'[4]Salida Guille'!E$152 -> 0 | K74: =+'[4]Salida Guille'!F$152 -> 0 | L74: =+'[4]Salida Guille'!G$152 -> 0
B75: T3BT >300 kW | C75: [%] | G75: =+'[4]Salida Guille'!B$150 -> 0.1330171395 | H75: =+'[4]Salida Guille'!C$150 -> 0.04908466577 | I75: =+'[4]Salida Guille'!D$150 -> 0.0467880881 | J75: =+'[4]Salida Guille'!E$150 -> 0.04469680983 | K75: =+'[4]Salida Guille'!F$150 -> 0.04278448006 | L75: =+'[4]Salida Guille'!G$150 -> 0.04102907252
B76: T3MT >300 kW | C76: [%] | G76: =+'[4]Salida Guille'!B$151 -> 0.09885364613 | H76: =+'[4]Salida Guille'!C$151 -> 0.03604802979 | I76: =+'[4]Salida Guille'!D$151 -> 0.03479378248 | J76: =+'[4]Salida Guille'!E$151 -> 0.0336238805 | K76: =+'[4]Salida Guille'!F$151 -> 0.03253009255 | L76: =+'[4]Salida Guille'!G$151 -> 0.03150522468
B77: T3AT >300 kW | C77: [%] | G77: =+'[4]Salida Guille'!B$152 -> 0 | H77: =+'[4]Salida Guille'!C$152 -> 0.125 | I77: =+'[4]Salida Guille'!D$152 -> 0 | J77: =+'[4]Salida Guille'!E$152 -> 0 | K77: =+'[4]Salida Guille'!F$152 -> 0 | L77: =+'[4]Salida Guille'!G$152 -> 0
B78: PJBT <300 kW | C78: [%] | G78: =+'[4]Salida Guille'!B$150 -> 0.1330171395 | H78: =+'[4]Salida Guille'!C$150 -> 0.04908466577 | I78: =+'[4]Salida Guille'!D$150 -> 0.0467880881 | J78: =+'[4]Salida Guille'!E$150 -> 0.04469680983 | K78: =+'[4]Salida Guille'!F$150 -> 0.04278448006 | L78: =+'[4]Salida Guille'!G$150 -> 0.04102907252
B79: PJMT <300 kW | C79: [%] | G79: =+'[4]Salida Guille'!B$151 -> 0.09885364613 | H79: =+'[4]Salida Guille'!C$151 -> 0.03604802979 | I79: =+'[4]Salida Guille'!D$151 -> 0.03479378248 | J79: =+'[4]Salida Guille'!E$151 -> 0.0336238805 | K79: =+'[4]Salida Guille'!F$151 -> 0.03253009255 | L79: =+'[4]Salida Guille'!G$151 -> 0.03150522468
B80: PJAT <300 kW | C80: [%] | G80: =+'[4]Salida Guille'!B$152 -> 0 | H80: =+'[4]Salida Guille'!C$152 -> 0.125 | I80: =+'[4]Salida Guille'!D$152 -> 0 | J80: =+'[4]Salida Guille'!E$152 -> 0 | K80: =+'[4]Salida Guille'!F$152 -> 0 | L80: =+'[4]Salida Guille'!G$152 -> 0
B81: PJBT >300 kW | C81: [%] | G81: =+'[4]Salida Guille'!B$150 -> 0.1330171395 | H81: =+'[4]Salida Guille'!C$150 -> 0.04908466577 | I81: =+'[4]Salida Guille'!D$150 -> 0.0467880881 | J81: =+'[4]Salida Guille'!E$150 -> 0.04469680983 | K81: =+'[4]Salida Guille'!F$150 -> 0.04278448006 | L81: =+'[4]Salida Guille'!G$150 -> 0.04102907252
B82: PJMT >300 kW | C82: [%] | G82: =+'[4]Salida Guille'!B$151 -> 0.09885364613 | H82: =+'[4]Salida Guille'!C$151 -> 0.03604802979 | I82: =+'[4]Salida Guille'!D$151 -> 0.03479378248 | J82: =+'[4]Salida Guille'!E$151 -> 0.0336238805 | K82: =+'[4]Salida Guille'!F$151 -> 0.03253009255 | L82: =+'[4]Salida Guille'!G$151 -> 0.03150522468
B83: PJAT >300 kW | C83: [%] | G83: =+'[4]Salida Guille'!B$152 -> 0 | H83: =+'[4]Salida Guille'!C$152 -> 0.125 | I83: =+'[4]Salida Guille'!D$152 -> 0 | J83: =+'[4]Salida Guille'!E$152 -> 0 | K83: =+'[4]Salida Guille'!F$152 -> 0 | L83: =+'[4]Salida Guille'!G$152 -> 0
B85: ENERGÍA ANUAL | E85: =+'Proy Economica'!E$6 -> 2015 | F85: =+'Proy Economica'!F$6 -> Base | G85: =+'Proy Economica'!G$6 -> Año 1 | H85: =+'Proy Economica'!H$6 -> Año 2 | I85: =+'Proy Economica'!I$6 -> Año 3 | J85: =+'Proy Economica'!J$6 -> Año 4 | K85: =+'Proy Economica'!K$6 -> Año 5 | L85: =+'Proy Economica'!L$6 -> Año 6
B87: T1R1 | C87: [%] | G87: =+'[4]Salida Guille'!B$131 -> -0.04731315795 | H87: =+'[4]Salida Guille'!C$131 -> 0.0435138535 | I87: =+'[4]Salida Guille'!D$131 -> 0.05382096336 | J87: =+'[4]Salida Guille'!E$131 -> 0.01575477813 | K87: =+'[4]Salida Guille'!F$131 -> 0.02899032661 | L87: =+'[4]Salida Guille'!G$131 -> 0.02750510476
B88: T1R2 | C88: [%] | G88: =+'[4]Salida Guille'!B$131 -> -0.04731315795 | H88: =+'[4]Salida Guille'!C$131 -> 0.0435138535 | I88: =+'[4]Salida Guille'!D$131 -> 0.05382096336 | J88: =+'[4]Salida Guille'!E$131 -> 0.01575477813 | K88: =+'[4]Salida Guille'!F$131 -> 0.02899032661 | L88: =+'[4]Salida Guille'!G$131 -> 0.02750510476
B89: T1R3 | C89: [%] | G89: =+'[4]Salida Guille'!B$131 -> -0.04731315795 | H89: =+'[4]Salida Guille'!C$131 -> 0.0435138535 | I89: =+'[4]Salida Guille'!D$131 -> 0.05382096336 | J89: =+'[4]Salida Guille'!E$131 -> 0.01575477813 | K89: =+'[4]Salida Guille'!F$131 -> 0.02899032661 | L89: =+'[4]Salida Guille'!G$131 -> 0.02750510476
B90: T1G1 | C90: [%] | G90: =+'[4]Salida Guille'!B$132 -> 0.06245702388 | H90: =+'[4]Salida Guille'!C$132 -> 0.05001693105 | I90: =+'[4]Salida Guille'!D$132 -> 0.00741797605 | J90: =+'[4]Salida Guille'!E$132 -> 0.04692795042 | K90: =+'[4]Salida Guille'!F$132 -> 0.03218065647 | L90: =+'[4]Salida Guille'!G$132 -> 0.03106511698
B91: T1G2 | C91: [%] | G91: =+'[4]Salida Guille'!B$132 -> 0.06245702388 | H91: =+'[4]Salida Guille'!C$132 -> 0.05001693105 | I91: =+'[4]Salida Guille'!D$132 -> 0.00741797605 | J91: =+'[4]Salida Guille'!E$132 -> 0.04692795042 | K91: =+'[4]Salida Guille'!F$132 -> 0.03218065647 | L91: =+'[4]Salida Guille'!G$132 -> 0.03106511698
B92: T1G3 | C92: [%] | G92: =+'[4]Salida Guille'!B$132 -> 0.06245702388 | H92: =+'[4]Salida Guille'!C$132 -> 0.05001693105 | I92: =+'[4]Salida Guille'!D$132 -> 0.00741797605 | J92: =+'[4]Salida Guille'!E$132 -> 0.04692795042 | K92: =+'[4]Salida Guille'!F$132 -> 0.03218065647 | L92: =+'[4]Salida Guille'!G$132 -> 0.03106511698
B93: T1AP | C93: [%] | G93: =+'[4]Salida Guille'!B$133 -> 0.02149089598 | H93: =+'[4]Salida Guille'!C$133 -> 0.05977390882 | I93: =+'[4]Salida Guille'!D$133 -> 0.01630318316 | J93: =+'[4]Salida Guille'!E$133 -> 0.05511737505 | K93: =+'[4]Salida Guille'!F$133 -> 0.03918009684 | L93: =+'[4]Salida Guille'!G$133 -> 0.03764863802
B94: T2 | C94: [%] | G94: =+'[4]Salida Guille'!B$134 -> 0.1041327916 | H94: =+'[4]Salida Guille'!C$134 -> 0.03530664085 | I94: =+'[4]Salida Guille'!D$134 -> -0.006294557511 | J94: =+'[4]Salida Guille'!E$134 -> 0.03400180148 | K94: =+'[4]Salida Guille'!F$134 -> 0.02090716183 | L94: =+'[4]Salida Guille'!G$134 -> 0.02027172268
B96: ENERGÍA ANUAL PUNTA | E96: =+'Proy Economica'!E$6 -> 2015 | F96: =+'Proy Economica'!F$6 -> Base | G96: =+'Proy Economica'!G$6 -> Año 1 | H96: =+'Proy Economica'!H$6 -> Año 2 | I96: =+'Proy Economica'!I$6 -> Año 3 | J96: =+'Proy Economica'!J$6 -> Año 4 | K96: =+'Proy Economica'!K$6 -> Año 5 | L96: =+'Proy Economica'!L$6 -> Año 6
B98: T3BT <300 kW | C98: [%] | G98: =+'[4]Salida Guille'!B$135 -> 0.2565008111 | H98: =+'[4]Salida Guille'!C$135 -> 0.06327015358 | I98: =+'[4]Salida Guille'!D$135 -> 0.01944735843 | J98: =+'[4]Salida Guille'!E$135 -> 0.05798114068 | K98: =+'[4]Salida Guille'!F$135 -> 0.04160216449 | L98: =+'[4]Salida Guille'!G$135 -> 0.03990617577
B99: T3MT <300 kW | C99: [%] | G99: =+'[4]Salida Guille'!B$136 -> 0.001453498729 | H99: =+'[4]Salida Guille'!C$136 -> 0.003526284918 | I99: =+'[4]Salida Guille'!D$136 -> 0.05236743658 | J99: =+'[4]Salida Guille'!E$136 -> 0.04617824473 | K99: =+'[4]Salida Guille'!F$136 -> 0.03153441351 | L99: =+'[4]Salida Guille'!G$136 -> 0.03045276964
B100: T3AT <300 kW | C100: [%] | G100: =+'[4]Salida Guille'!B$137 -> 0.39014586 | H100: =+'[4]Salida Guille'!C$137 -> 0.07615023841 | I100: =+'[4]Salida Guille'!D$137 -> 0.03085416189 | J100: =+'[4]Salida Guille'!E$137 -> 0.068223989 | K100: =+'[4]Salida Guille'!F$137 -> 0.05015889759 | L100: =+'[4]Salida Guille'!G$137 -> 0.0477982751
B101: T3BT >300 kW | C101: [%] | G101: =+'[4]Salida Guille'!B$135 -> 0.2565008111 | H101: =+'[4]Salida Guille'!C$135 -> 0.06327015358 | I101: =+'[4]Salida Guille'!D$135 -> 0.01944735843 | J101: =+'[4]Salida Guille'!E$135 -> 0.05798114068 | K101: =+'[4]Salida Guille'!F$135 -> 0.04160216449 | L101: =+'[4]Salida Guille'!G$135 -> 0.03990617577
B102: T3MT >300 kW | C102: [%] | G102: =+'[4]Salida Guille'!B$136 -> 0.001453498729 | H102: =+'[4]Salida Guille'!C$136 -> 0.003526284918 | I102: =+'[4]Salida Guille'!D$136 -> 0.05236743658 | J102: =+'[4]Salida Guille'!E$136 -> 0.04617824473 | K102: =+'[4]Salida Guille'!F$136 -> 0.03153441351 | L102: =+'[4]Salida Guille'!G$136 -> 0.03045276964
B103: T3AT >300 kW | C103: [%] | G103: =+'[4]Salida Guille'!B$137 -> 0.39014586 | H103: =+'[4]Salida Guille'!C$137 -> 0.07615023841 | I103: =+'[4]Salida Guille'!D$137 -> 0.03085416189 | J103: =+'[4]Salida Guille'!E$137 -> 0.068223989 | K103: =+'[4]Salida Guille'!F$137 -> 0.05015889759 | L103: =+'[4]Salida Guille'!G$137 -> 0.0477982751
B104: PJBT <300 kW | C104: [%] | G104: =+'[4]Salida Guille'!B$135 -> 0.2565008111 | H104: =+'[4]Salida Guille'!C$135 -> 0.06327015358 | I104: =+'[4]Salida Guille'!D$135 -> 0.01944735843 | J104: =+'[4]Salida Guille'!E$135 -> 0.05798114068 | K104: =+'[4]Salida Guille'!F$135 -> 0.04160216449 | L104: =+'[4]Salida Guille'!G$135 -> 0.03990617577
B105: PJMT <300 kW | C105: [%] | G105: =+'[4]Salida Guille'!B$136 -> 0.001453498729 | H105: =+'[4]Salida Guille'!C$136 -> 0.003526284918 | I105: =+'[4]Salida Guille'!D$136 -> 0.05236743658 | J105: =+'[4]Salida Guille'!E$136 -> 0.04617824473 | K105: =+'[4]Salida Guille'!F$136 -> 0.03153441351 | L105: =+'[4]Salida Guille'!G$136 -> 0.03045276964
B106: PJAT <300 kW | C106: [%] | G106: =+'[4]Salida Guille'!B$137 -> 0.39014586 | H106: =+'[4]Salida Guille'!C$137 -> 0.07615023841 | I106: =+'[4]Salida Guille'!D$137 -> 0.03085416189 | J106: =+'[4]Salida Guille'!E$137 -> 0.068223989 | K106: =+'[4]Salida Guille'!F$137 -> 0.05015889759 | L106: =+'[4]Salida Guille'!G$137 -> 0.0477982751
B107: PJBT >300 kW | C107: [%] | G107: =+'[4]Salida Guille'!B$135 -> 0.2565008111 | H107: =+'[4]Salida Guille'!C$135 -> 0.06327015358 | I107: =+'[4]Salida Guille'!D$135 -> 0.01944735843 | J107: =+'[4]Salida Guille'!E$135 -> 0.05798114068 | K107: =+'[4]Salida Guille'!F$135 -> 0.04160216449 | L107: =+'[4]Salida Guille'!G$135 -> 0.03990617577
B108: PJMT >300 kW | C108: [%] | G108: =+'[4]Salida Guille'!B$136 -> 0.001453498729 | H108: =+'[4]Salida Guille'!C$136 -> 0.003526284918 | I108: =+'[4]Salida Guille'!D$136 -> 0.05236743658 | J108: =+'[4]Salida Guille'!E$136 -> 0.04617824473 | K108: =+'[4]Salida Guille'!F$136 -> 0.03153441351 | L108: =+'[4]Salida Guille'!G$136 -> 0.03045276964
B109: PJAT >300 kW | C109: [%] | G109: =+'[4]Salida Guille'!B$137 -> 0.39014586 | H109: =+'[4]Salida Guille'!C$137 -> 0.07615023841 | I109: =+'[4]Salida Guille'!D$137 -> 0.03085416189 | J109: =+'[4]Salida Guille'!E$137 -> 0.068223989 | K109: =+'[4]Salida Guille'!F$137 -> 0.05015889759 | L109: =+'[4]Salida Guille'!G$137 -> 0.0477982751
B112: ENERGÍA ANUAL RESTO | E112: =+'Proy Economica'!E$6 -> 2015 | F112: =+'Proy Economica'!F$6 -> Base | G112: =+'Proy Economica'!G$6 -> Año 1 | H112: =+'Proy Economica'!H$6 -> Año 2 | I112: =+'Proy Economica'!I$6 -> Año 3 | J112: =+'Proy Economica'!J$6 -> Año 4 | K112: =+'Proy Economica'!K$6 -> Año 5 | L112: =+'Proy Economica'!L$6 -> Año 6
B114: T3BT <300 kW | C114: [%] | G114: =+'[4]Salida Guille'!B$135 -> 0.2565008111 | H114: =+'[4]Salida Guille'!C$135 -> 0.06327015358 | I114: =+'[4]Salida Guille'!D$135 -> 0.01944735843 | J114: =+'[4]Salida Guille'!E$135 -> 0.05798114068 | K114: =+'[4]Salida Guille'!F$135 -> 0.04160216449 | L114: =+'[4]Salida Guille'!G$135 -> 0.03990617577
B115: T3MT <300 kW | C115: [%] | G115: =+'[4]Salida Guille'!B$136 -> 0.001453498729 | H115: =+'[4]Salida Guille'!C$136 -> 0.003526284918 | I115: =+'[4]Salida Guille'!D$136 -> 0.05236743658 | J115: =+'[4]Salida Guille'!E$136 -> 0.04617824473 | K115: =+'[4]Salida Guille'!F$136 -> 0.03153441351 | L115: =+'[4]Salida Guille'!G$136 -> 0.03045276964
B116: T3AT <300 kW | C116: [%] | G116: =+'[4]Salida Guille'!B$137 -> 0.39014586 | H116: =+'[4]Salida Guille'!C$137 -> 0.07615023841 | I116: =+'[4]Salida Guille'!D$137 -> 0.03085416189 | J116: =+'[4]Salida Guille'!E$137 -> 0.068223989 | K116: =+'[4]Salida Guille'!F$137 -> 0.05015889759 | L116: =+'[4]Salida Guille'!G$137 -> 0.0477982751
B117: T3BT >300 kW | C117: [%] | G117: =+'[4]Salida Guille'!B$135 -> 0.2565008111 | H117: =+'[4]Salida Guille'!C$135 -> 0.06327015358 | I117: =+'[4]Salida Guille'!D$135 -> 0.01944735843 | J117: =+'[4]Salida Guille'!E$135 -> 0.05798114068 | K117: =+'[4]Salida Guille'!F$135 -> 0.04160216449 | L117: =+'[4]Salida Guille'!G$135 -> 0.03990617577
B118: T3MT >300 kW | C118: [%] | G118: =+'[4]Salida Guille'!B$136 -> 0.001453498729 | H118: =+'[4]Salida Guille'!C$136 -> 0.003526284918 | I118: =+'[4]Salida Guille'!D$136 -> 0.05236743658 | J118: =+'[4]Salida Guille'!E$136 -> 0.04617824473 | K118: =+'[4]Salida Guille'!F$136 -> 0.03153441351 | L118: =+'[4]Salida Guille'!G$136 -> 0.03045276964
B119: T3AT >300 kW | C119: [%] | G119: =+'[4]Salida Guille'!B$137 -> 0.39014586 | H119: =+'[4]Salida Guille'!C$137 -> 0.07615023841 | I119: =+'[4]Salida Guille'!D$137 -> 0.03085416189 | J119: =+'[4]Salida Guille'!E$137 -> 0.068223989 | K119: =+'[4]Salida Guille'!F$137 -> 0.05015889759 | L119: =+'[4]Salida Guille'!G$137 -> 0.0477982751
B120: PJBT <300 kW | C120: [%] | G120: =+'[4]Salida Guille'!B$135 -> 0.2565008111 | H120: =+'[4]Salida Guille'!C$135 -> 0.06327015358 | I120: =+'[4]Salida Guille'!D$135 -> 0.01944735843 | J120: =+'[4]Salida Guille'!E$135 -> 0.05798114068 | K120: =+'[4]Salida Guille'!F$135 -> 0.04160216449 | L120: =+'[4]Salida Guille'!G$135 -> 0.03990617577
B121: PJMT <300 kW | C121: [%] | G121: =+'[4]Salida Guille'!B$136 -> 0.001453498729 | H121: =+'[4]Salida Guille'!C$136 -> 0.003526284918 | I121: =+'[4]Salida Guille'!D$136 -> 0.05236743658 | J121: =+'[4]Salida Guille'!E$136 -> 0.04617824473 | K121: =+'[4]Salida Guille'!F$136 -> 0.03153441351 | L121: =+'[4]Salida Guille'!G$136 -> 0.03045276964
B122: PJAT <300 kW | C122: [%] | G122: =+'[4]Salida Guille'!B$137 -> 0.39014586 | H122: =+'[4]Salida Guille'!C$137 -> 0.07615023841 | I122: =+'[4]Salida Guille'!D$137 -> 0.03085416189 | J122: =+'[4]Salida Guille'!E$137 -> 0.068223989 | K122: =+'[4]Salida Guille'!F$137 -> 0.05015889759 | L122: =+'[4]Salida Guille'!G$137 -> 0.0477982751
B123: PJBT >300 kW | C123: [%] | G123: =+'[4]Salida Guille'!B$135 -> 0.2565008111 | H123: =+'[4]Salida Guille'!C$135 -> 0.06327015358 | I123: =+'[4]Salida Guille'!D$135 -> 0.01944735843 | J123: =+'[4]Salida Guille'!E$135 -> 0.05798114068 | K123: =+'[4]Salida Guille'!F$135 -> 0.04160216449 | L123: =+'[4]Salida Guille'!G$135 -> 0.03990617577
B124: PJMT >300 kW | C124: [%] | G124: =+'[4]Salida Guille'!B$136 -> 0.001453498729 | H124: =+'[4]Salida Guille'!C$136 -> 0.003526284918 | I124: =+'[4]Salida Guille'!D$136 -> 0.05236743658 | J124: =+'[4]Salida Guille'!E$136 -> 0.04617824473 | K124: =+'[4]Salida Guille'!F$136 -> 0.03153441351 | L124: =+'[4]Salida Guille'!G$136 -> 0.03045276964
B125: PJAT >300 kW | C125: [%] | G125: =+'[4]Salida Guille'!B$137 -> 0.39014586 | H125: =+'[4]Salida Guille'!C$137 -> 0.07615023841 | I125: =+'[4]Salida Guille'!D$137 -> 0.03085416189 | J125: =+'[4]Salida Guille'!E$137 -> 0.068223989 | K125: =+'[4]Salida Guille'!F$137 -> 0.05015889759 | L125: =+'[4]Salida Guille'!G$137 -> 0.0477982751
B130: ENERGÍA ANUAL VALLE | E130: =+'Proy Economica'!E$6 -> 2015 | F130: =+'Proy Economica'!F$6 -> Base | G130: =+'Proy Economica'!G$6 -> Año 1 | H130: =+'Proy Economica'!H$6 -> Año 2 | I130: =+'Proy Economica'!I$6 -> Año 3 | J130: =+'Proy Economica'!J$6 -> Año 4 | K130: =+'Proy Economica'!K$6 -> Año 5 | L130: =+'Proy Economica'!L$6 -> Año 6
B132: T3BT <300 kW | C132: [%] | G132: =+'[4]Salida Guille'!B$135 -> 0.2565008111 | H132: =+'[4]Salida Guille'!C$135 -> 0.06327015358 | I132: =+'[4]Salida Guille'!D$135 -> 0.01944735843 | J132: =+'[4]Salida Guille'!E$135 -> 0.05798114068 | K132: =+'[4]Salida Guille'!F$135 -> 0.04160216449 | L132: =+'[4]Salida Guille'!G$135 -> 0.03990617577
B133: T3MT <300 kW | C133: [%] | G133: =+'[4]Salida Guille'!B$136 -> 0.001453498729 | H133: =+'[4]Salida Guille'!C$136 -> 0.003526284918 | I133: =+'[4]Salida Guille'!D$136 -> 0.05236743658 | J133: =+'[4]Salida Guille'!E$136 -> 0.04617824473 | K133: =+'[4]Salida Guille'!F$136 -> 0.03153441351 | L133: =+'[4]Salida Guille'!G$136 -> 0.03045276964
B134: T3AT <300 kW | C134: [%] | G134: =+'[4]Salida Guille'!B$137 -> 0.39014586 | H134: =+'[4]Salida Guille'!C$137 -> 0.07615023841 | I134: =+'[4]Salida Guille'!D$137 -> 0.03085416189 | J134: =+'[4]Salida Guille'!E$137 -> 0.068223989 | K134: =+'[4]Salida Guille'!F$137 -> 0.05015889759 | L134: =+'[4]Salida Guille'!G$137 -> 0.0477982751
B135: T3BT >300 kW | C135: [%] | G135: =+'[4]Salida Guille'!B$135 -> 0.2565008111 | H135: =+'[4]Salida Guille'!C$135 -> 0.06327015358 | I135: =+'[4]Salida Guille'!D$135 -> 0.01944735843 | J135: =+'[4]Salida Guille'!E$135 -> 0.05798114068 | K135: =+'[4]Salida Guille'!F$135 -> 0.04160216449 | L135: =+'[4]Salida Guille'!G$135 -> 0.03990617577
B136: T3MT >300 kW | C136: [%] | G136: =+'[4]Salida Guille'!B$136 -> 0.001453498729 | H136: =+'[4]Salida Guille'!C$136 -> 0.003526284918 | I136: =+'[4]Salida Guille'!D$136 -> 0.05236743658 | J136: =+'[4]Salida Guille'!E$136 -> 0.04617824473 | K136: =+'[4]Salida Guille'!F$136 -> 0.03153441351 | L136: =+'[4]Salida Guille'!G$136 -> 0.03045276964
B137: T3AT >300 kW | C137: [%] | G137: =+'[4]Salida Guille'!B$137 -> 0.39014586 | H137: =+'[4]Salida Guille'!C$137 -> 0.07615023841 | I137: =+'[4]Salida Guille'!D$137 -> 0.03085416189 | J137: =+'[4]Salida Guille'!E$137 -> 0.068223989 | K137: =+'[4]Salida Guille'!F$137 -> 0.05015889759 | L137: =+'[4]Salida Guille'!G$137 -> 0.0477982751
B138: PJBT <300 kW | C138: [%] | G138: =+'[4]Salida Guille'!B$135 -> 0.2565008111 | H138: =+'[4]Salida Guille'!C$135 -> 0.06327015358 | I138: =+'[4]Salida Guille'!D$135 -> 0.01944735843 | J138: =+'[4]Salida Guille'!E$135 -> 0.05798114068 | K138: =+'[4]Salida Guille'!F$135 -> 0.04160216449 | L138: =+'[4]Salida Guille'!G$135 -> 0.03990617577
B139: PJMT <300 kW | C139: [%] | G139: =+'[4]Salida Guille'!B$136 -> 0.001453498729 | H139: =+'[4]Salida Guille'!C$136 -> 0.003526284918 | I139: =+'[4]Salida Guille'!D$136 -> 0.05236743658 | J139: =+'[4]Salida Guille'!E$136 -> 0.04617824473 | K139: =+'[4]Salida Guille'!F$136 -> 0.03153441351 | L139: =+'[4]Salida Guille'!G$136 -> 0.03045276964
B140: PJAT <300 kW | C140: [%] | G140: =+'[4]Salida Guille'!B$137 -> 0.39014586 | H140: =+'[4]Salida Guille'!C$137 -> 0.07615023841 | I140: =+'[4]Salida Guille'!D$137 -> 0.03085416189 | J140: =+'[4]Salida Guille'!E$137 -> 0.068223989 | K140: =+'[4]Salida Guille'!F$137 -> 0.05015889759 | L140: =+'[4]Salida Guille'!G$137 -> 0.0477982751
B141: PJBT >300 kW | C141: [%] | G141: =+'[4]Salida Guille'!B$135 -> 0.2565008111 | H141: =+'[4]Salida Guille'!C$135 -> 0.06327015358 | I141: =+'[4]Salida Guille'!D$135 -> 0.01944735843 | J141: =+'[4]Salida Guille'!E$135 -> 0.05798114068 | K141: =+'[4]Salida Guille'!F$135 -> 0.04160216449 | L141: =+'[4]Salida Guille'!G$135 -> 0.03990617577
B142: PJMT >300 kW | C142: [%] | G142: =+'[4]Salida Guille'!B$136 -> 0.001453498729 | H142: =+'[4]Salida Guille'!C$136 -> 0.003526284918 | I142: =+'[4]Salida Guille'!D$136 -> 0.05236743658 | J142: =+'[4]Salida Guille'!E$136 -> 0.04617824473 | K142: =+'[4]Salida Guille'!F$136 -> 0.03153441351 | L142: =+'[4]Salida Guille'!G$136 -> 0.03045276964
B143: PJAT >300 kW | C143: [%] | G143: =+'[4]Salida Guille'!B$137 -> 0.39014586 | H143: =+'[4]Salida Guille'!C$137 -> 0.07615023841 | I143: =+'[4]Salida Guille'!D$137 -> 0.03085416189 | J143: =+'[4]Salida Guille'!E$137 -> 0.068223989 | K143: =+'[4]Salida Guille'!F$137 -> 0.05015889759 | L143: =+'[4]Salida Guille'!G$137 -> 0.0477982751
B147: POTENCIA MAXIMA | E147: =+'Proy Economica'!E$6 -> 2015 | F147: =+'Proy Economica'!F$6 -> Base | G147: =+'Proy Economica'!G$6 -> Año 1 | H147: =+'Proy Economica'!H$6 -> Año 2 | I147: =+'Proy Economica'!I$6 -> Año 3 | J147: =+'Proy Economica'!J$6 -> Año 4 | K147: =+'Proy Economica'!K$6 -> Año 5 | L147: =+'Proy Economica'!L$6 -> Año 6
B149: T2 | C149: [%] | G149: =+'[4]Salida Guille'!B$163 -> -0.07358139267 | H149: =+'[4]Salida Guille'!C$163 -> 0.0175901625 | I149: =+'[4]Salida Guille'!D$163 -> 0.01698598239 | J149: =+'[4]Salida Guille'!E$163 -> 0.01530471845 | K149: =+'[4]Salida Guille'!F$163 -> 0.01345401268 | L149: =+'[4]Salida Guille'!G$163 -> 0.01283376969
B150: T3BT <300 kW | C150: [%] | G150: =+'[4]Salida Guille'!B$164 -> 0.03085622506 | H150: =+'[4]Salida Guille'!C$164 -> 0.00781604925 | I150: =+'[4]Salida Guille'!D$164 -> 0.007620785446 | J150: =+'[4]Salida Guille'!E$164 -> 0.006930303578 | K150: =+'[4]Salida Guille'!F$164 -> 0.006142932462 | L150: =+'[4]Salida Guille'!G$164 -> 0.005902316786
B151: T3MT <300 kW | C151: [%] | G151: =+'[4]Salida Guille'!B$165 -> -0.009543495868 | H151: =+'[4]Salida Guille'!C$165 -> 0.01968294942 | I151: =+'[4]Salida Guille'!D$165 -> 0.01896787753 | J151: =+'[4]Salida Guille'!E$165 -> 0.01705720564 | K151: =+'[4]Salida Guille'!F$165 -> 0.01496874524 | L151: =+'[4]Salida Guille'!G$165 -> 0.01425736222
B152: T3AT <300 kW | C152: [%] | G152: =+'[4]Salida Guille'!B$166 -> 0.2390829118 | H152: =+'[4]Salida Guille'!C$166 -> 0.1194812431 | I152: =+'[4]Salida Guille'!D$166 -> 0.1048761241 | J152: =+'[4]Salida Guille'!E$166 -> 0.08697865385 | K152: =+'[4]Salida Guille'!F$166 -> 0.07141913059 | L152: =+'[4]Salida Guille'!G$166 -> 0.06444090305
B153: T3BT >300 kW | C153: [%] | G153: =+'[4]Salida Guille'!B$164 -> 0.03085622506 | H153: =+'[4]Salida Guille'!C$164 -> 0.00781604925 | I153: =+'[4]Salida Guille'!D$164 -> 0.007620785446 | J153: =+'[4]Salida Guille'!E$164 -> 0.006930303578 | K153: =+'[4]Salida Guille'!F$164 -> 0.006142932462 | L153: =+'[4]Salida Guille'!G$164 -> 0.005902316786
B154: T3MT >300 kW | C154: [%] | G154: =+'[4]Salida Guille'!B$165 -> -0.009543495868 | H154: =+'[4]Salida Guille'!C$165 -> 0.01968294942 | I154: =+'[4]Salida Guille'!D$165 -> 0.01896787753 | J154: =+'[4]Salida Guille'!E$165 -> 0.01705720564 | K154: =+'[4]Salida Guille'!F$165 -> 0.01496874524 | L154: =+'[4]Salida Guille'!G$165 -> 0.01425736222
B155: T3AT >300 kW | C155: [%] | G155: =+'[4]Salida Guille'!B$166 -> 0.2390829118 | H155: =+'[4]Salida Guille'!C$166 -> 0.1194812431 | I155: =+'[4]Salida Guille'!D$166 -> 0.1048761241 | J155: =+'[4]Salida Guille'!E$166 -> 0.08697865385 | K155: =+'[4]Salida Guille'!F$166 -> 0.07141913059 | L155: =+'[4]Salida Guille'!G$166 -> 0.06444090305
B156: PJBT <300 kW | C156: [%] | G156: =+'[4]Salida Guille'!B$164 -> 0.03085622506 | H156: =+'[4]Salida Guille'!C$164 -> 0.00781604925 | I156: =+'[4]Salida Guille'!D$164 -> 0.007620785446 | J156: =+'[4]Salida Guille'!E$164 -> 0.006930303578 | K156: =+'[4]Salida Guille'!F$164 -> 0.006142932462 | L156: =+'[4]Salida Guille'!G$164 -> 0.005902316786
B157: PJMT <300 kW | C157: [%] | G157: =+'[4]Salida Guille'!B$165 -> -0.009543495868 | H157: =+'[4]Salida Guille'!C$165 -> 0.01968294942 | I157: =+'[4]Salida Guille'!D$165 -> 0.01896787753 | J157: =+'[4]Salida Guille'!E$165 -> 0.01705720564 | K157: =+'[4]Salida Guille'!F$165 -> 0.01496874524 | L157: =+'[4]Salida Guille'!G$165 -> 0.01425736222
B158: PJAT <300 kW | C158: [%] | G158: =+'[4]Salida Guille'!B$166 -> 0.2390829118 | H158: =+'[4]Salida Guille'!C$166 -> 0.1194812431 | I158: =+'[4]Salida Guille'!D$166 -> 0.1048761241 | J158: =+'[4]Salida Guille'!E$166 -> 0.08697865385 | K158: =+'[4]Salida Guille'!F$166 -> 0.07141913059 | L158: =+'[4]Salida Guille'!G$166 -> 0.06444090305
B159: PJBT >300 kW | C159: [%] | G159: =+'[4]Salida Guille'!B$164 -> 0.03085622506 | H159: =+'[4]Salida Guille'!C$164 -> 0.00781604925 | I159: =+'[4]Salida Guille'!D$164 -> 0.007620785446 | J159: =+'[4]Salida Guille'!E$164 -> 0.006930303578 | K159: =+'[4]Salida Guille'!F$164 -> 0.006142932462 | L159: =+'[4]Salida Guille'!G$164 -> 0.005902316786
B160: PJMT >300 kW | C160: [%] | G160: =+'[4]Salida Guille'!B$165 -> -0.009543495868 | H160: =+'[4]Salida Guille'!C$165 -> 0.01968294942 | I160: =+'[4]Salida Guille'!D$165 -> 0.01896787753 | J160: =+'[4]Salida Guille'!E$165 -> 0.01705720564 | K160: =+'[4]Salida Guille'!F$165 -> 0.01496874524 | L160: =+'[4]Salida Guille'!G$165 -> 0.01425736222
B161: PJAT >300 kW | C161: [%] | G161: =+'[4]Salida Guille'!B$166 -> 0.2390829118 | H161: =+'[4]Salida Guille'!C$166 -> 0.1194812431 | I161: =+'[4]Salida Guille'!D$166 -> 0.1048761241 | J161: =+'[4]Salida Guille'!E$166 -> 0.08697865385 | K161: =+'[4]Salida Guille'!F$166 -> 0.07141913059 | L161: =+'[4]Salida Guille'!G$166 -> 0.06444090305
B163: POTENCIA CONTRATADA | E163: =+'Proy Economica'!E$6 -> 2015 | F163: =+'Proy Economica'!F$6 -> Base | G163: =+'Proy Economica'!G$6 -> Año 1 | H163: =+'Proy Economica'!H$6 -> Año 2 | I163: =+'Proy Economica'!I$6 -> Año 3 | J163: =+'Proy Economica'!J$6 -> Año 4 | K163: =+'Proy Economica'!K$6 -> Año 5 | L163: =+'Proy Economica'!L$6 -> Año 6
B165: T2 | C165: [%] | G165: =+G149 -> -0.07358139267 | H165: =+H149 -> 0.0175901625 | I165: 0.01698598239 | J165: 0.01530471845 | K165: 0.01345401268 | L165: 0.01283376969
B166: T3BT <300 kW | C166: [%] | G166: =+G150 -> 0.03085622506 | H166: 0.00781604925 | I166: 0.007620785446 | J166: 0.006930303578 | K166: 0.006142932462 | L166: 0.005902316786
B167: T3MT <300 kW | C167: [%] | G167: =+G151 -> -0.009543495868 | H167: 0.01968294942 | I167: 0.01896787753 | J167: 0.01705720564 | K167: 0.01496874524 | L167: 0.01425736222
B168: T3AT <300 kW | C168: [%] | G168: =+G152 -> 0.2390829118 | H168: 0.1194812431 | I168: 0.1048761241 | J168: 0.08697865385 | K168: 0.07141913059 | L168: 0.06444090305
B169: T3BT >300 kW | C169: [%] | G169: =+G153 -> 0.03085622506 | H169: 0.00781604925 | I169: 0.007620785446 | J169: 0.006930303578 | K169: 0.006142932462 | L169: 0.005902316786
B170: T3MT >300 kW | C170: [%] | G170: =+G154 -> -0.009543495868 | H170: 0.01968294942 | I170: 0.01896787753 | J170: 0.01705720564 | K170: 0.01496874524 | L170: 0.01425736222
B171: T3AT >300 kW | C171: [%] | G171: =+G155 -> 0.2390829118 | H171: 0.1194812431 | I171: 0.1048761241 | J171: 0.08697865385 | K171: 0.07141913059 | L171: 0.06444090305
B172: PJBT <300 kW | C172: [%] | G172: =+G156 -> 0.03085622506 | H172: 0.00781604925 | I172: 0.007620785446 | J172: 0.006930303578 | K172: 0.006142932462 | L172: 0.005902316786
B173: PJMT <300 kW | C173: [%] | G173: =+G157 -> -0.009543495868 | H173: 0.01968294942 | I173: 0.01896787753 | J173: 0.01705720564 | K173: 0.01496874524 | L173: 0.01425736222
B174: PJAT <300 kW | C174: [%] | G174: =+G158 -> 0.2390829118 | H174: 0.1194812431 | I174: 0.1048761241 | J174: 0.08697865385 | K174: 0.07141913059 | L174: 0.06444090305
B175: PJBT >300 kW | C175: [%] | G175: =+G159 -> 0.03085622506 | H175: 0.00781604925 | I175: 0.007620785446 | J175: 0.006930303578 | K175: 0.006142932462 | L175: 0.005902316786
B176: PJMT >300 kW | C176: [%] | G176: =+G160 -> -0.009543495868 | H176: 0.01968294942 | I176: 0.01896787753 | J176: 0.01705720564 | K176: 0.01496874524 | L176: 0.01425736222
B177: PJAT >300 kW | C177: [%] | G177: =+G161 -> 0.2390829118 | H177: 0.1194812431 | I177: 0.1048761241 | J177: 0.08697865385 | K177: 0.07141913059 | L177: 0.06444090305
B180: PROYECCIÓN PÉRDIDAS PARA ABASTECIMIENTO
E182: =+'Proy Economica'!E$6 -> 2015 | F182: =+'Proy Economica'!F$6 -> Base | G182: =+'Proy Economica'!G$6 -> Año 1 | H182: =+'Proy Economica'!H$6 -> Año 2 | I182: =+'Proy Economica'!I$6 -> Año 3 | J182: =+'Proy Economica'!J$6 -> Año 4 | K182: =+'Proy Economica'!K$6 -> Año 5 | L182: =+'Proy Economica'!L$6 -> Año 6
B184: Pérdidas en la Etapa BT | C184: [%] | E184: =+'[4]Salida Guille'!$F$235 -> 0.1065341132 | F184: =+E184 -> 0.1065341132 | G184: =+F184*G207/F207 -> 0.111313545 | H184: 0.1054508501 | I184: 0.09921925435 | J184: 0.09367804213 | K184: 0.090025692 | L184: 0.08680306903
B185: Pérdidas en la Etapa MT | C185: [%] | E185: =+'[4]Salida Guille'!$F$234 -> 0.03045753899 | F185: =+E185 -> 0.03045753899 | G185: =+F185 -> 0.03045753899 | H185: 0.03045753899 | I185: 0.03045753899 | J185: 0.03045753899 | K185: 0.03045753899 | L185: 0.03045753899
B186: Pérdidas en la Etapa AT | C186: [%] | E186: =+'[4]Salida Guille'!$F$233 -> 0.01594777085 | F186: =+E186 -> 0.01594777085 | G186: 0.01594777085 | H186: 0.01594777085 | I186: 0.01594777085 | J186: 0.01594777085 | K186: 0.01594777085 | L186: 0.01594777085
B187: Factor de Pérdidas Etapa BT | C187: [°/1] | E187: =1/(1-E184) -> 1.119236912 | F187: 1.119236912 | G187: 1.125256264 | H187: 1.117881561 | I187: 1.110148063 | J187: 1.103360667 | K187: 1.098932125 | L187: 1.095054053 | N187: =1/(1-$E184*(1+N184)) -> 1.119236912
B188: Factor de Pérdidas Etapa MT | C188: [°/1] | E188: 1.031414343 | F188: 1.031414343 | G188: 1.031414343 | H188: 1.031414343 | I188: 1.031414343 | J188: 1.031414343 | K188: 1.031414343 | L188: 1.031414343 | N188: =1/(1-$E185*(1+N185)) -> 1.031414343
B189: Factor de Pérdidas Etapa AT | C189: [°/1] | E189: 1.016206224 | F189: 1.016206224 | G189: 1.016206224 | H189: 1.016206224 | I189: 1.016206224 | J189: 1.016206224 | K189: 1.016206224 | L189: 1.016206224 | N189: =1/(1-$E186*(1+N186)) -> 1.016206224
B190: Factor de Pérdidas Total BT | C190: [°/1] | E190: =E187*E188*E189 -> 1.17310542 | F190: 1.17310542 | G190: 1.179414481 | H190: 1.171684837 | I190: 1.163579128 | J190: 1.156465057 | K190: 1.15182337 | L190: 1.147758648 | N190: =N187*N188*N189 -> 1.17310542
B191: Factor de Pérdidas Total MT | C191: [°/1] | E191: =E188*E189 -> 1.048129674 | F191: 1.048129674 | G191: 1.048129674 | H191: 1.048129674 | I191: 1.048129674 | J191: 1.048129674 | K191: 1.048129674 | L191: 1.048129674 | N191: =N188*N189 -> 1.048129674
B192: Factor de Pérdidas Total AT | C192: [°/1] | E192: =E189 -> 1.016206224 | F192: 1.016206224 | G192: 1.016206224 | H192: 1.016206224 | I192: 1.016206224 | J192: 1.016206224 | K192: 1.016206224 | L192: 1.016206224 | N192: =N189 -> 1.016206224
B193: % respecto del año base
E196: ENERGIA INGRESADA TOTAL PROYECCION DEMANDA | F196: ='Proyección Ingresos'!F203 -> 21109118.77 | G196: ='Proyección Ingresos'!G203 -> 21611963.21 | H196: ='Proyección Ingresos'!H203 -> 22252371.11 | I196: ='Proyección Ingresos'!I203 -> 22894802.46 | J196: ='Proyección Ingresos'!J203 -> 23532578.58 | K196: ='Proyección Ingresos'!K203 -> 24163962.03 | L196: ='Proyección Ingresos'!L203 -> 24795273.48
E197: ENERGIA INGRESADA TOTAL MODELO | F197: ='Resumen Ingresos y Abastec'!F196 -> 20442027.94 | G197: ='Resumen Ingresos y Abastec'!G196 -> 20981760.95 | H197: ='Resumen Ingresos y Abastec'!H196 -> 21664559.95 | I197: ='Resumen Ingresos y Abastec'!I196 -> 22356922.22 | J197: ='Resumen Ingresos y Abastec'!J196 -> 23016109.4 | K197: ='Resumen Ingresos y Abastec'!K196 -> 23665715.6 | L197: ='Resumen Ingresos y Abastec'!L196 -> 24312269.76
E198: DIFERENCIA: Modelo no incluye villas | F198: =F197-F196 -> -667090.8261 | G198: -630202.2608 | H198: -587811.1634 | I198: -537880.2415 | J198: -516469.1835 | K198: -498246.4265 | L198: -483003.7179
E201: Modelo | F201: Real
B202: PROYECCION DE VENTAS | E202: =+'Proy Economica'!E$6 -> 2015 | F202: =+'Proy Economica'!F$6 -> Base | G202: =+'Proy Economica'!G$6 -> Año 1 | H202: =+'Proy Economica'!H$6 -> Año 2 | I202: =+'Proy Economica'!I$6 -> Año 3 | J202: =+'Proy Economica'!J$6 -> Año 4 | K202: =+'Proy Economica'!K$6 -> Año 5 | L202: =+'Proy Economica'!L$6 -> Año 6
B203: Ingreso a la Red | E203: =+'Resumen Ingresos y Abastec'!E196 -> 20442027.94 | F203: 21109118.77 | G203: =+'[4]Salida Guille'!B172 -> 21611963.21 | H203: =+'[4]Salida Guille'!C172 -> 22252371.11 | I203: =+'[4]Salida Guille'!D172 -> 22894802.46 | J203: =+'[4]Salida Guille'!E172 -> 23532578.58 | K203: =+'[4]Salida Guille'!F172 -> 24163962.03 | L203: =+'[4]Salida Guille'!G172 -> 24795273.48
B204: Ventas Totales + Peaje | E204: =+'Resumen Ingresos y Abastec'!E188 -> 17851695 | F204: =+F203-F206 -> 18517104.18 | G204: 18839148.33 | H204: 19547758.79 | I204: 20276550.11 | J204: 20991687.99 | K204: 21656621.88 | L204: 22314525.62
B205: Crec Ventas | G205: =+G204/F204-1 -> 0.0173917122 | H205: 0.03761372068 | I205: 0.03728260245 | J205: 0.03526920855 | K205: 0.03167605626 | L205: 0.03037887177
B206: Pérdidas Totales [ MWh ] | E206: =+E203-E204 -> 2590332.943 | F206: =+F203*F207 -> 2592014.584 | G206: 2772814.88 | H206: 2704612.32 | I206: 2618252.35 | J206: 2540890.593 | K206: 2507340.151 | L206: 2480747.86
B207: Pérdidas Totales [ % ] | E207: =+E206/E203 -> 0.1267160455 | F207: 0.1227912265 | G207: =+'[4]Salida Guille'!B174 -> 0.1283 | H207: =+'[4]Salida Guille'!C174 -> 0.1215426575 | I207: =+'[4]Salida Guille'!D174 -> 0.1143601197 | J207: =+'[4]Salida Guille'!E174 -> 0.1079733181 | K207: =+'[4]Salida Guille'!F174 -> 0.1037636191 | L207: =+'[4]Salida Guille'!G174 -> 0.1000492236
B208: Incobrabilidad [ % ] | F208: 0.015 | G208: 0.015 | H208: 0.014 | I208: 0.012 | J208: 0.011 | K208: 0.01 | L208: 0.01
B211: PROYECCION DE POTENCIA Y CLIENTES
B212: Potencia Máxima | C212: [MW] | F212: 3861 | G212: =+F212*(1+G213) -> 3948.908465 | H212: 4060.77819 | I212: 4185.256821 | J212: 4309.315319 | K212: 4432.632779 | L212: 4556.366807
B213: Crec Pot Max | C213: =[5]Varios!C5 -> [M$] | G213: =+'[4]Salida Guille'!B173 -> 0.02276831523 | H213: =+'[4]Salida Guille'!C173 -> 0.02832927786 | I213: =+'[4]Salida Guille'!D173 -> 0.0306538857 | J213: =+'[4]Salida Guille'!E173 -> 0.02964178879 | K213: =+'[4]Salida Guille'!F173 -> 0.02861648549 | L213: =+'[4]Salida Guille'!G173 -> 0.0279143423
B214: =[5]Varios!B6 -> Crecimiento Clientes | C214: =[5]Varios!C6 -> [%] | G214: =+'[4]Salida Guille'!B153 -> 0.013454606 | H214: =+'[4]Salida Guille'!C153 -> 0.01273076551 | I214: =+'[4]Salida Guille'!D153 -> 0.008084493986 | J214: =+'[4]Salida Guille'!E153 -> 0.007968421944 | K214: =+'[4]Salida Guille'!F153 -> 0.007854596052 | L214: =+'[4]Salida Guille'!G153 -> 0.007742946233
B217: OTRAS VARIABLES | G217: =+'Proy Economica'!G$6 -> Año 1 | H217: =+'Proy Economica'!H$6 -> Año 2 | I217: =+'Proy Economica'!I$6 -> Año 3 | J217: =+'Proy Economica'!J$6 -> Año 4 | K217: =+'Proy Economica'!K$6 -> Año 5 | L217: =+'Proy Economica'!L$6 -> Año 6
B218: Inversiones | C218: [M$] | D218: =[5]Varios!D3 -> 0 | G218: =+[6]Hoja1!D2 -> 2767423 | H218: =+[6]Hoja1!E2 -> 2456815 | I218: =+[6]Hoja1!F2 -> 3197132 | J218: =+[6]Hoja1!G2 -> 3263945 | K218: =+[6]Hoja1!H2 -> 2725237 | L218: =+[6]Hoja1!I2 -> 2770256
B219: Penalidades Calidad Servicio | C219: [M$] | D219: =[5]Varios!D4 -> 0 | G219: =[5]Varios!G4 -> 317383.2151 | H219: =[5]Varios!H4 -> 353006.1716 | I219: =[5]Varios!I4 -> 317706.2338 | J219: =[5]Varios!J4 -> 421705.0996 | K219: =[5]Varios!K4 -> 740790.1568 | L219: =[5]Varios!L4 -> 1554275.364
B220: Penalidades Calidad Producto | C220: [M$] | D220: =[5]Varios!D5 -> 0 | G220: =[5]Varios!G5 -> 6477.29226 | H220: =[5]Varios!H5 -> 4927.82993 | I220: =[5]Varios!I5 -> 15505.4956 | J220: =[5]Varios!J5 -> 31010.9912 | K220: =[5]Varios!K5 -> 62021.9824 | L220: =[5]Varios!L5 -> 77527.478
B221: Penalidades Calidad Comercial | C221: [M$] | D221: =[5]Varios!D6 -> 0 | G221: =[5]Varios!G7 -> 96451.20479 | H221: =[5]Varios!H7 -> 91628.64455 | I221: =[5]Varios!I7 -> 87047.21233 | J221: =[5]Varios!J7 -> 78342.49109 | K221: =[5]Varios!K7 -> 70508.24198 | L221: =[5]Varios!L7 -> 63457.41779
B222: Penalidades SVP | C222: [M$] | D222: =[5]Varios!D7 -> 0 | G222: =[5]Varios!G8 -> 104988.319 | H222: =[5]Varios!H8 -> 105775.7314 | I222: =[5]Varios!I8 -> 106833.4887 | J222: =[5]Varios!J8 -> 107901.8236 | K222: =[5]Varios!K8 -> 108980.8418 | L222: =[5]Varios!L8 -> 110070.6502
B225: VNR | G225: VNR AR$ | H225: VDT AR$ | I225: Depreciación Anual del Bien Nuevo
B226: Bienes de Uso | C226: [M$] | G226: =+[7]LEVIN!D26/1000-G227 -> 74465913.96 | H226: =+[7]LEVIN!E26/1000-H227 -> 30453038.05 | I226: =+[7]LEVIN!F26/1000-I227 -> 1945097.61
B227: Materiales y Repuestos | C227: [M$] | G227: =+[7]LEVIN!D25/1000 -> 557145.4 | H227: =+[7]LEVIN!E25/1000 -> 557145.4 | I227: =+[7]LEVIN!F25/1000 -> 0
B228: Servidumbres | C228: [M$] | G228: =+[7]LEVIN!D31/1000 -> 2137595.67 | H228: =+[7]LEVIN!E31/1000 -> 2137595.67 | I228: =+[7]LEVIN!F31/1000 -> 0

Sheet Cuadro Tarifario
B3: Cálculo Tarifario
B6: DATOS PARA EL CÁLCULO DE LOS CARGOS TARIFARIOS
E8: Año Base | F8: 2015 | G8: 2016 | H8: 2017 | I8: 2018 | J8: 2019 | K8: 2020 | L8: 2021
B10: =+'Proyección Ingresos'!B10 -> PpotR | C10: [$/kW] | E10: =+'Proyección Ingresos'!E10 -> 1.4276 | F10: 2.06667 | G10: 2.06667 | H10: 2.06667 | I10: 2.06667 | J10: 2.06667 | K10: 2.06667 | L10: 2.06667
B11: Ppot AP | C11: [$/kW] | E11: =+'Proyección Ingresos'!E11 -> 1.4276 | F11: 2.06667 | G11: 2.06667 | H11: 2.06667 | I11: 2.06667 | J11: 2.06667 | K11: 2.06667 | L11: 2.06667
B12: Ppot G | C12: [$/kW] | E12: ='Proyección Ingresos'!E12 -> 1.4276 | F12: 2.06667 | G12: 2.06667 | H12: 2.06667 | I12: 2.06667 | J12: 2.06667 | K12: 2.06667 | L12: 2.06667
B13: Ppot | C13: [$/kW] | E13: ='Proyección Ingresos'!E13 -> 1.4276 | F13: 2.06667 | G13: 2.06667 | H13: 2.06667 | I13: 2.06667 | J13: 2.06667 | K13: 2.06667 | L13: 2.06667
B14: Ppoty | C14: [$/kW] | E14: ='Proyección Ingresos'!E14 -> 1.4276 | F14: 2.06667 | G14: 2.06667 | H14: 2.06667 | I14: 2.06667 | J14: 2.06667 | K14: 2.06667 | L14: 2.06667
B15: Pep R | C15: [$/kWh] | E15: ='Proyección Ingresos'!E15 -> 0.32139 | F15: 0.03751 | G15: 0.03751 | H15: 0.03751 | I15: 0.03751 | J15: 0.03751 | K15: 0.03751 | L15: 0.03751
B16: Per R | C16: [$/kWh] | E16: ='Proyección Ingresos'!E16 -> 0.31709 | F16: 0.03307 | G16: 0.03307 | H16: 0.03307 | I16: 0.03307 | J16: 0.03307 | K16: 0.03307 | L16: 0.03307
B17: Pev R | C17: [$/kWh] | E17: ='Proyección Ingresos'!E17 -> 0.31226 | F17: 0.02652 | G17: 0.02652 | H17: 0.02652 | I17: 0.02652 | J17: 0.02652 | K17: 0.02652 | L17: 0.02652
B18: Pep AP | C18: [$/kWh] | E18: ='Proyección Ingresos'!E18 -> 0.32139 | F18: 0.04436 | G18: 0.04436 | H18: 0.04436 | I18: 0.04436 | J18: 0.04436 | K18: 0.04436 | L18: 0.04436
B19: Per AP | C19: [$/kWh] | E19: ='Proyección Ingresos'!E19 -> 0.31709 | F19: 0.03992 | G19: 0.03992 | H19: 0.03992 | I19: 0.03992 | J19: 0.03992 | K19: 0.03992 | L19: 0.03992
B20: Pev AP | C20: [$/kWh] | E20: ='Proyección Ingresos'!E20 -> 0.31226 | F20: 0.03265 | G20: 0.03265 | H20: 0.03265 | I20: 0.03265 | J20: 0.03265 | K20: 0.03265 | L20: 0.03265
B21: Pep G | C21: [$/kWh] | E21: ='Proyección Ingresos'!E21 -> 0.32139 | F21: 0.07189 | G21: 0.07189 | H21: 0.07189 | I21: 0.07189 | J21: 0.07189 | K21: 0.07189 | L21: 0.07189
B22: Per G | C22: [$/kWh] | E22: ='Proyección Ingresos'!E22 -> 0.31709 | F22: 0.06111 | G22: 0.06111 | H22: 0.06111 | I22: 0.06111 | J22: 0.06111 | K22: 0.06111 | L22: 0.06111
B23: Pev G | C23: [$/kWh] | E23: ='Proyección Ingresos'!E23 -> 0.31226 | F23: 0.0549 | G23: 0.0549 | H23: 0.0549 | I23: 0.0549 | J23: 0.0549 | K23: 0.0549 | L23: 0.0549
B24: Pep | C24: [$/kWh] | E24: ='Proyección Ingresos'!E24 -> 0.32139 | F24: 0.08159 | G24: 0.08159 | H24: 0.08159 | I24: 0.08159 | J24: 0.08159 | K24: 0.08159 | L24: 0.08159
B25: Per | C25: [$/kWh] | E25: ='Proyección Ingresos'!E25 -> 0.31709 | F25: 0.07081 | G25: 0.07081 | H25: 0.07081 | I25: 0.07081 | J25: 0.07081 | K25: 0.07081 | L25: 0.07081
B26: Pev | C26: [$/kWh] | E26: ='Proyección Ingresos'!E26 -> 0.31226 | F26: 0.06365 | G26: 0.06365 | H26: 0.06365 | I26: 0.06365 | J26: 0.06365 | K26: 0.06365 | L26: 0.06365
B27: Pepy | C27: [$/kWh] | E27: ='Proyección Ingresos'!E27 -> 0.77302 | F27: 0.08159 | G27: 0.08159 | H27: 0.08159 | I27: 0.08159 | J27: 0.08159 | K27: 0.08159 | L27: 0.08159
B28: Pery | C28: [$/kWh] | E28: ='Proyección Ingresos'!E28 -> 0.76872 | F28: 0.07081 | G28: 0.07081 | H28: 0.07081 | I28: 0.07081 | J28: 0.07081 | K28: 0.07081 | L28: 0.07081
B29: Pevy | C29: [$/kWh] | E29: ='Proyección Ingresos'!E29 -> 0.76389 | F29: 0.06365 | G29: 0.06365 | H29: 0.06365 | I29: 0.06365 | J29: 0.06365 | K29: 0.06365 | L29: 0.06365
B30: CUSTR | C30: [$ / kW-mes] | E30: =+'Proyección Ingresos'!E30 -> 0.6645285142 | F30: 0.0769 | G30: 0.0769 | H30: 0.0769 | I30: 0.0769 | J30: 0.0769 | K30: 0.0769 | L30: 0.0769
B31: CUSTA | C31: [$ / kW-mes] | E31: =+'Proyección Ingresos'!E31 -> 0.6645285142 | F31: 0.0769 | G31: 0.0769 | H31: 0.0769 | I31: 0.0769 | J31: 0.0769 | K31: 0.0769 | L31: 0.0769
B32: CUSTG | C32: [$ / kW-mes] | E32: =+'Proyección Ingresos'!E32 -> 0.6645285142 | F32: 0.0769 | G32: 0.0769 | H32: 0.0769 | I32: 0.0769 | J32: 0.0769 | K32: 0.0769 | L32: 0.0769
B33: CUST | C33: [$ / kW-mes] | E33: =+'Proyección Ingresos'!E33 -> 0.6645285142 | F33: 0.0769 | G33: 0.0769 | H33: 0.0769 | I33: 0.0769 | J33: 0.0769 | K33: 0.0769 | L33: 0.0769
B34: CUSTy | C34: [$ / kW-mes] | E34: =+'Proyección Ingresos'!E34 -> 0.6645285142 | F34: 0.0769 | G34: 0.0769 | H34: 0.0769 | I34: 0.0769 | J34: 0.0769 | K34: 0.0769 | L34: 0.0769
B35: SCE | C35: [$/kWh] | E35: =F35 -> 0.01526760182 | F35: ='Proyección Ingresos'!F39 -> 0.01526760182 | G35: ='Proyección Ingresos'!G39 -> 0.01494342779 | H35: ='Proyección Ingresos'!H39 -> 0.01490209103 | I35: ='Proyección Ingresos'!I39 -> 0.01494619823 | J35: ='Proyección Ingresos'!J39 -> 0.0150984441 | K35: ='Proyección Ingresos'!K39 -> 0.01546653971 | L35: ='Proyección Ingresos'!L39 -> 0.01597564055
B36: SCET2 | C36: $ / kW - mes | E36: =F36 -> 3.269823092 | F36: =F$35*'T2'!F14/'T2'!F10 -> 3.269823092 | G36: =G$35*'T2'!G14/'T2'!G10 -> 3.814325047 | H36: =H$35*'T2'!H14/'T2'!H10 -> 3.869998372 | I36: =I$35*'T2'!I14/'T2'!I10 -> 3.79259973 | J36: =J$35*'T2'!J14/'T2'!J10 -> 3.90178521 | K36: =K$35*'T2'!K14/'T2'!K10 -> 4.026303677 | L36: =L$35*'T2'!L14/'T2'!L10 -> 4.189375845
B37: SCET3BT | C37: $ / kW - mes | E37: 4.556978223 | F37: =F$35*SUM('T3BT<'!F10:F14)/'T3BT<'!F16 -> 4.556978223 | G37: =G$35*SUM('T3BT<'!G10:G14)/'T3BT<'!G16 -> 5.436520538 | H37: =H$35*SUM('T3BT<'!H10:H14)/'T3BT<'!H16 -> 5.719793749 | I37: =I$35*SUM('T3BT<'!I10:I14)/'T3BT<'!I16 -> 5.804055838 | J37: =J$35*SUM('T3BT<'!J10:J14)/'T3BT<'!J16 -> 6.160437479 | K37: =K$35*SUM('T3BT<'!K10:K14)/'T3BT<'!K16 -> 6.533030907 | L37: =L$35*SUM('T3BT<'!L10:L14)/'T3BT<'!L16 -> 6.976188088
B38: SCET3MT | C38: $ / kW - mes | E38: 6.305629295 | F38: =F$35*SUM('T3MT<'!F10:F14)/'T3MT<'!F16 -> 6.305629295 | G38: =G$35*SUM('T3MT<'!G10:G14)/'T3MT<'!G16 -> 6.240267683 | H38: =H$35*SUM('T3MT<'!H10:H14)/'T3MT<'!H16 -> 6.124403515 | I38: =I$35*SUM('T3MT<'!I10:I14)/'T3MT<'!I16 -> 6.34386936 | J38: =J$35*SUM('T3MT<'!J10:J14)/'T3MT<'!J16 -> 6.591981684 | K38: =K$35*SUM('T3MT<'!K10:K14)/'T3MT<'!K16 -> 6.862905361 | L38: =L$35*SUM('T3MT<'!L10:L14)/'T3MT<'!L16 -> 7.201998915
B39: SCET3AT | C39: $ / kW - mes | E39: 0 | F39: =F$35*IF('T3AT<'!F16=0,0,SUM('T3AT<'!F10:F14)/'T3AT<'!F16) -> 0 | G39: =G$35*IF('T3AT<'!G16=0,0,SUM('T3AT<'!G10:G14)/'T3AT<'!G16) -> 0 | H39: =H$35*IF('T3AT<'!H16=0,0,SUM('T3AT<'!H10:H14)/'T3AT<'!H16) -> 0 | I39: =I$35*IF('T3AT<'!I16=0,0,SUM('T3AT<'!I10:I14)/'T3AT<'!I16) -> 0 | J39: =J$35*IF('T3AT<'!J16=0,0,SUM('T3AT<'!J10:J14)/'T3AT<'!J16) -> 0 | K39: =K$35*IF('T3AT<'!K16=0,0,SUM('T3AT<'!K10:K14)/'T3AT<'!K16) -> 0 | L39: =L$35*IF('T3AT<'!L16=0,0,SUM('T3AT<'!L10:L14)/'T3AT<'!L16) -> 0
B40: SCEPJBT | C40: $ / MW - mes | E40: 351.26697 | F40: =F$35*IF('PJBT<'!F16=0,0,SUM('PJBT<'!F10:F14)/'PJBT<'!F16) -> 351.26697 | G40: =G$35*IF('PJBT<'!G16=0,0,SUM('PJBT<'!G10:G14)/'PJBT<'!G16) -> 419.0650039 | H40: =H$35*IF('PJBT<'!H16=0,0,SUM('PJBT<'!H10:H14)/'PJBT<'!H16) -> 8.669449332 | I40: =I$35*IF('PJBT<'!I16=0,0,SUM('PJBT<'!I10:I14)/'PJBT<'!I16) -> 8.809379893 | J40: =J$35*IF('PJBT<'!J16=0,0,SUM('PJBT<'!J10:J14)/'PJBT<'!J16) -> 9.363797279 | K40: =K$35*IF('PJBT<'!K16=0,0,SUM('PJBT<'!K10:K14)/'PJBT<'!K16) -> 9.940561265 | L40: =L$35*IF('PJBT<'!L16=0,0,SUM('PJBT<'!L10:L14)/'PJBT<'!L16) -> 10.61486255
B41: SCEPJMT | C41: $ / MW - mes | E41: 34.18041168 | F41: =F$35*IF('PJMT<'!F16=0,0,SUM('PJMT<'!F10:F14)/'PJMT<'!F16) -> 34.18041168 | G41: =G$35*IF('PJMT<'!G16=0,0,SUM('PJMT<'!G10:G14)/'PJMT<'!G16) -> 33.82611131 | H41: =H$35*IF('PJMT<'!H16=0,0,SUM('PJMT<'!H10:H14)/'PJMT<'!H16) -> 1.259319928 | I41: =I$35*IF('PJMT<'!I16=0,0,SUM('PJMT<'!I10:I14)/'PJMT<'!I16) -> 1.249695748 | J41: =J$35*IF('PJMT<'!J16=0,0,SUM('PJMT<'!J10:J14)/'PJMT<'!J16) -> 1.24265482 | K41: =K$35*IF('PJMT<'!K16=0,0,SUM('PJMT<'!K10:K14)/'PJMT<'!K16) -> 1.235956123 | L41: =L$35*IF('PJMT<'!L16=0,0,SUM('PJMT<'!L10:L14)/'PJMT<'!L16) -> 1.297024247
B42: SCEPJAT | C42: $ / MW - mes | E42: 0 | F42: =F$35*IF('PJAT<'!F16=0,0,SUM('PJAT<'!F10:F14)/'PJAT<'!F16) -> 0 | G42: =G$35*IF('PJAT<'!G16=0,0,SUM('PJAT<'!G10:G14)/'PJAT<'!G16) -> 0 | H42: =H$35*IF('PJAT<'!H16=0,0,SUM('PJAT<'!H10:H14)/'PJAT<'!H16) -> 0 | I42: =I$35*IF('PJAT<'!I16=0,0,SUM('PJAT<'!I10:I14)/'PJAT<'!I16) -> 0 | J42: =J$35*IF('PJAT<'!J16=0,0,SUM('PJAT<'!J10:J14)/'PJAT<'!J16) -> 0 | K42: =K$35*IF('PJAT<'!K16=0,0,SUM('PJAT<'!K10:K14)/'PJAT<'!K16) -> 0 | L42: =L$35*IF('PJAT<'!L16=0,0,SUM('PJAT<'!L10:L14)/'PJAT<'!L16) -> 0
B43: SCEFTTMAT | C43: $ / MW - mes | E43: 0 | F43: 0 | G43: 0 | H43: 0 | I43: 0 | J43: 0 | K43: 0 | L43: 0
B45: CDR1 | C45: [$/kW mes] | E45: =+'Proyección Ingresos'!E42 -> 36.19510459 | F45: =$E45*(1+'Proyección Ingresos'!F42) -> 36.19510459 | G45: =$E45*(1+'Proyección Ingresos'!G42) ->  | H45: =$E45*(1+'Proyección Ingresos'!H42) ->  | I45: =$E45*(1+'Proyección Ingresos'!I42) ->  | J45: =$E45*(1+'Proyección Ingresos'!J42) ->  | K45: =$E45*(1+'Proyección Ingresos'!K42) ->  | L45: =$E45*(1+'Proyección Ingresos'!L42) -> 
B46: CDR2 | C46: [$/kW mes] | E46: =+'Proyección Ingresos'!E43 -> 36.19510459 | F46: =$E46*(1+'Proyección Ingresos'!F43) -> 36.19510459 | G46: =$E46*(1+'Proyección Ingresos'!G43) ->  | H46: =$E46*(1+'Proyección Ingresos'!H43) ->  | I46: =$E46*(1+'Proyección Ingresos'!I43) ->  | J46: =$E46*(1+'Proyección Ingresos'!J43) ->  | K46: =$E46*(1+'Proyección Ingresos'!K43) ->  | L46: =$E46*(1+'Proyección Ingresos'!L43) -> 
B47: CDG1 | C47: [$/kW mes] | E47: =+'Proyección Ingresos'!E44 -> 38.602211 | F47: =$E47*(1+'Proyección Ingresos'!F44) -> 38.602211 | G47: =$E47*(1+'Proyección Ingresos'!G44) ->  | H47: =$E47*(1+'Proyección Ingresos'!H44) ->  | I47: =$E47*(1+'Proyección Ingresos'!I44) ->  | J47: =$E47*(1+'Proyección Ingresos'!J44) ->  | K47: =$E47*(1+'Proyección Ingresos'!K44) ->  | L47: =$E47*(1+'Proyección Ingresos'!L44) -> 
B48: CDG2 | C48: [$/kW mes] | E48: =+'Proyección Ingresos'!E45 -> 36.84157713 | F48: =$E48*(1+'Proyección Ingresos'!F45) -> 36.84157713 | G48: =$E48*(1+'Proyección Ingresos'!G45) ->  | H48: =$E48*(1+'Proyección Ingresos'!H45) ->  | I48: =$E48*(1+'Proyección Ingresos'!I45) ->  | J48: =$E48*(1+'Proyección Ingresos'!J45) ->  | K48: =$E48*(1+'Proyección Ingresos'!K45) ->  | L48: =$E48*(1+'Proyección Ingresos'!L45) -> 
B49: CDG3 | C49: [$/kW mes] | E49: =+'Proyección Ingresos'!E46 -> 33.49814535 | F49: =$E49*(1+'Proyección Ingresos'!F46) -> 33.49814535 | G49: =$E49*(1+'Proyección Ingresos'!G46) ->  | H49: =$E49*(1+'Proyección Ingresos'!H46) ->  | I49: =$E49*(1+'Proyección Ingresos'!I46) ->  | J49: =$E49*(1+'Proyección Ingresos'!J46) ->  | K49: =$E49*(1+'Proyección Ingresos'!K46) ->  | L49: =$E49*(1+'Proyección Ingresos'!L46) -> 
B50: CDAP | C50: [$/kW mes] | E50: =+'Proyección Ingresos'!E47 -> 39.85965326 | F50: =$E50*(1+'Proyección Ingresos'!F47) -> 39.85965326 | G50: =$E50*(1+'Proyección Ingresos'!G47) ->  | H50: =$E50*(1+'Proyección Ingresos'!H47) ->  | I50: =$E50*(1+'Proyección Ingresos'!I47) ->  | J50: =$E50*(1+'Proyección Ingresos'!J47) ->  | K50: =$E50*(1+'Proyección Ingresos'!K47) ->  | L50: =$E50*(1+'Proyección Ingresos'!L47) -> 
B51: CDT2 | C51: [$/kW mes] | E51: =+'Proyección Ingresos'!E48 -> 24.93789026 | F51: =$E51*(1+'Proyección Ingresos'!F48) -> 24.93789026 | G51: =$E51*(1+'Proyección Ingresos'!G48) ->  | H51: =$E51*(1+'Proyección Ingresos'!H48) ->  | I51: =$E51*(1+'Proyección Ingresos'!I48) ->  | J51: =$E51*(1+'Proyección Ingresos'!J48) ->  | K51: =$E51*(1+'Proyección Ingresos'!K48) ->  | L51: =$E51*(1+'Proyección Ingresos'!L48) -> 
B52: CDT3B | C52: [$/kW mes] | E52: =+'Proyección Ingresos'!E49 -> 27.6335208 | F52: =$E52*(1+'Proyección Ingresos'!F49) -> 27.6335208 | G52: =$E52*(1+'Proyección Ingresos'!G49) ->  | H52: =$E52*(1+'Proyección Ingresos'!H49) ->  | I52: =$E52*(1+'Proyección Ingresos'!I49) ->  | J52: =$E52*(1+'Proyección Ingresos'!J49) ->  | K52: =$E52*(1+'Proyección Ingresos'!K49) ->  | L52: =$E52*(1+'Proyección Ingresos'!L49) -> 
B53: CDT3M | C53: [$/kW mes] | E53: =+'Proyección Ingresos'!E50 -> 19.09910917 | F53: =$E53*(1+'Proyección Ingresos'!F50) -> 19.09910917 | G53: =$E53*(1+'Proyección Ingresos'!G50) ->  | H53: =$E53*(1+'Proyección Ingresos'!H50) ->  | I53: =$E53*(1+'Proyección Ingresos'!I50) ->  | J53: =$E53*(1+'Proyección Ingresos'!J50) ->  | K53: =$E53*(1+'Proyección Ingresos'!K50) ->  | L53: =$E53*(1+'Proyección Ingresos'!L50) -> 
B54: CDT3A | C54: [$/kW mes] | E54: =+'Proyección Ingresos'!E51 -> 6.112326008 | F54: =$E54*(1+'Proyección Ingresos'!F51) -> 6.112326008 | G54: =$E54*(1+'Proyección Ingresos'!G51) ->  | H54: =$E54*(1+'Proyección Ingresos'!H51) ->  | I54: =$E54*(1+'Proyección Ingresos'!I51) ->  | J54: =$E54*(1+'Proyección Ingresos'!J51) ->  | K54: =$E54*(1+'Proyección Ingresos'!K51) ->  | L54: =$E54*(1+'Proyección Ingresos'!L51) -> 
B55: CDFTTMA | C55: [$/kW mes] | E55: =+'Proyección Ingresos'!E52 -> 1.525314284 | F55: =$E55*(1+'Proyección Ingresos'!F52) -> 1.525314284 | G55: =$E55*(1+'Proyección Ingresos'!G52) ->  | H55: =$E55*(1+'Proyección Ingresos'!H52) ->  | I55: =$E55*(1+'Proyección Ingresos'!I52) ->  | J55: =$E55*(1+'Proyección Ingresos'!J52) ->  | K55: =$E55*(1+'Proyección Ingresos'!K52) ->  | L55: =$E55*(1+'Proyección Ingresos'!L52) -> 
B56: CDNFT3B | C56: [$/kW mes] | E56: =+'Proyección Ingresos'!E53 -> 3.571130075 | F56: =$E56*(1+'Proyección Ingresos'!F53) -> 3.571130075 | G56: =$E56*(1+'Proyección Ingresos'!G53) ->  | H56: =$E56*(1+'Proyección Ingresos'!H53) ->  | I56: =$E56*(1+'Proyección Ingresos'!I53) ->  | J56: =$E56*(1+'Proyección Ingresos'!J53) ->  | K56: =$E56*(1+'Proyección Ingresos'!K53) ->  | L56: =$E56*(1+'Proyección Ingresos'!L53) -> 
B57: CDNFT3M | C57: [$/kW mes] | E57: =+'Proyección Ingresos'!E54 -> 1.113303954 | F57: =$E57*(1+'Proyección Ingresos'!F54) -> 1.113303954 | G57: =$E57*(1+'Proyección Ingresos'!G54) ->  | H57: =$E57*(1+'Proyección Ingresos'!H54) ->  | I57: =$E57*(1+'Proyección Ingresos'!I54) ->  | J57: =$E57*(1+'Proyección Ingresos'!J54) ->  | K57: =$E57*(1+'Proyección Ingresos'!K54) ->  | L57: =$E57*(1+'Proyección Ingresos'!L54) -> 
B58: CDNFT3A | C58: [$/kW mes] | E58: =+'Proyección Ingresos'!E55 -> 0.4327563079 | F58: =$E58*(1+'Proyección Ingresos'!F55) -> 0.4327563079 | G58: =$E58*(1+'Proyección Ingresos'!G55) ->  | H58: =$E58*(1+'Proyección Ingresos'!H55) ->  | I58: =$E58*(1+'Proyección Ingresos'!I55) ->  | J58: =$E58*(1+'Proyección Ingresos'!J55) ->  | K58: =$E58*(1+'Proyección Ingresos'!K55) ->  | L58: =$E58*(1+'Proyección Ingresos'!L55) -> 
B59: CDNFT3MA | C59: [$/kW mes] | E59: =+'Proyección Ingresos'!E56 -> 0.1560659816 | F59: =$E59*(1+'Proyección Ingresos'!F56) -> 0.1560659816 | G59: =$E59*(1+'Proyección Ingresos'!G56) ->  | H59: =$E59*(1+'Proyección Ingresos'!H56) ->  | I59: =$E59*(1+'Proyección Ingresos'!I56) ->  | J59: =$E59*(1+'Proyección Ingresos'!J56) ->  | K59: =$E59*(1+'Proyección Ingresos'!K56) ->  | L59: =$E59*(1+'Proyección Ingresos'!L56) -> 
B62: CARGOS TARIFARIOS
E64: =+'Proy Economica'!E$6 -> 2015 | F64: =+'Proy Economica'!F$6 -> Base | G64: =+'Proy Economica'!G$6 -> Año 1 | H64: =+'Proy Economica'!H$6 -> Año 2 | I64: =+'Proy Economica'!I$6 -> Año 3 | J64: =+'Proy Economica'!J$6 -> Año 4 | K64: =+'Proy Economica'!K$6 -> Año 5 | L64: =+'Proy Economica'!L$6 -> Año 6
A66: T1R | B66: CFR | C66: [$/bim] | E66: =+'[4]Salida Guille'!$D$2 -> 116.9784777 | F66: =+E66 -> 116.9784777 | G66: =+F66 -> 116.9784777 | H66: =+G66*(1+FACTOR_X)*(1+FACTOR_Y) -> 116.9784777 | I66: 118.021156 | J66: 120.3574323 | K66: 124.0086976 | L66: 128.8011281
B67: CVR1 | C67: [$/kWh] | E67: ='[4]Salida Guille'!$D$3 -> 0.9850385233 | F67: =+E67 -> 0.9850385233 | G67: 0.9850385233 | H67: 0.9850385233 | I67: 0.9938185846 | J67: 1.013491624 | K67: 1.044237766 | L67: 1.084593298
B68: CVR2 | C68: [$/kWh] | E68: ='[4]Salida Guille'!$D$5 -> 1.001431513 | F68: =+E68 -> 1.001431513 | G68: 1.001431513 | H68: 1.001431513 | I68: 1.010357692 | J68: 1.030358129 | K68: 1.061615948 | L68: 1.102643076
B69: CVR3 | C69: [$/kWh] | E69: ='[4]Salida Guille'!$D$7 -> 1.039057101 | F69: =+E69 -> 1.039057101 | G69: 1.039057101 | H69: 1.039057101 | I69: 1.048318653 | J69: 1.069070543 | K69: 1.101502775 | L69: 1.144071366
A70: T1G | B70: CFG | C70: [$/bim] | E70: ='[4]Salida Guille'!$D$8 -> 124.3292613 | F70: =+E70 -> 124.3292613 | G70: 124.3292613 | H70: 124.3292613 | I70: 125.4374601 | J70: 127.9205452 | K70: 131.8012514 | L70: 136.8948324
B71: CVG1 | C71: [$/kWh] | E71: ='[4]Salida Guille'!$D$9 -> 0.9986006404 | F71: =+E71 -> 0.9986006404 | G71: 0.9986006404 | H71: 0.9986006404 | I71: 1.007501587 | J71: 1.027445487 | K71: 1.058614945 | L71: 1.099526096
B72: CVG2 | C72: [$/kWh] | E72: ='[4]Salida Guille'!$D$11 -> 1.108694096 | F72: =+E72 -> 1.108694096 | G72: 1.108694096 | H72: 1.108694096 | I72: 1.118576351 | J72: 1.140719021 | K72: 1.175324842 | L72: 1.220746354
B73: CVG3 | C73: [$/kWh] | E73: ='[4]Salida Guille'!$D$13 -> 1.122901595 | F73: =+E73 -> 1.122901595 | G73: 1.122901595 | H73: 1.122901595 | I73: 1.132910488 | J73: 1.155336907 | K73: 1.190386189 | L73: 1.236389761
A74: AP | B74: CVAP | C74: [$/kWh] | E74: ='[4]Salida Guille'!$D$14 -> 1.258922188 | F74: =+E74 -> 1.258922188 | G74: 1.258922188 | H74: 1.258922188 | I74: 1.27014349 | J74: 1.295286492 | K74: 1.334581403 | L74: 1.386157532
A75: T2 | B75: CFT2 | C75: [$/mes] | E75: =+'[4]Salida Guille'!$D$15 -> 147.0886237 | F75: =+E75 -> 147.0886237 | G75: 147.0886237 | H75: 147.0886237 | I75: 148.3996863 | J75: 151.3373179 | K75: 155.9284153 | L75: 161.9544127
B76: CCT2 | C76: [$/kWmes] | E76: ='[4]Salida Guille'!$D$17 -> 189.2388939 | F76: =+E76 -> 189.2388939 | G76: 189.2388939 | H76: =+G76*(1+FACTOR_X)*(1+FACTOR_Y) -> 189.2388939 | I76: 190.9256595 | J76: 194.7051098 | K76: 200.6118494 | L76: 208.3646794
B77: CPT2 | C77: [$/kWmes] | E77: ='[4]Salida Guille'!$D$16 -> 1.811120859 | F77: =+E77 -> 1.811120859 | G77: 1.811120859 | H77: 1.811120859 | I77: 1.827264138 | J77: 1.863435568 | K77: 1.919966332 | L77: 1.994165202
B78: CVT2 | C78: [$/kWh] | E78: ='[4]Salida Guille'!$D$18 -> 0.367599003 | F78: =+E78 -> 0.367599003 | G78: 0.367599003 | H78: 0.367599003 | I78: 0.370875567 | J78: 0.3782171983 | K78: 0.3896911164 | L78: 0.404751089
A79: T3BT < 300 kW | B79: CFT3B | C79: [$/mes] | E79: =+'[4]Salida Guille'!D19 -> 1088.130494 | F79: =+E79 -> 1088.130494 | G79: 1088.130494 | H79: 1088.130494 | I79: 1097.829457 | J79: 1119.561434 | K79: 1153.5254 | L79: 1198.104453
B80: CCT3B | C80: [$/kWmes] | E80: =+'[4]Salida Guille'!D22 -> 209.5127433 | F80: =+E80 -> 209.5127433 | G80: =+F80 -> 209.5127433 | H80: 209.5127433 | I80: 211.3802182 | J80: 215.5645748 | K80: 222.1041248 | L80: 230.6875436
B81: CPPT3B | C81: [$/kWmes] | E81: =+'[4]Salida Guille'!D21 -> 2.170757124 | F81: =+E81 -> 2.170757124 | G81: 2.170757124 | H81: 2.170757124 | I81: 2.190105992 | J81: 2.233460023 | K81: 2.301216163 | L81: 2.390148784
B82: CVT3BP | C82: [$/kWh] | E82: =+'[4]Salida Guille'!D24 -> 0.3723834658 | F82: 0.3723834658 | G82: 0.3723834658 | H82: 0.3723834658 | I82: 0.3757026758 | J82: 0.3831398616 | K82: 0.3947631178 | L82: 0.4100191027
B83: CVT3BR | C83: [$/kWh] | E83: =+'[4]Salida Guille'!D25 -> 0.3674845618 | F83: 0.3674845618 | G83: 0.3674845618 | H83: 0.3674845618 | I83: 0.3707601058 | J83: 0.3780994515 | K83: 0.3895697975 | L83: 0.4046250817
B84: CVT3BV | C84: [$/kWh] | E84: =+'[4]Salida Guille'!D26 -> 0.3619818394 | F84: 0.3619818394 | G84: 0.3619818394 | H84: 0.3619818394 | I84: 0.3652083353 | J84: 0.3724377815 | K84: 0.3837363703 | L84: 0.3985662163
A85: T3MT < 300 kW | B85: CFT3M | C85: [$/mes] | E85: ='[4]Salida Guille'!$D$27 -> 3811.901555 | F85: 3811.901555 | G85: 3811.901555 | H85: 3811.901555 | I85: 3845.878632 | J85: 3922.009349 | K85: 4040.990755 | L85: 4197.158571
B86: CCT3M | C86: [$/kWmes] | E86: ='[4]Salida Guille'!$D$30 -> 101.1024449 | F86: 101.1024449 | G86: 101.1024449 | H86: =+G86*(1+FACTOR_X)*(1+FACTOR_Y) -> 101.1024449 | I86: 102.0036134 | J86: 104.0228161 | K86: 107.1785405 | L86: 111.3205541
B87: CPPT3M | C87: [$/kWmes] | E87: ='[4]Salida Guille'!$D$29 -> 2.232422202 | F87: 2.232422202 | G87: 2.232422202 | H87: 2.232422202 | I87: 2.252320717 | J87: 2.296906314 | K87: 2.366587214 | L87: 2.45804616
B88: CVT3MP | C88: [$/kWh] | E88: ='[4]Salida Guille'!$D$32 -> 0.3538963434 | F88: 0.3538963434 | G88: 0.3538963434 | H88: 0.3538963434 | I88: 0.3570507699 | J88: 0.3641187338 | K88: 0.3751649488 | L88: 0.3896635444
B89: CVT3MR | C89: [$/kWh] | E89: ='[4]Salida Guille'!$D$33 -> 0.3492406474 | F89: 0.3492406474 | G89: 0.3492406474 | H89: 0.3492406474 | I89: 0.3523535757 | J89: 0.3593285567 | K89: 0.3702294529 | L89: 0.3845373117
B90: CVT3MV | C90: [$/kWh] | E90: ='[4]Salida Guille'!$D$34 -> 0.3440111098 | F90: 0.3440111098 | G90: 0.3440111098 | H90: 0.3440111098 | I90: 0.347077425 | J90: 0.3539479626 | K90: 0.3646856285 | L90: 0.378779241
A91: T3AT < 300 kW | B91: CFT3A | C91: [$/mes] | E91: ='[4]Salida Guille'!$D$35 -> 20261.11518 | F91: 20261.11518 | G91: 20261.11518 | H91: 20261.11518 | I91: 20441.71099 | J91: 20846.3629 | K91: 21478.77587 | L91: 22308.84297
B92: CCT3A | C92: [$/kWmes] | E92: ='[4]Salida Guille'!$D$38 -> 37.40595596 | F92: 37.40595596 | G92: 37.40595596 | H92: 37.40595596 | I92: 37.73937093 | J92: 38.48643699 | K92: 39.65399422 | L92: 41.1864594
B93: CPPT3A | C93: [$/kWmes] | E93: ='[4]Salida Guille'!$D$37 -> 2.156631821 | F93: 2.156631821 | G93: 2.156631821 | H93: 2.156631821 | I93: 2.175854784 | J93: 2.218926707 | K93: 2.286241951 | L93: 2.37459588
B94: CVT3AP | C94: [$/kWh] | E94: ='[4]Salida Guille'!D40 -> 0.3393707472 | F94: 0.3393707472 | G94: 0.3393707472 | H94: 0.3393707472 | I94: 0.342395701 | J94: 0.3491735619 | K94: 0.3597663875 | L94: 0.3736698914
